Workbook

Sheet MIS IPS Data (hidden)
A1: DateSent | B1: Sent Initials | C1: FAMILY | D1: RepLastName | E1: Account# | F1: LastName | G1: FirstName | H1: Account Type | I1: AmountToInvest | J1: TCA_AdvFee | K1: MOD1 | L1: MOD1% | M1: MOD2 | N1: MOD2% | O1: MOD3 | P1: MOD3% | Q1: MOD4 | R1: MOD4% | S1: MOD5 | T1: MOD5% | U1: AlignmentDate | V1: AlignmentInitials | W1: Fund | X1: CUST | Y1: DESC

Sheet MIS Data (hidden)
A1: DateSent | B1: Sent Initials | C1: FAMILY | D1: RepLastName | E1: Account# | F1: LastName | G1: FirstName | H1: Account Type | I1: AmountToInvest | J1: TCA_AdvFee | K1: MOD1 | L1: MOD1% | M1: MOD2 | N1: MOD2% | O1: MOD3 | P1: MOD3% | Q1: MOD4 | R1: MOD4% | S1: MOD5 | T1: MOD5% | U1: AlignmentDate | V1: AlignmentInitials | W1: Fund | X1: CUST | Y1: DESC

Sheet SEMAllocPortfolios (hidden)
A1: As of: | B1: 45382 | C1: =COLUMN()-1 -> 2 | D1: =COLUMN()-1 -> 3 | E1: 4 | F1: 5 | G1: 6 | H1: 7 | I1: 8 | J1: 9 | K1: 10 | L1: 11
A2: ID | B2: SEM Portfolio Blends | C2: Mod 1 | D2: Mod 1 % | E2: Mod 2 | F2: Mod 2% | G2: Mod 3 | H2: Mod 3% | I2: Mod 4 | J2: Mod 4% | K2: Mod 5 | L2: Mod 5% | M2: Tolerisk Score | N2: Riskalyze Score | O2: MVaR | P2: MaxDD | Q2: 3 Yr Ret | R2: 5 Yr Ret | S2: 10 Yr Ret | T2: 15 Yr Ret | U2: Sharpe | V2: Up Capt | W2: Dwn Capt | X2: Std Dev | Y2: Min Eq. | Z2: Max Eq. | AA2: Tactical % | AB2: Dynamic % | AC2: Strategic % | AD2: Risk Target | AE2: Avg. Equity | AF2: Risk (Low) | AG2: Risk (High) | AH2: DD Abs
A3: 1 | B3: Preservation [15/85] | C3: DIA | D3: 50 | E3: TB | F3: 30 | G3: INA | H3: 20 | M3: 24 | N3: 31 | O3: -0.09090800214 | P3: -0.07210136794 | Q3: 0.006628611626 | R3: 0.02413171827 | S3: 0.02185256951 | T3: 0.03626933253 | U3: 0.4680582134 | V3: 0.1604089506 | W3: 0.1549726591 | X3: 0.04042836691 | Y3: 0 | Z3: 24 | AA3: 50 | AB3: 50 | AC3: 0 | AD3: 0.1 | AE3: 13.5 | AF3: 0 | AG3: 25 | AH3: =ABS(MIN(O3:P3)) -> 0.09090800214
A4: 2 | B4: Conservative [30/70] | C4: DIA | D4: 30 | E4: TB | F4: 20 | G4: INA | H4: 20 | I4: AG-GRW | J4: 30 | M4: 39 | N4: 41 | O4: -0.146573442 | P4: -0.1225485998 | Q4: 0.02468113632 | R4: 0.05381970278 | S4: 0.04246529891 | T4: 0.06006489618 | U4: 0.6136428226 | V4: 0.3601283583 | W4: 0.3905066256 | X4: 0.063324286 | Y4: 21 | Z4: 39 | AA4: 40 | AB4: 30 | AC4: 30 | AD4: 0.15 | AE4: 31 | AF4: 26 | AG4: 44 | AH4: 0.146573442
A5: 3 | B5: Moderate Conserv. [45/55] | C5: TB | D5: 30 | E5: DIA | F5: 25 | G5: AG-GRW | H5: 30 | I5: AG-MAX | J5: 15 | M5: 49 | N5: 48 | O5: -0.1862743332 | P5: -0.2004643236 | Q5: 0.03066025734 | R5: 0.0660997453 | S5: 0.05357672866 | T5: 0.07287281096 | U5: 0.6353503506 | V5: 0.4751847037 | W5: 0.5282485517 | X5: 0.08074103993 | Y5: 36 | Z5: 49 | AA5: 30 | AB5: 25 | AC5: 45 | AD5: 0.2 | AE5: 44.5 | AF5: 45 | AG5: 54 | AH5: 0.2004643236
A6: 4 | B6: Moderate [50/50] | C6: TB | D6: 25 | E6: DIA | F6: 20 | G6: AG-GRW | H6: 35 | I6: AG-MAX | J6: 20 | M6: 56 | N6: 52 | O6: -0.2112071628 | P6: -0.2506783742 | Q6: 0.0362464752 | R6: 0.07548802673 | S6: 0.06059049933 | T6: 0.08075150746 | U6: 0.636811832 | V6: 0.5474320286 | W6: 0.6134299062 | X6: 0.09150784934 | Y6: 44.5 | Z6: 56 | AA6: 25 | AB6: 20 | AC6: 55 | AD6: 0.25 | AE6: 52.25 | AF6: 55 | AG6: 64 | AH6: 0.2506783742
A7: 5 | B7: Moderate Growth [60/40] | C7: TB | D7: 20 | E7: DIA | F7: 15 | G7: AG-GRW | H7: 40 | I7: AG-MAX | J7: 25 | M7: 63 | N7: 57 | O7: -0.2366758358 | P7: -0.2981849047 | Q7: 0.04165597104 | R7: 0.08470206899 | S7: 0.06746461116 | T7: 0.08852807797 | U7: 0.636359173 | V7: 0.6196793535 | W7: 0.6986112606 | X7: 0.1025397094 | Y7: 53 | Z7: 63 | AA7: 20 | AB7: 15 | AC7: 65 | AD7: 0.3 | AE7: 60 | AF7: 65 | AG7: 74 | AH7: 0.2981849047
A8: 6 | B8: Growth [75/25] | C8: TB | D8: 15 | E8: DAG | F8: 10 | G8: AG-GRW | H8: 40 | I8: AG-MAX | J8: 35 | M8: 75 | N8: 64 | O8: -0.2804033661 | P8: -0.3913097459 | Q8: 0.04806415157 | R8: 0.09870347493 | S8: 0.07847022791 | T8: 0.1022218198 | U8: 0.6453922246 | V8: 0.7440768148 | W8: 0.8487599069 | X8: 0.1217036903 | Y8: 70 | Z8: 75 | AA8: 15 | AB8: 10 | AC8: 75 | AD8: 0.4 | AE8: 75.5 | AF8: 75 | AG8: 84 | AH8: 0.3913097459
A9: 7 | B9: Aggressive [85/15] | C9: DAG | D9: 15 | E9: AG-GRW | F9: 45 | G9: AG-MAX | H9: 40 | M9: 85 | N9: 71 | O9: -0.316917728 | P9: -0.4490940475 | Q9: 0.05534445879 | R9: 0.1102978863 | S9: 0.08744521831 | T9: 0.1123543273 | U9: 0.6368875963 | V9: 0.841939782 | W9: 0.9629722574 | X9: 0.1375609559 | Y9: 82 | Z9: 85 | AA9: 0 | AB9: 15 | AC9: 85 | AD9: 0.45 | AE9: 86.5 | AF9: 85 | AG9: 94 | AH9: 0.4490940475
A10: 8 | B10: Cornerstone Pres. [15/85] | C10: CS-BND | D10: 100 | M10: 25 | N10: 31 | O10: -0.09042593837 | P10: -0.08139981787 | Q10: 0.008538872973 | R10: 0.03636548387 | S10: 0.03319310184 | T10: 0.04671025865 | U10: 0.8687107958 | V10: 0.1855607853 | W10: 0.1276398228 | X10: 0.04079392998 | Y10: 0 | Z10: 25 | AA10: 100 | AB10: 0 | AC10: 0 | AD10: 0.1 | AE10: =AVERAGE(Y10:Z10) -> 12.5 | AH10: =ABS(MIN(O10:P10)) -> 0.09042593837
A11: 9 | B11: Cornerstone Cons. [30/70] | C11: CS-BND | D11: 70 | E11: CS-INC | F11: 10 | G11: CS-GRW | H11: 20 | M11: 34 | N11: 37 | O11: -0.1268804851 | P11: -0.1147034495 | Q11: 0.009256681525 | R11: 0.04717450741 | S11: 0.04353550418 | T11: 0.06085031129 | U11: 0.8375963328 | V11: 0.3244115284 | W11: 0.3187401628 | X11: 0.05592542459 | Y11: 14 | Z11: 34 | AA11: 70 | AB11: 5 | AC11: 25 | AD11: 0.15 | AE11: =AVERAGE(Y11:Z11) -> 24 | AH11: 0.1268804851
A12: 10 | B12: Cornerstone MCons. [40/60] | C12: CS-BND | D12: 50 | E12: CS-INC | F12: 10 | G12: CS-GRW | H12: 40 | M12: 47 | N12: 46 | O12: -0.1763741193 | P12: -0.1659823731 | Q12: 0.01002239212 | R12: 0.05758733911 | S12: 0.05398143949 | T12: 0.07462434678 | U12: 0.7626570906 | V12: 0.459475786 | W12: 0.4978165675 | X12: 0.0772048199 | Y12: 28 | Z12: 47 | AA12: 50 | AB12: 5 | AC12: 45 | AD12: 0.2 | AE12: 37.5 | AH12: 0.1763741193
A13: 11 | B13: Cornerstone Mod. [55/45] | C13: CS-BND | D13: 30 | E13: CS-INC | F13: 10 | G13: CS-GRW | H13: 60 | M13: 62 | N13: 56 | O13: -0.2302208226 | P13: -0.2410619364 | Q13: 0.0100990461 | R13: 0.06721055299 | S13: 0.06377068429 | T13: 0.08781729393 | U13: 0.7023196064 | V13: 0.5945400437 | W13: 0.6768929721 | X13: 0.1008595502 | Y13: 42 | Z13: 62 | AA13: 30 | AB13: 5 | AC13: 65 | AD13: 0.25 | AE13: 52 | AH13: 0.2410619364
A14: 12 | B14: Cornerstone MGrwth [65/35] | C14: CS-BND | D14: 25 | E14: CS-GRW | F14: 75 | M14: 72 | N14: 62 | O14: -0.2681659578 | P14: -0.2907529609 | Q14: 0.01063774964 | R14: 0.07441581982 | S14: 0.07156455215 | T14: 0.09769513196 | U14: 0.6826198847 | V14: 0.6920517514 | W14: 0.7991763402 | X14: 0.1178708198 | Y14: 52.5 | Z14: 72 | AA14: 25 | AB14: 0 | AC14: 75 | AD14: 0.3 | AE14: 62.25 | AH14: 0.2907529609
A15: 13 | B15: Cornerstone Grwth [85/15] | C15: CS-GRW | D15: 100 | M15: 92 | N15: 75 | O15: -0.338400444 | P15: -0.3715375261 | Q15: 0.00917719572 | R15: 0.08455494583 | S15: 0.08223734796 | T15: 0.1128005752 | U15: 0.6378342798 | V15: 0.8608820734 | W15: 1.023021846 | X15: 0.1492641426 | Y15: 70 | Z15: 92 | AA15: 0 | AB15: 0 | AC15: 100 | AD15: 0.4 | AE15: 81 | AH15: 0.3715375261
A16: 14 | B16: Cornerstone Aggr. [90/10] | C16: CS-GRW | D16: 80 | E16: CS-MAX | F16: 20 | M16: 93 | N16: 75 | O16: -0.3416300661 | P16: -0.3950795531 | Q16: 0.007750925259 | R16: 0.08146749661 | S16: 0.07984944061 | T16: 0.1106271445 | U16: 0.6115028461 | V16: 0.8640482682 | W16: 1.041820061 | X16: 0.1511555641 | Y16: 76 | Z16: 93 | AA16: 0 | AB16: 0 | AC16: 100 | AD16: 0.5 | AE16: 84.5 | AH16: 0.3950795531
A17: 15 | B17: Tax Mngd Pres. | C17: TAB | D17: 100 | M17: 20 | N17: 25 | O17: -0.05765131035 | P17: -0.03863518693 | Q17: 0.01933228858 | R17: 0.03390890787 | S17: 0.02961110082 | T17: 0.04652844988 | U17: 0.7412382789 | V17: 0.09544531384 | W17: -0.0174656441 | X17: 0.03246186682 | Y17: 0 | Z17: 20 | AA17: 100 | AB17: 0 | AC17: 0 | AH17: =ABS(MIN(O17:P17)) -> 0.05765131035
A18: 16 | B18: Tax Mngd Cons. | C18: TAB | D18: 60 | E18: AG-BAL | F18: 20 | G18: DBA | H18: 20 | M18: 26 | N18: 33 | O18: -0.1030610154 | P18: -0.0836561138 | Q18: 0.0200779624 | R18: 0.04472594692 | S18: 0.03867456555 | T18: 0.05708663074 | U18: 0.7835935724 | V18: 0.2467310407 | W18: 0.2068473563 | X18: 0.04310487106 | Y18: 13 | Z18: 26 | AA18: 60 | AB18: 20 | AC18: 20 | AH18: 0.1030610154
A19: 17 | B19: Tax Mngd MCons. | C19: TAB | D19: 60 | E19: AG-MOD | F19: 20 | G19: DAG | H19: 20 | M19: 33 | N19: 38 | O19: -0.1306516161 | P19: -0.1491948187 | Q19: 0.02704162149 | R19: 0.05570610708 | S19: 0.04674803588 | T19: 0.0677772899 | U19: 0.810746198 | V19: 0.3294848986 | W19: 0.3077384164 | X19: 0.05421198914 | Y19: 24 | Z19: 33 | AA19: 60 | AB19: 20 | AC19: 20 | AH19: 0.1491948187
A20: 18 | B20: Tax Mngd Mod. | C20: TAB | D20: 60 | E20: AG-MAX | F20: 25 | G20: DAG | H20: 15 | M20: 37 | N20: 41 | O20: -0.1471761806 | P20: -0.1932366438 | Q20: 0.03278190179 | R20: 0.06315117051 | S20: 0.05358627032 | T20: 0.07357920914 | U20: 0.8127761626 | V20: 0.3864983872 | W20: 0.3685066305 | X20: 0.06135306672 | Y20: 35.5 | Z20: 37 | AA20: 60 | AB20: 15 | AC20: 25 | AH20: 0.1932366438
A21: 19 | B21: Tax Mngd MGrwth | C21: TAB | D21: 50 | E21: AG-MAX | F21: 25 | G21: DAG | H21: 25 | M21: 43 | N21: 44 | O21: -0.1670525919 | P21: -0.2451156501 | Q21: 0.03392985249 | R21: 0.06759940268 | S21: 0.05724670247 | T21: 0.07851716029 | U21: 0.7824716617 | V21: 0.4407512864 | W21: 0.443971815 | X21: 0.07020952228 | Y21: 42.5 | Z21: 43 | AA21: 50 | AB21: 25 | AC21: 25 | AH21: 0.2451156501
A22: 20 | B22: Tax Mngd Grwth | C22: TAB | D22: 40 | E22: AG-MAX | F22: 30 | G22: DAG | H22: 30 | M22: 50 | N22: 49 | O22: -0.1923502133 | P22: -0.295688114 | Q22: 0.03635862799 | R22: 0.07386473761 | S22: 0.06235339834 | T22: 0.08451000617 | U22: 0.7470928122 | V22: 0.5098124809 | W22: 0.5362593068 | X22: 0.08159732205 | Y22: 51 | Z22: 50 | AA22: 40 | AB22: 30 | AC22: 30 | AH22: 0.295688114
A23: 21 | B23: Tax Mngd Aggr. | C23: DAG | D23: 45 | E23: AG-MAX | F23: 45 | G23: TAB | H23: 10 | M23: 72 | N23: 63 | O23: -0.2699482473 | P23: -0.4307272248 | Q23: 0.042637117 | R23: 0.09165859772 | S23: 0.07678899973 | T23: 0.1016306373 | U23: 0.6713956533 | V23: 0.7169960644 | W23: 0.8131217823 | X23: 0.1172672631 | Y23: 76.5 | Z23: 72 | AA23: 10 | AB23: 45 | AC23: 45 | AH23: 0.4307272248
A24: 22 | B24: $12-25K Pres. | C24: DIA | D24: 50 | E24: TB | F24: 30 | G24: INA | H24: 20 | M24: 24 | N24: 31 | O24: -0.09090800214 | P24: -0.07210136794 | Q24: 0.006628611626 | R24: 0.02413171827 | S24: 0.02185256951 | T24: 0.03626933253 | U24: 0.4680582134 | V24: 0.1604089506 | W24: 0.1549726591 | X24: 0.04042836691 | Y24: 0 | Z24: 24 | AA24: 50 | AB24: 50 | AC24: 0 | AH24: =ABS(MIN(O24:P24)) -> 0.09090800214
A25: 23 | B25: $12-25K Cons. | C25: DIA | D25: 50 | E25: TB | F25: 30 | G25: AG-BAL | H25: 20 | M25: 30 | N25: 35 | O25: -0.1138777031 | P25: -0.08864981877 | Q25: 0.00913472879 | R25: 0.03188406748 | S25: 0.02919909069 | T25: 0.04489011696 | U25: 0.5180784653 | V25: 0.2388014027 | W25: 0.2525614704 | X25: 0.04977190124 | Y25: 6 | Z25: 30 | AA25: 30 | AB25: 50 | AC25: 20 | AH25: 0.1138777031
A26: 24 | B26: $12-25K MCons. | C26: DIA | D26: 50 | E26: TB | F26: 30 | G26: AG-BAL | H26: 20 | M26: 30 | N26: 35 | O26: -0.1138777031 | P26: -0.08864981877 | Q26: 0.00913472879 | R26: 0.03188406748 | S26: 0.02919909069 | T26: 0.04489011696 | U26: 0.5180784653 | V26: 0.2388014027 | W26: 0.2525614704 | X26: 0.04977190124 | Y26: 6 | Z26: 30 | AA26: 30 | AB26: 50 | AC26: 20 | AH26: =ABS(MIN(O26:P26)) -> 0.1138777031
A27: 25 | B27: $12-25K Mod. | C27: DBA | D27: 35 | E27: TB | F27: 30 | G27: AG-MOD | H27: 35 | M27: 46 | N27: 46 | O27: -0.1746512551 | P27: -0.1937002911 | Q27: 0.0196249854 | R27: 0.05626397253 | S27: 0.04709838061 | T27: 0.06837307078 | U27: 0.6260208911 | V27: 0.4368891082 | W27: 0.5005718237 | X27: 0.07574482246 | Y27: 29.75 | Z27: 46 | AA27: 30 | AB27: 35 | AC27: 35 | AH27: =ABS(MIN(O27:P27)) -> 0.1937002911
A28: 26 | B28: $12-25K MGrwth | C28: DBA | D28: 35 | E28: TB | F28: 30 | G28: AG-GRW | H28: 35 | M28: 50 | N28: 48 | O28: -0.1870575769 | P28: -0.2325102112 | Q28: 0.0280109696 | R28: 0.06579744572 | S28: 0.05276409594 | T28: 0.07426324954 | U28: 0.6516119477 | V28: 0.4735894397 | W28: 0.5306602523 | X28: 0.08090590223 | Y28: 36.75 | Z28: 50 | AA28: 30 | AB28: 35 | AC28: 35 | AH28: 0.2325102112
A29: 27 | B29: $12-25K Grwth | C29: DBA | D29: 30 | E29: TB | F29: 30 | G29: AG-MAX | H29: 40 | M29: 55 | N29: 51 | O29: -0.2052103851 | P29: -0.2777096774 | Q29: 0.02874371093 | R29: 0.068800878 | S29: 0.05857201976 | T29: 0.07880352638 | U29: 0.6498877866 | V29: 0.537524297 | W29: 0.6090071051 | X29: 0.08985582562 | Y29: 50.5 | Z29: 55 | AA29: 30 | AB29: 30 | AC29: 40 | AH29: 0.2777096774
A30: 28 | B30: $12-25K Aggr. | C30: AG-GRW | D30: 50 | E30: DAG | F30: 50 | M30: 75 | N30: 65 | O30: -0.2828604296 | P30: -0.4369533345 | Q30: 0.04687552656 | R30: 0.09816538855 | S30: 0.07704323286 | T30: 0.1046700914 | U30: 0.6564855549 | V30: 0.7329733206 | W30: 0.8385279766 | X30: 0.1221073925 | Y30: 70 | Z30: 75 | AA30: 0 | AB30: 50 | AC30: 50 | AH30: 0.4369533345
A31: 29 | B31: $<12K Pres. | C31: MF-INC | D31: 100 | M31: 28 | N31: 34 | O31: -0.1085577165 | P31: -0.1515727345 | Q31: -0.01487184265 | R31: 0.01512419068 | S31: 0.02414024453 | T31: 0.03468229011 | U31: 0.241803143 | V31: 0.1932594612 | W31: 0.1977742022 | X31: 0.04638388743 | Y31: 10 | Z31: 28 | AA31: 0 | AB31: 0 | AC31: 100 | AH31: =ABS(MIN(O31:P31)) -> 0.1515727345
A32: 30 | B32: $<12K Cons. | C32: MF-CON | D32: 100 | M32: 38 | N32: 40 | O32: -0.144419904 | P32: -0.1887474493 | Q32: 0.002488841601 | R32: 0.0389991681 | S32: 0.04067422308 | T32: 0.0535916359 | U32: 0.4603663694 | V32: 0.3519665805 | W32: 0.3844194154 | X32: 0.06250472813 | Y32: 30 | Z32: 38 | AA32: 0 | AB32: 0 | AC32: 100 | AH32: 0.1887474493
A33: 31 | B33: $<12K ModCons. | C33: MF-MCSV | D33: 100 | M33: 45 | N33: 44 | O33: -0.1668057848 | P33: -0.2395441208 | Q33: 0.008892720262 | R33: 0.0470246445 | S33: 0.04842640753 | T33: 0.06158903821 | U33: 0.4974784913 | V33: 0.4258505328 | W33: 0.4699651381 | X33: 0.07342815587 | Y33: 40 | Z33: 45 | AA33: 0 | AB33: 0 | AC33: 100 | AH33: 0.2395441208
A34: 32 | B34: $<12K Moderate | C34: MF-BAL | D34: 100 | M34: 52 | N34: 49 | O34: -0.1933450244 | P34: -0.295716219 | Q34: 0.01782873487 | R34: 0.05898796473 | S34: 0.05623709201 | T34: 0.07073766055 | U34: 0.5319736635 | V34: 0.5047615676 | W34: 0.5633547868 | X34: 0.08493317647 | Y34: 50 | Z34: 52 | AA34: 0 | AB34: 0 | AC34: 100 | AH34: 0.295716219
A35: 33 | B35: $<12K ModGrwth | C35: MF-MGRW | D35: 100 | M35: 60 | N35: 54 | O35: -0.2225149077 | P35: -0.3474565558 | Q35: 0.02933518308 | R35: 0.07270406177 | S35: 0.06468268428 | T35: 0.08047510172 | U35: 0.5583578279 | V35: 0.5923460899 | W35: 0.6672700456 | X35: 0.09774294185 | Y35: 60 | Z35: 60 | AA35: 0 | AB35: 0 | AC35: 100 | AH35: 0.3474565558
A36: 34 | B36: $<12K Growth | C36: MF-GRW | D36: 100 | M36: 67 | N36: 59 | O36: -0.2505574163 | P36: -0.3983023594 | Q36: 0.03200633571 | R36: 0.08034489468 | S36: 0.07023553488 | T36: 0.08787370115 | U36: 0.5678919252 | V36: 0.6606365278 | W36: 0.7536873156 | X36: 0.1096774506 | Y36: 70 | Z36: 67 | AA36: 0 | AB36: 0 | AC36: 100 | AH36: 0.3983023594
A37: 35 | B37: $<12K Aggr. | C37: MF-AGR | D37: 100 | M37: 80 | N37: 67 | O37: -0.2968247193 | P37: -0.4691028331 | Q37: 0.04394975012 | R37: 0.09617349689 | S37: 0.08069675838 | T37: 0.1002575789 | U37: 0.578566083 | V37: 0.7780295253 | W37: 0.8948109413 | X37: 0.1295767064 | Y37: 85 | Z37: 80 | AA37: 0 | AB37: 0 | AC37: 100 | AH37: 0.4691028331
A38: 36 | B38: Platform Pres. | C38: TB | D38: 50 | E38: DIA | F38: 50 | M38: 26 | N38: 32 | O38: -0.09421668754 | P38: -0.07216771971 | Q38: 0.003702853443 | R38: 0.02197544169 | S38: 0.02129477512 | T38: 0.03666136892 | U38: 0.4855578376 | V38: 0.158583025 | W38: 0.1549375052 | X38: 0.0421762929 | Y38: 0 | Z38: 26 | AA38: 50 | AB38: 50 | AC38: 0 | AH38: =ABS(MIN(O38:P38)) -> 0.09421668754
A39: 37 | B39: Platform Cons. | C39: TB | D39: 40 | E39: DIA | F39: 30 | G39: AG-GRW | H39: 15 | I39: DAG | J39: 15 | M39: 37 | N39: 39 | O39: -0.1391420649 | P39: -0.1226568008 | Q39: 0.01692546627 | R39: 0.04564056892 | S39: 0.03859278852 | T39: 0.05777264938 | U39: 0.641093218 | V39: 0.3298027281 | W39: 0.3600689391 | X39: 0.06048660659 | Y39: 21 | Z39: 37 | AA39: 40 | AB39: 45 | AC39: 15 | AH39: 0.1391420649
A40: 38 | B40: Platform Mod. | C40: DIA | D40: 30 | E40: TB | F40: 30 | G40: AG-GRW | H40: 20 | I40: DAG | J40: 20 | M40: 42 | N40: 43 | O40: -0.1593130247 | P40: -0.1738791389 | Q40: 0.02226477024 | R40: 0.05359710279 | S40: 0.0446127278 | T40: 0.06459718739 | U40: 0.6433244827 | V40: 0.3883391432 | W40: 0.4283736938 | X40: 0.06894985123 | Y40: 28 | Z40: 42 | AA40: 30 | AB40: 50 | AC40: 20 | AH40: 0.1738791389
A41: 39 | B41: Platform Growth | C41: DAG | D41: 40 | E41: AG-GRW | F41: 20 | G41: DIA | H41: 20 | I41: TB | J41: 20 | M41: 51 | N41: 49 | O41: -0.1926215478 | P41: -0.276779843 | Q41: 0.02776187463 | R41: 0.06494279198 | S41: 0.053618515 | T41: 0.07644897657 | U41: 0.6627703208 | V41: 0.4842173993 | W41: 0.544823433 | X41: 0.08330621979 | Y41: 42 | Z41: 51 | AA41: 20 | AB41: 60 | AC41: 20 | AH41: 0.276779843
A42: 40 | B42: Platform Aggr. | C42: DAG | D42: 45 | E42: AG-GRW | F42: 45 | G42: TB | H42: 10 | M42: 69 | N42: 61 | O42: -0.2604061176 | P42: -0.3999119579 | Q42: 0.04217936885 | R42: 0.09078924673 | S42: 0.07154787496 | T42: 0.09825254202 | U42: 0.6635939234 | V42: 0.6744369055 | W42: 0.7702232219 | X42: 0.1124391969 | Y42: 63 | Z42: 69 | AA42: 10 | AB42: 45 | AC42: 45 | AH42: 0.3999119579
A43: 41 | B43: Platinum Pres. Alloc. | C43: PPP | D43: 100 | M43: 24 | N43: 29 | O43: -0.08123442787 | P43: -0.08485916321 | Q43: -0.005491820075 | R43: 0.008796882169 | S43: 0.004733778968 | T43: 0.02279729094 | U43: 0.2024903234 | V43: 0.1319585904 | W43: 0.2143676783 | X43: 0.04017286619 | Y43: 0 | Z43: 24 | AA43: 85 | AB43: 15 | AC43: 0 | AH43: =ABS(MIN(O43:P43)) -> 0.08485916321
A44: 42 | B44: Platinum Cons. Alloc. | C44: PPP | D44: 60 | E44: EGA | F44: 15 | G44: AG-BAL | H44: 25 | M44: 37 | N44: 39 | O44: -0.1360634194 | P44: -0.1302346911 | Q44: 0.004586725381 | R44: 0.02858473264 | S44: 0.0230339939 | T44: 0.04294696608 | U44: 0.3841658012 | V44: 0.3074387092 | W44: 0.4178291127 | X44: 0.05989581473 | Y44: 7.5 | Z44: 37 | AA44: 66 | AB44: 9 | AC44: 25 | AH44: 0.1360634194
A45: 43 | B45: Platinum Mod. Alloc. | C45: PPP | D45: 50 | E45: EGA | F45: 15 | G45: AG-MOD | H45: 25 | I45: DAG | J45: 10 | M45: 45 | N45: 45 | O45: -0.1688104112 | P45: -0.193503847 | Q45: 0.01318994198 | R45: 0.0414896753 | S45: 0.03335639072 | T45: 0.05530037904 | U45: 0.4691407038 | V45: 0.4016435776 | W45: 0.5226866042 | X45: 0.07363382074 | Y45: 19.5 | Z45: 45 | AA45: 57.5 | AB45: 17.5 | AC45: 25 | AH45: 0.193503847
A46: 44 | B46: Platinum Grwth Alloc. | C46: PPP | D46: 35 | E46: EGA | F46: 20 | G46: AG-GRW | H46: 30 | I46: DAG | J46: 15 | M46: 55 | N46: 52 | O46: -0.207838205 | P46: -0.2823597119 | Q46: 0.02515761197 | R46: 0.05841239076 | S46: 0.04613794129 | T46: 0.06964311472 | U46: 0.5241640884 | V46: 0.511724407 | W46: 0.6386454654 | X46: 0.08965400065 | Y46: 31.5 | Z46: 55 | AA46: 49.75 | AB46: 20.25 | AC46: 30 | AH46: 0.2823597119
A47: 45 | B47: Platinum Aggr. Alloc. | C47: EGA | D47: 10 | E47: DAG | F47: 45 | G47: AG-GRW | H47: 45 | M47: 74 | N47: 64 | O47: -0.279563167 | P47: -0.4292597371 | Q47: 0.04350892634 | R47: 0.09202246922 | S47: 0.07311167161 | T47: 0.1006065658 | U47: 0.6309563379 | V47: 0.7204015155 | W47: 0.84021414 | X47: 0.1202621381 | Y47: 63 | Z47: 74 | AA47: 10 | AB47: 45 | AC47: 45 | AH47: 0.4292597371
A48: TN-1 | B48: TN - Preservation | C48: MMP | D48: 50 | E48: TB | F48: 30 | G48: DIA | H48: 20 | M48: 24 | N48: 29 | O48: -0.08240400264 | P48: -0.08138337681 | Q48: -0.004524590691 | R48: 0.01305414252 | S48: 0.01178380025 | T48: 0.02984228142 | U48: 0.3656267408 | V48: 0.1395517813 | W48: 0.1820905643 | X48: 0.0399179924 | Y48: 0 | Z48: 24 | AA48: 80 | AB48: 20 | AC48: 0 | AH48: =ABS(MIN(O48:P48)) -> 0.08240400264
A49: TN-2 | B49: TN - Conservative | C49: MMP | D49: 30 | E49: TB | F49: 20 | G49: DIA | H49: 25 | I49: DAG | J49: 25 | M49: 33 | N49: 36 | O49: -0.1209518783 | P49: -0.1271178924 | Q49: 0.007344102334 | R49: 0.03156322203 | S49: 0.02774430616 | T49: 0.04771290282 | U49: 0.5562002365 | V49: 0.2682192229 | W49: 0.3167317929 | X49: 0.05412108906 | Y49: 17.5 | Z49: 33 | AA49: 50 | AB49: 50 | AC49: 0 | AH49: 0.1271178924
A50: TN-3 | B50: TN - Moderate | C50: MMP | D50: 20 | E50: TB | F50: 15 | G50: DIA | H50: 15 | I50: DAG | J50: 25 | K50: AG-GRW | L50: 25 | M50: 47 | N50: 46 | O50: -0.1765258733 | P50: -0.2389762955 | Q50: 0.02353461435 | R50: 0.05756762093 | S50: 0.0464254869 | T50: 0.06859375195 | U50: 0.6208363714 | V50: 0.4386046296 | W50: 0.5075722475 | X50: 0.07692480782 | Y50: 35 | Z50: 47 | AA50: 35 | AB50: 40 | AC50: 25 | AH50: 0.2389762955
A51: TN-4 | B51: TN - Mod.Growth | C51: TB | D51: 20 | E51: DIA | F51: 20 | G51: DAG | H51: 30 | I51: AG-GRW | J51: 30 | M51: 53 | N51: 50 | O51: -0.1989444711 | P51: -0.2712384346 | Q51: 0.03091128616 | R51: 0.06885695423 | S51: 0.05577679609 | T51: 0.07821283196 | U51: 0.6552611717 | V51: 0.5032172024 | W51: 0.565091788 | X51: 0.08590900481 | Y51: 42 | Z51: 53 | AA51: 20 | AB51: 50 | AC51: 30 | AH51: 0.2712384346
A52: TN-5 | B52: TN - Growth | C52: TB | D52: 10 | E52: DIA | F52: 15 | G52: DAG | H52: 35 | I52: AG-GRW | J52: 40 | M52: 61 | N52: 56 | O52: -0.2322402117 | P52: -0.3358403422 | Q52: 0.03831640655 | R52: 0.08110046064 | S52: 0.06460153612 | T52: 0.08864184607 | U52: 0.6519191996 | V52: 0.5946743903 | W52: 0.6726703012 | X52: 0.1001811308 | Y52: 52.5 | Z52: 61 | AA52: 10 | AB52: 50 | AC52: 40 | AH52: 0.3358403422
A53: M-10 | B53: MA - Income | C53: AG-GRW | D53: 10 | E53: CORE-BND | F53: 50 | G53: DIA | H53: 10 | I53: TB | J53: 30 | M53: 24 | N53: 30 | O53: -0.08780537448 | P53: -0.13423763 | Q53: -0.01729572555 | R53: 0.01470897237 | S53: 0.0186348424 | T53: 0.03419477614 | U53: 0.3349375515 | V53: 0.1792159238 | W53: 0.2099115216 | X53: 0.03923839968 | Y53: 7 | Z53: 24 | AA53: 30 | AB53: 10 | AC53: 60 | AH53: 0.13423763
A54: M-30 | B54: MA - Cons. | C54: AG-MAX | D54: 20 | E54: AG-GRW | F54: 10 | G54: CORE-BND | H54: 35 | I54: DIA | J54: 18 | K54: TB | L54: 17 | M54: 37 | N54: 39 | O54: -0.1369692567 | P54: -0.141067969 | Q54: 0.003653380362 | R54: 0.03963885185 | S54: 0.03778539614 | T54: 0.05422103873 | U54: 0.5247310574 | V54: 0.3498652493 | W54: 0.4006248137 | X54: 0.06010447799 | Y54: 27 | Z54: 37 | AA54: 17 | AB54: 18 | AC54: 65 | AH54: 0.141067969
A55: M-40 | B55: MA - Mod.Cons. | C55: AG-MAX | D55: 25 | E55: AG-GRW | F55: 15 | G55: CORE-BND | H55: 30 | I55: DIA | J55: 15 | K55: TB | L55: 15 | M55: 44 | N55: 44 | O55: -0.162759827 | P55: -0.188344832 | Q55: 0.01182831704 | R55: 0.05085464283 | S55: 0.04585488052 | T55: 0.06330573151 | U55: 0.5615925935 | V55: 0.4264139618 | W55: 0.4881743767 | X55: 0.07119933571 | Y55: 35.5 | Z55: 44 | AA55: 15 | AB55: 15 | AC55: 70 | AH55: 0.188344832
A56: M-50 | B56: MA - Moderate | C56: AG-MAX | D56: 33 | E56: AG-GRW | F56: 17 | G56: CORE-BND | H56: 25 | I56: DIA | J56: 13 | K56: TB | L56: 12 | M56: 51 | N56: 49 | O56: -0.1907739138 | P56: -0.2413458059 | Q56: 0.01994403978 | R56: 0.06194553152 | S56: 0.05412701812 | T56: 0.07242489862 | U56: 0.5832456659 | V56: 0.5063671877 | W56: 0.5797259591 | X56: 0.08337316445 | Y56: 44.9 | Z56: 51 | AA56: 12 | AB56: 13 | AC56: 75 | AH56: 0.2413458059
A57: M-60 | B57: MA - Mod.Grwth | C57: AG-MAX | D57: 40 | E57: AG-GRW | F57: 20 | G57: CORE-BND | H57: 20 | I57: DIA | J57: 10 | K57: TB | L57: 10 | M57: 59 | N57: 54 | O57: -0.219030445 | P57: -0.2907616663 | Q57: 0.02779142605 | R57: 0.07285661887 | S57: 0.0620990892 | T57: 0.08138701877 | U57: 0.5986570819 | V57: 0.5850392578 | W57: 0.669950774 | X57: 0.09565453166 | Y57: 54 | Z57: 59 | AA57: 10 | AB57: 10 | AC57: 80 | AH57: 0.2907616663
A58: M-70 | B58: MA - Growth | C58: AG-MAX | D58: 50 | E58: AG-GRW | F58: 20 | G58: CORE-BND | H58: 15 | I58: DIA | J58: 10 | K58: TB | L58: 5 | M58: 67 | N58: 59 | O58: -0.249260786 | P58: -0.3391353587 | Q58: 0.03588377152 | R58: 0.08368082614 | S58: 0.07037102606 | T58: 0.09031584748 | U58: 0.6053385128 | V58: 0.6675547954 | W58: 0.7641558912 | X58: 0.1089074609 | Y58: 64 | Z58: 67 | AA58: 5 | AB58: 10 | AC58: 85 | AH58: 0.3391353587
A59: M-85 | B59: MA - Aggr. | C59: AG-MAX | D59: 60 | E59: AG-GRW | F59: 25 | G59: CORE-BND | H59: 15 | M59: 78 | N59: 66 | O59: -0.2889948488 | P59: -0.4046034475 | Q59: 0.04269987448 | R59: 0.09668582886 | S59: 0.08026548298 | T59: 0.1018056882 | U59: 0.6083072555 | V59: 0.778031287 | W59: 0.895299134 | X59: 0.1262680885 | Y59: 77.5 | Z59: 78 | AA59: 0 | AB59: 0 | AC59: 100 | AH59: 0.4046034475
A60: M-100 | B60: MA - Equity | C60: AG-MAX | D60: 67 | E60: AG-GRW | F60: 33 | M60: 90 | N60: 74 | O60: -0.335691188 | P60: -0.4609893343 | Q60: 0.05820300202 | R60: 0.1149853591 | S60: 0.09250662059 | T60: 0.1158929253 | U60: 0.6257809836 | V60: 0.8991048133 | W60: 1.029490691 | X60: 0.1464331503 | Y60: 90.1 | Z60: 90 | AA60: 0 | AB60: 0 | AC60: 100 | AH60: 0.4609893343
A61: CS-P1 | B61: CS Platf. - Preserv. | C61: CS-BND | D61: 100 | E61: CS-GRW | F61: 0 | M61: 25 | N61: 31 | O61: -0.09042593837 | P61: -0.08139981787 | Q61: 0.008538872973 | R61: 0.03636548387 | S61: 0.03319310184 | T61: 0.04671025865 | U61: 0.8687107958 | V61: 0.1855607853 | W61: 0.1276398228 | X61: 0.04079392998 | Y61: 0 | Z61: 25 | AA61: 100 | AB61: 0 | AC61: 0 | AH61: 0.09042593837
A62: CS-P2 | B62: CS Platf. - Conserv. | C62: CS-BND | D62: 95 | E62: CS-GRW | F62: 5 | M62: 26 | N62: 32 | O62: -0.09611312835 | P62: -0.08952918617 | Q62: 0.008979447755 | R62: 0.03923922714 | S62: 0.03603127661 | T62: 0.05035499845 | U62: 0.8883037327 | V62: 0.2193268497 | W62: 0.172408924 | X62: 0.04331357941 | Y62: 3.5 | Z62: 26 | AA62: 95 | AB62: 0 | AC62: 5 | AH62: 0.09611312835
A63: CS-P3 | B63: CS Platf. - Mod.Cons. | C63: CS-BND | D63: 80 | E63: CS-GRW | F63: 20 | M63: 34 | N63: 37 | O63: -0.1238302602 | P63: -0.1136563216 | Q63: 0.01004464736 | R63: 0.04758114807 | S63: 0.04431390167 | T63: 0.0610878696 | U63: 0.8641149805 | V63: 0.3206250429 | W63: 0.3067162275 | X63: 0.05503640207 | Y63: 14 | Z63: 34 | AA63: 80 | AB63: 0 | AC63: 20 | AH63: 0.1238302602
A64: CS-P4 | B64: CS Platf. - Moderate | C64: CS-BND | D64: 60 | E64: CS-GRW | F64: 40 | M64: 46 | N64: 45 | O64: -0.1728978697 | P64: -0.1627939608 | Q64: 0.01086414477 | R64: 0.0580356411 | S64: 0.05480242242 | T64: 0.07491280498 | U64: 0.7843571021 | V64: 0.4556893005 | W64: 0.4857926321 | X64: 0.07598026009 | Y64: 28 | Z64: 46 | AA64: 60 | AB64: 0 | AC64: 40 | AH64: =ABS(MIN(O64:P64)) -> 0.1728978697
A65: CS-P5 | B65: CS Platf. - Mod.Grwth. | C65: CS-BND | D65: 40 | E65: CS-GRW | F65: 60 | M65: 61 | N65: 55 | O65: -0.2266533627 | P65: -0.2381338102 | Q65: 0.01099415898 | R65: 0.06770111348 | S65: 0.06463492271 | T65: 0.08815800597 | U65: 0.7192481935 | V65: 0.5907535581 | W65: 0.6648690367 | X65: 0.09947928344 | Y65: 42 | Z65: 61 | AA65: 40 | AB65: 0 | AC65: 60 | AH65: 0.2381338102
A66: CS-P6 | B66: CS Platf. - Growth | C66: CS-BND | D66: 15 | E66: CS-GRW | F66: 85 | M66: 80 | N66: 67 | O66: -0.29614448 | P66: -0.3240743516 | Q66: 0.01018359134 | R66: 0.07863139971 | S66: 0.07596699469 | T66: 0.1038579022 | U66: 0.6626708572 | V66: 0.7595838802 | W66: 0.8887145425 | X66: 0.1303435624 | Y66: 59.5 | Z66: 80 | AA66: 15 | AB66: 0 | AC66: 85 | AH66: 0.3240743516
A67: CS-P7 | B67: CS Platf. - Growth | C67: CS-BND | D67: 0 | E67: CS-GRW | F67: 100 | M67: 92 | N67: 75 | O67: -0.338400444 | P67: -0.3715375261 | Q67: 0.00917719572 | R67: 0.08455494583 | S67: 0.08223734796 | T67: 0.1128005752 | U67: 0.6378342798 | V67: 0.8608820734 | W67: 1.023021846 | X67: 0.1492641426 | Y67: 70 | Z67: 92 | AA67: 0 | AB67: 0 | AC67: 100 | AH67: 0.3715375261
A68: HSC 10/90 | B68: HSC 10/90 Port. | C68: VG Bond | D68: 86 | E68: VG Stock Mkt | F68: 8 | G68: INTL | H68: 2 | I68: CASH | J68: 4 | M68: 27 | N68: 32 | O68: -0.09941465211 | P68: -0.1718232012 | Q68: -0.03042506728 | R68: -0.001364020322 | S68: 0.009494552871 | T68: 0.02116259066 | U68: -0.06591538479 | V68: 0.1586357466 | W68: 0.2286958926 | X68: 0.04370937872 | Y68: 8 | Z68: 27 | AA68: 0 | AB68: 0 | AC68: 100 | AE68: =AVERAGE(Y68:Z68) -> 17.5 | AH68: =ABS(MIN(O68:P68)) -> 0.1718232012
A69: HSC 20/80 | B69: HSC 20/80 Port. | C69: VG Bond | D69: 76 | E69: VG Stock Mkt | F69: 16 | G69: INTL | H69: 4 | I69: CASH | J69: 4 | M69: 30 | N69: 35 | O69: -0.1151815104 | P69: -0.1743171238 | Q69: -0.02026004213 | R69: 0.01167238206 | S69: 0.01907968362 | T69: 0.03196216749 | U69: 0.1443945676 | V69: 0.2424903152 | W69: 0.3217530124 | X69: 0.04989819997 | Y69: 16 | Z69: 30 | AA69: 0 | AB69: 0 | AC69: 100 | AE69: =AVERAGE(Y69:Z69) -> 23 | AH69: 0.1743171238
A70: HSC 30/70 | B70: HSC 30/70 Port. | C70: VG Bond | D70: 66 | E70: VG Stock Mkt | F70: 24 | G70: INTL | H70: 6 | I70: CASH | J70: 4 | M70: 36 | N70: 39 | O70: -0.1358568579 | P70: -0.1813353711 | Q70: -0.01016821871 | R70: 0.0246113554 | S70: 0.0285405257 | T70: 0.04264771541 | U70: 0.2927032568 | V70: 0.3263448838 | W70: 0.4148101323 | X70: 0.0590971877 | Y70: 24 | Z70: 36 | AA70: 0 | AB70: 0 | AC70: 100 | AE70: 30 | AH70: 0.1813353711
A71: HSC 40/60 | B71: HSC 40/60 Port. | C71: VG Bond | D71: 57 | E71: VG Stock Mkt | F71: 32 | G71: INTL | H71: 8 | I71: CASH | J71: 3 | M71: 43 | N71: 43 | O71: -0.161078888 | P71: -0.2334065523 | Q71: -0.0008587118909 | R71: 0.03713533959 | S71: 0.03780477988 | T71: 0.05331977336 | U71: 0.3915377884 | V71: 0.4108498702 | W71: 0.5093697562 | X71: 0.07037585724 | Y71: 32 | Z71: 43 | AA71: 0 | AB71: 0 | AC71: 100 | AE71: 37.5 | AH71: 0.2334065523
A72: HSC 50/50 | B72: HSC 50/50 Port. | C72: VG Bond | D72: 47 | E72: VG Stock Mkt | F72: 41 | G72: INTL | H72: 9 | I72: CASH | J72: 3 | M72: 51 | N72: 48 | O72: -0.1887004581 | P72: -0.2907937085 | Q72: 0.009541541635 | R72: 0.05056961723 | S72: 0.04775085166 | T72: 0.06450012426 | U72: 0.4646105556 | V72: 0.4970455724 | W72: 0.6019696489 | X72: 0.08249405644 | Y72: 41 | Z72: 51 | AA72: 0 | AB72: 0 | AC72: 100 | AE72: 46 | AH72: =ABS(MIN(O72:P72)) -> 0.2907937085
A73: HSC 55/45 | B73: HSC 55/45 Port. | C73: VG Bond | D73: 42 | E73: VG Stock Mkt | F73: 45 | G73: INTL | H73: 10 | I73: CASH | J73: 3 | M73: 54 | N73: 51 | O73: -0.2030247168 | P73: -0.3184794766 | Q73: 0.0144727058 | R73: 0.05688482834 | S73: 0.05229851743 | T73: 0.06967485613 | U73: 0.4884685295 | V73: 0.5389728567 | W73: 0.6484982089 | X73: 0.08882214023 | Y73: 45 | Z73: 54 | AA73: 0 | AB73: 0 | AC73: 100 | AE73: 49.5 | AH73: 0.3184794766
A74: HSC 60/40 | B74: HSC 60/40 Port. | C74: VG Bond | D74: 37 | E74: VG Stock Mkt | F74: 49 | G74: INTL | H74: 11 | I74: CASH | J74: 3 | M74: 58 | N74: 53 | O74: -0.2177083694 | P74: -0.3452392671 | Q74: 0.01938243788 | R74: 0.06316882771 | S74: 0.05681060721 | T74: 0.07481601268 | U74: 0.5084541079 | V74: 0.580900141 | W74: 0.6950267688 | X74: 0.09528540029 | Y74: 49 | Z74: 58 | AA74: 0 | AB74: 0 | AC74: 100 | AE74: 53.5 | AH74: 0.3452392671
A75: HSC 65/35 | B75: HSC 65/35 Port. | C75: VG Bond | D75: 32 | E75: VG Stock Mkt | F75: 53 | G75: INTL | H75: 12 | I75: CASH | J75: 3 | M75: 63 | N75: 56 | O75: -0.2326841244 | P75: -0.371098773 | Q75: 0.0242702941 | R75: 0.06942061053 | S75: 0.06128647011 | T75: 0.07992285832 | U75: 0.5253582806 | V75: 0.6228274253 | W75: 0.7415553287 | X75: 0.1018581076 | Y75: 53 | Z75: 63 | AA75: 0 | AB75: 0 | AC75: 100 | AE75: 58 | AH75: 0.371098773
A76: HSC 70/30 | B76: HSC 70/30 Port. | C76: VG Bond | D76: 28 | E76: VG Stock Mkt | F76: 57 | G76: INTL | H76: 13 | I76: CASH | J76: 2 | M76: 67 | N76: 59 | O76: -0.2482592184 | P76: -0.3958789797 | Q76: 0.02839840052 | R76: 0.07531133297 | S76: 0.06565498896 | T76: 0.08510466647 | U76: 0.5404912504 | V76: 0.6654051274 | W76: 0.7895863927 | X76: 0.1086716048 | Y76: 57 | Z76: 67 | AA76: 0 | AB76: 0 | AC76: 100 | AE76: 62 | AH76: 0.3958789797
A77: HSC 75/25 | B77: HSC 75/25 Port. | C77: VG Bond | D77: 23 | E77: VG Stock Mkt | F77: 61 | G77: INTL | H77: 14 | I77: CASH | J77: 2 | M77: 71 | N77: 61 | O77: -0.2636430443 | P77: -0.4200211873 | Q77: 0.03323587565 | R77: 0.08149271833 | S77: 0.07005594553 | T77: 0.0901413152 | U77: 0.5529120217 | V77: 0.7073324117 | W77: 0.8361149526 | X77: 0.1153977935 | Y77: 61 | Z77: 71 | AA77: 0 | AB77: 0 | AC77: 100 | AE77: 66 | AH77: 0.4200211873
A78: HSC 80/20 | B78: HSC 80/20 Port. | C78: VG Bond | D78: 18 | E78: VG Stock Mkt | F78: 65 | G78: INTL | H78: 15 | I78: CASH | J78: 2 | M78: 75 | N78: 64 | O78: -0.2791934559 | P78: -0.4433365967 | Q78: 0.03805013255 | R78: 0.08763882185 | S78: 0.07441870571 | T78: 0.09514142488 | U78: 0.5636959028 | V78: 0.749259696 | W78: 0.8826435126 | X78: 0.1221868057 | Y78: 65 | Z78: 75 | AA78: 0 | AB78: 0 | AC78: 100 | AE78: 70 | AH78: 0.4433365967
A79: HSC 85/15 | B79: HSC 85/15 Port. | C79: VG Bond | D79: 14 | E79: VG Stock Mkt | F79: 68 | G79: INTL | H79: 17 | I79: CASH | J79: 1 | M79: 79 | N79: 67 | O79: -0.2948003685 | P79: -0.466297095 | Q79: 0.04161081008 | R79: 0.09267750552 | S79: 0.07790971207 | T79: 0.09945818502 | U79: 0.5687413546 | V79: 0.7894962645 | W79: 0.9311318037 | X79: 0.1291126234 | Y79: 68 | Z79: 79 | AA79: 0 | AB79: 0 | AC79: 100 | AE79: 73.5 | AH79: 0.466297095
A80: HSC 90/10 | B80: HSC 90/10 Port. | C80: VG Bond | D80: 9 | E80: VG Stock Mkt | F80: 73 | G80: INTL | H80: 17 | I80: CASH | J80: 1 | M80: 84 | N80: 70 | O80: -0.3109607674 | P80: -0.4874085766 | Q80: 0.04684850474 | R80: 0.09948117837 | S80: 0.0829543177 | T80: 0.1051414168 | U80: 0.5821041734 | V80: 0.8337646824 | W80: 0.9772031365 | X80: 0.1360333872 | Y80: 73 | Z80: 84 | AA80: 0 | AB80: 0 | AC80: 100 | AE80: 78.5 | AH80: 0.4874085766
A81: HSC 95/5 | B81: HSC 95/5 Port. | C81: VG Bond | D81: 4 | E81: VG Stock Mkt | F81: 77 | G81: INTL | H81: 18 | I81: CASH | J81: 1 | M81: 88 | N81: 73 | O81: -0.3268505916 | P81: -0.5083899442 | Q81: 0.05158510875 | R81: 0.1055122548 | S81: 0.08719801544 | T81: 0.1100280408 | U81: 0.5894674006 | V81: 0.8756919667 | W81: 1.023731696 | X81: 0.1429518986 | Y81: 77 | Z81: 88 | AA81: 0 | AB81: 0 | AC81: 100 | AE81: 82.5 | AH81: 0.5083899442
A82: HSC 99/1 | B82: HSC 99/1 Port. | C82: VG Bond | D82: 0 | E82: VG Stock Mkt | F82: 80 | G82: INTL | H82: 19 | I82: CASH | J82: 1 | M82: 91 | N82: 75 | O82: -0.3395523987 | P82: -0.5247571466 | Q82: 0.05526112784 | R82: 0.1101607863 | S82: 0.09041069141 | T82: 0.1137559082 | U82: 0.5939001111 | V82: 0.9087655674 | W82: 1.06104599 | X82: 0.1485017633 | Y82: 80 | Z82: 91 | AA82: 0 | AB82: 0 | AC82: 100 | AE82: 85.5 | AH82: 0.5247571466
A83: 0 | Y83: 0 | AA83: 0 | AB83: 0 | AC83: 100
A84: 0 | Y84: 0 | AA84: 0 | AB84: 0 | AC84: 100
A85: 0 | Y85: 0 | AA85: 0 | AB85: 0 | AC85: 100
A86: 0 | Y86: 0 | AA86: 0 | AB86: 0 | AC86: 100
A87: 0 | Y87: 0 | AA87: 0 | AB87: 0 | AC87: 100
A88: A8 | B88: Aggressive+ [95/5] | C88: AG-GRW | D88: 25 | E88: CORE-STK | F88: 75 | M88: 91 | N88: 75 | O88: -0.3395902728 | P88: -0.4934570557 | Q88: 0.05210901785 | R88: 0.1124171885 | S88: 0.09316081473 | T88: 0.1185032762 | U88: 0.6260314771 | V88: 0.9007752673 | W88: 1.028640866 | X88: 0.1476429734 | Y88: 92.5 | Z88: 91 | AA88: 0 | AB88: 0 | AC88: 100 | AD88: 0.5 | AE88: =AVERAGE(Y88:Z88) -> 91.75 | AF88: 95 | AG88: 100 | AH88: 0.4934570557
A89: A9 | B89: All Stock [100] | C89: CORE-STK | D89: 100 | M89: 94 | N89: 76 | O89: -0.3483621358 | P89: -0.517741224 | Q89: 0.04857720243 | R89: 0.110823963 | S89: 0.09505630799 | T89: 0.1202246013 | U89: 0.6219450506 | V89: 0.925042911 | W89: 1.058231237 | X89: 0.1521314638 | Y89: 100 | Z89: 94 | AA89: 0 | AB89: 0 | AC89: 100 | AD89: 0.55 | AE89: 97 | AH89: 0.517741224
A90: A9a | B90: All Stock (MF) | C90: MF-EQT | D90: 100 | M90: 91 | N90: 75 | O90: -0.3410868983 | P90: -0.5291154291 | Q90: 0.05429856785 | R90: 0.1100638437 | S90: 0.08984120541 | T90: 0.1113908027 | U90: 0.5844435713 | V90: 0.8873508691 | W90: 1.027621346 | X90: 0.1484910924 | Y90: 100 | Z90: 91 | AA90: 0 | AB90: 0 | AC90: 100 | AD90: 0.55 | AE90: =AVERAGE(Y90:Z90) -> 95.5 | AH90: =ABS(MIN(O90:P90)) -> 0.5291154291
A91: ESG0 | B91: ESG - Income | C91: ESGCB | D91: 100 | M91: 27 | N91: 31 | O91: -0.09396687333 | P91: -0.197695683 | Q91: -0.04279576787 | R91: -0.01365048532 | S91: 0.001545063855 | T91: 0.01438897987 | U91: -0.1645181042 | V91: 0.08736223931 | W91: 0.1471672733 | X91: 0.04385484917 | Y91: 0 | Z91: 27 | AA91: 0 | AB91: 0 | AC91: 100
A92: ESG50 | B92: ESG - Balanced | C92: ESGCB | D92: 50 | E92: ESGCS | F92: 50 | M92: 49 | N92: 48 | O92: -0.18648859 | P92: -0.269760801 | Q92: 0.001527741434 | R92: 0.04634724721 | S92: 0.0459369921 | T92: 0.06268861272 | U92: 0.4708302634 | V92: 0.4799600693 | W92: 0.5821147931 | X92: 0.08066649766 | Y92: 50 | Z92: 49 | AA92: 0 | AB92: 0 | AC92: 100
A93: ESG70 | B93: ESG - Growth | C93: ESGCB | D93: 30 | E93: ESGCS | F93: 70 | M93: 64 | N93: 57 | O93: -0.2385190379 | P93: -0.367892583 | Q93: 0.01855946076 | R93: 0.06976180346 | S93: 0.06292933294 | T93: 0.08124379559 | U93: 0.5381709793 | V93: 0.6369992012 | W93: 0.756093801 | X93: 0.1041927736 | Y93: 70 | Z93: 64 | AA93: 0 | AB93: 0 | AC93: 100
A94: ESG100 | B94: ESG-Equity | C94: ESGCS | D94: 100 | M94: 87 | N94: 72 | O94: -0.3220017204 | P94: -0.4943362263 | Q94: 0.04327885796 | R94: 0.1041195682 | S94: 0.0875024256 | T94: 0.1081478963 | U94: 0.5875417787 | V94: 0.8725578992 | W94: 1.017062313 | X94: 0.1416859375 | Y94: 100 | Z94: 87 | AA94: 0 | AB94: 0 | AC94: 100
B95: Cornerstone Pres. [OLD] | C95: CS-BND | D95: 100 | M95: 25 | N95: 31 | O95: -0.09042593837 | P95: -0.08139981787 | Q95: 0.008538872973 | R95: 0.03636548387 | S95: 0.03319310184 | T95: 0.04671025865 | U95: 0.8687107958 | V95: 0.1855607853 | W95: 0.1276398228 | X95: 0.04079392998 | Y95: 0 | Z95: 25 | AA95: 100 | AB95: 0 | AC95: 0 | AE95: =AVERAGE(Y95:Z95) -> 12.5 | AH95: =ABS(MIN(O95:P95)) -> 0.09042593837 | AJ95: 17 | AM95: 0.09611141102
B96: Cornerstone Cons. [OLD] | C96: CS-BND | D96: 80 | E96: CS-INC | F96: 10 | G96: CS-BAL | H96: 10 | M96: 27 | N96: 33 | O96: -0.101402885 | P96: -0.08975948288 | Q96: 0.007114749211 | R96: 0.03815899922 | S96: 0.03555405648 | T96: 0.05125367094 | U96: 0.8623578087 | V96: 0.2341363651 | W96: 0.2032475783 | X96: 0.04486804779 | Y96: 3 | Z96: 27 | AA96: 80 | AB96: 5 | AC96: 15 | AE96: 15 | AH96: 0.101402885 | AJ96: 27 | AM96: 0.1433759346
B97: Cornerstone ModCons. [OLD] | C97: CS-BND | D97: 70 | E97: CS-INC | F97: 10 | G97: CS-GRW | H97: 20 | M97: 34 | N97: 37 | O97: -0.1268804851 | P97: -0.1147034495 | Q97: 0.009256681525 | R97: 0.04717450741 | S97: 0.04353550418 | T97: 0.06085031129 | U97: 0.8375963328 | V97: 0.3244115284 | W97: 0.3187401628 | X97: 0.05592542459 | Y97: 14 | Z97: 34 | AA97: 70 | AB97: 5 | AC97: 25 | AE97: 24 | AH97: 0.1268804851 | AJ97: 40 | AM97: 0.1918627134
B98: Cornerston Mod. [OLD] | C98: CS-BND | D98: 50 | E98: CS-INC | F98: 10 | G98: CS-GRW | H98: 40 | M98: 47 | N98: 46 | O98: -0.1763741193 | P98: -0.1659823731 | Q98: 0.01002239212 | R98: 0.05758733911 | S98: 0.05398143949 | T98: 0.07462434678 | U98: 0.7626570906 | V98: 0.459475786 | W98: 0.4978165675 | X98: 0.0772048199 | Y98: 28 | Z98: 47 | AA98: 50 | AB98: 5 | AC98: 45 | AE98: 37.5 | AH98: 0.1763741193 | AJ98: 54 | AM98: 0.2432503031
B99: Cornerstone ModGrowth [OLD] | C99: CS-BND | D99: 30 | E99: CS-GRW | F99: 60 | G99: CS-INC | H99: 10 | M99: 62 | N99: 56 | O99: -0.2302208226 | P99: -0.2410619364 | Q99: 0.0100990461 | R99: 0.06721055299 | S99: 0.06377068429 | T99: 0.08781729393 | U99: 0.7023196064 | V99: 0.5945400437 | W99: 0.6768929721 | X99: 0.1008595502 | Y99: 42 | Z99: 62 | AA99: 30 | AB99: 5 | AC99: 65 | AE99: 52 | AH99: 0.2410619364 | AJ99: 64.25 | AM99: 0.2907529609
B100: Cornerstone Growth [OLD] | C100: CS-GRW | D100: 60 | E100: CS-BND | F100: 20 | G100: CS-MAX | H100: 20 | M100: 77 | N100: 65 | O100: -0.2854225665 | P100: -0.3331857417 | Q100: 0.009119649728 | R100: 0.07355508025 | S100: 0.07146942771 | T100: 0.09869552042 | U100: 0.6404174544 | V100: 0.7289840106 | W100: 0.862743656 | X100: 0.1260010406 | Y100: 62 | Z100: 77 | AA100: 20 | AB100: 0 | AC100: 80 | AE100: 69.5 | AH100: 0.3331857417 | AJ100: 83 | AM100: 0.3715375261
B101: Cornerstone Aggr. [OLD] | C101: CS-GRW | D101: 70 | E101: CS-MAX | F101: 30 | M101: 94 | N101: 76 | O101: -0.3434112712 | P101: -0.4065649277 | Q101: 0.007007089252 | R101: 0.07989770434 | S101: 0.0786409291 | T101: 0.1095294424 | U101: 0.5983453436 | V101: 0.8656313656 | W101: 1.051219168 | X101: 0.1521651785 | Y101: 79 | Z101: 94 | AA101: 0 | AB101: 0 | AC101: 100 | AE101: 86.5 | AH101: 0.4065649277 | AJ101: 86.5 | AM101: 0.3950795531
AR112: MGP Data | AS112: Return | AT112: Std. Dev.
AR113: HSC 10/90 | AS113: 0.0366 | AT113: 0.0529
AR114: HSC 20/80 | AS114: 0.0416 | AT114: 0.0537
AR115: HSC 30/70 | AS115: 0.0456 | AT115: 0.0652
AR116: HSC 40/60 | AS116: 0.0502 | AT116: 0.0809
AR117: HSC 50/50 | AS117: 0.0544 | AT117: 0.0984
AR118: HSC 55/45 | AS118: 0.0564 | AT118: 0.1076
AR119: HSC 60/40 | AS119: 0.0585 | AT119: 0.1169
AR120: HSC 65/35 | AS120: 0.0606 | AT120: 0.1261
AR121: HSC 70/30 | AS121: 0.063 | AT121: 0.1356
AR122: HSC 75/25 | AS122: 0.065 | AT122: 0.1451
AR123: HSC 80/20 | AS123: 0.067 | AT123: 0.1547
AR124: HSC 85/15 | AS124: 0.0694 | AT124: 0.1645
AR125: HSC 90/10 | AS125: 0.0715 | AT125: 0.1743
AR126: HSC 95/5 | AS126: 0.0736 | AT126: 0.1841
AR127: HSC 99/1 | AS127: 0.0751 | AT127: 0.1923

Sheet Combined Alloc (hidden)
B1: Current Alloc:
B2: ='FeeDetails-Expanded'!A11 -> DIA | C2: ='FeeDetails-Expanded'!D11 -> 50000 | D2: ='FeeDetails-Expanded'!A12 -> TB | E2: ='FeeDetails-Expanded'!D12 -> 30000 | F2: ='FeeDetails-Expanded'!A13 -> INA | G2: ='FeeDetails-Expanded'!D13 -> 20000 | H2: ='FeeDetails-Expanded'!A14 ->  | I2: ='FeeDetails-Expanded'!D14 ->  | J2: ='FeeDetails-Expanded'!A15 ->  | K2: ='FeeDetails-Expanded'!D15 -> 
B3: Copy & Paste Special/Values the items above to the table below
B4: 1 | D4: 2 | F4: 3 | H4: 4 | J4: 5 | L4: 6 | N4: 7 | P4: 8 | R4: 9 | T4: 10
A5: =SUM(B5:U5) ->  | B5: =_xlfn.XLOOKUP(B4,$E$24:$E$61,$B$24:$B$61,"",0,1) -> AG-BAL | C5: =(C6/$A$6)*100 ->  | D5: =_xlfn.XLOOKUP(D4,$E$24:$E$61,$B$24:$B$61,"",0,1) -> AG-GRW | E5: =(E6/$A$6)*100 ->  | F5: =_xlfn.XLOOKUP(F4,$E$24:$E$61,$B$24:$B$61,"",0,1) -> AG-MAX | G5: =(G6/$A$6)*100 ->  | H5: =_xlfn.XLOOKUP(H4,$E$24:$E$61,$B$24:$B$61,"",0,1) -> AG-MOD | I5: =(I6/$A$6)*100 ->  | J5: =_xlfn.XLOOKUP(J4,$E$24:$E$61,$B$24:$B$61,"",0,1) -> CORE-BND | K5: =(K6/$A$6)*100 ->  | L5: =_xlfn.XLOOKUP(L4,$E$24:$E$61,$B$24:$B$61,"",0,1) -> CORE-STK | M5: =(M6/$A$6)*100 ->  | N5: =_xlfn.XLOOKUP(N4,$E$24:$E$61,$B$24:$B$61,"",0,1) -> CS-BAL | O5: =(O6/$A$6)*100 ->  | P5: =_xlfn.XLOOKUP(P4,$E$24:$E$61,$B$24:$B$61,"",0,1) -> CS-BND | Q5: =(Q6/$A$6)*100 ->  | R5: =_xlfn.XLOOKUP(R4,$E$24:$E$61,$B$24:$B$61,"",0,1) -> CS-GRW | S5: =(S6/$A$6)*100 ->  | T5: =_xlfn.XLOOKUP(T4,$E$24:$E$61,$B$24:$B$61,"",0,1) -> CS-INC | U5: =(U6/$A$6)*100 -> 
A6: =SUM(A8:A22) -> 0 | B6: =B5 -> AG-BAL | C6: =SUMIF($B$8:$B$22,B6,$C$8:$C$22)+SUMIF($D$8:$D$22,B6,$E$8:$E$22)+SUMIF($F$8:$F$22,B6,$G$8:$G$22)+SUMIF($H$8:$H$22,B6,$I$8:$I$22)+SUMIF($J$8:$J$22,B6,$K$8:$K$22) -> 0 | D6: =D5 -> AG-GRW | E6: =SUMIF($B$8:$B$22,D6,$C$8:$C$22)+SUMIF($D$8:$D$22,D6,$E$8:$E$22)+SUMIF($F$8:$F$22,D6,$G$8:$G$22)+SUMIF($H$8:$H$22,D6,$I$8:$I$22)+SUMIF($J$8:$J$22,D6,$K$8:$K$22) -> 0 | F6: =F5 -> AG-MAX | G6: =SUMIF($B$8:$B$22,F6,$C$8:$C$22)+SUMIF($D$8:$D$22,F6,$E$8:$E$22)+SUMIF($F$8:$F$22,F6,$G$8:$G$22)+SUMIF($H$8:$H$22,F6,$I$8:$I$22)+SUMIF($J$8:$J$22,F6,$K$8:$K$22) -> 0 | H6: =H5 -> AG-MOD | I6: =SUMIF($B$8:$B$22,H6,$C$8:$C$22)+SUMIF($D$8:$D$22,H6,$E$8:$E$22)+SUMIF($F$8:$F$22,H6,$G$8:$G$22)+SUMIF($H$8:$H$22,H6,$I$8:$I$22)+SUMIF($J$8:$J$22,H6,$K$8:$K$22) -> 0 | J6: =J5 -> CORE-BND | K6: =SUMIF($B$8:$B$22,J6,$C$8:$C$22)+SUMIF($D$8:$D$22,J6,$E$8:$E$22)+SUMIF($F$8:$F$22,J6,$G$8:$G$22)+SUMIF($H$8:$H$22,J6,$I$8:$I$22)+SUMIF($J$8:$J$22,J6,$K$8:$K$22) -> 0 | L6: =L5 -> CORE-STK | M6: =SUMIF($B$8:$B$22,L6,$C$8:$C$22)+SUMIF($D$8:$D$22,L6,$E$8:$E$22)+SUMIF($F$8:$F$22,L6,$G$8:$G$22)+SUMIF($H$8:$H$22,L6,$I$8:$I$22)+SUMIF($J$8:$J$22,L6,$K$8:$K$22) -> 0 | N6: =N5 -> CS-BAL | O6: =SUMIF($B$8:$B$22,N6,$C$8:$C$22)+SUMIF($D$8:$D$22,N6,$E$8:$E$22)+SUMIF($F$8:$F$22,N6,$G$8:$G$22)+SUMIF($H$8:$H$22,N6,$I$8:$I$22)+SUMIF($J$8:$J$22,N6,$K$8:$K$22) -> 0 | P6: =P5 -> CS-BND | Q6: =SUMIF($B$8:$B$22,P6,$C$8:$C$22)+SUMIF($D$8:$D$22,P6,$E$8:$E$22)+SUMIF($F$8:$F$22,P6,$G$8:$G$22)+SUMIF($H$8:$H$22,P6,$I$8:$I$22)+SUMIF($J$8:$J$22,P6,$K$8:$K$22) -> 0 | R6: =R5 -> CS-GRW | S6: =SUMIF($B$8:$B$22,R6,$C$8:$C$22)+SUMIF($D$8:$D$22,R6,$E$8:$E$22)+SUMIF($F$8:$F$22,R6,$G$8:$G$22)+SUMIF($H$8:$H$22,R6,$I$8:$I$22)+SUMIF($J$8:$J$22,R6,$K$8:$K$22) -> 0 | T6: =T5 -> CS-INC | U6: =SUMIF($B$8:$B$22,T6,$C$8:$C$22)+SUMIF($D$8:$D$22,T6,$E$8:$E$22)+SUMIF($F$8:$F$22,T6,$G$8:$G$22)+SUMIF($H$8:$H$22,T6,$I$8:$I$22)+SUMIF($J$8:$J$22,T6,$K$8:$K$22) -> 0
A7: Copy & Paste Special/Values Each Account Below
A8: =SUM(C8:K8) -> 0
A9: =SUM(C9:K9) -> 0
A10: 0
A11: 0
A12: 0
A13: 0
A14: 0
A15: 0
A16: 0
A17: 0
A18: 0
A19: 0
A20: 0
A21: 0
A22: 0
A24: 1 | B24: AG-BAL | C24: =SUMIF($B$8:$B$22,B24,$C$8:$C$22)+SUMIF($D$8:$D$22,B24,$E$8:$E$22)+SUMIF($F$8:$F$22,B24,$G$8:$G$22)+SUMIF($H$8:$H$22,B24,$I$8:$I$22)+SUMIF($J$8:$J$22,B24,K$8:$K$22) -> 0 | D24: =C24-A24 -> -1 | E24: =RANK(D24,$D$24:$D$61,0) -> 1
A25: 2 | B25: AG-GRW | C25: =SUMIF($B$8:$B$22,B25,$C$8:$C$22)+SUMIF($D$8:$D$22,B25,$E$8:$E$22)+SUMIF($F$8:$F$22,B25,$G$8:$G$22)+SUMIF($H$8:$H$22,B25,$I$8:$I$22)+SUMIF($J$8:$J$22,B25,K$8:$K$22) -> 0 | D25: =C25-A25 -> -2 | E25: =RANK(D25,$D$24:$D$61,0) -> 2
A26: 3 | B26: AG-MAX | C26: =SUMIF($B$8:$B$22,B26,$C$8:$C$22)+SUMIF($D$8:$D$22,B26,$E$8:$E$22)+SUMIF($F$8:$F$22,B26,$G$8:$G$22)+SUMIF($H$8:$H$22,B26,$I$8:$I$22)+SUMIF($J$8:$J$22,B26,K$8:$K$22) -> 0 | D26: -3 | E26: 3
A27: 4 | B27: AG-MOD | C27: =SUMIF($B$8:$B$22,B27,$C$8:$C$22)+SUMIF($D$8:$D$22,B27,$E$8:$E$22)+SUMIF($F$8:$F$22,B27,$G$8:$G$22)+SUMIF($H$8:$H$22,B27,$I$8:$I$22)+SUMIF($J$8:$J$22,B27,K$8:$K$22) -> 0 | D27: -4 | E27: 4
A28: 5 | B28: CORE-BND | C28: =SUMIF($B$8:$B$22,B28,$C$8:$C$22)+SUMIF($D$8:$D$22,B28,$E$8:$E$22)+SUMIF($F$8:$F$22,B28,$G$8:$G$22)+SUMIF($H$8:$H$22,B28,$I$8:$I$22)+SUMIF($J$8:$J$22,B28,K$8:$K$22) -> 0 | D28: -5 | E28: 5
A29: 6 | B29: CORE-STK | C29: =SUMIF($B$8:$B$22,B29,$C$8:$C$22)+SUMIF($D$8:$D$22,B29,$E$8:$E$22)+SUMIF($F$8:$F$22,B29,$G$8:$G$22)+SUMIF($H$8:$H$22,B29,$I$8:$I$22)+SUMIF($J$8:$J$22,B29,K$8:$K$22) -> 0 | D29: -6 | E29: 6
A30: 7 | B30: CS-BAL | C30: =SUMIF($B$8:$B$22,B30,$C$8:$C$22)+SUMIF($D$8:$D$22,B30,$E$8:$E$22)+SUMIF($F$8:$F$22,B30,$G$8:$G$22)+SUMIF($H$8:$H$22,B30,$I$8:$I$22)+SUMIF($J$8:$J$22,B30,K$8:$K$22) -> 0 | D30: -7 | E30: 7
A31: 8 | B31: CS-BND | C31: =SUMIF($B$8:$B$22,B31,$C$8:$C$22)+SUMIF($D$8:$D$22,B31,$E$8:$E$22)+SUMIF($F$8:$F$22,B31,$G$8:$G$22)+SUMIF($H$8:$H$22,B31,$I$8:$I$22)+SUMIF($J$8:$J$22,B31,K$8:$K$22) -> 0 | D31: -8 | E31: 8
A32: 9 | B32: CS-GRW | C32: =SUMIF($B$8:$B$22,B32,$C$8:$C$22)+SUMIF($D$8:$D$22,B32,$E$8:$E$22)+SUMIF($F$8:$F$22,B32,$G$8:$G$22)+SUMIF($H$8:$H$22,B32,$I$8:$I$22)+SUMIF($J$8:$J$22,B32,K$8:$K$22) -> 0 | D32: -9 | E32: 9
A33: 10 | B33: CS-INC | C33: =SUMIF($B$8:$B$22,B33,$C$8:$C$22)+SUMIF($D$8:$D$22,B33,$E$8:$E$22)+SUMIF($F$8:$F$22,B33,$G$8:$G$22)+SUMIF($H$8:$H$22,B33,$I$8:$I$22)+SUMIF($J$8:$J$22,B33,K$8:$K$22) -> 0 | D33: -10 | E33: 10
A34: 11 | B34: CS-MAX | C34: =SUMIF($B$8:$B$22,B34,$C$8:$C$22)+SUMIF($D$8:$D$22,B34,$E$8:$E$22)+SUMIF($F$8:$F$22,B34,$G$8:$G$22)+SUMIF($H$8:$H$22,B34,$I$8:$I$22)+SUMIF($J$8:$J$22,B34,K$8:$K$22) -> 0 | D34: -11 | E34: 11
A35: 12 | B35: DAA | C35: =SUMIF($B$8:$B$22,B35,$C$8:$C$22)+SUMIF($D$8:$D$22,B35,$E$8:$E$22)+SUMIF($F$8:$F$22,B35,$G$8:$G$22)+SUMIF($H$8:$H$22,B35,$I$8:$I$22)+SUMIF($J$8:$J$22,B35,K$8:$K$22) -> 0 | D35: -12 | E35: 12
A36: 13 | B36: DAG | C36: =SUMIF($B$8:$B$22,B36,$C$8:$C$22)+SUMIF($D$8:$D$22,B36,$E$8:$E$22)+SUMIF($F$8:$F$22,B36,$G$8:$G$22)+SUMIF($H$8:$H$22,B36,$I$8:$I$22)+SUMIF($J$8:$J$22,B36,K$8:$K$22) -> 0 | D36: -13 | E36: 13
A37: 14 | B37: DBA | C37: =SUMIF($B$8:$B$22,B37,$C$8:$C$22)+SUMIF($D$8:$D$22,B37,$E$8:$E$22)+SUMIF($F$8:$F$22,B37,$G$8:$G$22)+SUMIF($H$8:$H$22,B37,$I$8:$I$22)+SUMIF($J$8:$J$22,B37,K$8:$K$22) -> 0 | D37: -14 | E37: 14
A38: 15 | B38: DIA | C38: =SUMIF($B$8:$B$22,B38,$C$8:$C$22)+SUMIF($D$8:$D$22,B38,$E$8:$E$22)+SUMIF($F$8:$F$22,B38,$G$8:$G$22)+SUMIF($H$8:$H$22,B38,$I$8:$I$22)+SUMIF($J$8:$J$22,B38,K$8:$K$22) -> 0 | D38: -15 | E38: 15
A39: 16 | B39: EBND | C39: =SUMIF($B$8:$B$22,B39,$C$8:$C$22)+SUMIF($D$8:$D$22,B39,$E$8:$E$22)+SUMIF($F$8:$F$22,B39,$G$8:$G$22)+SUMIF($H$8:$H$22,B39,$I$8:$I$22)+SUMIF($J$8:$J$22,B39,K$8:$K$22) -> 0 | D39: -16 | E39: 16
A40: 17 | B40: EDDG | C40: =SUMIF($B$8:$B$22,B40,$C$8:$C$22)+SUMIF($D$8:$D$22,B40,$E$8:$E$22)+SUMIF($F$8:$F$22,B40,$G$8:$G$22)+SUMIF($H$8:$H$22,B40,$I$8:$I$22)+SUMIF($J$8:$J$22,B40,K$8:$K$22) -> 0 | D40: -17 | E40: 17
A41: 18 | B41: EGA | C41: =SUMIF($B$8:$B$22,B41,$C$8:$C$22)+SUMIF($D$8:$D$22,B41,$E$8:$E$22)+SUMIF($F$8:$F$22,B41,$G$8:$G$22)+SUMIF($H$8:$H$22,B41,$I$8:$I$22)+SUMIF($J$8:$J$22,B41,K$8:$K$22) -> 0 | D41: -18 | E41: 18
A42: 19 | B42: ESGCB | C42: =SUMIF($B$8:$B$22,B42,$C$8:$C$22)+SUMIF($D$8:$D$22,B42,$E$8:$E$22)+SUMIF($F$8:$F$22,B42,$G$8:$G$22)+SUMIF($H$8:$H$22,B42,$I$8:$I$22)+SUMIF($J$8:$J$22,B42,K$8:$K$22) -> 0 | D42: -19 | E42: 19
A43: 20 | B43: ESGCS | C43: =SUMIF($B$8:$B$22,B43,$C$8:$C$22)+SUMIF($D$8:$D$22,B43,$E$8:$E$22)+SUMIF($F$8:$F$22,B43,$G$8:$G$22)+SUMIF($H$8:$H$22,B43,$I$8:$I$22)+SUMIF($J$8:$J$22,B43,K$8:$K$22) -> 0 | D43: -20 | E43: 20
A44: 21 | B44: INA | C44: =SUMIF($B$8:$B$22,B44,$C$8:$C$22)+SUMIF($D$8:$D$22,B44,$E$8:$E$22)+SUMIF($F$8:$F$22,B44,$G$8:$G$22)+SUMIF($H$8:$H$22,B44,$I$8:$I$22)+SUMIF($J$8:$J$22,B44,K$8:$K$22) -> 0 | D44: -21 | E44: 21
A45: 22 | B45: MF-INC [10/90] | C45: =SUMIF($B$8:$B$22,B45,$C$8:$C$22)+SUMIF($D$8:$D$22,B45,$E$8:$E$22)+SUMIF($F$8:$F$22,B45,$G$8:$G$22)+SUMIF($H$8:$H$22,B45,$I$8:$I$22)+SUMIF($J$8:$J$22,B45,K$8:$K$22) -> 0 | D45: -22 | E45: 22
A46: 23 | B46: MF-CON [30/70] | C46: =SUMIF($B$8:$B$22,B46,$C$8:$C$22)+SUMIF($D$8:$D$22,B46,$E$8:$E$22)+SUMIF($F$8:$F$22,B46,$G$8:$G$22)+SUMIF($H$8:$H$22,B46,$I$8:$I$22)+SUMIF($J$8:$J$22,B46,K$8:$K$22) -> 0 | D46: -23 | E46: 23
A47: 24 | B47: MF-MCSV [40/60] | C47: =SUMIF($B$8:$B$22,B47,$C$8:$C$22)+SUMIF($D$8:$D$22,B47,$E$8:$E$22)+SUMIF($F$8:$F$22,B47,$G$8:$G$22)+SUMIF($H$8:$H$22,B47,$I$8:$I$22)+SUMIF($J$8:$J$22,B47,K$8:$K$22) -> 0 | D47: -24 | E47: 24
A48: 25 | B48: MF-BAL [50/50] | C48: =SUMIF($B$8:$B$22,B48,$C$8:$C$22)+SUMIF($D$8:$D$22,B48,$E$8:$E$22)+SUMIF($F$8:$F$22,B48,$G$8:$G$22)+SUMIF($H$8:$H$22,B48,$I$8:$I$22)+SUMIF($J$8:$J$22,B48,K$8:$K$22) -> 0 | D48: -25 | E48: 25
A49: 26 | B49: MF-MGRW [60/40] | C49: =SUMIF($B$8:$B$22,B49,$C$8:$C$22)+SUMIF($D$8:$D$22,B49,$E$8:$E$22)+SUMIF($F$8:$F$22,B49,$G$8:$G$22)+SUMIF($H$8:$H$22,B49,$I$8:$I$22)+SUMIF($J$8:$J$22,B49,K$8:$K$22) -> 0 | D49: -26 | E49: 26
A50: 27 | B50: MF-GRW [60/40] | C50: =SUMIF($B$8:$B$22,B50,$C$8:$C$22)+SUMIF($D$8:$D$22,B50,$E$8:$E$22)+SUMIF($F$8:$F$22,B50,$G$8:$G$22)+SUMIF($H$8:$H$22,B50,$I$8:$I$22)+SUMIF($J$8:$J$22,B50,K$8:$K$22) -> 0 | D50: -27 | E50: 27
A51: 28 | B51: MF-AGR [85/15] | C51: =SUMIF($B$8:$B$22,B51,$C$8:$C$22)+SUMIF($D$8:$D$22,B51,$E$8:$E$22)+SUMIF($F$8:$F$22,B51,$G$8:$G$22)+SUMIF($H$8:$H$22,B51,$I$8:$I$22)+SUMIF($J$8:$J$22,B51,K$8:$K$22) -> 0 | D51: -28 | E51: 28
A52: 29 | B52: MF-EQT [100/0] | C52: =SUMIF($B$8:$B$22,B52,$C$8:$C$22)+SUMIF($D$8:$D$22,B52,$E$8:$E$22)+SUMIF($F$8:$F$22,B52,$G$8:$G$22)+SUMIF($H$8:$H$22,B52,$I$8:$I$22)+SUMIF($J$8:$J$22,B52,K$8:$K$22) -> 0 | D52: -29 | E52: 29
A53: 30 | B53: MMP | C53: =SUMIF($B$8:$B$22,B53,$C$8:$C$22)+SUMIF($D$8:$D$22,B53,$E$8:$E$22)+SUMIF($F$8:$F$22,B53,$G$8:$G$22)+SUMIF($H$8:$H$22,B53,$I$8:$I$22)+SUMIF($J$8:$J$22,B53,K$8:$K$22) -> 0 | D53: -30 | E53: 30
A54: 31 | B54: MSM | C54: =SUMIF($B$8:$B$22,B54,$C$8:$C$22)+SUMIF($D$8:$D$22,B54,$E$8:$E$22)+SUMIF($F$8:$F$22,B54,$G$8:$G$22)+SUMIF($H$8:$H$22,B54,$I$8:$I$22)+SUMIF($J$8:$J$22,B54,K$8:$K$22) -> 0 | D54: -31 | E54: 31
A55: 32 | B55: PAT | C55: =SUMIF($B$8:$B$22,B55,$C$8:$C$22)+SUMIF($D$8:$D$22,B55,$E$8:$E$22)+SUMIF($F$8:$F$22,B55,$G$8:$G$22)+SUMIF($H$8:$H$22,B55,$I$8:$I$22)+SUMIF($J$8:$J$22,B55,K$8:$K$22) -> 0 | D55: -32 | E55: 32
A56: 33 | B56: PCP | C56: =SUMIF($B$8:$B$22,B56,$C$8:$C$22)+SUMIF($D$8:$D$22,B56,$E$8:$E$22)+SUMIF($F$8:$F$22,B56,$G$8:$G$22)+SUMIF($H$8:$H$22,B56,$I$8:$I$22)+SUMIF($J$8:$J$22,B56,K$8:$K$22) -> 0 | D56: -33 | E56: 33
A57: 34 | B57: PMP | C57: =SUMIF($B$8:$B$22,B57,$C$8:$C$22)+SUMIF($D$8:$D$22,B57,$E$8:$E$22)+SUMIF($F$8:$F$22,B57,$G$8:$G$22)+SUMIF($H$8:$H$22,B57,$I$8:$I$22)+SUMIF($J$8:$J$22,B57,K$8:$K$22) -> 0 | D57: -34 | E57: 34
A58: 35 | B58: PPP | C58: =SUMIF($B$8:$B$22,B58,$C$8:$C$22)+SUMIF($D$8:$D$22,B58,$E$8:$E$22)+SUMIF($F$8:$F$22,B58,$G$8:$G$22)+SUMIF($H$8:$H$22,B58,$I$8:$I$22)+SUMIF($J$8:$J$22,B58,K$8:$K$22) -> 0 | D58: -35 | E58: 35
A59: 36 | B59: TAB | C59: =SUMIF($B$8:$B$22,B59,$C$8:$C$22)+SUMIF($D$8:$D$22,B59,$E$8:$E$22)+SUMIF($F$8:$F$22,B59,$G$8:$G$22)+SUMIF($H$8:$H$22,B59,$I$8:$I$22)+SUMIF($J$8:$J$22,B59,K$8:$K$22) -> 0 | D59: -36 | E59: 36
A60: 37 | B60: TB | C60: =SUMIF($B$8:$B$22,B60,$C$8:$C$22)+SUMIF($D$8:$D$22,B60,$E$8:$E$22)+SUMIF($F$8:$F$22,B60,$G$8:$G$22)+SUMIF($H$8:$H$22,B60,$I$8:$I$22)+SUMIF($J$8:$J$22,B60,K$8:$K$22) -> 0 | D60: -37 | E60: 37
A61: 38 | B61: CORE-MUNI | C61: =SUMIF($B$8:$B$22,B61,$C$8:$C$22)+SUMIF($D$8:$D$22,B61,$E$8:$E$22)+SUMIF($F$8:$F$22,B61,$G$8:$G$22)+SUMIF($H$8:$H$22,B61,$I$8:$I$22)+SUMIF($J$8:$J$22,B61,K$8:$K$22) -> 0 | D61: -38 | E61: 38

Sheet DataEntry
A1: SEM Proposal Generation Worksheet | D1: v18 2024Q2 | E1: Enter the Model Allocation using the drop-down menu or select a preset allocation model and choose "Update" | G1: MODEL PORTFOLIO: | I1: Moderate [50/50] | O1: MODEL TOTAL: | P1: ='FeeDetails-Expanded'!C21 -> 1 | Q1: If you need to use more than 5 models (such as to show a combined allocation), use the PortfolioSummary-Expanded tab
A2: Enter the account information to populate the proposal sheets | G2: Model Port Alloc % | I2: 100 | O2: Benchmark Total: | P2: =(H5+J5+L5+N5+P5)/100 -> 0 | AC2: Yes
A3: Account# | B3: LastName | C3: FirstName | D3: Account Type | E3: Amount | F3: Advisor Fee % | G3: Model1 | H3: Mod1% | I3: Model2 | J3: Mod2% | K3: Model3 | L3: Mod3% | M3: Model4 | N3: Mod4% | O3: Model5 | P3: Mod5% | Q3: Model6 | R3: Mod6% | S3: Model7 | T3: Mod7% | U3: Model8 | V3: Mod8% | W3: Model9 | X3: Mod9% | Y3: Model10 | Z3: Mod10% | AC3: No
B4: Demo | C4: Joe & Jessica | D4: IRAs | E4: 100000 | F4: 1 | G4: DIA | H4: 50 | I4: TB | J4: 30 | K4: INA | L4: 20
D5: Total Family Assets w/SEM: | E5: 100000 | F5: Custom Benchmark: | Q5: =IF($I$1="","",VLOOKUP($I$1,SEMAllocPortfolios!$B:$L,SEMAllocPortfolios!C1,FALSE)) -> TB | R5: =IF($I$1="","",VLOOKUP($I$1,SEMAllocPortfolios!$B:$L,SEMAllocPortfolios!D1,FALSE)) -> 25 | S5: =IF($I$1="","",VLOOKUP($I$1,SEMAllocPortfolios!$B:$L,SEMAllocPortfolios!E1,FALSE)) -> DIA | T5: =IF($I$1="","",VLOOKUP($I$1,SEMAllocPortfolios!$B:$L,SEMAllocPortfolios!F1,FALSE)) -> 20 | U5: =IF($I$1="","",VLOOKUP($I$1,SEMAllocPortfolios!$B:$L,SEMAllocPortfolios!G1,FALSE)) -> AG-GRW | V5: =IF($I$1="","",VLOOKUP($I$1,SEMAllocPortfolios!$B:$L,SEMAllocPortfolios!H1,FALSE)) -> 35 | W5: =IF($I$1="","",VLOOKUP($I$1,SEMAllocPortfolios!$B:$L,SEMAllocPortfolios!I1,FALSE)) -> AG-MAX | X5: =IF($I$1="","",VLOOKUP($I$1,SEMAllocPortfolios!$B:$L,SEMAllocPortfolios!J1,FALSE)) -> 20 | Y5: =IF($I$1="","",VLOOKUP($I$1,SEMAllocPortfolios!$B:$L,SEMAllocPortfolios!K1,FALSE)) -> 0 | Z5: =IF($I$1="","",VLOOKUP($I$1,SEMAllocPortfolios!$B:$L,SEMAllocPortfolios!L1,FALSE)) -> 0
E6: Enter the total amount the household has invested with SEM (to calculate break-points) | F6: Custom benchmark is used to compare investments or for financial planning benchmarks | M6: Leave Custom Bchmrk blank to use blended model benchmarks | Q6: =IF(Q5=0,"",Q5) -> TB | R6: =IF(Q6="","",R5*($I$2/100)) -> 25 | S6: =IF(S5=0,"",S5) -> DIA | T6: =IF(S6="","",T5*($I$2/100)) -> 20 | U6: =IF(U5=0,"",U5) -> AG-GRW | V6: =IF(U6="","",V5*($I$2/100)) -> 35 | W6: =IF(W5=0,"",W5) -> AG-MAX | X6: =IF(W6="","",X5*($I$2/100)) -> 20 | Y6: =IF(Y5=0,"",Y5) ->  | Z6: =IF(Y6="","",Z5*($I$2/100)) -> 
E7: Use the drop-down menu to complete the suitability information to generate a recommendation | F7: HSC? | G7: No | K7: Portfolio End Value: | N7: Benchmark End Value: | W7: =SUM(W9:W18) -> 0 | X7: =SUMPRODUCT($W$9:$W$18,X9:X18) -> 0 | Y7: =SUMPRODUCT($W$9:$W$18,Y9:Y18) -> 0 | Z7: =SUMPRODUCT($W$9:$W$18,Z9:Z18) -> 0
B8: Enter Suitability Information (Orange Boxes are REQUIRED) | J8: Advisor Fee | K8: =IF(P1<0,"",'Fee Details-TotalFees'!H25) -> 321335.3651 | N8: =IF(ROUND(P1,2)<1,"",'Fee Details-TotalFees'!H32) -> 256048.4644
B9: Investment Experience: | D9: Investor Type: | J9: ='Fee Details'!F22 -> 0.01 | K9: Annual Ret | M9: =IF(K$8="","",'Fee Details-TotalFees'!I26) -> 0.04879880706 | N9: Annual Ret | P9: =IF(N$8="","",'Fee Details-TotalFees'!I33) -> 0.03912121416
B10: Emergency Assets: | D10: Time Horizon: | J10: SEM Fee | K10: Downside Risk | M10: =IF(K$8="","",'Fee Details-TotalFees'!I27) -> -0.09090800214 | N10: Downside Risk | P10: =IF(N$8="","",'Fee Details-TotalFees'!I34) -> -0.1765776693
B11: Tax Bracket: | D11: Risk Tolerance | H11: Riskalyze Score | J11: ='Fee Details'!E22 -> 0.00935 | K11: Tolerisk Score | M11: =IF(K$8="","",'Fee Details-TotalFees'!I28) -> 24 | N11: Tolerisk Score | P11: =IF(N$8="","",'Fee Details-TotalFees'!I35) -> 30
B12: Annual Income: | D12: Objective: | J12: Axos Fee | K12: 3 Year Return % | M12: =IF(K8="","",G19) -> 0.006628611626 | N12: 3 Year Return % | P12: =IF(N8="","",G20) -> 0.00164550353
B13: Liquid Net Worth: | D13: If given a choice, I would prefer: | J13: ='Fee Details'!G22 -> 0.0012 | K13: 5 Year Return % | M13: =IF(K8="","",H19) -> 0.02413171827 | N13: 5 Year Return % | P13: =IF(N8="","",H20) -> 0.02225751549
B14: % of Net Worth | D14: Preferred Portfolio Type: | E14: =IF(F14="","",VLOOKUP(F14,Suitability!$A$80:$B$85,2,FALSE)) ->  | J14: Total Fee | K14: 10 Year Return % | M14: =IF(K8="","",I19) -> 0.02185256951 | N14: 10 Year Return % | P14: =IF(N8="","",I20) -> 0.02367579067
B15: * = If an * choice is selected, clients should discuss the suitability of holding any risky investments. | J15: ='Fee Details'!H22 -> 0.02055 | K15: Up Capture % | M15: =IF(K8="","",L19) -> 0.1604089506 | N15: Up Capture % | P15: =IF(N8="","",L20) -> 0.244964067
H16: =IF(H4>0,"%","") -> % | I16: Internal Fees: | J16: ='Fee Details-TotalFees'!H22 -> 0.00885 | K16: Down Capture % | M16: =IF(K8="","",M19) -> 0.1549726591 | N16: Down Capture % | P16: =IF(N8="","",M20) -> 0.2981295253
H17: =IF(H5>0,"%","") ->  | J17: =IF(J5>0,"%","") ->  | L17: =IF(L5>0,"%","") ->  | M17: =ROUND((N19*100),2) -> 4.04 | N17: =IF(N5>0,"%","") ->  | P17: =IF(P5>0,"%","") -> 
B18: Portfolio Stats | C18: Tolerisk Score | D18: Riskalyze Score | E18: MVaR | F18: MaxDD | G18: 3 Yr Ret | H18: 5 Yr Ret | I18: 10 Yr Ret | J18: 15 Yr Ret | K18: Sharpe | L18: Up Capt | M18: Dwn Capt | N18: Std Dev | O18: Min Eq. | P18: Max Eq. | Q18: Tact% | R18: Dyn% | S18: Strat%
B19: SEM | C19: ='Performance Details'!L42 -> 24 | D19: ='Performance Details'!L43 -> 31 | E19: ='Performance Details'!L41 -> -0.09090800214 | F19: ='Performance Details'!L40 -> -0.07210136794 | G19: ='Performance Details'!L29 -> 0.006628611626 | H19: ='Performance Details'!L30 -> 0.02413171827 | I19: ='Fee Details-TotalFees'!P22 -> 0.02185256951 | J19: ='Performance Details'!L32 -> 0.03626933253 | K19: ='Performance Details'!L47 -> 0.4680582134 | L19: ='Performance Details'!L49 -> 0.1604089506 | M19: ='Performance Details'!L50 -> 0.1549726591 | N19: ='Performance Details'!L39 -> 0.04042836691 | O19: ='Performance Details'!J6*100 -> 0 | P19: =MIN(MAX('Performance Details'!L6,(C19)),100) -> 24 | Q19: ='Performance Details'!E5*100 -> 50 | R19: ='Performance Details'!I5*100 -> 50 | S19: =100-SUM(Q19:R19) -> 0
B20: Benchmark | C20: ='Performance Details'!M42 -> 30 | D20: ='Performance Details'!M43 -> 38 | E20: ='Performance Details'!M41 -> -0.1315474626 | F20: ='Performance Details'!M40 -> -0.1765776693 | G20: ='Performance Details'!M29 -> 0.00164550353 | H20: ='Performance Details'!M30 -> 0.02225751549 | I20: ='Performance Details'!M31 -> 0.02367579067 | J20: ='Performance Details'!M32 -> 0.04132401528 | K20: ='Performance Details'!M47 -> 0.3748921165 | L20: ='Performance Details'!M49 -> 0.244964067 | M20: ='Performance Details'!M50 -> 0.2981295253 | N20: ='Performance Details'!M39 -> 0.04875129708 | O20: =P11 -> 30 | P20: =O20 -> 30 | S20: 100
B21: S&P 500 | C21: ='Performance Details'!N42 -> 90 | D21: ='Performance Details'!N43 -> 76 | E21: ='Performance Details'!N41 -> -0.3461766189 | F21: ='Performance Details'!N40 -> -0.3347636095 | G21: ='Performance Details'!N29 -> 0.10020355 | H21: ='Performance Details'!N30 -> 0.15053866 | I21: ='Performance Details'!N31 -> 0.1286801584 | J21: ='Performance Details'!N32 -> 0.1482154025 | K21: ='Performance Details'!N47 -> 1.013942238 | L21: 1 | M21: 1 | N21: ='Performance Details'!N39 -> 0.1467649944 | O21: 100 | P21: 100 | S21: 100
G22: =IF(G5="","",VLOOKUP(G5,ModelList!$B:$Z,25,FALSE)) ->  | I22: =IF(I5="","",VLOOKUP(I5,ModelList!$B:$Z,25,FALSE)) ->  | K22: =IF(K5="","",VLOOKUP(K5,ModelList!$B:$Z,25,FALSE)) ->  | M22: =IF(M5="","",VLOOKUP(M5,ModelList!$B:$Z,25,FALSE)) ->  | O22: =IF(O5="","",VLOOKUP(O5,ModelList!$B:$Z,25,FALSE)) -> 
B23: Withdrawal % based on Initial or 'Current' Value?: | D23: Initial | E23: Initial Withdrawal Rate: | F23: Stable Value APY% | G23: Inflation Rate:
B24: Starting withdrawal amount: | D24: 75000 | E24: =IF(E4="","",D24/E4) -> 0.75 | F24: 0.045 | G24: 0
C25: Required Return (15 Years): | D25: =IF(D24="","",'ENCORE Withdrawals'!P8) -> 0.7498301276 | F25: Required Return (30 Years): | G25: =IF(D25="","",'ENCORE Withdrawals'!Q8) -> 0.7499999616
C27: SEM | D27: Benchmark | E27: S&P | F27: Stable Value
B28: # of years of w/d's | C28: ='ENCORE Withdrawals'!Y36 -> 2 | D28: ='ENCORE Withdrawals'!Y37 -> 3 | E28: ='ENCORE Withdrawals'!Y38 -> 1 | F28: ='ENCORE Withdrawals'!Y39 -> 2
B29: Portfolio End Value | C29: ='ENCORE Withdrawals'!C36 -> 0 | D29: ='ENCORE Withdrawals'!C37 -> 0 | E29: ='ENCORE Withdrawals'!C38 -> 0 | F29: ='ENCORE Withdrawals'!C39 -> 0
B31: Enter the Tolerisk Score to find the estimated risk based on a passively managed buy & hold portfolio. | C31: Tolerisk Score Conversion: | E31: Tolerisk Score Calculation:
C32: Tolerisk Score: | D32: 42 | E32: Standard Deviation: | G32: 0.0643
C33: Riskalzye Equiv. | D33: =IF(D32="","",((D32/100)*'Performance Details'!Q18)+'Performance Details'!R18) -> 48.12 | F33: Tolerisk Score Estimate: | G33: =IF(G32="","",((G32*ToleriskMatrix!C3)+ToleriskMatrix!C2))*100 -> 39.25560898
C34: Risk Tolerance: | D34: =IF(D32="","",((D32/100*'Performance Details'!Q16)+'Performance Details'!R16)) -> -0.2300916628 | F34: Risk Tolerance: | G34: =IF(G32="","",((G33/100*'Performance Details'!Q16)+'Performance Details'!R16)) -> -0.2159462442
B36: Required Return: | C36: =G25 -> 0.7499999616 | G36: SEM / BENCHMARK
B37: Return Ranges | C37: SEM Portfolio | D37: Std Dev. | E37: Benchmark | F37: Std Dev. | G37: % > Hurdle | H37: 2.5 | Q37: BetaVest / ClearPath Asset Class Conversions
B38: Avg 1 Year Ret / Std. Dev | C38: =AVERAGE('Custom Data'!AN7:AN560) -> 0.05023367437 | D38: =STDEV('Custom Data'!AN7:AN560) -> 0.06351855133 | E38: =AVERAGE('Custom Data'!BY7:BY560) -> 0.04057992914 | F38: =STDEV('Custom Data'!BY7:BY560) -> 0.06014396364 | G38: =COUNTIF('Custom Data'!AN$7:AN$560,">"&$C$36)/COUNTA('Custom Data'!AN$7:AN$560) -> 0 | Q38: MODEL | R38: % | S38: T-BILL | T38: IGB | U38: LCS | V38: MCS | W38: SCS | X38: INTL
B39: Lower / Upper Band | C39: =C38+(D38*-$H$37) -> -0.108562704 | D39: =C38+(D38*$H$37) -> 0.2090300527 | E39: =E38+(F38*-$H$37) -> -0.10977998 | F39: =E38+(F38*$H$37) -> 0.1909398382 | G39: =COUNTIF('Custom Data'!BY$7:BY$560,">"&$C$36)/COUNTA('Custom Data'!BY$7:BY$560) -> 0 | Q39: CASH | R39: =((SUMIF(G$4,Q39,H$4)+SUMIF(I$4,Q39,J$4)+SUMIF(K$4,Q39,L$4)+SUMIF(M$4,Q39,N$4)+SUMIF(O$4,Q39,P$4)+SUMIF(Q$4,Q39,R$4)+SUMIF(S$4,Q39,T$4)+SUMIF(U$4,Q39,V$4)+SUMIF(W$4,Q39,X$4)+SUMIF(Y$4,Q39,Z$4))/100) -> 0 | S39: =R39 -> 0
B40: Avg 3 Year Ret / Std. Dev | C40: =AVERAGE('Custom Data'!AP7:AP560) -> 0.05003648872 | D40: =STDEV('Custom Data'!AP7:AP560) -> 0.03419597067 | E40: =AVERAGE('Custom Data'!CA7:CA560) -> 0.04071850367 | F40: =STDEV('Custom Data'!CA7:CA560) -> 0.02594893284 | G40: =COUNTIF('Custom Data'!AP$7:AP$560,">"&$C$36)/COUNTA('Custom Data'!AP$7:AP$560) -> 0 | Q40: INA | R40: 0.2 | S40: =R40 -> 0.2
B41: Lower / Upper Band | C41: =C40+(D40*-$H$37) -> -0.03545343796 | D41: =C40+(D40*$H$37) -> 0.1355264154 | E41: =E40+(F40*-$H$37) -> -0.02415382843 | F41: =E40+(F40*$H$37) -> 0.1055908358 | G41: =COUNTIF('Custom Data'!CA$7:CA$560,">"&$C$36)/COUNTA('Custom Data'!CA$7:CA$560) -> 0 | Q41: TB | R41: 0.3 | S41: =R41*0.3333333333 -> 0.09999999999 | T41: =R41-S41 -> 0.2
B42: Avg 5 Year Ret / Std. Dev | C42: =AVERAGE('Custom Data'!AR7:AR560) -> 0.05103835838 | D42: =STDEV('Custom Data'!AR7:AR560) -> 0.02714306816 | E42: =AVERAGE('Custom Data'!CC7:CC560) -> 0.04114804959 | F42: =STDEV('Custom Data'!CC7:CC560) -> 0.01789263307 | G42: =COUNTIF('Custom Data'!AR$7:AR$560,">"&$C$36)/COUNTA('Custom Data'!AR$7:AR$560) -> 0 | Q42: CS-BND | R42: 0 | S42: =R42*0.3333333333 -> 0 | T42: =R42-S42 -> 0
B43: Lower / Upper Band | C43: =C42+(D42*-$H$37) -> -0.016819312 | D43: =C42+(D42*$H$37) -> 0.1188960288 | E43: =E42+(F42*-$H$37) -> -0.00358353308 | F43: =E42+(F42*$H$37) -> 0.08587963226 | G43: =COUNTIF('Custom Data'!CC$7:CC$560,">"&$C$36)/COUNTA('Custom Data'!CC$7:CC$560) -> 0 | Q43: TAB | R43: 0 | S43: =R43*0.8 -> 0 | T43: =R43*0.2 -> 0
B44: Avg 10 Year Ret / Std. Dev | C44: =AVERAGE('Custom Data'!AT7:AT560) -> 0.05249391396 | D44: =STDEV('Custom Data'!AT7:AT560) -> 0.0203030683 | E44: =AVERAGE('Custom Data'!CE7:CE560) -> 0.04195459105 | F44: =STDEV('Custom Data'!CE7:CE560) -> 0.01015051345 | G44: =COUNTIF('Custom Data'!AT$7:AT$560,">"&$C$36)/COUNTA('Custom Data'!AT$7:AT$560) -> 0 | I44: Dollar Cost Average Projections | Q44: DIA | R44: 0.5 | S44: =R44*0.1 -> 0.05 | T44: =R44*0.6 -> 0.3 | U44: =R44*0.3 -> 0.15
B45: Lower / Upper Band | C45: =C44+(D44*-$H$37) -> 0.001736243211 | D45: =C44+(D44*$H$37) -> 0.1032515847 | E45: =E44+(F44*-$H$37) -> 0.01657830744 | F45: =E44+(F44*$H$37) -> 0.06733087467 | G45: =COUNTIF('Custom Data'!CE$7:CE$560,">"&$C$36)/COUNTA('Custom Data'!CE$7:CE$560) -> 0 | I45: Initial Deposit | K45: =E4 -> 100000 | Q45: CS-INC | R45: 0 | S45: =R45*0.1 -> 0 | T45: =R45*0.6 -> 0 | U45: =R45*0.3 -> 0
B46: Worst / Best 5 Yr Return | C46: =MIN('Custom Data'!AR7:AR560) -> 0.01330039436 | D46: =MAX('Custom Data'!AR7:AR560) -> 0.1029709478 | E46: =MIN('Custom Data'!CC7:CC560) -> -0.000479887424 | F46: =MAX('Custom Data'!CC7:CC560) -> 0.09709105829 | I46: Deposit per Month | K46: =50000/12 -> 4166.666667 | Q46: DAA | R46: 0 | S46: =R46*0.05 -> 0 | T46: =R46*0.4 -> 0 | U46: =R46*0.4 -> 0 | V46: =R46*0.075 -> 0 | W46: =R46*0.075 -> 0
I47: Dep. Yrs | K47: 20 | Q47: DBA | R47: 0 | S47: =R47*0.05 -> 0 | T47: =R47*0.4 -> 0 | U47: =R47*0.4 -> 0 | V47: =R47*0.075 -> 0 | W47: =R47*0.075 -> 0
B48: Worksheet not for client distribution | I48: Lower Est. Ret/Value | K48: =C45 -> 0.001736243211 | L48: =FV(K48/12,K$47*12,-K$46,-E$4,0) -> 1121023.487 | Q48: AG-BAL | R48: 0 | T48: =R48*0.35 -> 0 | U48: =R48*0.3 -> 0 | V48: =R48*0.2 -> 0 | W48: =R48*0.1 -> 0 | X48: =R48*0.05 -> 0
B49: ILLUSTRATIVE PURPOSES ONLY | Past performance is not a guarantee of future results. Above allocations are a hypothetical blend of SEM's investment models assembled with the benefit of hindsight. Real-time results are likely to differ from the above due to several factors including future adjustments to the portfolio made due to the current market environment. Unless otherwise stated "Return" refers to the 15 year annualized return. Please see our more detailed disclaimer of the limitations & risks of this data. | I49: Middle Est. Ret/Value | K49: =C44 -> 0.05249391396 | L49: =FV(K49/12,K$47*12,-K$46,-E$4,0) -> 2047917.887 | Q49: CS-BAL | R49: 0 | T49: =R49*0.35 -> 0 | U49: =R49*0.3 -> 0 | V49: =R49*0.2 -> 0 | W49: =R49*0.1 -> 0 | X49: =R49*0.05 -> 0
I50: Upper Est. Ret/Value | K50: =D45 -> 0.1032515847 | L50: =FV(K50/12,K$47*12,-K$46,-E$4,0) -> 4082391.445 | Q50: AG-MOD | R50: 0 | T50: =R50*0.15 -> 0 | U50: =R50*0.45 -> 0 | V50: =R50*0.25 -> 0 | W50: =R50*0.1 -> 0 | X50: =R50*0.05 -> 0
I51: Calculations above are based on the hypothetical returns of the attached model portfolio. The lower, middle, and upper estimates are derived from the historic return stream. Actual results will likely vary. The purpose of the illustration is to show the benefits of dollar cost averaging with various rates of return. | Q51: EGA | R51: 0 | T51: =R51*0.2 -> 0 | U51: =R51*0.1 -> 0 | V51: =R51*0.4 -> 0 | W51: =R51*0.05 -> 0 | X51: =R51*0.25 -> 0
Q52: AG-GRW | R52: 0 | T52: =R52*0.1 -> 0 | U52: =R52*0.5 -> 0 | V52: =R52*0.15 -> 0 | W52: =R52*0.2 -> 0 | X52: =R52*0.05 -> 0
Q53: CS-GRW | R53: 0 | T53: =R53*0.1 -> 0 | U53: =R53*0.5 -> 0 | V53: =R53*0.15 -> 0 | W53: =R53*0.2 -> 0 | X53: =R53*0.05 -> 0
Q54: DAG | R54: 0 | S54: =R54*0.1 -> 0 | T54: =R54*0.1 -> 0 | U54: =R54*0.5 -> 0 | V54: =R54*0.1 -> 0 | W54: =R54*0.1 -> 0 | X54: =R54*0.1 -> 0
Q55: AG-MAX | R55: 0 | U55: =R55*0.45 -> 0 | V55: =R55*0.05 -> 0 | W55: =R55*0.35 -> 0 | X55: =R55*0.15 -> 0
Q56: CS-MAX | R56: 0 | U56: =R56*0.45 -> 0 | V56: =R56*0.05 -> 0 | W56: =R56*0.35 -> 0 | X56: =R56*0.15 -> 0
Q57: TOTAL | R57: =SUM(R39:R56) -> 1 | S57: 0.35 | T57: 0.5 | U57: 0.15 | V57: 0 | W57: 0 | X57: 0

Sheet PortfolioSummary
B1: =DataEntry!D1 -> v18 2024Q2 | C1: ='Fee Details-TotalFees'!C1 -> Joe & Jessica Demo IRAs | G1: Investment Amount: | H1: =IF('Fee Details-TotalFees'!H1="","",'Fee Details-TotalFees'!H1) -> 100000 | J1: Advisor Fee: | K1: Model1 | L1: Mod1% | M1: Model2 | N1: Mod2% | O1: Model3 | P1: Mod3% | Q1: Model4 | R1: Mod4% | S1: Model5 | T1: Mod5%
C2: Account#(s): | D2: =IF('Fee Details-TotalFees'!D2="","",'Fee Details-TotalFees'!D2) ->  | I2: =CONCATENATE(C1," SEM Portfolio") -> Joe & Jessica Demo IRAs SEM Portfolio | J2: Default | K2: =IF('Fee Details-TotalFees'!A11="","",'Fee Details-TotalFees'!A11) -> DIA | L2: =IF('Fee Details-TotalFees'!C11="","",ROUND('Fee Details-TotalFees'!C11,2)) -> 0.5 | M2: =IF('Fee Details-TotalFees'!A12="","",'Fee Details-TotalFees'!A12) -> TB | N2: =IF('Fee Details-TotalFees'!C12="","",ROUND('Fee Details-TotalFees'!C12,2)) -> 0.3 | O2: =IF('Fee Details-TotalFees'!A13="","",'Fee Details-TotalFees'!A13) -> INA | P2: =IF('Fee Details-TotalFees'!C13="","",ROUND('Fee Details-TotalFees'!C13,2)) -> 0.2 | Q2: =IF('Fee Details-TotalFees'!A14="","",'Fee Details-TotalFees'!A14) ->  | R2: =IF('Fee Details-TotalFees'!C14="","",ROUND('Fee Details-TotalFees'!C14,2)) ->  | S2: =IF('Fee Details-TotalFees'!A15="","",'Fee Details-TotalFees'!A15) ->  | T2: =IF('Fee Details-TotalFees'!C15="","",ROUND('Fee Details-TotalFees'!C15,2)) -> 
G4: SEM Portfolio vs. Benchmark | J4: Tactical | K4: =ROUND('Performance Details'!E5,2) -> 0.5 | L4: SEM Min. | M4: ='Performance Details'!J6 -> 0 | O4: Benchmark | P4: SEM | R4: Benchmark | S4: SEM
G5: 3 Year Annualized Ret | J5: Dynamic | K5: =ROUND('Performance Details'!I5,2) -> 0.5 | L5: Benchmark | M5: ='Performance Details'!M42/100 -> 0.3 | N5: Up% | O5: ='Performance Details'!M49 -> 0.244964067 | P5: ='Performance Details'!L49 -> 0.1604089506 | Q5: Return | R5: ='Performance Details'!M32 -> 0.04132401528 | S5: ='Performance Details'!L32 -> 0.03626933253
G6: ='Performance Details'!L29 -> 0.006628611626 | H6: ='Performance Details'!M29 -> 0.00164550353 | J6: Strategic | K6: =ROUND('Performance Details'!L5,2) -> 0 | L6: SEM Avg. | M6: =AVERAGE(M4,M7) -> 0.12 | N6: Down% | O6: =-'Performance Details'!M50 -> -0.2981295253 | P6: =-'Performance Details'!L50 -> -0.1549726591 | Q6: Risk | R6: =MIN('Performance Details'!M40:M41) -> -0.1765776693 | S6: =MIN('Performance Details'!L40:L41) -> -0.09090800214
G7: 5 Year Annualized Ret | L7: SEM Max | M7: =MAX('Performance Details'!L42/100,'Performance Details'!L6) -> 0.24
G8: ='Performance Details'!L30 -> 0.02413171827 | H8: ='Performance Details'!M30 -> 0.02225751549
G9: 10 Year Annualized Ret
G10: ='Performance Details'!L31 -> 0.02185256951 | H10: ='Performance Details'!M31 -> 0.02367579067
G11: 15 Year Annualized Ret
G12: ='Performance Details'!L32 -> 0.03626933253 | H12: ='Performance Details'!M32 -> 0.04132401528
G13: =_xlfn.CONCAT("SEM Risk Score: Tolerisk = ",DataEntry!C19," Riskalyze = ",DataEntry!D19," | StdDev = ",DataEntry!M17,"%") -> SEM Risk Score: Tolerisk = 24 Riskalyze = 31 | StdDev = 4.04%
G15: Dollars at Risk
G16: SEM Portfolio | H16: =H1*MIN(DataEntry!E19:F19) -> -9090.800214
G17: Benchmark | H17: =H1*(MIN(DataEntry!E20:F20)) -> -17657.76693
G18: S&P 500 | H18: =H1*(MIN(DataEntry!E21:F21)) -> -34617.66189
G19: Potential loss based on historical results multiplied by the estimated investment amount. Actual results may vary. For more see the disclaimer.
G23: =IF(DataEntry!P2=1,_xlfn.CONCAT("Custom Bmrk= ",DataEntry!G5," ",DataEntry!H5,DataEntry!H17," ",DataEntry!I5," ",DataEntry!J5,DataEntry!J17," ",DataEntry!K5," ",DataEntry!L5,DataEntry!L17," ",DataEntry!M5," ",DataEntry!N5,DataEntry!N17," ",DataEntry!O5," ",DataEntry!P5,DataEntry!P17),_xlfn.CONCAT("Benchmark = ",DataEntry!C20,"% Stocks / ",(100-DataEntry!C20)," % Bonds (w/no fees). For more info please see the DISCLAIMER")) -> Benchmark = 30% Stocks / 70 % Bonds (w/no fees). For more info please see the DISCLAIMER
A27: Portfolio Composition:
A28: =CONCATENATE((K4*100),"%"," ","Tactical:") -> 50% Tactical: | B28: Tactical models are monitored daily & deploy trading systems based on stock & bond market direction.
A29: =CONCATENATE((K5*100),"%"," ","Dynamic:") -> 50% Dynamic: | B29: Dynamic models are monitored monthly & utilize SEM's quantitative economic models.
A30: =CONCATENATE((K6*100),"%"," ","Strategic:") -> 0% Strategic: | B30: SEM's "strategic" portfolios have a quarterly rebalanced "core" with periodic adjustments to overall exposure.
A31: Investment Model Summary:
A32: Model / Alloc. | B32: Return / Risk | C32: Investment Objective | F32: Investment Strategy | J32: Model | K32: Alloc | L32: Return | M32: Risk | N32: Up% | O32: Down% | P32: 2008
A33: =IF(J33="","",CONCATENATE(J33,": ",(K33*100),"%")) -> DIA: 50% | B33: =IF(J33="","",CONCATENATE((L33*100),"%"," / ",(M33*100),"%")) -> 3.7% / -13.7% | C33: =IF($A33="","",VLOOKUP($J33,ModelList!$B:$AB,26,FALSE)) -> SEM’s Dynamic Income Allocation (DIA) program seeks to actively manage exposure to income generating assets. The DIA program deploys dynamic portfolio management which increases or decreases allocations to specific fixed income assets based on overall risk in the bond market. | F33: =IF($A33="","",VLOOKUP($J33,ModelList!$B:$AB,27,FALSE)) -> DIA utilizes an asset allocation model that seeks to adjust the income allocation based on the current portion of the economic and business cycle. Based on economic, market, and interest rate policy indicators, the model seeks to increase sensitivity to interest rates (duration) to take advantage of moves in the fixed income markets. | J33: =IF(K2="","",K2) -> DIA | K33: =IF(L2="","",L2) -> 0.5 | L33: =IF(J33="","",ROUND(HLOOKUP($J33,'Data-Gross'!$C$2:$AAI$8,3,FALSE),3)) -> 0.037 | M33: =IF(J33="","",ROUND(HLOOKUP($J33,'Data-Gross'!$C$2:$AAI$8,4,FALSE),3)) -> -0.137 | N33: =IF(J33="","",ROUND(HLOOKUP($J33,'Data-Gross'!$C$2:$AAI$8,5,FALSE),3)) -> 0.334 | O33: =IF(J33="","",ROUND(HLOOKUP($J33,'Data-Gross'!$C$2:$AAI$8,6,FALSE),3)) -> 0.095 | P33: =IF(J33="","",ROUND(HLOOKUP($J33,'Data-Gross'!$C$2:$DW$8,7,FALSE),3)) -> 0.112
A34: =IF(J34="","",CONCATENATE(J34,": ",(K34*100),"%")) -> TB: 30% | B34: =IF(J34="","",CONCATENATE((L34*100),"%"," / ",(M34*100),"%")) -> 3.7% / -13% | C34: =IF($A34="","",VLOOKUP($J34,ModelList!$B:$AB,26,FALSE)) -> SEM's Tactical Bond (TB) is a conservative investment program that seeks to provide lower volatility and a rate of return equal to or higher than a passive allocation of 50% High Yield Bond and 50% Short-Term Government Bond mutual funds. | F34: =IF($A34="","",VLOOKUP($J34,ModelList!$B:$AB,27,FALSE)) -> TB attempts to invest in High Yield Bonds when they are in an uptrend. Ideally this strategy will move assets into government bonds or money market during declines with the goal of avoiding large losses. Tactical Bond utilizes only the high yield bond trend following strategy that is a portion of Income Allocator. When not invested in high yields, TB will utilize short-term bonds or money market funds. | J34: =IF(M2="","",M2) -> TB | K34: =IF(N2="","",N2) -> 0.3 | L34: =IF(J34="","",ROUND(HLOOKUP($J34,'Data-Gross'!$C$2:$AAI$8,3,FALSE),3)) -> 0.037 | M34: =IF(J34="","",ROUND(HLOOKUP($J34,'Data-Gross'!$C$2:$AAI$8,4,FALSE),3)) -> -0.13 | N34: =IF(J34="","",ROUND(HLOOKUP($J34,'Data-Gross'!$C$2:$AAI$8,5,FALSE),3)) -> 0.32 | O34: =IF(J34="","",ROUND(HLOOKUP($J34,'Data-Gross'!$C$2:$AAI$8,6,FALSE),3)) -> 0.024 | P34: =IF(J34="","",ROUND(HLOOKUP($J34,'Data-Gross'!$C$2:$DW$8,7,FALSE),3)) -> 0.015
A35: INA: 20% | B35: 3.5% / -11.6% | C35: =IF($A35="","",VLOOKUP($J35,ModelList!$B:$AB,26,FALSE)) -> SEM's Income Allocator (INA) seeks to provide lower volatility with a rate of return equal to or better than a passive bond fund allocation. Recommended for accounts with a two-year or greater time horizon. | F35: =IF($A35="","",VLOOKUP($J35,ModelList!$B:$AB,27,FALSE)) -> INA combines active bond fund trading systems. Ideally each trading system moves assets into a money market or government bond fund during market declines. The goal of an active trading system is to reduce risk without sacrificing long-term performance. The advantage of combining risk management strategies is added diversification with the potential for lower short-term losses. | J35: =IF(O2="","",O2) -> INA | K35: =IF(P2="","",P2) -> 0.2 | L35: =IF(J35="","",ROUND(HLOOKUP($J35,'Data-Gross'!$C$2:$AAI$8,3,FALSE),3)) -> 0.035 | M35: =IF(J35="","",ROUND(HLOOKUP($J35,'Data-Gross'!$C$2:$AAI$8,4,FALSE),3)) -> -0.116 | N35: =IF(J35="","",ROUND(HLOOKUP($J35,'Data-Gross'!$C$2:$AAI$8,5,FALSE),3)) -> 0.302 | O35: =IF(J35="","",ROUND(HLOOKUP($J35,'Data-Gross'!$C$2:$AAI$8,6,FALSE),3)) -> 0.021 | P35: =IF(J35="","",ROUND(HLOOKUP($J35,'Data-Gross'!$C$2:$DW$8,7,FALSE),3)) -> -0.026
C36: =IF($A36="","",VLOOKUP($J36,ModelList!$B:$AB,26,FALSE)) ->  | F36: =IF($A36="","",VLOOKUP($J36,ModelList!$B:$AB,27,FALSE)) ->  | J36: =IF(Q2="","",Q2) ->  | K36: =R2 ->  | L36: =IF(J36="","",ROUND(HLOOKUP($J36,'Data-Gross'!$C$2:$AAI$8,3,FALSE),3)) ->  | M36: =IF(J36="","",ROUND(HLOOKUP($J36,'Data-Gross'!$C$2:$AAI$8,4,FALSE),3)) ->  | N36: =IF(J36="","",ROUND(HLOOKUP($J36,'Data-Gross'!$C$2:$AAI$8,5,FALSE),3)) ->  | O36: =IF(J36="","",ROUND(HLOOKUP($J36,'Data-Gross'!$C$2:$AAI$8,6,FALSE),3)) ->  | P36: =IF(J36="","",ROUND(HLOOKUP($J36,'Data-Gross'!$C$2:$DW$8,7,FALSE),3)) -> 
C37: =IF($A37="","",VLOOKUP($J37,ModelList!$B:$AB,26,FALSE)) ->  | F37: =IF($A37="","",VLOOKUP($J37,ModelList!$B:$AB,27,FALSE)) ->  | J37: =IF(S2="","",S2) ->  | K37: =T2 ->  | L37: =IF(J37="","",ROUND(HLOOKUP($J37,'Data-Gross'!$C$2:$AAI$8,3,FALSE),3)) ->  | M37: =IF(J37="","",ROUND(HLOOKUP($J37,'Data-Gross'!$C$2:$AAI$8,4,FALSE),3)) ->  | N37: =IF(J37="","",ROUND(HLOOKUP($J37,'Data-Gross'!$C$2:$AAI$8,5,FALSE),3)) ->  | O37: =IF(J37="","",ROUND(HLOOKUP($J37,'Data-Gross'!$C$2:$AAI$8,6,FALSE),3)) ->  | P37: =IF(J37="","",ROUND(HLOOKUP($J37,'Data-Gross'!$C$2:$DW$8,7,FALSE),3)) -> 
A38: ILLUSTRATIVE PURPOSES ONLY | Past performance is not a guarantee of future results. Above allocations are a hypothetical blend of SEM's investment models assembled with the benefit of hindsight. Real-time results are likely to differ from the above due to several factors including future adjustments to the portfolio made due to the current market environment. Unless otherwise stated "Return" refers to the 15 year annualized return. The next page includes a more detailed disclaimer of the limitations & risks of this data. If more than 5 models are used in the allocation, see the Portfolio Summary for the full list.

Sheet PortfolioOverview-Geneos (hidden)
B1: =DataEntry!D1 -> v18 2024Q2 | C1: ='Fee Details-TotalFees'!C1 -> Joe & Jessica Demo IRAs | G1: Investment Amount: | H1: =IF('Fee Details-TotalFees'!H1="","",'Fee Details-TotalFees'!H1) -> 100000 | J1: Advisor Fee: | K1: Model1 | L1: Mod1% | M1: Model2 | N1: Mod2% | O1: Model3 | P1: Mod3% | Q1: Model4 | R1: Mod4% | S1: Model5 | T1: Mod5%
D2: Benchmark Portfolio: | F2: =CONCATENATE("Total Stock Market = ",M5*100,"%") -> Total Stock Market = 30% | H2: =CONCATENATE("MultiSector Bonds = ",(1-M5)*100,"%") -> MultiSector Bonds = 70% | I2: =CONCATENATE(C1," SEM Portfolio") -> Joe & Jessica Demo IRAs SEM Portfolio | J2: Default | K2: =IF('Fee Details-TotalFees'!A11="","",'Fee Details-TotalFees'!A11) -> DIA | L2: =IF('Fee Details-TotalFees'!C11="","",ROUND('Fee Details-TotalFees'!C11,2)) -> 0.5 | M2: =IF('Fee Details-TotalFees'!A12="","",'Fee Details-TotalFees'!A12) -> TB | N2: =IF('Fee Details-TotalFees'!C12="","",ROUND('Fee Details-TotalFees'!C12,2)) -> 0.3 | O2: =IF('Fee Details-TotalFees'!A13="","",'Fee Details-TotalFees'!A13) -> INA | P2: =IF('Fee Details-TotalFees'!C13="","",ROUND('Fee Details-TotalFees'!C13,2)) -> 0.2 | Q2: =IF('Fee Details-TotalFees'!A14="","",'Fee Details-TotalFees'!A14) ->  | R2: =IF('Fee Details-TotalFees'!C14="","",ROUND('Fee Details-TotalFees'!C14,2)) ->  | S2: =IF('Fee Details-TotalFees'!A15="","",'Fee Details-TotalFees'!A15) ->  | T2: =IF('Fee Details-TotalFees'!C15="","",ROUND('Fee Details-TotalFees'!C15,2)) -> 
A3: Using the results of your Risk & Objective Questionnaire, SEM recommends the following model allocations as a starting point.
G4: Based on past markets…... | J4: Tactical | K4: =ROUND('Performance Details'!E5,2) -> 0.5 | L4: SEM Min. | M4: ='Performance Details'!J6 -> 0 | O4: Benchmark | P4: SEM Model | R4: SEM Model | S4: Benchmark | T4: S&P 500
G5: your potential $$ at risk are: | J5: Dynamic | K5: =ROUND('Performance Details'!I5,2) -> 0.5 | L5: Benchmark | M5: ='Performance Details'!M42/100 -> 0.3 | N5: Up% | O5: ='Performance Details'!M49 -> 0.244964067 | P5: ='Performance Details'!L49 -> 0.1604089506 | Q5: Return | R5: ='Performance Details'!L32 -> 0.03626933253 | S5: ='Performance Details'!M32 -> 0.04132401528 | T5: ='Performance Details'!N32 -> 0.1482154025
G6: SEM Model | H6: =H1*MIN(DataEntry!E19:F19) -> -9090.800214 | J6: Strategic | K6: =ROUND('Performance Details'!L5,2) -> 0 | L6: SEM Avg. | M6: ='Performance Details'!L42/100 -> 0.24 | N6: Down% | O6: =-'Performance Details'!M50 -> -0.2981295253 | P6: =-'Performance Details'!L50 -> -0.1549726591 | Q6: Risk | R6: =MIN('Performance Details'!L40:L41) -> -0.09090800214 | S6: =MIN('Performance Details'!M40:M41) -> -0.1765776693 | T6: ='Performance Details'!N40 -> -0.3347636095
G7: Benchmark | H7: =H1*(MIN(DataEntry!E20:F20)) -> -17657.76693 | L7: SEM Max | M7: ='Performance Details'!L6 -> 0.23
G8: S&P 500 | H8: =H1*(MIN(DataEntry!E21:F21)) -> -34617.66189
G9: The potential loss above is based on historical model results multiplied by the estimated investment amount. Actual results may vary and exceed the model results above. For more see the disclaimer.
A18: Benchmark Portfolio was selected to match the target asset allocation based on the blend of SEM models selected.
A19: Note: SEM's goal is to provide a portfolio designed to meet the overall risk tolerance of the client using a variety of trading systems, tools, and investment vehicles. To do this we have created a wide-range of models with different return/risk objectives. Every trading system and model is quantitatively based with no subjective inputs from the portfolio managers. The goal is to provide more consistent exposure to the above asset classes with the ability to move some of the money to the sidelines automatically based on the design of the individual model. For more information about the model construction, the real-time versus back-tested track record of each, and the risks involved with an active, quantitative investment, go to SEMWealth.com/Programs and click on the individual model.
A27: Portfolio Composition:
A28: =CONCATENATE((K4*100),"%"," ","Tactical:") -> 50% Tactical: | B28: Tactical models are monitored daily & deploy trading systems based on stock & bond market direction.
A29: =CONCATENATE((K5*100),"%"," ","Dynamic:") -> 50% Dynamic: | B29: Dynamic models are monitored monthly & utilize SEM's quantitative economic models.
A30: =CONCATENATE((K6*100),"%"," ","Strategic:") -> 0% Strategic: | B30: SEM's "strategic" portfolios are managed quarterly & are designed to rotate to the strongest asset classes.
A31: Investment Model Summary [Model Real-time Inception in ()]:
A32: Model / Alloc. | B32: Up/Down Cap. | C32: Investment Objective | F32: Investment Strategy | J32: Model | K32: Alloc | L32: Return | M32: Risk | N32: Up% | O32: Down% | P32: 2008 | Q32: Inception
A33: =IF(J33="","",CONCATENATE(J33,": ",(K33*100),"% (",Q33,")")) -> DIA: 50% (2016) | B33: =IF(J33="","",CONCATENATE((N33*100),"%"," / ",(O33*100),"%")) -> 33% / 10% | C33: =IF($A33="","",VLOOKUP($J33,ModelList!$B:$AB,26,FALSE)) -> SEM’s Dynamic Income Allocation (DIA) program seeks to actively manage exposure to income generating assets. The DIA program deploys dynamic portfolio management which increases or decreases allocations to specific fixed income assets based on overall risk in the bond market. | F33: =IF($A33="","",VLOOKUP($J33,ModelList!$B:$AB,27,FALSE)) -> DIA utilizes an asset allocation model that seeks to adjust the income allocation based on the current portion of the economic and business cycle. Based on economic, market, and interest rate policy indicators, the model seeks to increase sensitivity to interest rates (duration) to take advantage of moves in the fixed income markets. | J33: =IF(K2="","",K2) -> DIA | K33: =IF(L2="","",L2) -> 0.5 | L33: =IF(J33="","",ROUND(HLOOKUP($J33,'Data-Gross'!$C$2:$DW$8,3,FALSE),3)) -> 0.037 | M33: =IF(J33="","",ROUND(HLOOKUP($J33,'Data-Gross'!$C$2:$DW$8,4,FALSE),3)) -> -0.137 | N33: =IF(J33="","",ROUND(HLOOKUP($J33,'Data-Gross'!$C$2:$DW$8,5,FALSE),2)) -> 0.33 | O33: =IF(J33="","",ROUND(HLOOKUP($J33,'Data-Gross'!$C$2:$DW$8,6,FALSE),2)) -> 0.1 | P33: =IF(J33="","",ROUND(HLOOKUP($J33,'Data-Gross'!$C$2:$DW$8,7,FALSE),3)) -> 0.112 | Q33: =VLOOKUP(J33,ModelList!$B:$T,19,FALSE) -> 2016
A34: =IF(J34="","",CONCATENATE(J34,": ",(K34*100),"% (",Q34,")")) -> TB: 30% (2001) | B34: =IF(J34="","",CONCATENATE((N34*100),"%"," / ",(O34*100),"%")) -> 32% / 2% | C34: =IF($A34="","",VLOOKUP($J34,ModelList!$B:$AB,26,FALSE)) -> SEM's Tactical Bond (TB) is a conservative investment program that seeks to provide lower volatility and a rate of return equal to or higher than a passive allocation of 50% High Yield Bond and 50% Short-Term Government Bond mutual funds. | F34: =IF($A34="","",VLOOKUP($J34,ModelList!$B:$AB,27,FALSE)) -> TB attempts to invest in High Yield Bonds when they are in an uptrend. Ideally this strategy will move assets into government bonds or money market during declines with the goal of avoiding large losses. Tactical Bond utilizes only the high yield bond trend following strategy that is a portion of Income Allocator. When not invested in high yields, TB will utilize short-term bonds or money market funds. | J34: =IF(M2="","",M2) -> TB | K34: =IF(N2="","",N2) -> 0.3 | L34: =IF(J34="","",ROUND(HLOOKUP($J34,'Data-Gross'!$C$2:$DW$8,3,FALSE),3)) -> 0.037 | M34: =IF(J34="","",ROUND(HLOOKUP($J34,'Data-Gross'!$C$2:$DW$8,4,FALSE),3)) -> -0.13 | N34: =IF(J34="","",ROUND(HLOOKUP($J34,'Data-Gross'!$C$2:$DW$8,5,FALSE),2)) -> 0.32 | O34: =IF(J34="","",ROUND(HLOOKUP($J34,'Data-Gross'!$C$2:$DW$8,6,FALSE),2)) -> 0.02 | P34: =IF(J34="","",ROUND(HLOOKUP($J34,'Data-Gross'!$C$2:$DW$8,7,FALSE),3)) -> 0.015 | Q34: =VLOOKUP(J34,ModelList!$B:$T,19,FALSE) -> 2001
A35: =IF(J35="","",CONCATENATE(J35,": ",(K35*100),"% (",Q35,")")) -> INA: 20% (1992) | B35: =IF(J35="","",CONCATENATE((N35*100),"%"," / ",(O35*100),"%")) -> 30% / 2% | C35: =IF($A35="","",VLOOKUP($J35,ModelList!$B:$AB,26,FALSE)) -> SEM's Income Allocator (INA) seeks to provide lower volatility with a rate of return equal to or better than a passive bond fund allocation. Recommended for accounts with a two-year or greater time horizon. | F35: =IF($A35="","",VLOOKUP($J35,ModelList!$B:$AB,27,FALSE)) -> INA combines active bond fund trading systems. Ideally each trading system moves assets into a money market or government bond fund during market declines. The goal of an active trading system is to reduce risk without sacrificing long-term performance. The advantage of combining risk management strategies is added diversification with the potential for lower short-term losses. | J35: =IF(O2="","",O2) -> INA | K35: =IF(P2="","",P2) -> 0.2 | L35: =IF(J35="","",ROUND(HLOOKUP($J35,'Data-Gross'!$C$2:$DW$8,3,FALSE),3)) -> 0.035 | M35: =IF(J35="","",ROUND(HLOOKUP($J35,'Data-Gross'!$C$2:$DW$8,4,FALSE),3)) -> -0.116 | N35: =IF(J35="","",ROUND(HLOOKUP($J35,'Data-Gross'!$C$2:$DW$8,5,FALSE),2)) -> 0.3 | O35: =IF(J35="","",ROUND(HLOOKUP($J35,'Data-Gross'!$C$2:$DW$8,6,FALSE),2)) -> 0.02 | P35: =IF(J35="","",ROUND(HLOOKUP($J35,'Data-Gross'!$C$2:$DW$8,7,FALSE),3)) -> -0.026 | Q35: =VLOOKUP(J35,ModelList!$B:$T,19,FALSE) -> 1992
A36: =IF(J36="","",CONCATENATE(J36,": ",(K36*100),"% (",Q36,")")) ->  | B36: =IF(J36="","",CONCATENATE((N36*100),"%"," / ",(O36*100),"%")) ->  | C36: =IF($A36="","",VLOOKUP($J36,ModelList!$B:$AB,26,FALSE)) ->  | F36: =IF($A36="","",VLOOKUP($J36,ModelList!$B:$AB,27,FALSE)) ->  | J36: =IF(Q2="","",Q2) ->  | K36: =R2 ->  | L36: =IF(J36="","",ROUND(HLOOKUP($J36,'Data-Gross'!$C$2:$DW$8,3,FALSE),3)) ->  | M36: =IF(J36="","",ROUND(HLOOKUP($J36,'Data-Gross'!$C$2:$DW$8,4,FALSE),3)) ->  | N36: =IF(J36="","",ROUND(HLOOKUP($J36,'Data-Gross'!$C$2:$DW$8,5,FALSE),2)) ->  | O36: =IF(J36="","",ROUND(HLOOKUP($J36,'Data-Gross'!$C$2:$DW$8,6,FALSE),2)) ->  | P36: =IF(J36="","",ROUND(HLOOKUP($J36,'Data-Gross'!$C$2:$DW$8,7,FALSE),3)) ->  | Q36: =VLOOKUP(J36,ModelList!$B:$T,19,FALSE) -> 
A37: =IF(J37="","",CONCATENATE(J37,": ",(K37*100),"% (",Q37,")")) ->  | B37: =IF(J37="","",CONCATENATE((N37*100),"%"," / ",(O37*100),"%")) ->  | C37: =IF($A37="","",VLOOKUP($J37,ModelList!$B:$AB,26,FALSE)) ->  | F37: =IF($A37="","",VLOOKUP($J37,ModelList!$B:$AB,27,FALSE)) ->  | J37: =IF(S2="","",S2) ->  | K37: =T2 ->  | L37: =IF(J37="","",ROUND(HLOOKUP($J37,'Data-Gross'!$C$2:$DW$8,3,FALSE),3)) ->  | M37: =IF(J37="","",ROUND(HLOOKUP($J37,'Data-Gross'!$C$2:$DW$8,4,FALSE),3)) ->  | N37: =IF(J37="","",ROUND(HLOOKUP($J37,'Data-Gross'!$C$2:$DW$8,5,FALSE),2)) ->  | O37: =IF(J37="","",ROUND(HLOOKUP($J37,'Data-Gross'!$C$2:$DW$8,6,FALSE),2)) ->  | P37: =IF(J37="","",ROUND(HLOOKUP($J37,'Data-Gross'!$C$2:$DW$8,7,FALSE),3)) ->  | Q37: =VLOOKUP(J37,ModelList!$B:$T,19,FALSE) -> 
A38: Estimated Annual Fees | C38: SEM | D38: Advisor | E38: E*Trade | F38: Total Fees | G38: Est. Investment: | H38: =H1 -> 100000
B39: $ Amount | C39: ='Fee Details-TotalFees'!E21 -> 935 | D39: ='Fee Details-TotalFees'!F21 -> 1000 | E39: ='Fee Details-TotalFees'!G21 -> 120 | F39: ='Fee Details-TotalFees'!I21 -> 2940 | G39: Estimated fees are based on the invetment amount entered above. Lower investment amounts may result in higher fees.
B40: Annual % | C40: ='Fee Details-TotalFees'!E22 -> 0.00935 | D40: ='Fee Details-TotalFees'!F22 -> 0.01 | E40: ='Fee Details-TotalFees'!G22 -> 0.0012 | F40: ='Fee Details-TotalFees'!I22 -> 0.0294
A41: ILLUSTRATIVE PURPOSES ONLY | Past performance is not a guarantee of future results. Above allocations are a hypothetical blend of SEM's investment models assembled with the benefit of hindsight. Real-time results are likely to differ from the above due to several factors including future adjustments to the portfolio made due to the current market environment. The next page includes a more detailed disclaimer of the limitations & risks of this data along with the start date of each model.

Sheet Performance Details
N1: ='Fee Details-TotalFees'!J2 -> Joe & Jessica Demo IRAs SEM Portfolio | R1: Buy & Hold Alloc:
A2: Scientifically Engineered Models | N2: SEM Custom Portfolio Report | R2: S&P 500 | S2: 0
A3: =DataEntry!D1 -> v18 2024Q2 | N3: 45473 | R3: MS Bonds | S3: 0
A5: Hypothetical | D5: Tactical: | E5: =SUM('FeeDetails-Expanded'!Q11:Q20) -> 0.5 | H5: Dynamic: | I5: =SUM('FeeDetails-Expanded'!R11:R20) -> 0.5 | K5: Strategic: | L5: =SUM('FeeDetails-Expanded'!S11:S20) -> 0 | M5: Est.Exp.Ratio^: | N5: ='Fee Details'!H9 -> 0.00885 | P5: This page contains detailed portfolio performance data. All information is populated from the portfolio summary page
A6: Portfolio Combination Results | H6: Stock Exposure*: | I6: Min = | J6: =SUM('FeeDetails-Expanded'!O11:O20) -> 0 | K6: Max = | L6: =SUM('FeeDetails-Expanded'!P11:P20) -> 0.23 | M6: Total Fee: | N6: ='FeeDetails-Expanded'!$H$22 -> 0.02055 | R6: Years | S6: Month | T6: Day | U6: Year
Q7: Current: | R7: 0 | S7: =MONTH(N3) -> 6 | T7: =DAY(N3) -> 30 | U7: =YEAR(N3) -> 2024 | V7: =DATE(U7,S7,T7) -> 45473
C8: Portfolio End Value* | G8: Benchmark Value*
C9: ='Fee Details'!G$25 -> 321335.3651 | G9: ='Fee Details'!G$32 -> 256048.4644 | Q9: Past Date | R9: 15 | S9: =S7 -> 6 | T9: =T7 -> 30 | U9: =U7-R9 -> 2009 | V9: =DATE(U9,S9,T9) -> 39994
C10: Dollars at Risk: | G10: Dollars at Risk: | R10: SEM | S10: Benchmark | T10: S&P 500
C11: =PortfolioSummary!H$16 -> -9090.800214 | G11: =PortfolioSummary!H$17 -> -17657.76693 | Q11: Value: | R11: =VLOOKUP($V9,'Custom Data'!$A$7:$BZ$488,38) -> 188308.0293 | S11: =VLOOKUP($V9,'Custom Data'!$A$7:$BZ$488,75) -> 139487.0568 | T11: =VLOOKUP($V9,'Custom Data'!$A$7:$EW$488,112) -> 74156.24016
Q12: Total Return | R12: =(Q24/R11)-1 -> 0.7064347508 | S12: =(R24/S11)-1 -> 0.8356431786 | T12: =(S24/T11)-1 -> 6.949696069
Q13: Anlzd Return | R13: =((R12+1)^(1/$R$9))-1 -> 0.03626933253 | S13: =((S12+1)^(1/$R$9))-1 -> 0.04132401528 | T13: =((T12+1)^(1/$R$9))-1 -> 0.1482154025
Q14: Slope | R14: Intercept
P15: Riskalyze | Q15: =RiskAlyzeMatrix!$F$1 -> -353.2906376 | R15: =RiskAlyzeMatrix!$G$1 -> 14.864673 | S15: <<Convert Risk to Riskalyze
P16: Tolerisk (1) | Q16: =SLOPE(ToleriskMatrix!D9:D19,ToleriskMatrix!A9:A19) -> -0.5154301438 | R16: =INTERCEPT(ToleriskMatrix!D9:D19,ToleriskMatrix!A9:A19) -> -0.01361100234 | S16: <<Convert Tolerisk to Risk
P17: Tolerisk (2) | Q17: =ToleriskMatrix!C3 -> 6.193776944 | R17: =ToleriskMatrix!C2 -> -0.005703767738 | S17: <<Convert Standard Dev to Tolerisk
P18: Tolerisk (3) | Q18: =SLOPE(ToleriskMatrix!B9:B19,ToleriskMatrix!A9:A19) -> 49.63636364 | R18: =INTERCEPT(ToleriskMatrix!B9:B19,ToleriskMatrix!A9:A19) -> 27.27272727 | S18: <<Convert Tolerisk to Riskalzye
P19: MVaR | Q19: Riskalyze | R19: Tolerisk Score | S19: Risk Est. | T19: StdDev
P20: =L41 -> -0.09090800214 | Q20: =ROUND((P20/2)*$Q$15+$R$15,0) -> 31 | R20: =ROUND(($R$17+($T20*Q$17))*100,0) -> 24 | S20: =((R20/100)*$R$18)+$Q$18 -> 56.18181818 | T20: =L39 -> 0.04042836691
C21: *Results are hypothetical model results; Please see disclaimer for limitations of this data. | P21: =M41 -> -0.1315474626 | Q21: =ROUND((P21/2)*$Q$15+$R$15,0) -> 38 | R21: =ROUND(($R$17+($T21*Q$17))*100,0) -> 30 | S21: =((R21/100)*$R$18)+$Q$18 -> 57.81818182 | T21: =M39 -> 0.04875129708
P22: =N41 -> -0.3461766189 | Q22: =ROUND((P22/2)*$Q$15+$R$15,0) -> 76 | R22: =ROUND(($R$17+($T22*Q$17))*100,0) -> 90 | S22: =((R22/100)*$R$18)+$Q$18 -> 74.18181818 | T22: =N39 -> 0.1467649944
Q23: SEM | R23: Benchmark | S23: S&P
P24: Value: | Q24: =VLOOKUP($N$3,'Custom Data'!$A$7:$FA$443,38,FALSE) -> 321335.3651 | R24: =VLOOKUP($N$3,'Custom Data'!$A$7:$FA$443,75,FALSE) -> 256048.4644 | S24: =VLOOKUP($N$3,'Custom Data'!$A$7:$FA$443,112,FALSE) -> 589519.5709
A25: =PortfolioSummary!G23 -> Benchmark = 30% Stocks / 70 % Bonds (w/no fees). For more info please see the DISCLAIMER
A26: Quarterly Results | G26: Return by Year | J26: Annualized Returns | P26: =DATE((U7-1),12,31) -> 45291 | Q26: =VLOOKUP($P$26,'Custom Data'!$A$7:$FB$503,38,FALSE) -> 317560.3532 | R26: =VLOOKUP($P$26,'Custom Data'!$A$7:$FB$503,75,FALSE) -> 250530.8333 | S26: =VLOOKUP($P$26,'Custom Data'!$A$7:$FB$503,112,FALSE) -> 511275.1631
A27: Year | B27: Q1 | C27: Q2 | D27: Q3 | E27: Q4 | G27: SEM | H27: Benchmark | I27: S&P 500 | J27: Period | L27: SEM | M27: =H27 -> Benchmark | N27: =I27 -> S&P 500 | P27: YTD Return | Q27: =(Q24/Q26)-1 -> 0.01188754143 | R27: =(R24/R26)-1 -> 0.02202376058 | S27: =(S24/S26)-1 -> 0.1530377642
A28: 2000 | B28: =VLOOKUP(P28,'Custom Data'!$A$6:$FA$364,39,FALSE)*100 -> 1.996808868 | C28: =VLOOKUP(Q28,'Custom Data'!$A$6:$FA$364,39,FALSE)*100 -> 0.4716410161 | D28: =VLOOKUP(R28,'Custom Data'!$A$6:$FA$364,39,FALSE)*100 -> 2.28291283 | E28: =VLOOKUP(S28,'Custom Data'!$A$6:$FA$364,39,FALSE)*100 -> 1.040947276 | G28: =VLOOKUP(S28,'Custom Data'!$A$6:$FA$68,40,FALSE) -> 0.05908441372 | H28: =VLOOKUP($S28,'Custom Data'!$A$7:$FA$943,77,FALSE) -> 0.02091835018 | I28: =VLOOKUP($S28,'Custom Data'!$A$7:$FA$943,114,FALSE) -> -0.09087331821 | J28: 1 Year | L28: =VLOOKUP($N$3,'Custom Data'!$A$7:$FA$443,40,FALSE) -> 0.07188359369 | M28: =VLOOKUP($N$3,'Custom Data'!$A$7:$FA$443,77,FALSE) -> 0.06939602 | N28: =VLOOKUP($N$3,'Custom Data'!$A$7:$FA$443,114,FALSE) -> 0.2456260108 | P28: 36616 | Q28: 36707 | R28: 36799 | S28: 36891 | U28: =IF(G28>I28,"x","") -> x
A29: 2001 | B29: =VLOOKUP(P29,'Custom Data'!$A$6:$FA$364,39,FALSE)*100 -> 4.3827931 | C29: =VLOOKUP(Q29,'Custom Data'!$A$6:$FA$364,39,FALSE)*100 -> 0.6120285343 | D29: =VLOOKUP(R29,'Custom Data'!$A$6:$FA$364,39,FALSE)*100 -> 0.4584108063 | E29: =VLOOKUP(S29,'Custom Data'!$A$6:$FA$364,39,FALSE)*100 -> 0.7783871625 | G29: =VLOOKUP(S29,'Custom Data'!$A$6:$FA$68,40,FALSE) -> 0.06324298552 | H29: =VLOOKUP($S29,'Custom Data'!$A$7:$FA$943,77,FALSE) -> 0.03463723258 | I29: =VLOOKUP($S29,'Custom Data'!$A$7:$FA$943,114,FALSE) -> -0.1188267462 | J29: 3 Year | L29: =VLOOKUP($N$3,'Custom Data'!$A$7:$FA$443,42,FALSE) -> 0.006628611626 | M29: =VLOOKUP($N$3,'Custom Data'!$A$7:$FA$443,79,FALSE) -> 0.00164550353 | N29: =VLOOKUP($N$3,'Custom Data'!$A$7:$FA$443,116,FALSE) -> 0.10020355 | P29: 36981 | Q29: 37072 | R29: 37164 | S29: 37256 | U29: x
A30: 2002 | B30: =VLOOKUP(P30,'Custom Data'!$A$6:$FA$364,39,FALSE)*100 -> 1.700041351 | C30: =VLOOKUP(Q30,'Custom Data'!$A$6:$FA$364,39,FALSE)*100 -> -2.137714792 | D30: =VLOOKUP(R30,'Custom Data'!$A$6:$FA$364,39,FALSE)*100 -> -5.139897679 | E30: =VLOOKUP(S30,'Custom Data'!$A$6:$FA$364,39,FALSE)*100 -> 4.390816989 | G30: =VLOOKUP(S30,'Custom Data'!$A$6:$FA$68,40,FALSE) -> -0.01444159134 | H30: =VLOOKUP($S30,'Custom Data'!$A$7:$FA$943,77,FALSE) -> 0.03668171499 | I30: =VLOOKUP($S30,'Custom Data'!$A$7:$FA$943,114,FALSE) -> -0.2209786042 | J30: 5 Year | L30: =VLOOKUP($N$3,'Custom Data'!$A$7:$FA$443,44,FALSE) -> 0.02413171827 | M30: =VLOOKUP($N$3,'Custom Data'!$A$7:$FA$443,81,FALSE) -> 0.02225751549 | N30: =VLOOKUP($N$3,'Custom Data'!$A$7:$FA$443,118,FALSE) -> 0.15053866 | P30: 37346 | Q30: 37437 | R30: 37529 | S30: 37621 | U30: x
A31: 2003 | B31: =VLOOKUP(P31,'Custom Data'!$A$6:$FA$364,39,FALSE)*100 -> 2.682928877 | C31: =VLOOKUP(Q31,'Custom Data'!$A$6:$FA$364,39,FALSE)*100 -> 6.892234423 | D31: =VLOOKUP(R31,'Custom Data'!$A$6:$FA$364,39,FALSE)*100 -> 2.49600767 | E31: =VLOOKUP(S31,'Custom Data'!$A$6:$FA$364,39,FALSE)*100 -> 6.742275231 | G31: =VLOOKUP(S31,'Custom Data'!$A$6:$FA$68,40,FALSE) -> 0.2008473619 | H31: =VLOOKUP($S31,'Custom Data'!$A$7:$FA$943,77,FALSE) -> 0.1262515641 | I31: =VLOOKUP($S31,'Custom Data'!$A$7:$FA$943,114,FALSE) -> 0.2869071385 | J31: 10 Year | L31: =VLOOKUP($N$3,'Custom Data'!$A$7:$FA$443,46,FALSE) -> 0.02185256951 | M31: =VLOOKUP($N$3,'Custom Data'!$A$7:$FA$443,83,FALSE) -> 0.02367579067 | N31: =VLOOKUP($N$3,'Custom Data'!$A$7:$FA$443,120,FALSE) -> 0.1286801584 | P31: 37711 | Q31: 37802 | R31: 37894 | S31: 37986
A32: 2004 | B32: =VLOOKUP(P32,'Custom Data'!$A$6:$FA$364,39,FALSE)*100 -> 0.842829028 | C32: =VLOOKUP(Q32,'Custom Data'!$A$6:$FA$364,39,FALSE)*100 -> -0.7744159182 | D32: =VLOOKUP(R32,'Custom Data'!$A$6:$FA$364,39,FALSE)*100 -> 1.336661049 | E32: =VLOOKUP(S32,'Custom Data'!$A$6:$FA$364,39,FALSE)*100 -> 3.949379079 | G32: =VLOOKUP(S32,'Custom Data'!$A$6:$FA$68,40,FALSE) -> 0.05404020041 | H32: =VLOOKUP($S32,'Custom Data'!$A$7:$FA$943,77,FALSE) -> 0.06051578573 | I32: =VLOOKUP($S32,'Custom Data'!$A$7:$FA$943,114,FALSE) -> 0.1087272657 | J32: =CONCATENATE(R9," Year") -> 15 Year | L32: =VLOOKUP($N$3,'Custom Data'!$A$7:$FA$443,47,FALSE) -> 0.03626933253 | M32: =VLOOKUP($N$3,'Custom Data'!$A$7:$FA$443,84,FALSE) -> 0.04132401528 | N32: =VLOOKUP($N$3,'Custom Data'!$A$7:$FA$443,121,FALSE) -> 0.1482154025 | O32: =((1+G30)*(1+G31)*(1+G32))^(1/3)-1 -> 0.07648781164 | P32: 38077 | Q32: 38168 | R32: 38260 | S32: 38352
A33: 2005 | B33: =VLOOKUP(P33,'Custom Data'!$A$6:$FA$364,39,FALSE)*100 -> -1.465716497 | C33: =VLOOKUP(Q33,'Custom Data'!$A$6:$FA$364,39,FALSE)*100 -> 2.262782414 | D33: =VLOOKUP(R33,'Custom Data'!$A$6:$FA$364,39,FALSE)*100 -> 0.7607365738 | E33: =VLOOKUP(S33,'Custom Data'!$A$6:$FA$364,39,FALSE)*100 -> 0.5713662432 | G33: =VLOOKUP(S33,'Custom Data'!$A$6:$FA$183,40,FALSE) -> 0.02110558487 | H33: =VLOOKUP($S33,'Custom Data'!$A$7:$FA$943,77,FALSE) -> 0.02475976579 | I33: =VLOOKUP($S33,'Custom Data'!$A$7:$FA$943,114,FALSE) -> 0.04891361186 | J33: Since 2000 | L33: =VLOOKUP($N$3,'Custom Data'!$A$7:$FA$443,48,FALSE) -> 0.04879880706 | M33: =VLOOKUP($N$3,'Custom Data'!$A$7:$FA$443,85,FALSE) -> 0.03912121416 | N33: =VLOOKUP($N$3,'Custom Data'!$A$7:$FA$443,122,FALSE) -> 0.07510011234 | P33: 38442 | Q33: 38533 | R33: 38625 | S33: 38717
A34: 2006 | B34: =VLOOKUP(P34,'Custom Data'!$A$6:$FA$364,39,FALSE)*100 -> 1.37167772 | C34: =VLOOKUP(Q34,'Custom Data'!$A$6:$FA$364,39,FALSE)*100 -> -0.424845799 | D34: =VLOOKUP(R34,'Custom Data'!$A$6:$FA$364,39,FALSE)*100 -> 3.111876682 | E34: =VLOOKUP(S34,'Custom Data'!$A$6:$FA$364,39,FALSE)*100 -> 3.250515355 | G34: =VLOOKUP(S34,'Custom Data'!$A$6:$FA$183,40,FALSE) -> 0.07465370706 | H34: =VLOOKUP($S34,'Custom Data'!$A$7:$FA$943,77,FALSE) -> 0.06791237522 | I34: =VLOOKUP($S34,'Custom Data'!$A$7:$FA$943,114,FALSE) -> 0.1579389389 | J34: MPT Statistics | P34: 38807 | Q34: 38898 | R34: 38990 | S34: 39082
A35: 2007 | B35: =VLOOKUP(P35,'Custom Data'!$A$6:$FA$364,39,FALSE)*100 -> 0.5183962884 | C35: =VLOOKUP(Q35,'Custom Data'!$A$6:$FA$364,39,FALSE)*100 -> -0.1869950107 | D35: =VLOOKUP(R35,'Custom Data'!$A$6:$FA$364,39,FALSE)*100 -> 2.554186388 | E35: =VLOOKUP(S35,'Custom Data'!$A$6:$FA$364,39,FALSE)*100 -> 0.6966140079 | G35: =VLOOKUP(S35,'Custom Data'!$A$6:$FA$183,40,FALSE) -> 0.03609825593 | H35: =VLOOKUP($S35,'Custom Data'!$A$7:$FA$943,77,FALSE) -> 0.04442020829 | I35: =VLOOKUP($S35,'Custom Data'!$A$7:$FA$943,114,FALSE) -> 0.0549678673 | J35: Alpha (Jensen's ) | L35: =VLOOKUP($N$3,'Custom Data'!$A$7:$FA$443,53,FALSE) -> 0.003927659258 | M35: =VLOOKUP($N$3,'Custom Data'!$A$7:$FA$443,91,FALSE) -> -0.009140179898 | N35: =VLOOKUP($N$3,'Custom Data'!$A$7:$FA$443,128,FALSE) -> 0 | O35: =((1+G33)*(1+G34)*(1+G35))^(1/3)-1 -> 0.043710482 | P35: 39172 | Q35: 39263 | R35: 39355 | S35: 39447
A36: 2008 | B36: =VLOOKUP(P36,'Custom Data'!$A$6:$FA$364,39,FALSE)*100 -> -0.3522904159 | C36: =VLOOKUP(Q36,'Custom Data'!$A$6:$FA$364,39,FALSE)*100 -> 0.5044293907 | D36: =VLOOKUP(R36,'Custom Data'!$A$6:$FA$364,39,FALSE)*100 -> -0.7370724168 | E36: =VLOOKUP(S36,'Custom Data'!$A$6:$FA$364,39,FALSE)*100 -> 6.020246021 | G36: =VLOOKUP(S36,'Custom Data'!$A$6:$FA$183,40,FALSE) -> 0.0539703911 | H36: =VLOOKUP($S36,'Custom Data'!$A$7:$FA$943,77,FALSE) -> -0.146277505 | I36: =VLOOKUP($S36,'Custom Data'!$A$7:$FA$943,114,FALSE) -> -0.3699472471 | J36: Beta | L36: =VLOOKUP($N$3,'Custom Data'!$A$7:$FA$443,69,FALSE) -> 0.1849273599 | M36: =VLOOKUP($N$3,'Custom Data'!$A$7:$FA$443,107,FALSE) -> 0.2763395869 | N36: =VLOOKUP($N$3,'Custom Data'!$A$7:$FA$443,144,FALSE) -> 1 | P36: 39538 | Q36: 39629 | R36: 39721 | S36: 39813 | U36: x
A37: 2009 | B37: =VLOOKUP(P37,'Custom Data'!$A$6:$FA$364,39,FALSE)*100 -> 0.8652304227 | C37: =VLOOKUP(Q37,'Custom Data'!$A$6:$FA$364,39,FALSE)*100 -> 10.90939947 | D37: =VLOOKUP(R37,'Custom Data'!$A$6:$FA$364,39,FALSE)*100 -> 9.447945637 | E37: =VLOOKUP(S37,'Custom Data'!$A$6:$FA$364,39,FALSE)*100 -> 4.631723377 | G37: =VLOOKUP(S37,'Custom Data'!$A$6:$FA$183,40,FALSE) -> 0.2810935113 | H37: =VLOOKUP($S37,'Custom Data'!$A$7:$FA$943,77,FALSE) -> 0.2150261031 | I37: =VLOOKUP($S37,'Custom Data'!$A$7:$FA$943,114,FALSE) -> 0.2644740799 | J37: R-Squared | L37: =VLOOKUP($N$3,'Custom Data'!$A$7:$FA$443,67,FALSE) -> 0.4506868707 | M37: =VLOOKUP($N$3,'Custom Data'!$A$7:$FA$443,105,FALSE) -> 0.6920840213 | N37: =VLOOKUP($N$3,'Custom Data'!$A$7:$FA$443,142,FALSE) -> 1 | P37: 39903 | Q37: 39994 | R37: 40086 | S37: 40178 | U37: x
A38: 2010 | B38: =VLOOKUP(P38,'Custom Data'!$A$6:$FA$364,39,FALSE)*100 -> 2.159298807 | C38: =VLOOKUP(Q38,'Custom Data'!$A$6:$FA$364,39,FALSE)*100 -> -4.438572693 | D38: =VLOOKUP(R38,'Custom Data'!$A$6:$FA$364,39,FALSE)*100 -> 4.696074525 | E38: =VLOOKUP(S38,'Custom Data'!$A$6:$FA$364,39,FALSE)*100 -> 3.314364247 | G38: =VLOOKUP(S38,'Custom Data'!$A$6:$FA$183,40,FALSE) -> 0.05597013896 | H38: =VLOOKUP($S38,'Custom Data'!$A$7:$FA$943,77,FALSE) -> 0.09448015413 | I38: =VLOOKUP($S38,'Custom Data'!$A$7:$FA$943,114,FALSE) -> 0.1505149287 | J38: Risk Measures | O38: =((1+G36)*(1+G37)*(1+G38))^(1/3)-1 -> 0.1255210621 | P38: 40268 | Q38: 40359 | R38: 40451 | S38: 40543
A39: 2011 | B39: =VLOOKUP(P39,'Custom Data'!$A$6:$FA$364,39,FALSE)*100 -> 2.602171452 | C39: =VLOOKUP(Q39,'Custom Data'!$A$6:$FA$364,39,FALSE)*100 -> 0.1080952933 | D39: =VLOOKUP(R39,'Custom Data'!$A$6:$FA$364,39,FALSE)*100 -> -4.697839067 | E39: =VLOOKUP(S39,'Custom Data'!$A$6:$FA$364,39,FALSE)*100 -> 1.527296209 | G39: =VLOOKUP(S39,'Custom Data'!$A$6:$FA$183,40,FALSE) -> -0.006171791885 | H39: =VLOOKUP($S39,'Custom Data'!$A$7:$FA$943,77,FALSE) -> 0.02245868386 | I39: =VLOOKUP($S39,'Custom Data'!$A$7:$FA$943,114,FALSE) -> 0.02117746661 | J39: Std.Dev.(Anlzd) | L39: =VLOOKUP($N$3,'Custom Data'!$A$7:$FA$443,51,FALSE) -> 0.04042836691 | M39: =VLOOKUP($N$3,'Custom Data'!$A$7:$FA$443,89,FALSE) -> 0.04875129708 | N39: =VLOOKUP($N$3,'Custom Data'!$A$7:$FA$443,126,FALSE) -> 0.1467649944 | P39: 40633 | Q39: 40724 | R39: 40816 | S39: 40908
A40: 2012 | B40: =VLOOKUP(P40,'Custom Data'!$A$6:$FA$364,39,FALSE)*100 -> 2.980824662 | C40: =VLOOKUP(Q40,'Custom Data'!$A$6:$FA$364,39,FALSE)*100 -> -0.07510040003 | D40: =VLOOKUP(R40,'Custom Data'!$A$6:$FA$364,39,FALSE)*100 -> 2.444695587 | E40: =VLOOKUP(S40,'Custom Data'!$A$6:$FA$364,39,FALSE)*100 -> 1.014088761 | G40: =VLOOKUP(S40,'Custom Data'!$A$6:$FA$183,40,FALSE) -> 0.06488206503 | H40: =VLOOKUP($S40,'Custom Data'!$A$7:$FA$943,77,FALSE) -> 0.08753800897 | I40: =VLOOKUP($S40,'Custom Data'!$A$7:$FA$943,114,FALSE) -> 0.1598114568 | J40: Max. DrawDwn | L40: =VLOOKUP($N$3,'Custom Data'!$A$7:$FA$443,66,FALSE) -> -0.07210136794 | M40: =VLOOKUP($N$3,'Custom Data'!$A$7:$FA$443,104,FALSE) -> -0.1765776693 | N40: =VLOOKUP($N$3,'Custom Data'!$A$7:$FA$443,141,FALSE) -> -0.3347636095 | P40: 40999 | Q40: 41090 | R40: 41182 | S40: 41274
A41: 2013 | B41: =VLOOKUP(P41,'Custom Data'!$A$6:$FA$364,39,FALSE)*100 -> 2.219193366 | C41: =VLOOKUP(Q41,'Custom Data'!$A$6:$FA$364,39,FALSE)*100 -> -1.050326897 | D41: =VLOOKUP(R41,'Custom Data'!$A$6:$FA$364,39,FALSE)*100 -> -0.09255084643 | E41: =VLOOKUP(S41,'Custom Data'!$A$6:$FA$364,39,FALSE)*100 -> 2.384255588 | G41: =VLOOKUP(S41,'Custom Data'!$A$6:$FA$183,40,FALSE) -> 0.03461283298 | H41: =VLOOKUP($S41,'Custom Data'!$A$7:$FA$943,77,FALSE) -> 0.0330269146 | I41: =VLOOKUP($S41,'Custom Data'!$A$7:$FA$943,114,FALSE) -> 0.3240817777 | J41: Value@Risk(MVaR) | L41: =-VLOOKUP($N$3,'Custom Data'!$A$7:$FA$443,64,FALSE) -> -0.09090800214 | M41: =-VLOOKUP($N$3,'Custom Data'!$A$7:$FA$443,102,FALSE) -> -0.1315474626 | N41: =-VLOOKUP($N$3,'Custom Data'!$A$7:$FA$443,139,FALSE) -> -0.3461766189 | O41: =((1+G39)*(1+G40)*(1+G41))^(1/3)-1 -> 0.03069514644 | P41: 41364 | Q41: 41455 | R41: 41547 | S41: 41639
A42: 2014 | B42: =VLOOKUP(P42,'Custom Data'!$A$6:$FA$364,39,FALSE)*100 -> 2.334471719 | C42: =VLOOKUP(Q42,'Custom Data'!$A$6:$FA$364,39,FALSE)*100 -> 1.454659728 | D42: =VLOOKUP(R42,'Custom Data'!$A$6:$FA$364,39,FALSE)*100 -> -1.61000262 | E42: =VLOOKUP(S42,'Custom Data'!$A$6:$FA$364,39,FALSE)*100 -> -0.252833497 | G42: =VLOOKUP(S42,'Custom Data'!$A$6:$FA$443,40,FALSE) -> 0.01893262298 | H42: =VLOOKUP($S42,'Custom Data'!$A$7:$FA$943,77,FALSE) -> 0.02683503656 | I42: =VLOOKUP($S42,'Custom Data'!$A$7:$FA$943,114,FALSE) -> 0.1368967585 | J42: Tolerisk Score | L42: =R20 -> 24 | M42: =R21 -> 30 | N42: =R22 -> 90 | P42: 41729 | Q42: 41820 | R42: 41912 | S42: 42004
A43: 2015 | B43: =VLOOKUP(P43,'Custom Data'!$A$6:$FA$364,39,FALSE)*100 -> 0.6277981162 | C43: =VLOOKUP(Q43,'Custom Data'!$A$6:$FA$364,39,FALSE)*100 -> -1.231978809 | D43: =VLOOKUP(R43,'Custom Data'!$A$6:$FA$364,39,FALSE)*100 -> -1.055614103 | E43: =VLOOKUP(S43,'Custom Data'!$A$6:$FA$364,39,FALSE)*100 -> -1.187473128 | G43: =VLOOKUP(S43,'Custom Data'!$A$6:$FA$443,40,FALSE) -> -0.02828818046 | H43: =VLOOKUP($S43,'Custom Data'!$A$7:$FA$943,77,FALSE) -> -0.0205329803 | I43: =VLOOKUP($S43,'Custom Data'!$A$7:$FA$943,114,FALSE) -> 0.01407544962 | J43: Riskalyze Score | L43: =Q20 -> 31 | M43: =Q21 -> 38 | N43: =Q22 -> 76 | P43: 42094 | Q43: 42185 | R43: 42277 | S43: 42369
A44: 2016 | B44: =VLOOKUP(P44,'Custom Data'!$A$6:$FA$364,39,FALSE)*100 -> 3.211077458 | C44: =VLOOKUP(Q44,'Custom Data'!$A$6:$FA$364,39,FALSE)*100 -> 3.13173101 | D44: =VLOOKUP(R44,'Custom Data'!$A$6:$FA$364,39,FALSE)*100 -> 1.386135696 | E44: =VLOOKUP(S44,'Custom Data'!$A$6:$FA$364,39,FALSE)*100 -> -0.7843336751 | G44: =VLOOKUP(S44,'Custom Data'!$A$6:$FA$443,40,FALSE) -> 0.07072376686 | H44: =VLOOKUP($S44,'Custom Data'!$A$7:$FA$943,77,FALSE) -> 0.0618405683 | I44: =VLOOKUP($S44,'Custom Data'!$A$7:$FA$943,114,FALSE) -> 0.119812807 | J44: Worst 3 Months | L44: =MIN('Custom Data'!AM7:AM440) -> -0.06033503694 | M44: =MIN('Custom Data'!BX7:BX440) -> -0.1534405127 | N44: =MIN('Custom Data'!DI7:DI440) -> -0.2964616301 | O44: =((1+G42)*(1+G43)*(1+G44))^(1/3)-1 -> 0.01965549758 | P44: 42460 | Q44: 42551 | R44: 42643 | S44: 42735
A45: 2017 | B45: =VLOOKUP(P45,'Custom Data'!$A$6:$FA$364,39,FALSE)*100 -> 1.394727485 | C45: =VLOOKUP(Q45,'Custom Data'!$A$6:$FA$364,39,FALSE)*100 -> 0.9294558466 | D45: =VLOOKUP(R45,'Custom Data'!$A$6:$FA$364,39,FALSE)*100 -> 0.9969367853 | E45: =VLOOKUP(S45,'Custom Data'!$A$6:$FA$364,39,FALSE)*100 -> 0.1220618964 | G45: =VLOOKUP(S45,'Custom Data'!$A$6:$FA$443,40,FALSE) -> 0.03483543351 | H45: =VLOOKUP($S45,'Custom Data'!$A$7:$FA$943,77,FALSE) -> 0.05505464188 | I45: =VLOOKUP($S45,'Custom Data'!$A$7:$FA$943,114,FALSE) -> 0.2184374431 | J45: Worst 12 Months | L45: =MIN('Custom Data'!AN7:AN440) -> -0.06172412891 | M45: =MIN('Custom Data'!BY7:BY440) -> -0.1720071488 | N45: =MIN('Custom Data'!DJ7:DJ440) -> -0.4331790975 | P45: 42825 | Q45: 42916 | R45: 43008 | S45: 43100
A46: 2018 | B46: =VLOOKUP(P46,'Custom Data'!$A$6:$FA$364,39,FALSE)*100 -> -1.25178893 | C46: =VLOOKUP(Q46,'Custom Data'!$A$6:$FA$364,39,FALSE)*100 -> -0.561578172 | D46: =VLOOKUP(R46,'Custom Data'!$A$6:$FA$364,39,FALSE)*100 -> 1.675647482 | E46: =VLOOKUP(S46,'Custom Data'!$A$6:$FA$364,39,FALSE)*100 -> -2.465341949 | G46: =VLOOKUP(S46,'Custom Data'!$A$6:$FA$443,40,FALSE) -> -0.02622331485 | H46: =VLOOKUP($S46,'Custom Data'!$A$7:$FA$943,77,FALSE) -> -0.02138448729 | I46: =VLOOKUP($S46,'Custom Data'!$A$7:$FA$943,114,FALSE) -> -0.04383884508 | J46: Return/Risk Statistics | P46: 43190 | Q46: 43281 | R46: 43373 | S46: 43465 | U46: =IF(G48>I48,"x","") -> 
A47: 2019 | B47: =VLOOKUP(P47,'Custom Data'!$A$6:$FA$364,39,FALSE)*100 -> 5.052967249 | C47: =VLOOKUP(Q47,'Custom Data'!$A$6:$FA$364,39,FALSE)*100 -> 1.929031494 | D47: =VLOOKUP(R47,'Custom Data'!$A$6:$FA$364,39,FALSE)*100 -> 0.9197238235 | E47: =VLOOKUP(S47,'Custom Data'!$A$6:$FA$364,39,FALSE)*100 -> 0.3401412473 | G47: =VLOOKUP(S47,'Custom Data'!$A$6:$FA$443,40,FALSE) -> 0.08431878771 | H47: =VLOOKUP($S47,'Custom Data'!$A$7:$FA$943,77,FALSE) -> 0.09720746516 | I47: =VLOOKUP($S47,'Custom Data'!$A$7:$FA$943,114,FALSE) -> 0.3150318022 | J47: Sharpe Ratio | L47: =VLOOKUP($N$3,'Custom Data'!$A$7:$FA$443,55,FALSE) -> 0.4680582134 | M47: =VLOOKUP($N$3,'Custom Data'!$A$7:$FA$443,93,FALSE) -> 0.3748921165 | N47: =VLOOKUP($N$3,'Custom Data'!$A$7:$FA$443,130,FALSE) -> 1.013942238 | O47: =((1+G45)*(1+G46)*(1+G47))^(1/3)-1 -> 0.02998100445 | P47: 43555 | Q47: 43646 | R47: 43738 | S47: 43830 | U47: =IF(G48>I48,"x","") -> 
A48: 2020 | B48: =VLOOKUP(P48,'Custom Data'!$A$6:$FA$364,39,FALSE)*100 -> -0.5296771294 | C48: =VLOOKUP(Q48,'Custom Data'!$A$6:$FA$364,39,FALSE)*100 -> 2.866640494 | D48: =VLOOKUP(R48,'Custom Data'!$A$6:$FA$364,39,FALSE)*100 -> 1.968986125 | E48: =VLOOKUP(S48,'Custom Data'!$A$6:$FA$364,39,FALSE)*100 -> 3.284951746 | G48: =VLOOKUP(S48,'Custom Data'!$A$6:$FA$443,40,FALSE) -> 0.07763884122 | H48: =VLOOKUP($S48,'Custom Data'!$A$7:$FA$943,77,FALSE) -> 0.05452792841 | I48: =VLOOKUP($S48,'Custom Data'!$A$7:$FA$943,114,FALSE) -> 0.1840202769 | J48: Return/DD | L48: =VLOOKUP($N$3,'Custom Data'!$A$7:$FA$443,68,FALSE) -> 0.6768083388 | M48: =VLOOKUP($N$3,'Custom Data'!$A$7:$FA$443,106,FALSE) -> 0.2215524438 | N48: =VLOOKUP($N$3,'Custom Data'!$A$7:$FA$443,143,FALSE) -> 0.2243377423 | P48: 43921 | Q48: 44012 | R48: 44104 | S48: 44196
A49: 2021 | B49: =VLOOKUP(P49,'Custom Data'!$A$6:$FA$364,39,FALSE)*100 -> -0.4626761991 | C49: =VLOOKUP(Q49,'Custom Data'!$A$6:$FA$364,39,FALSE)*100 -> 1.686035544 | D49: =VLOOKUP(R49,'Custom Data'!$A$6:$FA$364,39,FALSE)*100 -> -0.4206179055 | E49: =VLOOKUP(S49,'Custom Data'!$A$6:$FA$364,39,FALSE)*100 -> 0.3167506991 | G49: =VLOOKUP(S49,'Custom Data'!$A$6:$FA$443,40,FALSE) -> 0.01109080182 | H49: =VLOOKUP($S49,'Custom Data'!$A$7:$FA$943,77,FALSE) -> 0.03395722007 | I49: =VLOOKUP($S49,'Custom Data'!$A$7:$FA$943,114,FALSE) -> 0.2872137006 | J49: Monthly Up Capt. | L49: =VLOOKUP($N$3,'Custom Data'!$A$7:$FA$443,62,FALSE) -> 0.1604089506 | M49: =VLOOKUP($N$3,'Custom Data'!$A$7:$FA$443,100,FALSE) -> 0.244964067 | N49: =VLOOKUP($N$3,'Custom Data'!$A$7:$FA$443,137,FALSE) -> 1 | P49: 44286 | Q49: 44377 | R49: 44469 | S49: 44561
A50: 2022 | B50: =VLOOKUP(P50,'Custom Data'!$A$6:$FA$364,39,FALSE)*100 -> -2.586767825 | C50: =VLOOKUP(Q50,'Custom Data'!$A$6:$FA$364,39,FALSE)*100 -> -3.019675979 | D50: =VLOOKUP(R50,'Custom Data'!$A$6:$FA$364,39,FALSE)*100 -> 0.7498485548 | E50: =VLOOKUP(S50,'Custom Data'!$A$6:$FA$364,39,FALSE)*100 -> -0.8070553156 | G50: =VLOOKUP(S50,'Custom Data'!$A$6:$FA$443,40,FALSE) -> -0.05588093113 | H50: =VLOOKUP($S50,'Custom Data'!$A$7:$FA$943,77,FALSE) -> -0.0979031663 | I50: =VLOOKUP($S50,'Custom Data'!$A$7:$FA$943,114,FALSE) -> -0.1810097326 | J50: Monthly Dwn Capt. | L50: =VLOOKUP($N$3,'Custom Data'!$A$7:$FA$443,63,FALSE) -> 0.1549726591 | M50: =VLOOKUP($N$3,'Custom Data'!$A$7:$FA$443,101,FALSE) -> 0.2981295253 | N50: =VLOOKUP($N$3,'Custom Data'!$A$7:$FA$443,138,FALSE) -> 1 | O50: =((1+G48)*(1+G49)*(1+G50))^(1/3)-1 -> 0.009477681782 | P50: 44651 | Q50: 44742 | R50: 44834 | S50: 44926
A51: 2023 | B51: =VLOOKUP(P51,'Custom Data'!$A$6:$FA$364,39,FALSE)*100 -> 0.4259516753 | C51: =VLOOKUP(Q51,'Custom Data'!$A$6:$FA$364,39,FALSE)*100 -> 0.4718914068 | D51: =VLOOKUP(R51,'Custom Data'!$A$6:$FA$364,39,FALSE)*100 -> 0.9976448888 | E51: =VLOOKUP(S51,'Custom Data'!$A$6:$FA$364,39,FALSE)*100 -> 4.882764993 | G51: =VLOOKUP(S51,'Custom Data'!$A$6:$FA$443,40,FALSE) -> 0.06882329042 | H51: =VLOOKUP($S51,'Custom Data'!$A$7:$FA$943,77,FALSE) -> 0.07994002079 | I51: =VLOOKUP($S51,'Custom Data'!$A$7:$FA$943,114,FALSE) -> 0.2627130565 | J51: *Allocations are estimates & may vary. Past performance is not a guarantee of future results. Presentation is not complete without the disclaimer included with this packet. Any fees shown are estimates and may change based on the allocation and custodian. ^Internal fees are likely to vary in the future & are based on current allocations; Performance is net of ALL fees, including internal fees. | P51: 45016 | Q51: 45107 | R51: 45199 | S51: 45291 | U51: =IF(G38>I38,"x","") -> 
A52: 2024 | B52: =VLOOKUP(P52,'Custom Data'!$A$6:$FA$364,39,FALSE)*100 -> 1.37298587 | C52: =VLOOKUP(Q52,'Custom Data'!$A$6:$FA$364,39,FALSE)*100 -> -0.181736511 | G52: =Q27 -> 0.01188754143 | H52: =R27 -> 0.02202376058 | I52: =S27 -> 0.1530377642 | P52: 45382 | Q52: 45473 | R52: 45565 | S52: 45657
A53: Top 5 Models | B53: =IF('Fee Details-TotalFees'!B11="","",'Fee Details-TotalFees'!B11) -> Dyn. Inc. Alloc. | G53: =IF('Fee Details-TotalFees'!C11="","",'Fee Details-TotalFees'!C11) -> 0.5
B54: =IF('Fee Details-TotalFees'!B12="","",'Fee Details-TotalFees'!B12) -> Tactical Bond | G54: =IF('Fee Details-TotalFees'!C12="","",'Fee Details-TotalFees'!C12) -> 0.3
B55: =IF('Fee Details-TotalFees'!B13="","",'Fee Details-TotalFees'!B13) -> Income Allocator | G55: =IF('Fee Details-TotalFees'!C13="","",'Fee Details-TotalFees'!C13) -> 0.2
B56: =IF('Fee Details-TotalFees'!B14="","",'Fee Details-TotalFees'!B14) ->  | G56: =IF('Fee Details-TotalFees'!C14="","",'Fee Details-TotalFees'!C14) -> 
B57: =IF('Fee Details-TotalFees'!B15="","",'Fee Details-TotalFees'!B15) ->  | G57: =IF('Fee Details-TotalFees'!C15="","",'Fee Details-TotalFees'!C15) -> 

Sheet Fee Details
B1: =DataEntry!D1 -> v18 2024Q2 | C1: =IF(DataEntry!B4="","",CONCATENATE(DataEntry!C4," ",DataEntry!B4," ",DataEntry!D4)) -> Joe & Jessica Demo IRAs | G1: Investment Amount: | H1: =IF(DataEntry!E4="","",DataEntry!E4) -> 100000 | J1: Please print the disclaimer tab to accompany this report.
C2: Account#(s): | D2: =IF(DataEntry!A4="","",DataEntry!A4) ->  | G2: Total Family Assets w/SEM: | H2: =IF(DataEntry!E5="",DataEntry!E4,DataEntry!E5) -> 100000 | I2: =CONCATENATE(C1," SEM Portfolio") -> Joe & Jessica Demo IRAs SEM Portfolio | J2: This sheet can be used to set the Financial Advisor's Fee & complete a Program Change with SEM
A4: Client Info | B4: Investment Experience: | C4: =IF(DataEntry!C9="","",DataEntry!C9) ->  | D4: Emergency Assets: | E4: =IF(DataEntry!C10="","",DataEntry!C10) ->  | G4: Riskalyze Score | T4: =VLOOKUP(#REF!,Suitability!D:F,3,TRUE) -> 
B5: Annual Income: | C5: =IF(DataEntry!C12="","",DataEntry!C12) ->  | D5: Liquid Net Worth: | E5: =IF(DataEntry!C13="","",DataEntry!C13) ->  | G5: Risk Tolerance | H5: =IF(DataEntry!E11="","",DataEntry!E11) ->  | U5: =IF(H5="","",VLOOKUP(H5,Suitability!$A$59:$B$66,2,FALSE)) -> 
B6: Tax Bracket: | C6: =IF(DataEntry!C11="","",DataEntry!C11) ->  | D6: Investor Type: | E6: =IF(DataEntry!E9="","",DataEntry!E9) ->  | G6: % of Net Worth | U6: =IF(E6="","",VLOOKUP(E6,Suitability!$A$33:$B$37,2,FALSE)) -> 
B7: Investment Time Horizon: | C7: =IF(DataEntry!E10="","",DataEntry!E10) ->  | D7: Objective: | E7: =IF(DataEntry!E12="","",DataEntry!E12) ->  | U7: =IF(C7="","",VLOOKUP(C7,Suitability!$A$50:$B$56,2,FALSE)) ->  | V7: =IF(E7="","",VLOOKUP(E7,Suitability!$A$69:$B$73,2,FALSE)) -> 
B8: * = If an * choice is selected, clients should discuss the suitability of holding any risky investments. | D8: If given a choice, I would prefer: | E8: =IF(DataEntry!E13="","",DataEntry!E13) ->  | G8: Preferred Portfolio Type: | H8: =DataEntry!E14 ->  | J8: HSC Acct? | K8: =DataEntry!G7 -> No | U8: =SUM(U5:U7,V7:V8) -> 0 | V8: =IF(E8="","",VLOOKUP(E8,Suitability!$A$76:$B$78,2,FALSE)) -> 
B9: Model Name | C9: % Alloc: | D9: $ Invested | E9: SEM Fee Amt* | F9: Advisor Fee: | G9: Est.InternalFees:^ | H9: ='Fee Details-TotalFees'!H22 -> 0.00885 | I9: ='Fee Schedules'!J2 -> 0.0012
A10: Model | F10: =IF(DataEntry!F4="","Default",IF(OR(DataEntry!F4="Default",DataEntry!F4="Standard"),"Default",IF(DataEntry!F4="SVW","SVW",IF(DataEntry!F4="SAGE","SAGE",IF(DataEntry!F4="HSC","HSC",DataEntry!F4/100))))) -> 0.01 | G10: Axos Fees | H10: Total Fees* | P10: Max | Q10: Tactical | R10: Dynamic | S10: AmeriGuard
A11: =IF(DataEntry!G4="","",DataEntry!G4) -> DIA | B11: =IF(A11="","",VLOOKUP(A11,ModelList!$B:$Z,25,FALSE)) -> Dyn. Inc. Alloc. | C11: =IF(DataEntry!H4="","",DataEntry!H4/100) -> 0.5 | D11: =IF(C11="","",C11*$H$1) -> 50000 | E11: =IF(D11="","",D11*L11) -> 375 | F11: =IF(D11="","",IF($F$10="Default",E11,IF($F$10="SVW",'Fee Schedules'!$G$1*D11,IF($F$10="SAGE",'Fee Schedules'!$H$1*D11,IF($F$10="HSC",'Fee Schedules'!$N$1*D11,IF(E11=0,0,D11*$F$10)))))) -> 500 | G11: =IF(D11="","",D11*I11) -> 60 | H11: =IF(D11="","",SUM(E11:G11)) -> 935 | I11: =IF(A11="","",VLOOKUP(A11,ModelList!$B:$C,2,FALSE)) -> 0.0012 | K11: =IF(C11="","",C11) -> 0.5 | L11: =IF(C11="","",IF(OR($F$10="HSC",$K$8="Yes"),'Fee Schedules'!$N$2,VLOOKUP($B11,ModelList!$A$3:$D$126,4,FALSE))) -> 0.0075 | M11: =IF($C11="","",VLOOKUP($B11,ModelList!$A$3:$V$126,21,FALSE)) -> 0 | N11: =IF($C11="","",VLOOKUP($B11,ModelList!$A$3:$V$126,22,FALSE)) -> 0.4 | O11: =IF($M11="","",M11*$C11) -> 0 | P11: 0.2 | Q11: =IF(A11="","",VLOOKUP($A11,ModelList!$B:$Y,22,FALSE)*C11) -> 0 | R11: =IF(A11="","",VLOOKUP($A11,ModelList!$B:$Y,23,FALSE)*C11) -> 0.5 | S11: =IF(A11="","",VLOOKUP($A11,ModelList!$B:$Y,24,FALSE)*C11) -> 0
A12: =IF(DataEntry!I4="","",DataEntry!I4) -> TB | B12: =IF(A12="","",VLOOKUP(A12,ModelList!$B:$Z,25,FALSE)) -> Tactical Bond | C12: =IF(DataEntry!J4="","",DataEntry!J4/100) -> 0.3 | D12: 30000 | E12: 336 | F12: =IF(D12="","",IF($F$10="Default",E12,IF($F$10="SVW",'Fee Schedules'!$G$1*D12,IF($F$10="SAGE",'Fee Schedules'!$H$1*D12,IF($F$10="HSC",'Fee Schedules'!$N$1*D12,IF(E12=0,0,D12*$F$10)))))) -> 300 | G12: =IF(D12="","",D12*I12) -> 36 | H12: 672 | I12: =IF(A12="","",VLOOKUP(A12,ModelList!$B:$C,2,FALSE)) -> 0.0012 | K12: 0.3 | L12: =IF(C12="","",IF(OR($F$10="HSC",$K$8="Yes"),'Fee Schedules'!$N$2,VLOOKUP($B12,ModelList!$A$3:$D$126,4,FALSE))) -> 0.0112 | M12: =IF($C12="","",VLOOKUP($B12,ModelList!$A$3:$V$126,21,FALSE)) -> 0 | N12: =IF($C12="","",VLOOKUP($B12,ModelList!$A$3:$V$126,22,FALSE)) -> 0 | O12: 0 | P12: 0 | Q12: =IF(A12="","",VLOOKUP($A12,ModelList!$B:$Y,22,FALSE)*C12) -> 0.3 | R12: =IF(A12="","",VLOOKUP($A12,ModelList!$B:$Y,23,FALSE)*C12) -> 0 | S12: =IF(A12="","",VLOOKUP($A12,ModelList!$B:$Y,24,FALSE)*C12) -> 0
A13: =IF(DataEntry!K4="","",DataEntry!K4) -> INA | B13: =IF(A13="","",VLOOKUP(A13,ModelList!$B:$Z,25,FALSE)) -> Income Allocator | C13: =IF(DataEntry!L4="","",DataEntry!L4/100) -> 0.2 | D13: 20000 | E13: 224 | F13: =IF(D13="","",IF($F$10="Default",E13,IF($F$10="SVW",'Fee Schedules'!$G$1*D13,IF($F$10="SAGE",'Fee Schedules'!$H$1*D13,IF($F$10="HSC",'Fee Schedules'!$N$1*D13,IF(E13=0,0,D13*$F$10)))))) -> 200 | G13: =IF(D13="","",D13*I13) -> 24 | H13: 448 | I13: =IF(A13="","",VLOOKUP(A13,ModelList!$B:$C,2,FALSE)) -> 0.0012 | K13: 0.2 | L13: =IF(C13="","",IF(OR($F$10="HSC",$K$8="Yes"),'Fee Schedules'!$N$2,VLOOKUP($B13,ModelList!$A$3:$D$126,4,FALSE))) -> 0.0112 | M13: =IF($C13="","",VLOOKUP($B13,ModelList!$A$3:$V$126,21,FALSE)) -> 0 | N13: =IF($C13="","",VLOOKUP($B13,ModelList!$A$3:$V$126,22,FALSE)) -> 0.15 | O13: 0 | P13: 0.03 | Q13: =IF(A13="","",VLOOKUP($A13,ModelList!$B:$Y,22,FALSE)*C13) -> 0.2 | R13: =IF(A13="","",VLOOKUP($A13,ModelList!$B:$Y,23,FALSE)*C13) -> 0 | S13: =IF(A13="","",VLOOKUP($A13,ModelList!$B:$Y,24,FALSE)*C13) -> 0
A14: =IF(DataEntry!M4="","",DataEntry!M4) ->  | B14: =IF(A14="","",VLOOKUP(A14,ModelList!$B:$Z,25,FALSE)) ->  | C14: =IF(DataEntry!N4="","",DataEntry!N4/100) ->  | F14: =IF(D14="","",IF($F$10="Default",E14,IF($F$10="SVW",'Fee Schedules'!$G$1*D14,IF($F$10="SAGE",'Fee Schedules'!$H$1*D14,IF($F$10="HSC",'Fee Schedules'!$N$1*D14,IF(E14=0,0,D14*$F$10)))))) ->  | G14: =IF(D14="","",D14*I14) ->  | I14: =IF(A14="","",VLOOKUP(A14,ModelList!$B:$C,2,FALSE)) ->  | L14: =IF(C14="","",IF(OR($F$10="HSC",$K$8="Yes"),'Fee Schedules'!$N$2,VLOOKUP($B14,ModelList!$A$3:$D$126,4,FALSE))) ->  | M14: =IF($C14="","",VLOOKUP($B14,ModelList!$A$3:$V$126,21,FALSE)) ->  | N14: =IF($C14="","",VLOOKUP($B14,ModelList!$A$3:$V$126,22,FALSE)) ->  | Q14: =IF(A14="","",VLOOKUP($A14,ModelList!$B:$Y,22,FALSE)*C14) ->  | R14: =IF(A14="","",VLOOKUP($A14,ModelList!$B:$Y,23,FALSE)*C14) ->  | S14: =IF(A14="","",VLOOKUP($A14,ModelList!$B:$Y,24,FALSE)*C14) -> 
A15: =IF(DataEntry!O4="","",DataEntry!O4) ->  | B15: =IF(A15="","",VLOOKUP(A15,ModelList!$B:$Z,25,FALSE)) ->  | C15: =IF(DataEntry!P4="","",DataEntry!P4/100) ->  | F15: =IF(D15="","",IF($F$10="Default",E15,IF($F$10="SVW",'Fee Schedules'!$G$1*D15,IF($F$10="SAGE",'Fee Schedules'!$H$1*D15,IF($F$10="HSC",'Fee Schedules'!$N$1*D15,IF(E15=0,0,D15*$F$10)))))) ->  | G15: =IF(D15="","",D15*I15) ->  | I15: =IF(A15="","",VLOOKUP(A15,ModelList!$B:$C,2,FALSE)) ->  | L15: =IF(C15="","",IF(OR($F$10="HSC",$K$8="Yes"),'Fee Schedules'!$N$2,VLOOKUP($B15,ModelList!$A$3:$D$126,4,FALSE))) ->  | M15: =IF($C15="","",VLOOKUP($B15,ModelList!$A$3:$V$126,21,FALSE)) ->  | N15: =IF($C15="","",VLOOKUP($B15,ModelList!$A$3:$V$126,22,FALSE)) ->  | Q15: =IF(A15="","",VLOOKUP($A15,ModelList!$B:$Y,22,FALSE)*C15) ->  | R15: =IF(A15="","",VLOOKUP($A15,ModelList!$B:$Y,23,FALSE)*C15) ->  | S15: =IF(A15="","",VLOOKUP($A15,ModelList!$B:$Y,24,FALSE)*C15) -> 
A16: 6 | F16: =IF(D16="","",IF($F$10="Default",E16,D16*$F$10)) ->  | G16: =IF(D16="","",D16*$I$9) ->  | I16: =IF(A16="","",VLOOKUP(A16,ModelList!$B:$C,2,FALSE)) ->  | J16: =IF(B16="","",VLOOKUP($B16,ModelList!$A$3:$D$53,2,FALSE)) ->  | L16: =IF(C16="","",IF(OR($F$10="HSC",$K$8="Yes"),'Fee Schedules'!$N$2,VLOOKUP($B16,ModelList!$A$3:$D$126,4,FALSE))) -> 
A17: 7 | G17: =IF(D17="","",D17*$I$9) ->  | I17: =IF(A17="","",VLOOKUP(A17,ModelList!$B:$C,2,FALSE)) ->  | J17: =IF(B17="","",VLOOKUP($B17,ModelList!$A$3:$D$53,2,FALSE)) ->  | L17: =IF(C17="","",IF(OR($F$10="HSC",$K$8="Yes"),'Fee Schedules'!$N$2,VLOOKUP($B17,ModelList!$A$3:$D$126,4,FALSE))) -> 
A18: 8 | G18: =IF(D18="","",D18*$I$9) ->  | I18: =IF(A18="","",VLOOKUP(A18,ModelList!$B:$C,2,FALSE)) ->  | J18: =IF(B18="","",VLOOKUP($B18,ModelList!$A$3:$D$53,2,FALSE)) ->  | L18: =IF(C18="","",IF(OR($F$10="HSC",$K$8="Yes"),'Fee Schedules'!$N$2,VLOOKUP($B18,ModelList!$A$3:$D$126,4,FALSE))) -> 
A19: 9 | G19: =IF(D19="","",D19*$I$9) ->  | I19: =IF(A19="","",VLOOKUP(A19,ModelList!$B:$C,2,FALSE)) ->  | J19: =IF(B19="","",VLOOKUP($B19,ModelList!$A$3:$D$53,2,FALSE)) ->  | L19: =IF(C19="","",IF(OR($F$10="HSC",$K$8="Yes"),'Fee Schedules'!$N$2,VLOOKUP($B19,ModelList!$A$3:$D$126,4,FALSE))) -> 
A20: 10 | G20: =IF(D20="","",D20*$I$9) ->  | I20: =IF(A20="","",VLOOKUP(A20,ModelList!$B:$C,2,FALSE)) ->  | J20: =IF(B20="","",VLOOKUP($B20,ModelList!$A$3:$D$53,2,FALSE)) ->  | L20: =IF(C20="","",IF(OR($F$10="HSC",$K$8="Yes"),'Fee Schedules'!$N$2,VLOOKUP($B20,ModelList!$A$3:$D$126,4,FALSE))) -> 
C21: =SUM(C11:C20) -> 1 | D21: 100000 | E21: 935 | F21: 1000 | G21: 120 | H21: 2055 | I21: =IF(A21="","",VLOOKUP(A21,ModelList!$B:$C,2,FALSE)) ->  | J21: Risk Score | K21: MVaR | L21: =IF(C21="","",IF(OR($F$10="HSC",$K$8="Yes"),'Fee Schedules'!$N$2,VLOOKUP($B21,ModelList!$A$3:$D$126,4,FALSE))) ->  | M21: 3 Yr Ret | N21: 5 Yr Ret | O21: 10 Yr Ret | P21: Ret / Risk | Q21: Sharpe | R21: Up Capt | S21: Dwn Capt | T21: Std Dev | U21: Min | V21: Max
D22: Annual Fee Percentage*: | E22: =E21/$D$21 -> 0.00935 | F22: =F21/$D$21 -> 0.01 | G22: =G21/$D$21 -> 0.0012 | H22: =H21/$D$21 -> 0.02055 | J22: =H29 -> 31 | K22: ='Performance Details'!L41 -> -0.09090800214 | L22: ='Performance Details'!L40 -> -0.07210136794 | M22: =G43 -> 0.006628611626 | N22: =G45 -> 0.02413171827 | O22: =G47 -> 0.02185256951 | P22: =O22/-H27 -> 0.2403811435 | Q22: =G51 -> 0.4680582134 | R22: =G53 -> 0.1604089506 | S22: =G55 -> 0.1549726591 | T22: ='Performance Details'!L39 -> 0.04042836691 | U22: ='Performance Details'!J6 -> 0 | V22: ='Performance Details'!L6 -> 0.23
A23: =PortfolioSummary!G23 -> Benchmark = 30% Stocks / 70 % Bonds (w/no fees). For more info please see the DISCLAIMER
G24: Portfolio End Value:
G25: ='Performance Details'!Q24 -> 321335.3651
G26: Annual Ret: | H26: ='Performance Details'!L33 -> 0.04879880706
G27: Downside Risk: | H27: =MIN('Performance Details'!L40:L41) -> -0.09090800214
G28: Tolerisk Score: | H28: ='Performance Details'!L42 -> 24
G29: Riskalyze #: | H29: ='Performance Details'!L43 -> 31
G31: Benchmark End Value:
G32: ='Performance Details'!R24 -> 256048.4644
G33: Annual Ret: | H33: ='Performance Details'!M33 -> 0.03912121416
G34: Downside Risk: | H34: =MIN('Performance Details'!M40:M41) -> -0.1765776693
G35: Tolerisk Score: | H35: ='Performance Details'!M42 -> 30
G36: Riskalyze #: | H36: ='Performance Details'!M43 -> 38
G38: SEM Difference:
G39: =G25-G32 -> 65286.90073
G41: Other Statistics:
G42: 3 Year Annualized Ret
G43: ='Performance Details'!L29 -> 0.006628611626 | H43: ='Performance Details'!M29 -> 0.00164550353
G44: 5 Year Annualized Ret
G45: ='Performance Details'!L30 -> 0.02413171827 | H45: ='Performance Details'!M30 -> 0.02225751549
G46: 10 Year Annualized Ret
G47: ='Performance Details'!L31 -> 0.02185256951 | H47: ='Performance Details'!M31 -> 0.02367579067
G48: Beta
G49: ='Performance Details'!L36 -> 0.1849273599 | H49: ='Performance Details'!M36 -> 0.2763395869
G50: Sharpe Ratio
G51: ='Performance Details'!L47 -> 0.4680582134 | H51: ='Performance Details'!M47 -> 0.3748921165
A52: ILLUSTRATIVE PURPOSES ONLY | Past performance is not a guarantee of future results. Above allocations are a hypothetical blend of SEM's investment models assembled with the benefit of hindsight. Real-time results are likely to differ from the above due to several factors including future adjustments to the portfolio made due to the current market environment. The next page includes a more detailed disclaimer of the limitations & risk of this data. *Fees will vary based on the actual account value. | G52: Up Capture
G53: ='Performance Details'!L49 -> 0.1604089506 | H53: ='Performance Details'!M49 -> 0.244964067
G54: Down Capture
G55: ='Performance Details'!L50 -> 0.1549726591 | H55: ='Performance Details'!M50 -> 0.2981295253
A56: ^Internal Fees: This is an ESTIMATE of the fees that would be paid based on the current quarter end allocation. Due to the nature of the investment models the internal fees will vary signficantly based on the current allocations. In general, when the models are in a "lower risk" allocation, the fees will be quite low. When fully invested, the fees will be higher. It should be noted that all returns are NET OF ALL FEES. Internal fees have declined 2-3 times over the past 20 years, meaning the historic results include fees which were significantly higher than they are today and going forward. The benchmark is a NO FEE allocation to low cost (less than 0.15% internal fees) passive index funds. This means you can compare the AFTER FEE results of both the SEM Model Portfolios and the index in terms of both overall returns and risk. In other words, the returns are AFTER paying ALL fees. ACKNOWLEDGEMENT & INSTRUCTIONS TO SEM: Please set the portfolio allocation & management fee to match the above choices. SEM's portion of the fees are based on the fee schedule included in our ADV. Clients are encouraged to review the overall level of assets to ensure they are paying the lowest possible fees. This addendum does not change any other portion of the original Management Fee agreement other than the Financial Advisor's fee. I understand the change in my portfolio allocation may result in my funds being invested in the market a larger or smaller percentage of the time. This change will effect both my participation in the market upside and downside from my current portfolio. This portfolio adjustment is a reflection of a change in my personal risk assessment and/or goals and objectives for the investments being moved. The above illustration reflects the difference between an actively managed investment supervised by SEM and my financial advisor and a passive, no fee blend of similarly invested index funds. While not an exact representation of the investments available elsewhere, it does reflect the potential differences in both returns and risks by hiring SEM and the financial advisor to manage my account.
A58: Client(s) Signature | Date | F58: Advisor Signature | Date

Sheet Disclaimer
C1: 0.3 | J1: Financial Advisor
K2: Dynamic
J3: 0.011 | K3: 0.0075
J4: 0.011 | K4: 0.007
J5: 0.01 | K5: 0.0065
J6: 0.009 | K6: 0.006
J7: 0.009 | K7: 0.0055
J8: 0.008 | K8: 0.005
J9: 0.007 | K9: 0.005
J10: 0.007 | K10: 0.0045
A79: Custom Benchmark Description:
B80: SEM has selected benchmarks for each of our models to match the asset allocation targets of each strategy. The toolkit will by default show the blended benchmarks from the prior page based on the model allocation. However, the financial advisors using this toolkit can also select their own benchmarks. If the advisor chose to use a custom benchmark, the description and allocation of each is listed below. SEM strongly advises users of this report to consider the fit of the benchmark to the actual investment allocations before making decisions on the investment allocation.
B81: Benchmark Name | C81: Abbrev. | D81: Alloc. | E81: Description
B82: =IF(DataEntry!G$22="","Morningstar Stock Allocation",DataEntry!G$22) -> Morningstar Stock Allocation | C82: =IF(DataEntry!G$5="","",DataEntry!G$5) ->  | D82: =IF(DataEntry!H$5="",DataEntry!C19/100,DataEntry!H$5/100) -> 0.24 | E82: =IF(C82="","An unmanaged index created by Morningstar to track the allocations of US based stock funds and ETFs.",VLOOKUP(C82,ModelList!$B:$AA,26,FALSE)) -> An unmanaged index created by Morningstar to track the allocations of US based stock funds and ETFs.
B83: =IF(B82="Morningstar Stock Allocation","Morningstar Multisector Bond Alloc.",IF(DataEntry!I$22="","",DataEntry!I$22)) -> Morningstar Multisector Bond Alloc. | C83: =IF(DataEntry!I$5="","",DataEntry!I$5) ->  | D83: =IF(B82="Morningstar Stock Allocation",1-D82,IF(DataEntry!J$5="","",DataEntry!J$5/100)) -> 0.76 | E83: =IF(B82="Morningstar Stock Allocation","An unmanaged index created by Morningstar to track the allocations of US based fond funds and ETFs.",IF(C83="","",VLOOKUP(C83,ModelList!$B:$AA,26,FALSE))) -> An unmanaged index created by Morningstar to track the allocations of US based fond funds and ETFs.
B84: =IF(DataEntry!K$22="","",DataEntry!K$22) ->  | C84: =IF(DataEntry!K$5="","",DataEntry!K$5) ->  | D84: =IF(DataEntry!L$5="","",DataEntry!L$5/100) ->  | E84: =IF(C84="","",VLOOKUP(C84,ModelList!$B:$AA,26,FALSE)) -> 
B85: =IF(DataEntry!M$22="","",DataEntry!M$22) ->  | C85: =IF(DataEntry!M$5="","",DataEntry!M$5) ->  | D85: =IF(DataEntry!N$5="","",DataEntry!N$5/100) ->  | E85: =IF(C85="","",VLOOKUP(C85,ModelList!$B:$AA,26,FALSE)) -> 
B86: =IF(DataEntry!O$22="","",DataEntry!O$22) ->  | C86: =IF(DataEntry!O$5="","",DataEntry!O$5) ->  | D86: =IF(DataEntry!P$5="","",DataEntry!P$5/100) ->  | E86: =IF(C86="","",VLOOKUP(C86,ModelList!$B:$AA,26,FALSE)) -> 

Sheet Fee Details-TotalFees
B1: =DataEntry!D1 -> v18 2024Q2 | C1: =IF(DataEntry!B4="","",CONCATENATE(DataEntry!C4," ",DataEntry!B4," ",DataEntry!D4)) -> Joe & Jessica Demo IRAs | G1: Investment Amount: | H1: =IF(DataEntry!E4="","",DataEntry!E4) -> 100000 | K1: Please print the disclaimer tab to accompany this report.
C2: Account#(s): | D2: =IF(DataEntry!A4="","",DataEntry!A4) ->  | G2: Total Family Assets w/SEM: | H2: =IF(DataEntry!E5="",DataEntry!E4,DataEntry!E5) -> 100000 | J2: =CONCATENATE(C1," SEM Portfolio") -> Joe & Jessica Demo IRAs SEM Portfolio | K2: This sheet can be used to set the Financial Advisor's Fee & complete a Program Change with SEM
A4: Client Info | B4: Investment Experience: | C4: =IF(DataEntry!C9="","",DataEntry!C9) ->  | D4: Emergency Assets: | E4: =IF(DataEntry!C10="","",DataEntry!C10) ->  | G4: Riskalyze Score | H4: =IF(DataEntry!I11="","",DataEntry!I11) ->  | U4: =VLOOKUP(H4,Suitability!D:F,3,TRUE) -> 
B5: Annual Income: | C5: =IF(DataEntry!C12="","",DataEntry!C12) ->  | D5: Liquid Net Worth: | E5: =IF(DataEntry!C13="","",DataEntry!C13) ->  | G5: Risk Tolerance | H5: =IF(DataEntry!E11="","",DataEntry!E11) ->  | V5: =IF(H5="","",VLOOKUP(H5,Suitability!$A$59:$B$66,2,FALSE)) -> 
B6: Tax Bracket: | C6: =IF(DataEntry!C11="","",DataEntry!C11) ->  | D6: Investor Type: | E6: =IF(DataEntry!E9="","",DataEntry!E9) ->  | G6: % of Net Worth | H6: =IF(DataEntry!C14="","",DataEntry!C14) ->  | V6: =IF(E6="","",VLOOKUP(E6,Suitability!$A$33:$B$37,2,FALSE)) -> 
B7: Investment Time Horizon: | C7: =IF(DataEntry!E10="","",DataEntry!E10) ->  | D7: Objective: | E7: =IF(DataEntry!E12="","",DataEntry!E12) ->  | V7: =IF(C7="","",VLOOKUP(C7,Suitability!$A$50:$B$56,2,FALSE)) ->  | W7: =IF(E7="","",VLOOKUP(E7,Suitability!$A$69:$B$73,2,FALSE)) -> 
B8: * = If an * choice is selected, clients should discuss the suitability of holding any risky investments. | D8: If given a choice, I would prefer: | E8: =IF(DataEntry!E13="","",DataEntry!E13) ->  | G8: Preferred Portfolio Type: | H8: =DataEntry!E14 ->  | V8: =SUM(V5:V7,W7:W8) -> 0 | W8: =IF(E8="","",VLOOKUP(E8,Suitability!$A$76:$B$78,2,FALSE)) -> 
B9: Model Name | C9: % Alloc: | D9: $ Invested | E9: SEM Fee Amt* | F9: Advisor Fee: | G9: Axos Fees | I9: Total Fees* | J9: ='Fee Schedules'!J2 -> 0.0012
A10: Model | F10: =IF(DataEntry!F4="","Default",IF(OR(DataEntry!F4="Default",DataEntry!F4="Standard"),"Default",IF(DataEntry!F4="SVW","SVW",IF(DataEntry!F4="SAGE","SAGE",IF(DataEntry!F4="HSC","HSC",DataEntry!F4/100))))) -> 0.01 | H10: Internal Fees^ | Q10: Max | R10: Tactical | S10: Dynamic | T10: AmeriGuard
A11: =IF(DataEntry!G4="","",DataEntry!G4) -> DIA | B11: =IF(A11="","",VLOOKUP(A11,ModelList!$B:$Z,25,FALSE)) -> Dyn. Inc. Alloc. | C11: =IF(DataEntry!H4="","",DataEntry!H4/100) -> 0.5 | D11: =IF(C11="","",C11*$H$1) -> 50000 | E11: =IF(D11="","",D11*M11) -> 375 | F11: =IF(D11="","",IF($F$10="Default",E11,IF($F$10="SVW",'Fee Schedules'!$G$1*D11,IF($F$10="SAGE",'Fee Schedules'!$H$1*D11,IF($F$10="HSC",'Fee Schedules'!$N$1*D11,IF(E11=0,0,D11*$F$10)))))) -> 500 | G11: =IF(D11="","",D11*J11) -> 60 | H11: =IF(D11="","",VLOOKUP(A11,ModelList!$B$3:$AC$100,28,FALSE)*D11) -> 550 | I11: =IF(D11="","",SUM(E11:H11)) -> 1485 | J11: =IF(A11="","",VLOOKUP(A11,ModelList!$B:$C,2,FALSE)) -> 0.0012 | L11: =IF(C11="","",C11) -> 0.5 | M11: =IF(D11="","",IF($F$10="HSC",'Fee Schedules'!$N$2,VLOOKUP($B11,ModelList!$A$3:$D$126,4,FALSE))) -> 0.0075 | N11: =IF($C11="","",VLOOKUP($B11,ModelList!$A$3:$V$126,21,FALSE)) -> 0 | O11: =IF($C11="","",VLOOKUP($B11,ModelList!$A$3:$V$126,22,FALSE)) -> 0.4 | P11: =IF($N11="","",N11*$C11) -> 0 | Q11: =IF($N11="","",O11*$C11) -> 0.2 | R11: =IF(A11="","",VLOOKUP($A11,ModelList!$B:$Y,22,FALSE)*C11) -> 0 | S11: =IF(A11="","",VLOOKUP($A11,ModelList!$B:$Y,23,FALSE)*C11) -> 0.5 | T11: =IF(A11="","",VLOOKUP($A11,ModelList!$B:$Y,24,FALSE)*C11) -> 0
A12: =IF(DataEntry!I4="","",DataEntry!I4) -> TB | B12: =IF(A12="","",VLOOKUP(A12,ModelList!$B:$Z,25,FALSE)) -> Tactical Bond | C12: =IF(DataEntry!J4="","",DataEntry!J4/100) -> 0.3 | D12: 30000 | E12: 336 | F12: =IF(D12="","",IF($F$10="Default",E12,IF($F$10="SVW",'Fee Schedules'!$G$1*D12,IF($F$10="SAGE",'Fee Schedules'!$H$1*D12,IF($F$10="HSC",'Fee Schedules'!$N$1*D12,IF(E12=0,0,D12*$F$10)))))) -> 300 | G12: =IF(D12="","",D12*J12) -> 36 | H12: =IF(D12="","",VLOOKUP(A12,ModelList!$B$3:$AC$100,28,FALSE)*D12) -> 177 | I12: =IF(D12="","",SUM(E12:H12)) -> 849 | J12: =IF(A12="","",VLOOKUP(A12,ModelList!$B:$C,2,FALSE)) -> 0.0012 | L12: =IF(C12="","",C12) -> 0.3 | M12: =IF(D12="","",IF($F$10="HSC",'Fee Schedules'!$N$2,VLOOKUP($B12,ModelList!$A$3:$D$126,4,FALSE))) -> 0.0112 | N12: =IF($C12="","",VLOOKUP($B12,ModelList!$A$3:$V$126,21,FALSE)) -> 0 | O12: =IF($C12="","",VLOOKUP($B12,ModelList!$A$3:$V$126,22,FALSE)) -> 0 | P12: =IF($N12="","",N12*$C12) -> 0 | Q12: =IF($N12="","",O12*$C12) -> 0 | R12: =IF(A12="","",VLOOKUP($A12,ModelList!$B:$Y,22,FALSE)*C12) -> 0.3 | S12: =IF(A12="","",VLOOKUP($A12,ModelList!$B:$Y,23,FALSE)*C12) -> 0 | T12: =IF(A12="","",VLOOKUP($A12,ModelList!$B:$Y,24,FALSE)*C12) -> 0
A13: =IF(DataEntry!K4="","",DataEntry!K4) -> INA | B13: =IF(A13="","",VLOOKUP(A13,ModelList!$B:$Z,25,FALSE)) -> Income Allocator | C13: =IF(DataEntry!L4="","",DataEntry!L4/100) -> 0.2 | D13: 20000 | E13: 224 | F13: =IF(D13="","",IF($F$10="Default",E13,IF($F$10="SVW",'Fee Schedules'!$G$1*D13,IF($F$10="SAGE",'Fee Schedules'!$H$1*D13,IF($F$10="HSC",'Fee Schedules'!$N$1*D13,IF(E13=0,0,D13*$F$10)))))) -> 200 | G13: 24 | H13: =IF(D13="","",VLOOKUP(A13,ModelList!$B$3:$AC$100,28,FALSE)*D13) -> 158 | I13: 606 | J13: =IF(A13="","",VLOOKUP(A13,ModelList!$B:$C,2,FALSE)) -> 0.0012 | L13: 0.2 | M13: =IF(D13="","",IF($F$10="HSC",'Fee Schedules'!$N$2,VLOOKUP($B13,ModelList!$A$3:$D$126,4,FALSE))) -> 0.0112 | N13: =IF($C13="","",VLOOKUP($B13,ModelList!$A$3:$V$126,21,FALSE)) -> 0 | O13: =IF($C13="","",VLOOKUP($B13,ModelList!$A$3:$V$126,22,FALSE)) -> 0.15 | P13: 0 | Q13: 0.03 | R13: =IF(A13="","",VLOOKUP($A13,ModelList!$B:$Y,22,FALSE)*C13) -> 0.2 | S13: =IF(A13="","",VLOOKUP($A13,ModelList!$B:$Y,23,FALSE)*C13) -> 0 | T13: =IF(A13="","",VLOOKUP($A13,ModelList!$B:$Y,24,FALSE)*C13) -> 0
A14: =IF(DataEntry!M4="","",DataEntry!M4) ->  | B14: =IF(A14="","",VLOOKUP(A14,ModelList!$B:$Z,25,FALSE)) ->  | C14: =IF(DataEntry!N4="","",DataEntry!N4/100) ->  | F14: =IF(D14="","",IF($F$10="Default",E14,IF($F$10="SVW",'Fee Schedules'!$G$1*D14,IF($F$10="SAGE",'Fee Schedules'!$H$1*D14,IF($F$10="HSC",'Fee Schedules'!$N$1*D14,IF(E14=0,0,D14*$F$10)))))) ->  | H14: =IF(D14="","",VLOOKUP(A14,ModelList!$B$3:$AC$100,28,FALSE)*D14) ->  | J14: =IF(A14="","",VLOOKUP(A14,ModelList!$B:$C,2,FALSE)) ->  | M14: =IF(D14="","",IF($F$10="HSC",'Fee Schedules'!$N$2,VLOOKUP($B14,ModelList!$A$3:$D$126,4,FALSE))) ->  | N14: =IF($C14="","",VLOOKUP($B14,ModelList!$A$3:$V$126,21,FALSE)) ->  | O14: =IF($C14="","",VLOOKUP($B14,ModelList!$A$3:$V$126,22,FALSE)) ->  | R14: =IF(A14="","",VLOOKUP($A14,ModelList!$B:$Y,22,FALSE)*C14) ->  | S14: =IF(A14="","",VLOOKUP($A14,ModelList!$B:$Y,23,FALSE)*C14) ->  | T14: =IF(A14="","",VLOOKUP($A14,ModelList!$B:$Y,24,FALSE)*C14) -> 
A15: =IF(DataEntry!O4="","",DataEntry!O4) ->  | B15: =IF(A15="","",VLOOKUP(A15,ModelList!$B:$Z,25,FALSE)) ->  | C15: =IF(DataEntry!P4="","",DataEntry!P4/100) ->  | F15: =IF(D15="","",IF($F$10="Default",E15,IF($F$10="SVW",'Fee Schedules'!$G$1*D15,IF($F$10="SAGE",'Fee Schedules'!$H$1*D15,IF($F$10="HSC",'Fee Schedules'!$N$1*D15,IF(E15=0,0,D15*$F$10)))))) ->  | H15: =IF(D15="","",VLOOKUP(A15,ModelList!$B$3:$AC$100,28,FALSE)*D15) ->  | J15: =IF(A15="","",VLOOKUP(A15,ModelList!$B:$C,2,FALSE)) ->  | M15: =IF(D15="","",IF($F$10="HSC",'Fee Schedules'!$N$2,VLOOKUP($B15,ModelList!$A$3:$D$126,4,FALSE))) ->  | N15: =IF($C15="","",VLOOKUP($B15,ModelList!$A$3:$V$126,21,FALSE)) ->  | O15: =IF($C15="","",VLOOKUP($B15,ModelList!$A$3:$V$126,22,FALSE)) ->  | R15: =IF(A15="","",VLOOKUP($A15,ModelList!$B:$Y,22,FALSE)*C15) ->  | S15: =IF(A15="","",VLOOKUP($A15,ModelList!$B:$Y,23,FALSE)*C15) ->  | T15: =IF(A15="","",VLOOKUP($A15,ModelList!$B:$Y,24,FALSE)*C15) -> 
A16: 6 | F16: =IF(D16="","",IF($F$10="Default",E16,D16*$F$10)) ->  | G16: =IF(D16="","",D16*$J$9) ->  | I16: =IF(D16="","",SUM(E16:G16)) ->  | J16: =IF(A16="","",VLOOKUP(A16,ModelList!$B:$C,2,FALSE)) ->  | K16: =IF(B16="","",VLOOKUP($B16,ModelList!$A$3:$D$53,2,FALSE)) ->  | L16: =IF(C16="","",C16) ->  | M16: =IF(C16="","",VLOOKUP($B16,ModelList!$A$3:$D$53,4,FALSE)) -> 
A17: 7 | E17: =IF(D17="","",D17*M17) ->  | F17: =IF(D17="","",IF($F$10="Default",E17,D17*$F$10)) ->  | G17: =IF(D17="","",D17*$J$9) ->  | I17: =IF(D17="","",SUM(E17:G17)) ->  | J17: =IF(A17="","",VLOOKUP(A17,ModelList!$B:$C,2,FALSE)) ->  | K17: =IF(B17="","",VLOOKUP($B17,ModelList!$A$3:$D$53,2,FALSE)) ->  | L17: =IF(C17="","",C17) ->  | M17: =IF(C17="","",VLOOKUP($B17,ModelList!$A$3:$D$53,4,FALSE)) -> 
A18: 8 | J18: =IF(A18="","",VLOOKUP(A18,ModelList!$B:$C,2,FALSE)) ->  | K18: =IF(B18="","",VLOOKUP($B18,ModelList!$A$3:$D$53,2,FALSE)) ->  | M18: =IF(C18="","",VLOOKUP($B18,ModelList!$A$3:$D$53,4,FALSE)) -> 
A19: 9 | J19: =IF(A19="","",VLOOKUP(A19,ModelList!$B:$C,2,FALSE)) ->  | K19: =IF(B19="","",VLOOKUP($B19,ModelList!$A$3:$D$53,2,FALSE)) ->  | M19: =IF(C19="","",VLOOKUP($B19,ModelList!$A$3:$D$53,4,FALSE)) -> 
A20: 10 | J20: =IF(A20="","",VLOOKUP(A20,ModelList!$B:$C,2,FALSE)) ->  | K20: =IF(B20="","",VLOOKUP($B20,ModelList!$A$3:$D$53,2,FALSE)) ->  | M20: =IF(C20="","",VLOOKUP($B20,ModelList!$A$3:$D$53,4,FALSE)) -> 
B21: * Fees will vary based on the actual account value | C21: =SUM(C11:C20) -> 1 | D21: 100000 | E21: 935 | F21: 1000 | G21: 120 | H21: 885 | I21: 2940 | J21: =IF(A21="","",VLOOKUP(A21,ModelList!$B:$C,2,FALSE)) ->  | K21: Risk Score | L21: MVaR | M21: MaxDD | N21: 3 Yr Ret | O21: 5 Yr Ret | P21: 10 Yr Ret | Q21: Ret / Risk | R21: Sharpe | S21: Up Capt | T21: Dwn Capt | U21: Std Dev | V21: Min | W21: Max
D22: Est. Annual Fee Percentage*: | E22: =E21/$D$21 -> 0.00935 | F22: =F21/$D$21 -> 0.01 | G22: =G21/$D$21 -> 0.0012 | H22: =H21/$D$21 -> 0.00885 | I22: =I21/$D$21 -> 0.0294 | K22: =I29 -> 31 | L22: ='Performance Details'!L41 -> -0.09090800214 | M22: ='Performance Details'!L40 -> -0.07210136794 | N22: =H43 -> 0.006628611626 | O22: =H45 -> 0.02413171827 | P22: =H47 -> 0.02185256951 | Q22: =P22/-I27 -> 0.2403811435 | R22: =H51 -> 0.4680582134 | S22: =H53 -> 0.1604089506 | T22: =H55 -> 0.1549726591 | U22: ='Performance Details'!L39 -> 0.04042836691 | V22: ='Performance Details'!J6 -> 0 | W22: ='Performance Details'!L6 -> 0.23
A23: =PortfolioSummary!G23 -> Benchmark = 30% Stocks / 70 % Bonds (w/no fees). For more info please see the DISCLAIMER
H24: Portfolio End Value:
H25: ='Performance Details'!Q24 -> 321335.3651
H26: Annual Ret: | I26: ='Performance Details'!L33 -> 0.04879880706
H27: Downside Risk: | I27: =MIN('Performance Details'!L40:L41) -> -0.09090800214
H28: Tolerisk Score: | I28: ='Performance Details'!L42 -> 24
H29: Riskalyze #: | I29: ='Performance Details'!L43 -> 31
H31: Benchmark End Value:
H32: ='Performance Details'!R24 -> 256048.4644
H33: Annual Ret: | I33: ='Performance Details'!M33 -> 0.03912121416
H34: Downside Risk: | I34: =MIN('Performance Details'!M40:M41) -> -0.1765776693
H35: Tolerisk Score: | I35: ='Performance Details'!M42 -> 30
H36: Riskalyze #: | I36: ='Performance Details'!M43 -> 38
H38: SEM Difference:
H39: =H25-H32 -> 65286.90073
H41: Other Statistics:
H42: 3 Year Annualized Ret
H43: ='Performance Details'!L29 -> 0.006628611626 | I43: ='Performance Details'!M29 -> 0.00164550353
H44: 5 Year Annualized Ret
H45: ='Performance Details'!L30 -> 0.02413171827 | I45: ='Performance Details'!M30 -> 0.02225751549
H46: 10 Year Annualized Ret
H47: ='Performance Details'!L31 -> 0.02185256951 | I47: ='Performance Details'!M31 -> 0.02367579067
H48: Beta
H49: ='Performance Details'!L36 -> 0.1849273599 | I49: ='Performance Details'!M36 -> 0.2763395869
H50: Sharpe Ratio
H51: ='Performance Details'!L47 -> 0.4680582134 | I51: ='Performance Details'!M47 -> 0.3748921165
A52: ILLUSTRATIVE PURPOSES ONLY | Past performance is not a guarantee of future results. Above allocations are a hypothetical blend of SEM's investment models assembled with the benefit of hindsight. Real-time results are likely to differ from the above due to several factors including future adjustments to the portfolio made due to the current market environment. The next page includes a more detailed disclaimer of the limitations & risk of this data. | H52: Up Capture
H53: ='Performance Details'!L49 -> 0.1604089506 | I53: ='Performance Details'!M49 -> 0.244964067
H54: Down Capture
H55: ='Performance Details'!L50 -> 0.1549726591 | I55: ='Performance Details'!M50 -> 0.2981295253
A56: ^Internal Fees: This is an ESTIMATE of the fees that would be paid based on the current quarter end allocation. Due to the nature of the investment models the internal fees will vary signficantly based on the current allocations. In general, when the models are in a "lower risk" allocation, the fees will be quite low. When fully invested, the fees will be higher. It should be noted that all returns are NET OF ALL FEES. Internal fees have declined 2-3 times over the past 20 years, meaning the historic results include fees which were significantly higher than they are today and going forward. The benchmark is a NO FEE allocation to low cost (less than 0.15% internal fees) passive index funds. This means you can compare the AFTER FEE results of both the SEM Model Portfolios and the index in terms of both overall returns and risk. In other words, the returns are AFTER paying ALL fees.
A57: ACKNOWLEDGEMENT & INSTRUCTIONS TO SEM: Please set the portfolio allocation & management fee to match the above choices. SEM's portion of the fees are based on the fee schedule included in our ADV. Clients are encouraged to review the overall level of assets to ensure they are paying the lowest possible fees. This addendum does not change any other portion of the original Management Fee agreement other than the Financial Advisor's fee. I understand the change in my portfolio allocation may result in my funds being invested in the market a larger or smaller percentage of the time. This change will effect both my participation in the market upside and downside from my current portfolio. This portfolio adjustment is a reflection of a change in my personal risk assessment and/or goals and objectives for the investments being moved. The above illustration reflects the difference between an actively managed investment supervised by SEM and my financial advisor and a passive, no fee blend of similarly invested index funds. While not an exact representation of the investments available elsewhere, it does reflect the potential differences in both returns and risks by hiring SEM and the financial advisor to manage my account.
A59: Client(s) Signature | Date | F59: Advisor Signature | Date

Sheet FeeDetails-Expanded
B1: =DataEntry!D1 -> v18 2024Q2 | C1: =IF(DataEntry!B4="","",CONCATENATE(DataEntry!C4," ",DataEntry!B4," ",DataEntry!D4)) -> Joe & Jessica Demo IRAs | G1: Investment Amount: | H1: =IF(DataEntry!E4="","",DataEntry!E4) -> 100000 | J1: Please print the disclaimer tab to accompany this report.
C2: Account#(s): | D2: =IF(DataEntry!A4="","",DataEntry!A4) ->  | G2: Total Family Assets w/SEM: | H2: =IF(DataEntry!E5="",DataEntry!E4,DataEntry!E5) -> 100000 | I2: =CONCATENATE(C1," SEM Portfolio") -> Joe & Jessica Demo IRAs SEM Portfolio | J2: This sheet can be used to set the Financial Advisor's Fee & complete a Program Change with SEM
A4: Client Info | B4: Investment Experience: | C4: =IF(DataEntry!C9="","",DataEntry!C9) ->  | D4: Emergency Assets: | E4: =IF(DataEntry!C10="","",DataEntry!C10) ->  | G4: Riskalyze Score | H4: =IF(DataEntry!I11="","",DataEntry!I11) ->  | T4: =VLOOKUP(H4,Suitability!D:F,3,TRUE) -> 
B5: Annual Income: | C5: =IF(DataEntry!C12="","",DataEntry!C12) ->  | D5: Liquid Net Worth: | E5: =IF(DataEntry!C13="","",DataEntry!C13) ->  | G5: Risk Tolerance | H5: =IF(DataEntry!E11="","",DataEntry!E11) ->  | U5: =IF(H5="","",VLOOKUP(H5,Suitability!$A$59:$B$66,2,FALSE)) -> 
B6: Tax Bracket: | C6: =IF(DataEntry!C11="","",DataEntry!C11) ->  | D6: Investor Type: | E6: =IF(DataEntry!E9="","",DataEntry!E9) ->  | G6: % of Net Worth | H6: =IF(DataEntry!C14="","",DataEntry!C14) ->  | J6: Axos Fee | U6: =IF(E6="","",VLOOKUP(E6,Suitability!$A$33:$B$37,2,FALSE)) -> 
B7: Investment Time Horizon: | C7: =IF(DataEntry!E10="","",DataEntry!E10) ->  | D7: Objective: | E7: =IF(DataEntry!E12="","",DataEntry!E12) ->  | J7: 0.0012 | K7: Unless an individual account is OVER $1M leave at 0.12% | U7: =IF(C7="","",VLOOKUP(C7,Suitability!$A$50:$B$56,2,FALSE)) ->  | V7: =IF(E7="","",VLOOKUP(E7,Suitability!$A$69:$B$73,2,FALSE)) -> 
B8: * = If an * choice is selected, clients should discuss the suitability of holding any risky investments. | D8: If given a choice, I would prefer: | E8: =IF(DataEntry!E13="","",DataEntry!E13) ->  | G8: Suggested Portfolio Type: | H8: =IF(AND(U8<5,H4=""),"",IF(U8>5,VLOOKUP(U8,Suitability!$E$2:$F$35,2,FALSE),T4)) ->  | K8: =DataEntry!G7 -> No | U8: =SUM(U5:U7,V7:V8) -> 0 | V8: =IF(E8="","",VLOOKUP(E8,Suitability!$A$76:$B$78,2,FALSE)) -> 
B9: Model Name | C9: % Alloc: | D9: $ Invested | E9: SEM Fee Amt* | F9: Advisor Fee: | G9: Axos Fees | H9: Total Fees*
A10: Model | F10: =IF(DataEntry!F4="","Default",IF(OR(DataEntry!F4="Default",DataEntry!F4="Standard"),"Default",IF(DataEntry!F4="SVW","SVW",IF(DataEntry!F4="SAGE","SAGE",IF(DataEntry!F4="HSC","HSC",DataEntry!F4/100))))) -> 0.01 | O10: Min | P10: Max | Q10: Tactical | R10: Dynamic | S10: AmeriGuard
A11: =IF(DataEntry!G4="","",DataEntry!G4) -> DIA | B11: =IF(A11="","",VLOOKUP(A11,ModelList!$B:$Z,25,FALSE)) -> Dyn. Inc. Alloc. | C11: =IF(DataEntry!H4="","",DataEntry!H4/100) -> 0.5 | D11: =IF(C11="","",C11*$H$1) -> 50000 | E11: =IF(D11="","",D11*L11) -> 375 | F11: =IF(D11="","",IF($F$10="Default",E11,IF($F$10="SVW",'Fee Schedules'!$G$1*D11,IF($F$10="SAGE",'Fee Schedules'!$H$1*D11,IF($F$10="HSC",'Fee Schedules'!$N$1*D11,IF(E11=0,0,D11*$F$10)))))) -> 500 | G11: =IF(D11="","",D11*I11) -> 60 | H11: =IF(D11="","",SUM(E11:G11)) -> 935 | I11: =IF(A11="","",$J$7) -> 0.0012 | K11: =IF(C11="","",C11) -> 0.5 | L11: =IF(C11="","",IF(OR($F$10="HSC",$K$8="Yes"),'Fee Schedules'!$N$2,VLOOKUP($B11,ModelList!$A$3:$D$126,4,FALSE))) -> 0.0075 | M11: =IF($C11="","",VLOOKUP($B11,ModelList!$A$3:$V$126,21,FALSE)) -> 0 | N11: =IF($C11="","",VLOOKUP($B11,ModelList!$A$3:$V$126,22,FALSE)) -> 0.4 | O11: =IF($M11="","",M11*$C11) -> 0 | P11: 0.2 | Q11: =IF(A11="","",VLOOKUP($A11,ModelList!$B:$Y,22,FALSE)*C11) -> 0 | R11: =IF(A11="","",VLOOKUP($A11,ModelList!$B:$Y,23,FALSE)*C11) -> 0.5 | S11: =IF(A11="","",VLOOKUP($A11,ModelList!$B:$Y,24,FALSE)*C11) -> 0
A12: =IF(DataEntry!I4="","",DataEntry!I4) -> TB | B12: =IF(A12="","",VLOOKUP(A12,ModelList!$B:$Z,25,FALSE)) -> Tactical Bond | C12: =IF(DataEntry!J4="","",DataEntry!J4/100) -> 0.3 | D12: =IF(C12="","",C12*$H$1) -> 30000 | E12: 336 | F12: =IF(D12="","",IF($F$10="Default",E12,IF($F$10="SVW",'Fee Schedules'!$G$1*D12,IF($F$10="SAGE",'Fee Schedules'!$H$1*D12,IF($F$10="HSC",'Fee Schedules'!$N$1*D12,IF(E12=0,0,D12*$F$10)))))) -> 300 | G12: =IF(D12="","",D12*I12) -> 36 | H12: 672 | I12: =IF(A12="","",$J$7) -> 0.0012 | K12: =IF(C12="","",C12) -> 0.3 | L12: =IF(C12="","",IF(OR($F$10="HSC",$K$8="Yes"),'Fee Schedules'!$N$2,VLOOKUP($B12,ModelList!$A$3:$D$126,4,FALSE))) -> 0.0112 | M12: =IF($C12="","",VLOOKUP($B12,ModelList!$A$3:$V$126,21,FALSE)) -> 0 | N12: =IF($C12="","",VLOOKUP($B12,ModelList!$A$3:$V$126,22,FALSE)) -> 0 | O12: =IF($M12="","",M12*$C12) -> 0 | P12: =IF($M12="","",N12*$C12) -> 0 | Q12: =IF(A12="","",VLOOKUP($A12,ModelList!$B:$Y,22,FALSE)*C12) -> 0.3 | R12: =IF(A12="","",VLOOKUP($A12,ModelList!$B:$Y,23,FALSE)*C12) -> 0 | S12: =IF(A12="","",VLOOKUP($A12,ModelList!$B:$Y,24,FALSE)*C12) -> 0
A13: =IF(DataEntry!K4="","",DataEntry!K4) -> INA | B13: =IF(A13="","",VLOOKUP(A13,ModelList!$B:$Z,25,FALSE)) -> Income Allocator | C13: =IF(DataEntry!L4="","",DataEntry!L4/100) -> 0.2 | D13: 20000 | E13: 224 | F13: =IF(D13="","",IF($F$10="Default",E13,IF($F$10="SVW",'Fee Schedules'!$G$1*D13,IF($F$10="SAGE",'Fee Schedules'!$H$1*D13,IF($F$10="HSC",'Fee Schedules'!$N$1*D13,IF(E13=0,0,D13*$F$10)))))) -> 200 | G13: 24 | H13: 448 | I13: 0.0012 | K13: 0.2 | L13: =IF(C13="","",IF(OR($F$10="HSC",$K$8="Yes"),'Fee Schedules'!$N$2,VLOOKUP($B13,ModelList!$A$3:$D$126,4,FALSE))) -> 0.0112 | M13: =IF($C13="","",VLOOKUP($B13,ModelList!$A$3:$V$126,21,FALSE)) -> 0 | N13: =IF($C13="","",VLOOKUP($B13,ModelList!$A$3:$V$126,22,FALSE)) -> 0.15 | O13: 0 | P13: 0.03 | Q13: =IF(A13="","",VLOOKUP($A13,ModelList!$B:$Y,22,FALSE)*C13) -> 0.2 | R13: =IF(A13="","",VLOOKUP($A13,ModelList!$B:$Y,23,FALSE)*C13) -> 0 | S13: =IF(A13="","",VLOOKUP($A13,ModelList!$B:$Y,24,FALSE)*C13) -> 0
A14: =IF(DataEntry!M4="","",DataEntry!M4) ->  | B14: =IF(A14="","",VLOOKUP(A14,ModelList!$B:$Z,25,FALSE)) ->  | C14: =IF(DataEntry!N4="","",DataEntry!N4/100) ->  | F14: =IF(D14="","",IF($F$10="Default",E14,IF($F$10="SVW",'Fee Schedules'!$G$1*D14,IF($F$10="SAGE",'Fee Schedules'!$H$1*D14,IF($F$10="HSC",'Fee Schedules'!$N$1*D14,IF(E14=0,0,D14*$F$10)))))) ->  | L14: =IF(C14="","",IF(OR($F$10="HSC",$K$8="Yes"),'Fee Schedules'!$N$2,VLOOKUP($B14,ModelList!$A$3:$D$126,4,FALSE))) ->  | M14: =IF($C14="","",VLOOKUP($B14,ModelList!$A$3:$V$126,21,FALSE)) ->  | N14: =IF($C14="","",VLOOKUP($B14,ModelList!$A$3:$V$126,22,FALSE)) ->  | Q14: =IF(A14="","",VLOOKUP($A14,ModelList!$B:$Y,22,FALSE)*C14) ->  | R14: =IF(A14="","",VLOOKUP($A14,ModelList!$B:$Y,23,FALSE)*C14) ->  | S14: =IF(A14="","",VLOOKUP($A14,ModelList!$B:$Y,24,FALSE)*C14) -> 
A15: =IF(DataEntry!O4="","",DataEntry!O4) ->  | B15: =IF(A15="","",VLOOKUP(A15,ModelList!$B:$Z,25,FALSE)) ->  | C15: =IF(DataEntry!P4="","",DataEntry!P4/100) ->  | F15: =IF(D15="","",IF($F$10="Default",E15,IF($F$10="SVW",'Fee Schedules'!$G$1*D15,IF($F$10="SAGE",'Fee Schedules'!$H$1*D15,IF($F$10="HSC",'Fee Schedules'!$N$1*D15,IF(E15=0,0,D15*$F$10)))))) ->  | L15: =IF(C15="","",IF(OR($F$10="HSC",$K$8="Yes"),'Fee Schedules'!$N$2,VLOOKUP($B15,ModelList!$A$3:$D$126,4,FALSE))) ->  | M15: =IF($C15="","",VLOOKUP($B15,ModelList!$A$3:$V$126,21,FALSE)) ->  | N15: =IF($C15="","",VLOOKUP($B15,ModelList!$A$3:$V$126,22,FALSE)) ->  | Q15: =IF(A15="","",VLOOKUP($A15,ModelList!$B:$Y,22,FALSE)*C15) ->  | R15: =IF(A15="","",VLOOKUP($A15,ModelList!$B:$Y,23,FALSE)*C15) ->  | S15: =IF(A15="","",VLOOKUP($A15,ModelList!$B:$Y,24,FALSE)*C15) -> 
A16: =IF(DataEntry!Q4="","",DataEntry!Q4) ->  | B16: =IF(A16="","",VLOOKUP(A16,ModelList!$B:$Z,25,FALSE)) ->  | C16: =IF(DataEntry!R4="","",DataEntry!R4/100) ->  | F16: =IF(D16="","",IF($F$10="Default",E16,IF($F$10="SVW",'Fee Schedules'!$G$1*D16,IF($F$10="SAGE",'Fee Schedules'!$H$1*D16,IF($F$10="HSC",'Fee Schedules'!$N$1*D16,IF(E16=0,0,D16*$F$10)))))) ->  | L16: =IF(C16="","",IF(OR($F$10="HSC",$K$8="Yes"),'Fee Schedules'!$N$2,VLOOKUP($B16,ModelList!$A$3:$D$126,4,FALSE))) ->  | M16: =IF($C16="","",VLOOKUP($B16,ModelList!$A$3:$V$126,21,FALSE)) ->  | N16: =IF($C16="","",VLOOKUP($B16,ModelList!$A$3:$V$126,22,FALSE)) ->  | Q16: =IF(A16="","",VLOOKUP($A16,ModelList!$B:$Y,22,FALSE)*C16) ->  | R16: =IF(A16="","",VLOOKUP($A16,ModelList!$B:$Y,23,FALSE)*C16) ->  | S16: =IF(A16="","",VLOOKUP($A16,ModelList!$B:$Y,24,FALSE)*C16) -> 
A17: =IF(DataEntry!S4="","",DataEntry!S4) ->  | B17: =IF(A17="","",VLOOKUP(A17,ModelList!$B:$Z,25,FALSE)) ->  | C17: =IF(DataEntry!T4="","",DataEntry!T4/100) ->  | F17: =IF(D17="","",IF($F$10="Default",E17,IF($F$10="SVW",'Fee Schedules'!$G$1*D17,IF($F$10="SAGE",'Fee Schedules'!$H$1*D17,IF($F$10="HSC",'Fee Schedules'!$N$1*D17,IF(E17=0,0,D17*$F$10)))))) ->  | L17: =IF(C17="","",IF(OR($F$10="HSC",$K$8="Yes"),'Fee Schedules'!$N$2,VLOOKUP($B17,ModelList!$A$3:$D$126,4,FALSE))) ->  | M17: =IF($C17="","",VLOOKUP($B17,ModelList!$A$3:$V$126,21,FALSE)) ->  | N17: =IF($C17="","",VLOOKUP($B17,ModelList!$A$3:$V$126,22,FALSE)) ->  | Q17: =IF(A17="","",VLOOKUP($A17,ModelList!$B:$Y,22,FALSE)*C17) ->  | R17: =IF(A17="","",VLOOKUP($A17,ModelList!$B:$Y,23,FALSE)*C17) ->  | S17: =IF(A17="","",VLOOKUP($A17,ModelList!$B:$Y,24,FALSE)*C17) -> 
A18: =IF(DataEntry!U4="","",DataEntry!U4) ->  | B18: =IF(A18="","",VLOOKUP(A18,ModelList!$B:$Z,25,FALSE)) ->  | C18: =IF(DataEntry!V4="","",DataEntry!V4/100) ->  | F18: =IF(D18="","",IF($F$10="Default",E18,IF($F$10="SVW",'Fee Schedules'!$G$1*D18,IF($F$10="SAGE",'Fee Schedules'!$H$1*D18,IF($F$10="HSC",'Fee Schedules'!$N$1*D18,IF(E18=0,0,D18*$F$10)))))) ->  | L18: =IF(C18="","",IF(OR($F$10="HSC",$K$8="Yes"),'Fee Schedules'!$N$2,VLOOKUP($B18,ModelList!$A$3:$D$126,4,FALSE))) ->  | M18: =IF($C18="","",VLOOKUP($B18,ModelList!$A$3:$V$126,21,FALSE)) ->  | N18: =IF($C18="","",VLOOKUP($B18,ModelList!$A$3:$V$126,22,FALSE)) ->  | Q18: =IF(A18="","",VLOOKUP($A18,ModelList!$B:$Y,22,FALSE)*C18) ->  | R18: =IF(A18="","",VLOOKUP($A18,ModelList!$B:$Y,23,FALSE)*C18) ->  | S18: =IF(A18="","",VLOOKUP($A18,ModelList!$B:$Y,24,FALSE)*C18) -> 
A19: =IF(DataEntry!W4="","",DataEntry!W4) ->  | B19: =IF(A19="","",VLOOKUP(A19,ModelList!$B:$Z,25,FALSE)) ->  | C19: =IF(DataEntry!X4="","",DataEntry!X4/100) ->  | F19: =IF(D19="","",IF($F$10="Default",E19,IF($F$10="SVW",'Fee Schedules'!$G$1*D19,IF($F$10="SAGE",'Fee Schedules'!$H$1*D19,IF($F$10="HSC",'Fee Schedules'!$N$1*D19,IF(E19=0,0,D19*$F$10)))))) ->  | L19: =IF(C19="","",IF(OR($F$10="HSC",$K$8="Yes"),'Fee Schedules'!$N$2,VLOOKUP($B19,ModelList!$A$3:$D$126,4,FALSE))) ->  | M19: =IF($C19="","",VLOOKUP($B19,ModelList!$A$3:$V$126,21,FALSE)) ->  | N19: =IF($C19="","",VLOOKUP($B19,ModelList!$A$3:$V$126,22,FALSE)) ->  | Q19: =IF(A19="","",VLOOKUP($A19,ModelList!$B:$Y,22,FALSE)*C19) ->  | R19: =IF(A19="","",VLOOKUP($A19,ModelList!$B:$Y,23,FALSE)*C19) ->  | S19: =IF(A19="","",VLOOKUP($A19,ModelList!$B:$Y,24,FALSE)*C19) -> 
A20: =IF(DataEntry!Y4="","",DataEntry!Y4) ->  | B20: =IF(A20="","",VLOOKUP(A20,ModelList!$B:$Z,25,FALSE)) ->  | C20: =IF(DataEntry!Z4="","",DataEntry!Z4/100) ->  | F20: =IF(D20="","",IF($F$10="Default",E20,IF($F$10="SVW",'Fee Schedules'!$G$1*D20,IF($F$10="SAGE",'Fee Schedules'!$H$1*D20,IF($F$10="HSC",'Fee Schedules'!$N$1*D20,IF(E20=0,0,D20*$F$10)))))) ->  | L20: =IF(C20="","",IF(OR($F$10="HSC",$K$8="Yes"),'Fee Schedules'!$N$2,VLOOKUP($B20,ModelList!$A$3:$D$126,4,FALSE))) ->  | M20: =IF($C20="","",VLOOKUP($B20,ModelList!$A$3:$V$126,21,FALSE)) ->  | N20: =IF($C20="","",VLOOKUP($B20,ModelList!$A$3:$V$126,22,FALSE)) ->  | Q20: =IF(A20="","",VLOOKUP($A20,ModelList!$B:$Y,22,FALSE)*C20) ->  | R20: =IF(A20="","",VLOOKUP($A20,ModelList!$B:$Y,23,FALSE)*C20) ->  | S20: =IF(A20="","",VLOOKUP($A20,ModelList!$B:$Y,24,FALSE)*C20) -> 
B21: * Fees will vary based on the actual account value | C21: =SUM(C11:C20) -> 1 | D21: 100000 | E21: 935 | F21: 1000 | G21: 120 | H21: 2055 | J21: Risk Score | K21: MVaR | L21: MaxDD | M21: 3 Yr Ret | N21: 5 Yr Ret | O21: 10 Yr Ret | P21: Ret / Risk | Q21: Sharpe | R21: Up Capt | S21: Dwn Capt | T21: Std Dev | U21: Min | V21: Max
D22: Annual Fee Percentage*: | E22: =E21/$D$21 -> 0.00935 | F22: =F21/$D$21 -> 0.01 | G22: =G21/$D$21 -> 0.0012 | H22: =H21/$D$21 -> 0.02055 | J22: =H29 -> 31 | K22: ='Performance Details'!L41 -> -0.09090800214 | L22: ='Performance Details'!L40 -> -0.07210136794 | M22: =G43 -> 0.006628611626 | N22: =G45 -> 0.02413171827 | O22: =G47 -> 0.02185256951 | P22: =O22/-H27 -> 0.2403811435 | Q22: =G51 -> 0.4680582134 | R22: =G53 -> 0.1604089506 | S22: =G55 -> 0.1549726591 | T22: ='Performance Details'!L39 -> 0.04042836691 | U22: ='Performance Details'!J6 -> 0 | V22: ='Performance Details'!L6 -> 0.23
A23: =PortfolioSummary!G23 -> Benchmark = 30% Stocks / 70 % Bonds (w/no fees). For more info please see the DISCLAIMER
G24: Portfolio End Value:
G25: ='Performance Details'!Q24 -> 321335.3651
G26: Annual Ret: | H26: ='Performance Details'!L33 -> 0.04879880706
G27: Downside Risk: | H27: =MIN('Performance Details'!L40:L41) -> -0.09090800214
G28: Tolerisk Score: | H28: ='Performance Details'!L42 -> 24
G29: Riskalyze #: | H29: ='Performance Details'!L43 -> 31
G31: Benchmark End Value:
G32: ='Performance Details'!R24 -> 256048.4644
G33: Annual Ret: | H33: ='Performance Details'!M33 -> 0.03912121416
G34: Downside Risk: | H34: =MIN('Performance Details'!M40:M41) -> -0.1765776693
G35: Tolerisk Score: | H35: ='Performance Details'!M42 -> 30
G36: Riskalyze #: | H36: ='Performance Details'!M43 -> 38
G38: SEM Difference:
G39: =G25-G32 -> 65286.90073
G41: Other Statistics:
G42: 3 Year Annualized Ret
G43: ='Performance Details'!L29 -> 0.006628611626 | H43: ='Performance Details'!M29 -> 0.00164550353
G44: 5 Year Annualized Ret
G45: ='Performance Details'!L30 -> 0.02413171827 | H45: ='Performance Details'!M30 -> 0.02225751549
G46: 10 Year Annualized Ret
G47: ='Performance Details'!L31 -> 0.02185256951 | H47: ='Performance Details'!M31 -> 0.02367579067
G48: Beta
G49: ='Performance Details'!L36 -> 0.1849273599 | H49: ='Performance Details'!M36 -> 0.2763395869
G50: Sharpe Ratio
G51: ='Performance Details'!L47 -> 0.4680582134 | H51: ='Performance Details'!M47 -> 0.3748921165
A52: ILLUSTRATIVE PURPOSES ONLY | Past performance is not a guarantee of future results. Above allocations are a hypothetical blend of SEM's investment models assembled with the benefit of hindsight. Real-time results are likely to differ from the above due to several factors including future adjustments to the portfolio made due to the current market environment. The next page includes a more detailed disclaimer of the limitations & risk of this data. | G52: Up Capture
G53: ='Performance Details'!L49 -> 0.1604089506 | H53: ='Performance Details'!M49 -> 0.244964067
G54: Down Capture
G55: ='Performance Details'!L50 -> 0.1549726591 | H55: ='Performance Details'!M50 -> 0.2981295253
A56: ACKNOWLEDGEMENT & INSTRUCTIONS TO SEM: Please adjust the portfolio allocation & management fee to match the above choices. SEM has provided the Financial Advisor a choice of fee options for the advisor portion of the client's fees. SEM's portion of the fees will remain the same based on the schedule below. Clients are encouraged to review the overall level of assets to ensure they are paying the lowest possible fees. This addendum does not change any other portion of the original Management Fee agreement or the Solicitor's Disclosure Statement other than the "Shared Fee" percentage. I understand the change in my portfolio allocation may result in my funds being invested in the market a larger or smaller percentage of the time. This change will effect both my participation in the market upside and downside from my current program. I understand accounts may be closed to reallocate to the instructions above. I understand new program(s) will be governed by my existing management agreement with Strategic Equity Management (SEM). This portfolio adjustment is a reflection of a change in my personal risk assessment and/or goals and objectives for the investments being moved. I acknowledge receipt of SEM approved sales material describing my particular investment(s).
A58: Client(s) Signature | Date | F58: Advisor Signature | Date

Sheet ENCORE Withdrawals
Q1: ='Fee Details-TotalFees'!C1 -> Joe & Jessica Demo IRAs
Q2: SEM CUSTOM Portfolio Report
E3: =DataEntry!D1 -> v18 2024Q2 | Q3: =MAX(U46:U75) -> 43465
A5: Comparative Performance | I5: W/D % based on Initial or 'Current' Value?: | M5: =IF(DataEntry!D23="","",DataEntry!D23) -> Initial | Q5: SEM CUSTOM Portfolio vs. Benchmark
A6: Hypothetical Value & Income of $ Invested at time 0 with return sequence of 2008-2018
A7: =CONCATENATE("Model 1 Alloc: ",'Fee Details-TotalFees'!A11) -> Model 1 Alloc: DIA | B7: =CONCATENATE("Model 2 Alloc: ",'Fee Details-TotalFees'!A12) -> Model 2 Alloc: TB | C7: =CONCATENATE("Model 3 Alloc: ",'Fee Details-TotalFees'!A13) -> Model 3 Alloc: INA | D7: =CONCATENATE("Model 4 Alloc: ",'Fee Details-TotalFees'!A14) -> Model 4 Alloc: | E7: =CONCATENATE("Model 5 Alloc: ",'Fee Details-TotalFees'!A15) -> Model 5 Alloc: | F7: SEM Fee % | G7: Advisor Fee % | H7: Stable Value APY% | I7: Initial Value | M7: Starting w/d Amt | N7: Initial W/D Rate | O7: Assumed Inflation Rate | P7: Est. Reqd Return (15 Yrs) | Q7: Est. Reqd Return (30 Yrs)
A8: ='Fee Details-TotalFees'!C11 -> 0.5 | B8: ='Fee Details-TotalFees'!C12 -> 0.3 | C8: ='Fee Details-TotalFees'!C13 -> 0.2 | D8: ='Fee Details-TotalFees'!C14 ->  | E8: ='Fee Details-TotalFees'!C15 ->  | F8: ='Fee Details-TotalFees'!E22 -> 0.00935 | G8: ='Fee Details-TotalFees'!F22 -> 0.01 | H8: =IF(DataEntry!F24="","",DataEntry!F24) -> 0.045 | I8: ='Fee Details-TotalFees'!H1 -> 100000 | L8: 500000 | M8: =IF(DataEntry!D24="","",DataEntry!D24) -> 75000 | N8: =M8/I8 -> 0.75 | O8: =IF(DataEntry!G24="","",DataEntry!G24) -> 0 | P8: =IRR(T44:T60) -> 0.7498301276 | Q8: =IRR(T44:T75) -> 0.7499999616
A34: =PortfolioSummary!G23 -> Benchmark = 30% Stocks / 70 % Bonds (w/no fees). For more info please see the DISCLAIMER | N34: % of Rolling Periods above Required Return (30 Years)
C35: Ending Value | F35: Total Income | I35: Total Value | M35: Anlzd Return | N35: 1 Yr. | O35: 3 Yr. | P35: 5 Yr. | Q35: 10 Yr.
A36: SEM Portfolio | C36: =M75 -> 0 | F36: =SUM(C46:D75) -> 105397.0391 | I36: =F36+C36 -> 105397.0391 | M36: =(I36/$I$8)^(1/30)-1 -> 0.001753681163 | N36: =COUNTIF('Custom Data'!AN$7:AN$560,">"&$Q8)/COUNTA('Custom Data'!AN$7:AN$560) -> 0 | O36: =COUNTIF('Custom Data'!AP$7:AP$560,">"&$Q$8)/COUNTA('Custom Data'!AP$7:AP$560) -> 0 | P36: =COUNTIF('Custom Data'!AR$7:AR$560,">"&$Q$8)/COUNTA('Custom Data'!AR$7:AR$560) -> 0 | Q36: =COUNTIF('Custom Data'!AT$7:AT$560,">"&$Q$8)/COUNTA('Custom Data'!AT$7:AT$560) -> 0 | X36: =MAX(AA44:AA75) -> 105397.0391 | Y36: =VLOOKUP(X36,$AA$44:$AE$75,5,FALSE) -> 2
A37: Benchmark | C37: =N75 -> 0 | F37: =SUM(E46:F75) -> 85372.2495 | I37: =F37+C37 -> 85372.2495 | M37: =(I37/$I$8)^(1/30)-1 -> -0.005257765487 | N37: =COUNTIF('Custom Data'!BY$7:BY$560,">"&$Q$8)/COUNTA('Custom Data'!BY$7:BY$560) -> 0 | O37: =COUNTIF('Custom Data'!CA$7:CA$560,">"&$Q$8)/COUNTA('Custom Data'!CA$7:CA$560) -> 0 | P37: =COUNTIF('Custom Data'!CC$7:CC$560,">"&$Q$8)/COUNTA('Custom Data'!CC$7:CC$560) -> 0 | Q37: =COUNTIF('Custom Data'!CE$7:CE$560,">"&$Q$8)/COUNTA('Custom Data'!CE$7:CE$560) -> 0 | X37: =MAX(AB44:AB75) -> 160372.2495 | Y37: =VLOOKUP(X37,$AB$44:$AE$75,4,FALSE) -> 3
A38: S&P 500 | C38: =O75 -> 0 | F38: =SUM(G46:H75) -> 63005.27529 | I38: =F38+C38 -> 63005.27529 | M38: =(I38/$I$8)^(1/30)-1 -> -0.01528044191 | N38: =COUNTIF('Custom Data'!DJ$7:DJ$560,">"&$Q$8)/COUNTA('Custom Data'!DJ$7:DJ$560) -> 0 | O38: =COUNTIF('Custom Data'!DL$7:DL$560,">"&$Q$8)/COUNTA('Custom Data'!DL$7:DL$560) -> 0 | P38: =COUNTIF('Custom Data'!DN$7:DN$560,">"&$Q$8)/COUNTA('Custom Data'!DN$7:DN$560) -> 0 | Q38: =COUNTIF('Custom Data'!DP$7:DP$560,">"&$Q$8)/COUNTA('Custom Data'!DP$7:DP$560) -> 0 | X38: =MAX(AC44:AC75) -> 75000 | Y38: =VLOOKUP(X38,$AC$44:$AE$75,3,FALSE) -> 1 | AA38: =M75-(2*AA41) -> -11099.42933 | AB38: =N75-(2*AB41) -> -3787.410016 | AC38: =O75-(2*AC41) -> -4379.854195 | AD38: =P75-(2*AD41) -> -10771.87696
A39: Stable Value | C39: =P75 -> 0 | F39: =SUM(I46:J75) -> 104500 | I39: =F39+C39 -> 104500 | M39: =(I39/$I$8)^(1/30)-1 -> 0.001468306422 | N39: =IF(H8<Q8,0,1) -> 0 | O39: =N39 -> 0 | P39: =N39 -> 0 | Q39: =N39 -> 0 | X39: =MAX(AD44:AD75) -> 104500 | Y39: =VLOOKUP(X39,$AD$44:$AE$75,2,FALSE) -> 2
A41: Benchmark: | C41: Passive blend with no fees of a portfolio designed to meet SEM's allocation targets. | M41: Estimated required returns are the zero volatility annualized returns necessary to not run out of money over the given time. | AA41: =STDEV(M46:M75) -> 5549.714667 | AB41: =STDEV(N46:N75) -> 1893.705008 | AC41: =STDEV(O46:O75) -> 2189.927097 | AD41: =STDEV(P46:P75) -> 5385.938482
C43: Income Withdrawal | M43: Ending Value | T43: Cash Flows | AA43: Cummulative Income
A44: Year | C44: SEM | E44: Benchmark | G44: S&P 500 | I44: Stable Value | M44: SEM | N44: Benchmark | O44: S&P 500 | P44: Stable Value | S44: Income Target | T44: =-I8 -> -100000 | V44: SEM | W44: Benchmark | X44: S&P 500 | Y44: CD | Z44: 0 | AA44: 0 | AB44: =AA44 -> 0 | AC44: =AA44 -> 0 | AD44: =AC44 -> 0 | AE44: 0
A45: 0 | M45: =I8 -> 100000 | N45: =I8 -> 100000 | O45: =I8 -> 100000 | P45: =I8 -> 100000
A46: 1 | C46: =IF($M$5="initial",$M$8,$I8*$N$8) -> 75000 | E46: =IF($M$5="initial",$M$8,$I$8*$N$8) -> 75000 | G46: =IF($M$5="initial",$M$8,$I$8*$N$8) -> 75000 | I46: =IF($M$5="initial",$M$8,$I$8*$N$8) -> 75000 | K46: =A46 -> 1 | M46: =I8*(1+V46)-C46 -> 30397.03911 | N46: =I8*(1+W46)-E46 -> 10372.2495 | O46: =I8*(1+X46)-G46 -> -11994.72471 | P46: =I8*(1+Y46)-I46 -> 29500 | S46: =M8 -> 75000 | T46: =S46 -> 75000 | U46: 39813 | V46: ='Performance Details'!G36 -> 0.0539703911 | W46: ='Performance Details'!H36 -> -0.146277505 | X46: ='Performance Details'!I36 -> -0.3699472471 | Y46: =H8 -> 0.045 | Z46: =A46 -> 1 | AA46: =C46 -> 75000 | AB46: =E46 -> 75000 | AC46: =G46 -> 75000 | AD46: =I46 -> 75000 | AE46: =Z46 -> 1
A47: 2 | C47: =IF(M46<($M$8*(1+$O$8)^A46),M46,IF($M$5="initial",$M$8*((1+$O$8)^$A46),M46*$N$8)) -> 30397.03911 | E47: =IF(N46<($M$8*(1+$O$8)^A46),N46,IF($M$5="initial",$M$8*((1+$O$8)^$A46),N46*$N$8)) -> 10372.2495 | G47: =IF(O46<($M$8*(1+$O$8)^$A46),O46,IF($M$5="initial",$M$8*((1+$O$8)^$A46),O46*$N$8)) -> -11994.72471 | I47: =IF(P46<($M$8*(1+$O$8)^$A46),P46,IF($M$5="initial",$M$8*((1+$O$8)^$A46),P46*$N$8)) -> 29500 | K47: =A47 -> 2 | M47: =IF(M46<=C47,C47-C47,M46*(1+V47)-C47) -> 0 | N47: =IF(N46<=E47,E47-E47,N46*(1+W47)-E47) -> 0 | O47: =IF(O46<=G47,G47-G47,O46*(1+X47)-G47) -> 0 | P47: =IF(P46<=I47,I47-I47,P46*(1+Y47)-I47) -> 0 | S47: =S46*(1+$O$8) -> 75000 | T47: =S47 -> 75000 | U47: 40178 | V47: ='Performance Details'!G37 -> 0.2810935113 | W47: ='Performance Details'!H37 -> 0.2150261031 | X47: ='Performance Details'!I37 -> 0.2644740799 | Y47: =Y46 -> 0.045 | Z47: =A47 -> 2 | AA47: =AA46+C47 -> 105397.0391 | AB47: =AB46+E46 -> 150000 | AC47: =AC46+G47 -> 63005.27529 | AD47: =AD46+I47 -> 104500 | AE47: =Z47 -> 2
A48: 3 | C48: 0 | E48: 0 | G48: 0 | I48: 0 | K48: 3 | M48: =IF(M47<=C48,C48-C48,M47*(1+V48)-C48) -> 0 | N48: 0 | O48: =IF(O47<=G48,G48-G48,O47*(1+X48)-G48) -> 0 | P48: =IF(P47<=I48,I48-I48,P47*(1+Y48)-I48) -> 0 | S48: =S47*(1+$O$8) -> 75000 | T48: 75000 | U48: 40543 | V48: ='Performance Details'!G38 -> 0.05597013896 | W48: ='Performance Details'!H38 -> 0.09448015413 | X48: ='Performance Details'!I38 -> 0.1505149287 | Y48: =Y47 -> 0.045 | Z48: 3 | AA48: =AA47+C48 -> 105397.0391 | AB48: =AB47+E47 -> 160372.2495 | AC48: =AC47+G48 -> 63005.27529 | AD48: =AD47+I48 -> 104500 | AE48: 3
A49: 4 | C49: 0 | E49: 0 | G49: 0 | I49: 0 | K49: 4 | M49: 0 | N49: 0 | O49: 0 | P49: 0 | S49: 75000 | T49: 75000 | U49: 40908 | V49: ='Performance Details'!G39 -> -0.006171791885 | W49: ='Performance Details'!H39 -> 0.02245868386 | X49: ='Performance Details'!I39 -> 0.02117746661 | Y49: 0.045 | Z49: 4 | AA49: 105397.0391 | AB49: 160372.2495 | AC49: 63005.27529 | AD49: 104500 | AE49: 4
A50: 5 | C50: 0 | E50: 0 | G50: 0 | I50: 0 | K50: 5 | M50: 0 | N50: 0 | O50: 0 | P50: 0 | S50: 75000 | T50: 75000 | U50: 41274 | V50: ='Performance Details'!G40 -> 0.06488206503 | W50: ='Performance Details'!H40 -> 0.08753800897 | X50: ='Performance Details'!I40 -> 0.1598114568 | Y50: 0.045 | Z50: 5 | AA50: 105397.0391 | AB50: 160372.2495 | AC50: 63005.27529 | AD50: 104500 | AE50: 5
A51: 6 | C51: 0 | E51: 0 | G51: 0 | I51: 0 | K51: 6 | M51: 0 | N51: 0 | O51: 0 | P51: 0 | S51: 75000 | T51: 75000 | U51: 41639 | V51: ='Performance Details'!G41 -> 0.03461283298 | W51: ='Performance Details'!H41 -> 0.0330269146 | X51: ='Performance Details'!I41 -> 0.3240817777 | Y51: 0.045 | Z51: 6 | AA51: 105397.0391 | AB51: 160372.2495 | AC51: 63005.27529 | AD51: 104500 | AE51: 6
A52: 7 | C52: 0 | E52: 0 | G52: 0 | I52: 0 | K52: 7 | M52: 0 | N52: =IF(N51<=E52,E52-E52,N51*(1+W52)-E52) -> 0 | O52: 0 | P52: 0 | S52: 75000 | T52: 75000 | U52: 42004 | V52: ='Performance Details'!G42 -> 0.01893262298 | W52: ='Performance Details'!H42 -> 0.02683503656 | X52: ='Performance Details'!I42 -> 0.1368967585 | Y52: 0.045 | Z52: 7 | AA52: 105397.0391 | AB52: 160372.2495 | AC52: 63005.27529 | AD52: 104500 | AE52: 7
A53: 8 | C53: 0 | E53: 0 | G53: 0 | I53: 0 | K53: 8 | M53: 0 | N53: 0 | O53: 0 | P53: 0 | S53: 75000 | T53: 75000 | U53: 42369 | V53: ='Performance Details'!G43 -> -0.02828818046 | W53: ='Performance Details'!H43 -> -0.0205329803 | X53: ='Performance Details'!I43 -> 0.01407544962 | Y53: 0.045 | Z53: 8 | AA53: 105397.0391 | AB53: 160372.2495 | AC53: 63005.27529 | AD53: 104500 | AE53: 8
A54: 9 | C54: 0 | E54: 0 | G54: 0 | I54: 0 | K54: 9 | M54: 0 | N54: 0 | O54: 0 | P54: 0 | S54: 75000 | T54: 75000 | U54: 42735 | V54: ='Performance Details'!G44 -> 0.07072376686 | W54: ='Performance Details'!H44 -> 0.0618405683 | X54: ='Performance Details'!I44 -> 0.119812807 | Y54: 0.045 | Z54: 9 | AA54: 105397.0391 | AB54: 160372.2495 | AC54: 63005.27529 | AD54: 104500 | AE54: 9
A55: 10 | C55: 0 | E55: 0 | G55: 0 | I55: 0 | K55: 10 | M55: 0 | N55: 0 | O55: 0 | P55: 0 | S55: 75000 | T55: 75000 | U55: 43100 | V55: ='Performance Details'!G48 -> 0.07763884122 | W55: ='Performance Details'!H48 -> 0.05452792841 | X55: ='Performance Details'!I48 -> 0.1840202769 | Y55: 0.045 | Z55: 10 | AA55: 105397.0391 | AB55: 160372.2495 | AC55: 63005.27529 | AD55: 104500 | AE55: 10
A56: 11 | C56: 0 | E56: 0 | G56: 0 | I56: 0 | K56: 11 | M56: 0 | N56: 0 | O56: 0 | P56: 0 | S56: 75000 | T56: 75000 | U56: 43465 | V56: ='Performance Details'!G51 -> 0.06882329042 | W56: ='Performance Details'!H51 -> 0.07994002079 | X56: ='Performance Details'!I51 -> 0.2627130565 | Y56: 0.045 | Z56: 11 | AA56: 105397.0391 | AB56: 160372.2495 | AC56: 63005.27529 | AD56: 104500 | AE56: 11
A57: 12 | C57: 0 | E57: 0 | G57: 0 | I57: 0 | K57: 12 | M57: 0 | N57: 0 | O57: 0 | P57: 0 | S57: 75000 | T57: 75000 | U57: =U46 -> 39813 | V57: =V46 -> 0.0539703911 | W57: =W46 -> -0.146277505 | X57: -0.3699472471 | Y57: 0.045 | Z57: 12 | AA57: 105397.0391 | AB57: 160372.2495 | AC57: 63005.27529 | AD57: 104500 | AE57: 12
A58: 13 | C58: 0 | E58: 0 | G58: 0 | I58: 0 | K58: 13 | M58: 0 | N58: 0 | O58: 0 | P58: 0 | S58: 75000 | T58: 75000 | U58: =U47 -> 40178 | V58: 0.2810935113 | W58: 0.2150261031 | X58: 0.2644740799 | Y58: 0.045 | Z58: 13 | AA58: 105397.0391 | AB58: 160372.2495 | AC58: 63005.27529 | AD58: 104500 | AE58: 13
A59: 14 | C59: 0 | E59: 0 | G59: 0 | I59: 0 | K59: 14 | M59: 0 | N59: 0 | O59: 0 | P59: 0 | S59: 75000 | T59: 75000 | U59: 40543 | V59: 0.05597013896 | W59: 0.09448015413 | X59: 0.1505149287 | Y59: 0.045 | Z59: 14 | AA59: 105397.0391 | AB59: 160372.2495 | AC59: 63005.27529 | AD59: 104500 | AE59: 14
A60: 15 | C60: 0 | E60: 0 | G60: 0 | I60: 0 | K60: 15 | M60: 0 | N60: 0 | O60: 0 | P60: 0 | S60: 75000 | T60: 75000 | U60: 40908 | V60: -0.006171791885 | W60: 0.02245868386 | X60: 0.02117746661 | Y60: 0.045 | Z60: 15 | AA60: 105397.0391 | AB60: 160372.2495 | AC60: 63005.27529 | AD60: 104500 | AE60: 15
A61: 16 | C61: 0 | E61: 0 | G61: 0 | I61: 0 | K61: 16 | M61: 0 | N61: 0 | O61: 0 | P61: 0 | S61: 75000 | T61: 75000 | U61: 41274 | V61: 0.06488206503 | W61: 0.08753800897 | X61: 0.1598114568 | Y61: 0.045 | Z61: 16 | AA61: 105397.0391 | AB61: 160372.2495 | AC61: 63005.27529 | AD61: 104500 | AE61: 16
A62: 17 | C62: 0 | E62: 0 | G62: 0 | I62: 0 | K62: 17 | M62: 0 | N62: 0 | O62: 0 | P62: 0 | S62: 75000 | T62: 75000 | U62: 41639 | V62: 0.03461283298 | W62: 0.0330269146 | X62: 0.3240817777 | Y62: 0.045 | Z62: 17 | AA62: 105397.0391 | AB62: 160372.2495 | AC62: 63005.27529 | AD62: 104500 | AE62: 17
A63: 18 | C63: 0 | E63: 0 | G63: 0 | I63: 0 | K63: 18 | M63: 0 | N63: 0 | O63: 0 | P63: 0 | S63: 75000 | T63: 75000 | U63: 42004 | V63: 0.01893262298 | W63: 0.02683503656 | X63: 0.1368967585 | Y63: 0.045 | Z63: 18 | AA63: 105397.0391 | AB63: 160372.2495 | AC63: 63005.27529 | AD63: 104500 | AE63: 18
A64: 19 | C64: 0 | E64: 0 | G64: 0 | I64: =IF(P63<($M$8*(1+$O$8)^A63),P63,IF($M$5="initial",$M$8*((1+$O$8)^$A63),P63*$N$8)) -> 0 | K64: 19 | M64: 0 | N64: 0 | O64: 0 | P64: 0 | S64: 75000 | T64: 75000 | U64: 42369 | V64: -0.02828818046 | W64: -0.0205329803 | X64: 0.01407544962 | Y64: 0.045 | Z64: 19 | AA64: 105397.0391 | AB64: 160372.2495 | AC64: 63005.27529 | AD64: 104500 | AE64: 19
A65: 20 | C65: 0 | E65: 0 | G65: 0 | I65: 0 | K65: 20 | M65: 0 | N65: 0 | O65: 0 | P65: 0 | S65: 75000 | T65: 75000 | U65: 42735 | V65: 0.07072376686 | W65: 0.0618405683 | X65: 0.119812807 | Y65: 0.045 | Z65: 20 | AA65: 105397.0391 | AB65: 160372.2495 | AC65: 63005.27529 | AD65: 104500 | AE65: 20
A66: 21 | C66: 0 | E66: 0 | G66: 0 | I66: 0 | K66: 21 | M66: 0 | N66: 0 | O66: 0 | P66: 0 | S66: 75000 | T66: 75000 | U66: 43100 | V66: 0.07763884122 | W66: 0.05452792841 | X66: 0.1840202769 | Y66: 0.045 | Z66: 21 | AA66: 105397.0391 | AB66: 160372.2495 | AC66: 63005.27529 | AD66: 104500 | AE66: 21
A67: 22 | C67: 0 | E67: 0 | G67: 0 | I67: 0 | K67: 22 | M67: 0 | N67: 0 | O67: 0 | P67: 0 | S67: 75000 | T67: 75000 | U67: 43465 | V67: 0.06882329042 | W67: 0.07994002079 | X67: 0.2627130565 | Y67: 0.045 | Z67: 22 | AA67: 105397.0391 | AB67: 160372.2495 | AC67: 63005.27529 | AD67: 104500 | AE67: 22
A68: 23 | C68: 0 | E68: 0 | G68: 0 | I68: 0 | K68: 23 | M68: 0 | N68: 0 | O68: 0 | P68: 0 | S68: 75000 | T68: 75000 | U68: 39813 | V68: 0.0539703911 | W68: -0.146277505 | X68: -0.3699472471 | Y68: 0.045 | Z68: 23 | AA68: 105397.0391 | AB68: 160372.2495 | AC68: 63005.27529 | AD68: 104500 | AE68: 23
A69: 24 | C69: 0 | E69: 0 | G69: 0 | I69: 0 | K69: 24 | M69: 0 | N69: 0 | O69: 0 | P69: 0 | S69: 75000 | T69: 75000 | U69: 40178 | V69: 0.2810935113 | W69: 0.2150261031 | X69: 0.2644740799 | Y69: 0.045 | Z69: 24 | AA69: 105397.0391 | AB69: 160372.2495 | AC69: 63005.27529 | AD69: 104500 | AE69: 24
A70: 25 | C70: 0 | E70: 0 | G70: 0 | I70: 0 | K70: 25 | M70: 0 | N70: 0 | O70: 0 | P70: 0 | S70: 75000 | T70: 75000 | U70: 40543 | V70: 0.05597013896 | W70: 0.09448015413 | X70: 0.1505149287 | Y70: 0.045 | Z70: 25 | AA70: 105397.0391 | AB70: 160372.2495 | AC70: 63005.27529 | AD70: 104500 | AE70: 25
A71: 26 | C71: 0 | E71: 0 | G71: 0 | I71: 0 | K71: 26 | M71: 0 | N71: 0 | O71: 0 | P71: 0 | S71: 75000 | T71: 75000 | U71: 40908 | V71: -0.006171791885 | W71: 0.02245868386 | X71: 0.02117746661 | Y71: 0.045 | Z71: 26 | AA71: 105397.0391 | AB71: 160372.2495 | AC71: 63005.27529 | AD71: 104500 | AE71: 26
A72: 27 | C72: 0 | E72: 0 | G72: 0 | I72: 0 | K72: 27 | M72: 0 | N72: 0 | O72: 0 | P72: 0 | S72: 75000 | T72: 75000 | U72: 41274 | V72: 0.06488206503 | W72: 0.08753800897 | X72: 0.1598114568 | Y72: 0.045 | Z72: 27 | AA72: 105397.0391 | AB72: 160372.2495 | AC72: 63005.27529 | AD72: 104500 | AE72: 27
A73: 28 | C73: 0 | E73: 0 | G73: 0 | I73: 0 | K73: 28 | M73: 0 | N73: 0 | O73: 0 | P73: 0 | S73: 75000 | T73: 75000 | U73: 41639 | V73: 0.03461283298 | W73: 0.0330269146 | X73: 0.3240817777 | Y73: 0.045 | Z73: 28 | AA73: 105397.0391 | AB73: 160372.2495 | AC73: 63005.27529 | AD73: 104500 | AE73: 28
A74: 29 | C74: 0 | E74: 0 | G74: 0 | I74: 0 | K74: 29 | M74: 0 | N74: 0 | O74: 0 | P74: 0 | S74: 75000 | T74: 75000 | U74: 42004 | V74: 0.01893262298 | W74: 0.02683503656 | X74: 0.1368967585 | Y74: 0.045 | Z74: 29 | AA74: 105397.0391 | AB74: 160372.2495 | AC74: 63005.27529 | AD74: 104500 | AE74: 29
A75: 30 | C75: 0 | E75: 0 | G75: 0 | I75: 0 | K75: 30 | M75: 0 | N75: 0 | O75: 0 | P75: 0 | S75: 75000 | T75: 75000 | U75: 42369 | V75: -0.02828818046 | W75: -0.0205329803 | X75: 0.01407544962 | Y75: 0.045 | Z75: 30 | AA75: 105397.0391 | AB75: 160372.2495 | AC75: 63005.27529 | AD75: 104500 | AE75: 30

Sheet Cambridge Proposal (hidden)
B1: =DataEntry!D1 -> v18 2024Q2 | C1: ='Fee Details-TotalFees'!C1 -> Joe & Jessica Demo IRAs | G1: Investment Amount: | H1: =IF('Fee Details-TotalFees'!H1="","",'Fee Details-TotalFees'!H1) -> 100000 | J1: Advisor Fee: | K1: Model1 | L1: Mod1% | M1: Model2 | N1: Mod2% | O1: Model3 | P1: Mod3% | Q1: Model4 | R1: Mod4% | S1: Model5 | T1: Mod5%
C2: Account#(s): | D2: =IF('Fee Details-TotalFees'!D2="","",'Fee Details-TotalFees'!D2) ->  | G2: Household Assets: | H2: =DataEntry!E5 -> 100000 | I2: =CONCATENATE(C1," SEM Portfolio") -> Joe & Jessica Demo IRAs SEM Portfolio | J2: Default | K2: =IF('Fee Details-TotalFees'!A11="","",'Fee Details-TotalFees'!A11) -> DIA | L2: =IF('Fee Details-TotalFees'!C11="","",ROUND('Fee Details-TotalFees'!C11,2)) -> 0.5 | M2: =IF('Fee Details-TotalFees'!A12="","",'Fee Details-TotalFees'!A12) -> TB | N2: =IF('Fee Details-TotalFees'!C12="","",ROUND('Fee Details-TotalFees'!C12,2)) -> 0.3 | O2: =IF('Fee Details-TotalFees'!A13="","",'Fee Details-TotalFees'!A13) -> INA | P2: =IF('Fee Details-TotalFees'!C13="","",ROUND('Fee Details-TotalFees'!C13,2)) -> 0.2 | Q2: =IF('Fee Details-TotalFees'!A14="","",'Fee Details-TotalFees'!A14) ->  | R2: =IF('Fee Details-TotalFees'!C14="","",ROUND('Fee Details-TotalFees'!C14,2)) ->  | S2: =IF('Fee Details-TotalFees'!A15="","",'Fee Details-TotalFees'!A15) ->  | T2: =IF('Fee Details-TotalFees'!C15="","",ROUND('Fee Details-TotalFees'!C15,2)) -> 
A3: =IF(DataEntry!P2=1,_xlfn.CONCAT("Custom Bmrk= ",DataEntry!G5," ",DataEntry!H5,DataEntry!H17," ",DataEntry!I5," ",DataEntry!J5,DataEntry!J17," ",DataEntry!K5," ",DataEntry!L5,DataEntry!L17," ",DataEntry!M5," ",DataEntry!N5,DataEntry!N17," ",DataEntry!O5," ",DataEntry!P5,DataEntry!P17),_xlfn.CONCAT("Benchmark = ",DataEntry!C20,"% Stocks /",(100-DataEntry!C20)," % Bonds (w/no fees). For more info please see the DISCLAIMER")) -> Benchmark = 30% Stocks /70 % Bonds (w/no fees). For more info please see the DISCLAIMER
G4: SEM Portfolio vs. Benchmark | J4: Tactical | K4: =ROUND('Performance Details'!E5,2) -> 0.5 | L4: SEM Min. | M4: ='Performance Details'!J6 -> 0 | O4: Benchmark | P4: SEM | R4: Benchmark | S4: SEM
G5: Modeled Risk Level* | J5: Dynamic | K5: =ROUND('Performance Details'!I5,2) -> 0.5 | L5: Bmrk | M5: ='Performance Details'!M42/100 -> 0.3 | N5: Up% | O5: ='Performance Details'!M49 -> 0.244964067 | P5: ='Performance Details'!L49 -> 0.1604089506 | Q5: Return | R5: ='Performance Details'!M30 -> 0.02225751549 | S5: ='Performance Details'!L30 -> 0.02413171827
G6: ='Fee Details'!H27 -> -0.09090800214 | H6: ='Fee Details'!H34 -> -0.1765776693 | J6: Strategic | K6: =ROUND('Performance Details'!L5,2) -> 0 | L6: SEM Avg. | M6: ='Performance Details'!L42/100 -> 0.24 | N6: Down% | O6: =-'Performance Details'!M50 -> -0.2981295253 | P6: =-'Performance Details'!L50 -> -0.1549726591 | Q6: Risk | R6: =MIN('Performance Details'!M40:M41) -> -0.1765776693 | S6: =MIN('Performance Details'!L40:L41) -> -0.09090800214
G7: Riskalyze Score | L7: SEM Max | M7: =IF('Performance Details'!L6<M6,M6+0.05,'Performance Details'!L6) -> 0.29
G8: ='Fee Details'!H29 -> 31 | H8: ='Fee Details'!H36 -> 38
G9: Modeled Upside Capture*
G10: ='Fee Details'!G53 -> 0.1604089506 | H10: ='Fee Details'!H53 -> 0.244964067
G11: Modeled Downside Capture*
G12: ='Fee Details'!G55 -> 0.1549726591 | H12: ='Fee Details'!H55 -> 0.2981295253
A14: Suitability Information
A15: Risk Tolerance: | B15: =DataEntry!E11 -> 0 | C15: Time Horizon: | D15: =DataEntry!E10 -> 0 | E15: Investor Type: | F15: =DataEntry!E9 -> 0
A16: Objective: | B16: =DataEntry!E12 -> 0
A18: Fee Breakdown | C18: Total Fee % | D18: ='Fee Details'!$H$22 -> 0.02055 | E18: Total Fee $ | F18: ='Fee Details'!$H$21 -> 2055
A19: SEM Fee %: | B19: ='Fee Details'!E22 -> 0.00935 | C19: Advisor Fee%: | D19: ='Fee Details'!$F$22 -> 0.01 | E19: Axos Fee %: | F19: ='Fee Details'!G22 -> 0.0012
A20: SEM Fee $: | B20: ='Fee Details'!E21 -> 935 | C20: Advisor Fee $: | D20: ='Fee Details'!$F$21 -> 1000 | E20: Axos Fee $: | F20: ='Fee Details'!G21 -> 120
A21: Portfolio Composition:
A22: =CONCATENATE((K4*100),"%"," ","Tactical:") -> 50% Tactical: | B22: Tactical models are monitored daily & deploy trading systems based on stock & bond market direction.
A23: =CONCATENATE((K5*100),"%"," ","Dynamic:") -> 50% Dynamic: | B23: Dynamic models are monitored monthly & utilize SEM's quantitative economic models.
A24: =CONCATENATE((K6*100),"%"," ","Strategic:") -> 0% Strategic: | B24: SEM's "strategic" portfolios have a quarterly rebalanced "core" with periodic adjustments to overall exposure.
A25: =_xlfn.CONCAT(DataEntry!I1," Investment Model Summary:") -> Moderate [50/50] Investment Model Summary:
A26: Model / Alloc. | B26: Modeled Risk* | C26: Investment Objective | F26: Investment Strategy | J26: Model | K26: Alloc | L26: Return | M26: Risk | N26: Up% | O26: Down% | P26: 2008
A27: =IF(J27="","",CONCATENATE(J27,": ",(K27*100),"%")) -> DIA: 50% | B27: =M27 -> -0.137 | C27: =IF($A27="","",VLOOKUP($J27,ModelList!$B:$AB,26,FALSE)) -> SEM’s Dynamic Income Allocation (DIA) program seeks to actively manage exposure to income generating assets. The DIA program deploys dynamic portfolio management which increases or decreases allocations to specific fixed income assets based on overall risk in the bond market. | F27: =IF($A27="","",VLOOKUP($J27,ModelList!$B:$AB,27,FALSE)) -> DIA utilizes an asset allocation model that seeks to adjust the income allocation based on the current portion of the economic and business cycle. Based on economic, market, and interest rate policy indicators, the model seeks to increase sensitivity to interest rates (duration) to take advantage of moves in the fixed income markets. | J27: =IF(K2="","",K2) -> DIA | K27: =IF(L2="","",L2) -> 0.5 | L27: =IF(J27="","",ROUND(HLOOKUP($J27,'Data-Gross'!$C$2:$AAI$8,3,FALSE),3)) -> 0.037 | M27: =IF(J27="","",ROUND(HLOOKUP($J27,'Data-Gross'!$C$2:$AAI$8,4,FALSE),3)) -> -0.137 | N27: =IF(J27="","",ROUND(HLOOKUP($J27,'Data-Gross'!$C$2:$AAI$8,5,FALSE),3)) -> 0.334 | O27: =IF(J27="","",ROUND(HLOOKUP($J27,'Data-Gross'!$C$2:$AAI$8,6,FALSE),3)) -> 0.095 | P27: =IF(J27="","",ROUND(HLOOKUP($J27,'Data-Gross'!$C$2:$DW$8,7,FALSE),3)) -> 0.112
A28: =IF(J28="","",CONCATENATE(J28,": ",(K28*100),"%")) -> TB: 30% | B28: =M28 -> -0.13 | C28: =IF($A28="","",VLOOKUP($J28,ModelList!$B:$AB,26,FALSE)) -> SEM's Tactical Bond (TB) is a conservative investment program that seeks to provide lower volatility and a rate of return equal to or higher than a passive allocation of 50% High Yield Bond and 50% Short-Term Government Bond mutual funds. | F28: =IF($A28="","",VLOOKUP($J28,ModelList!$B:$AB,27,FALSE)) -> TB attempts to invest in High Yield Bonds when they are in an uptrend. Ideally this strategy will move assets into government bonds or money market during declines with the goal of avoiding large losses. Tactical Bond utilizes only the high yield bond trend following strategy that is a portion of Income Allocator. When not invested in high yields, TB will utilize short-term bonds or money market funds. | J28: =IF(M2="","",M2) -> TB | K28: =IF(N2="","",N2) -> 0.3 | L28: =IF(J28="","",ROUND(HLOOKUP($J28,'Data-Gross'!$C$2:$AAI$8,3,FALSE),3)) -> 0.037 | M28: =IF(J28="","",ROUND(HLOOKUP($J28,'Data-Gross'!$C$2:$AAI$8,4,FALSE),3)) -> -0.13 | N28: =IF(J28="","",ROUND(HLOOKUP($J28,'Data-Gross'!$C$2:$AAI$8,5,FALSE),3)) -> 0.32 | O28: =IF(J28="","",ROUND(HLOOKUP($J28,'Data-Gross'!$C$2:$AAI$8,6,FALSE),3)) -> 0.024 | P28: =IF(J28="","",ROUND(HLOOKUP($J28,'Data-Gross'!$C$2:$DW$8,7,FALSE),3)) -> 0.015
A29: INA: 20% | B29: =M29 -> -0.116 | C29: =IF($A29="","",VLOOKUP($J29,ModelList!$B:$AB,26,FALSE)) -> SEM's Income Allocator (INA) seeks to provide lower volatility with a rate of return equal to or better than a passive bond fund allocation. Recommended for accounts with a two-year or greater time horizon. | F29: =IF($A29="","",VLOOKUP($J29,ModelList!$B:$AB,27,FALSE)) -> INA combines active bond fund trading systems. Ideally each trading system moves assets into a money market or government bond fund during market declines. The goal of an active trading system is to reduce risk without sacrificing long-term performance. The advantage of combining risk management strategies is added diversification with the potential for lower short-term losses. | J29: =IF(O2="","",O2) -> INA | K29: =IF(P2="","",P2) -> 0.2 | L29: =IF(J29="","",ROUND(HLOOKUP($J29,'Data-Gross'!$C$2:$AAI$8,3,FALSE),3)) -> 0.035 | M29: =IF(J29="","",ROUND(HLOOKUP($J29,'Data-Gross'!$C$2:$AAI$8,4,FALSE),3)) -> -0.116 | N29: =IF(J29="","",ROUND(HLOOKUP($J29,'Data-Gross'!$C$2:$AAI$8,5,FALSE),3)) -> 0.302 | O29: =IF(J29="","",ROUND(HLOOKUP($J29,'Data-Gross'!$C$2:$AAI$8,6,FALSE),3)) -> 0.021 | P29: =IF(J29="","",ROUND(HLOOKUP($J29,'Data-Gross'!$C$2:$DW$8,7,FALSE),3)) -> -0.026
B30: =IF(J30="","",CONCATENATE((L30*100),"%"," / ",(M30*100),"%")) ->  | C30: =IF($A30="","",VLOOKUP($J30,ModelList!$B:$AB,26,FALSE)) ->  | F30: =IF($A30="","",VLOOKUP($J30,ModelList!$B:$AB,27,FALSE)) ->  | J30: =IF(Q2="","",Q2) ->  | K30: =R2 ->  | L30: =IF(J30="","",ROUND(HLOOKUP($J30,'Data-Gross'!$C$2:$AAI$8,3,FALSE),3)) ->  | M30: =IF(J30="","",ROUND(HLOOKUP($J30,'Data-Gross'!$C$2:$AAI$8,4,FALSE),3)) ->  | N30: =IF(J30="","",ROUND(HLOOKUP($J30,'Data-Gross'!$C$2:$AAI$8,5,FALSE),3)) ->  | O30: =IF(J30="","",ROUND(HLOOKUP($J30,'Data-Gross'!$C$2:$AAI$8,6,FALSE),3)) ->  | P30: =IF(J30="","",ROUND(HLOOKUP($J30,'Data-Gross'!$C$2:$DW$8,7,FALSE),3)) -> 
C31: =IF($A31="","",VLOOKUP($J31,ModelList!$B:$AB,26,FALSE)) ->  | F31: =IF($A31="","",VLOOKUP($J31,ModelList!$B:$AB,27,FALSE)) ->  | J31: =IF(S2="","",S2) ->  | K31: =T2 ->  | L31: =IF(J31="","",ROUND(HLOOKUP($J31,'Data-Gross'!$C$2:$AAI$8,3,FALSE),3)) ->  | M31: =IF(J31="","",ROUND(HLOOKUP($J31,'Data-Gross'!$C$2:$AAI$8,4,FALSE),3)) ->  | N31: =IF(J31="","",ROUND(HLOOKUP($J31,'Data-Gross'!$C$2:$AAI$8,5,FALSE),3)) ->  | O31: =IF(J31="","",ROUND(HLOOKUP($J31,'Data-Gross'!$C$2:$AAI$8,6,FALSE),3)) ->  | P31: =IF(J31="","",ROUND(HLOOKUP($J31,'Data-Gross'!$C$2:$DW$8,7,FALSE),3)) -> 
A32: ACKNOWLEDGEMENT & INSTRUCTIONS TO SEM: Please set the portfolio allocation & management fee to match the above choices. SEM's portion of the fees are based on the fee schedule included in our ADV. Calculations are based on the investment amount and household assets entered. Any changes in those amounts could result in different fees. Clients are encouraged to review the overall level of assets to ensure they are paying the lowest possible fees. This addendum does not change any other portion of the original Management Fee agreement other than the Financial Advisor's fee. *Modeled Risk levels, Riskalyze scores, and other risk measurements are based on actual results using proprietary formulas to estimate the possible future risk levels. As with all risk models, future results could exceed indicated risk levels. I understand the change in my portfolio allocation may result in my funds being invested in the market a larger or smaller percentage of the time. This change will effect both my participation in the market upside and downside from my current portfolio. This portfolio adjustment is a reflection of a change in my personal risk assessment and/or goals and objectives for the investments being moved. The above illustration reflects the difference between an actively managed investment supervised by SEM and my financial advisor and a passive, no fee blend of similarly invested index funds. While not an exact representation of the investments available elsewhere, it does reflect the potential differences in both returns and risks by hiring SEM and the financial advisor to manage my account.
A34: Client(s) Signature | Date | F34: Advisor Signature | Date

Sheet Disclaimer-Cambridge (hidden)
C1: 0.3 | J1: Financial Advisor
K2: Dynamic
J3: 0.011 | K3: 0.0075
J4: 0.011 | K4: 0.007
J5: 0.01 | K5: 0.0065
J6: 0.009 | K6: 0.006
J7: 0.009 | K7: 0.0055
J8: 0.008 | K8: 0.005
J9: 0.007 | K9: 0.005
J10: 0.007 | K10: 0.0045
A53: =_xlfn.CONCAT("Custom Benchmark Description: based on the SEM portfolio") -> Custom Benchmark Description: based on the SEM portfolio
B54: SEM has selected benchmarks for each of our models to match the asset allocation targets of each strategy. The toolkit will by default show the blended benchmarks from the prior page based on the model allocation. However, the financial advisors using this toolkit can also select their own benchmarks. If the advisor chose to use a custom benchmark, the description and allocation of each is listed below. SEM strongly advises users of this report to consider the fit of the benchmark to the actual investment allocations before making decisions on the investment allocation.
B55: Benchmark Name | C55: Abbrev. | D55: Alloc. | E55: Description
B56: =IF(DataEntry!G$22="","Morningstar Stock Allocation",DataEntry!G$22) -> Morningstar Stock Allocation | C56: =IF(DataEntry!G$5="","",DataEntry!G$5) ->  | D56: =IF(DataEntry!H$5="",DataEntry!C19/100,DataEntry!H$5/100) -> 0.24 | E56: =IF(C56="","An unmanaged index created by Morningstar to track the allocations of US based stock funds and ETFs.",VLOOKUP(C56,ModelList!$B:$AA,26,FALSE)) -> An unmanaged index created by Morningstar to track the allocations of US based stock funds and ETFs.
B57: =IF(B56="Morningstar Stock Allocation","Morningstar Multisector Bond Alloc.",IF(DataEntry!I$22="","",DataEntry!I$22)) -> Morningstar Multisector Bond Alloc. | C57: =IF(DataEntry!I$5="","",DataEntry!I$5) ->  | D57: =IF(B56="Morningstar Stock Allocation",1-D56,IF(DataEntry!J$5="","",DataEntry!J$5/100)) -> 0.76 | E57: =IF(B56="Morningstar Stock Allocation","An unmanaged index created by Morningstar to track the allocations of US based fond funds and ETFs.",IF(C57="","",VLOOKUP(C57,ModelList!$B:$AA,26,FALSE))) -> An unmanaged index created by Morningstar to track the allocations of US based fond funds and ETFs.
B58: =IF(DataEntry!K$22="","",DataEntry!K$22) ->  | C58: =IF(DataEntry!K$5="","",DataEntry!K$5) ->  | D58: =IF(DataEntry!L$5="","",DataEntry!L$5/100) ->  | E58: =IF(C58="","",VLOOKUP(C58,ModelList!$B:$AA,26,FALSE)) -> 
B59: =IF(DataEntry!M$22="","",DataEntry!M$22) ->  | C59: =IF(DataEntry!M$5="","",DataEntry!M$5) ->  | D59: =IF(DataEntry!N$5="","",DataEntry!N$5/100) ->  | E59: =IF(C59="","",VLOOKUP(C59,ModelList!$B:$AA,26,FALSE)) -> 
B60: =IF(DataEntry!O$22="","",DataEntry!O$22) ->  | C60: =IF(DataEntry!O$5="","",DataEntry!O$5) ->  | D60: =IF(DataEntry!P$5="","",DataEntry!P$5/100) ->  | E60: =IF(C60="","",VLOOKUP(C60,ModelList!$B:$AA,26,FALSE)) -> 

Sheet PortfolioSummary-5 Year (hidden)
B1: =DataEntry!D1 -> v18 2024Q2 | C1: ='Fee Details-TotalFees'!C1 -> Joe & Jessica Demo IRAs | G1: Investment Amount: | H1: =IF('Fee Details-TotalFees'!H1="","",'Fee Details-TotalFees'!H1) -> 100000 | J1: Advisor Fee: | K1: Model1 | L1: Mod1% | M1: Model2 | N1: Mod2% | O1: Model3 | P1: Mod3% | Q1: Model4 | R1: Mod4% | S1: Model5 | T1: Mod5%
C2: Account#(s): | D2: =IF('Fee Details-TotalFees'!D2="","",'Fee Details-TotalFees'!D2) ->  | I2: =CONCATENATE(C1," SEM Portfolio") -> Joe & Jessica Demo IRAs SEM Portfolio | J2: Default | K2: =IF('Fee Details-TotalFees'!A11="","",'Fee Details-TotalFees'!A11) -> DIA | L2: =IF('Fee Details-TotalFees'!C11="","",ROUND('Fee Details-TotalFees'!C11,2)) -> 0.5 | M2: =IF('Fee Details-TotalFees'!A12="","",'Fee Details-TotalFees'!A12) -> TB | N2: =IF('Fee Details-TotalFees'!C12="","",ROUND('Fee Details-TotalFees'!C12,2)) -> 0.3 | O2: =IF('Fee Details-TotalFees'!A13="","",'Fee Details-TotalFees'!A13) -> INA | P2: =IF('Fee Details-TotalFees'!C13="","",ROUND('Fee Details-TotalFees'!C13,2)) -> 0.2 | Q2: =IF('Fee Details-TotalFees'!A14="","",'Fee Details-TotalFees'!A14) ->  | R2: =IF('Fee Details-TotalFees'!C14="","",ROUND('Fee Details-TotalFees'!C14,2)) ->  | S2: =IF('Fee Details-TotalFees'!A15="","",'Fee Details-TotalFees'!A15) ->  | T2: =IF('Fee Details-TotalFees'!C15="","",ROUND('Fee Details-TotalFees'!C15,2)) -> 
G4: SEM Portfolio vs. Benchmark | J4: Tactical | K4: =ROUND('Performance Details'!E5,2) -> 0.5 | L4: SEM Min. | M4: ='Performance Details'!J6 -> 0 | O4: Benchmark | P4: SEM | R4: Benchmark | S4: SEM
G5: 1 Year Annualized Ret | J5: Dynamic | K5: =ROUND('Performance Details'!I5,2) -> 0.5 | L5: Benchmark | M5: ='Performance Details'!M42/100 -> 0.3 | N5: Up% | O5: ='Performance Details'!M49 -> 0.244964067 | P5: ='Performance Details'!L49 -> 0.1604089506 | Q5: Return | R5: ='Performance Details-5 Year'!M29 -> 0.01800176356 | S5: ='Performance Details-5 Year'!L29 -> 0.02010446356
G6: ='Performance Details-5 Year'!L27 -> -0.02668196231 | H6: ='Performance Details-5 Year'!M27 -> -0.0363467235 | J6: Strategic | K6: =ROUND('Performance Details'!L5,2) -> 0 | L6: SEM Avg. | M6: ='Performance Details'!L42/100 -> 0.24 | N6: Down% | O6: =-'Performance Details'!M50 -> -0.2981295253 | P6: =-'Performance Details'!L50 -> -0.1549726591 | Q6: Risk | R6: =MIN('Performance Details'!M40:M41) -> -0.1765776693 | S6: =MIN('Performance Details'!L40:L41) -> -0.09090800214
G7: 3 Year Annualized Ret | L7: SEM Max | M7: =IF('Performance Details'!L6<M6,M6+0.05,'Performance Details'!L6) -> 0.29
G8: ='Performance Details-5 Year'!L28 -> 0.01270012711 | H8: ='Performance Details-5 Year'!M28 -> 0.03035713593
G9: 5 Year Annualized Ret
G10: ='Performance Details-5 Year'!L29 -> 0.02010446356 | H10: ='Performance Details-5 Year'!M29 -> 0.01800176356
G11: Estimated Risk
G12: ='Fee Details-5 Year'!H27 -> -0.09090800214 | H12: ='Fee Details-5 Year'!H34 -> -0.1765776693
A18: =IF(DataEntry!P2=1,_xlfn.CONCAT("Custom Bmrk= ",DataEntry!G5," ",DataEntry!H5,DataEntry!H17," ",DataEntry!I5," ",DataEntry!J5,DataEntry!J17," ",DataEntry!K5," ",DataEntry!L5,DataEntry!L17," ",DataEntry!M5," ",DataEntry!N5,DataEntry!N17," ",DataEntry!O5," ",DataEntry!P5,DataEntry!P17),_xlfn.CONCAT("Benchmark = ",DataEntry!C20,"% Stocks /",(100-DataEntry!C20)," % Bonds (w/no fees). For more info please see the DISCLAIMER")) -> Benchmark = 30% Stocks /70 % Bonds (w/no fees). For more info please see the DISCLAIMER | F18: =_xlfn.CONCAT("SEM Risk Score: Tolerisk = ",DataEntry!C19," | Riskalyze = ",DataEntry!D19) -> SEM Risk Score: Tolerisk = 24 | Riskalyze = 31
G19: Dollars at Risk
G20: SEM Portfolio | H20: =H1*MIN(DataEntry!E19:F19) -> -9090.800214
G21: Benchmark | H21: =H1*(MIN(DataEntry!E20:F20)) -> -17657.76693
G22: S&P 500 | H22: =H1*(MIN(DataEntry!E21:F21)) -> -34617.66189
G23: Potential loss based on historical results multiplied by the estimated investment amount. Actual results may vary. For more see the disclaimer.
A27: Portfolio Composition:
A28: =CONCATENATE((K4*100),"%"," ","Tactical:") -> 50% Tactical: | B28: Tactical models are monitored daily & deploy trading systems based on stock & bond market direction.
A29: =CONCATENATE((K5*100),"%"," ","Dynamic:") -> 50% Dynamic: | B29: Dynamic models are monitored monthly & utilize SEM's quantitative economic models.
A30: =CONCATENATE((K6*100),"%"," ","Strategic:") -> 0% Strategic: | B30: SEM's "strategic" portfolios have a quarterly rebalanced "core" with periodic adjustments to overall exposure.
A31: =_xlfn.CONCAT(DataEntry!I1," Investment Model Summary:") -> Moderate [50/50] Investment Model Summary:
A32: Model / Alloc. | B32: Return / Risk | C32: Investment Objective | F32: Investment Strategy | J32: Model | K32: Alloc | L32: Return | M32: Risk | N32: Up% | O32: Down% | P32: 2008
A33: =IF(J33="","",CONCATENATE(J33,": ",(K33*100),"%")) -> DIA: 50% | B33: =IF(J33="","",CONCATENATE((L33*100),"%"," / ",(M33*100),"%")) -> 3.7% / -13.7% | C33: =IF($A33="","",VLOOKUP($J33,ModelList!$B:$AB,26,FALSE)) -> SEM’s Dynamic Income Allocation (DIA) program seeks to actively manage exposure to income generating assets. The DIA program deploys dynamic portfolio management which increases or decreases allocations to specific fixed income assets based on overall risk in the bond market. | F33: =IF($A33="","",VLOOKUP($J33,ModelList!$B:$AB,27,FALSE)) -> DIA utilizes an asset allocation model that seeks to adjust the income allocation based on the current portion of the economic and business cycle. Based on economic, market, and interest rate policy indicators, the model seeks to increase sensitivity to interest rates (duration) to take advantage of moves in the fixed income markets. | J33: =IF(K2="","",K2) -> DIA | K33: =IF(L2="","",L2) -> 0.5 | L33: =IF(J33="","",ROUND(HLOOKUP($J33,'Data-Gross'!$C$2:$AAI$8,3,FALSE),3)) -> 0.037 | M33: =IF(J33="","",ROUND(HLOOKUP($J33,'Data-Gross'!$C$2:$AAI$8,4,FALSE),3)) -> -0.137 | N33: =IF(J33="","",ROUND(HLOOKUP($J33,'Data-Gross'!$C$2:$AAI$8,5,FALSE),3)) -> 0.334 | O33: =IF(J33="","",ROUND(HLOOKUP($J33,'Data-Gross'!$C$2:$AAI$8,6,FALSE),3)) -> 0.095 | P33: =IF(J33="","",ROUND(HLOOKUP($J33,'Data-Gross'!$C$2:$DW$8,7,FALSE),3)) -> 0.112
A34: =IF(J34="","",CONCATENATE(J34,": ",(K34*100),"%")) -> TB: 30% | B34: =IF(J34="","",CONCATENATE((L34*100),"%"," / ",(M34*100),"%")) -> 3.7% / -13% | C34: =IF($A34="","",VLOOKUP($J34,ModelList!$B:$AB,26,FALSE)) -> SEM's Tactical Bond (TB) is a conservative investment program that seeks to provide lower volatility and a rate of return equal to or higher than a passive allocation of 50% High Yield Bond and 50% Short-Term Government Bond mutual funds. | F34: =IF($A34="","",VLOOKUP($J34,ModelList!$B:$AB,27,FALSE)) -> TB attempts to invest in High Yield Bonds when they are in an uptrend. Ideally this strategy will move assets into government bonds or money market during declines with the goal of avoiding large losses. Tactical Bond utilizes only the high yield bond trend following strategy that is a portion of Income Allocator. When not invested in high yields, TB will utilize short-term bonds or money market funds. | J34: =IF(M2="","",M2) -> TB | K34: =IF(N2="","",N2) -> 0.3 | L34: =IF(J34="","",ROUND(HLOOKUP($J34,'Data-Gross'!$C$2:$AAI$8,3,FALSE),3)) -> 0.037 | M34: =IF(J34="","",ROUND(HLOOKUP($J34,'Data-Gross'!$C$2:$AAI$8,4,FALSE),3)) -> -0.13 | N34: =IF(J34="","",ROUND(HLOOKUP($J34,'Data-Gross'!$C$2:$AAI$8,5,FALSE),3)) -> 0.32 | O34: =IF(J34="","",ROUND(HLOOKUP($J34,'Data-Gross'!$C$2:$AAI$8,6,FALSE),3)) -> 0.024 | P34: =IF(J34="","",ROUND(HLOOKUP($J34,'Data-Gross'!$C$2:$DW$8,7,FALSE),3)) -> 0.015
A35: INA: 20% | B35: 3.5% / -11.6% | C35: =IF($A35="","",VLOOKUP($J35,ModelList!$B:$AB,26,FALSE)) -> SEM's Income Allocator (INA) seeks to provide lower volatility with a rate of return equal to or better than a passive bond fund allocation. Recommended for accounts with a two-year or greater time horizon. | F35: =IF($A35="","",VLOOKUP($J35,ModelList!$B:$AB,27,FALSE)) -> INA combines active bond fund trading systems. Ideally each trading system moves assets into a money market or government bond fund during market declines. The goal of an active trading system is to reduce risk without sacrificing long-term performance. The advantage of combining risk management strategies is added diversification with the potential for lower short-term losses. | J35: =IF(O2="","",O2) -> INA | K35: =IF(P2="","",P2) -> 0.2 | L35: =IF(J35="","",ROUND(HLOOKUP($J35,'Data-Gross'!$C$2:$AAI$8,3,FALSE),3)) -> 0.035 | M35: =IF(J35="","",ROUND(HLOOKUP($J35,'Data-Gross'!$C$2:$AAI$8,4,FALSE),3)) -> -0.116 | N35: =IF(J35="","",ROUND(HLOOKUP($J35,'Data-Gross'!$C$2:$AAI$8,5,FALSE),3)) -> 0.302 | O35: =IF(J35="","",ROUND(HLOOKUP($J35,'Data-Gross'!$C$2:$AAI$8,6,FALSE),3)) -> 0.021 | P35: =IF(J35="","",ROUND(HLOOKUP($J35,'Data-Gross'!$C$2:$DW$8,7,FALSE),3)) -> -0.026
C36: =IF($A36="","",VLOOKUP($J36,ModelList!$B:$AB,26,FALSE)) ->  | F36: =IF($A36="","",VLOOKUP($J36,ModelList!$B:$AB,27,FALSE)) ->  | J36: =IF(Q2="","",Q2) ->  | K36: =R2 ->  | L36: =IF(J36="","",ROUND(HLOOKUP($J36,'Data-Gross'!$C$2:$AAI$8,3,FALSE),3)) ->  | M36: =IF(J36="","",ROUND(HLOOKUP($J36,'Data-Gross'!$C$2:$AAI$8,4,FALSE),3)) ->  | N36: =IF(J36="","",ROUND(HLOOKUP($J36,'Data-Gross'!$C$2:$AAI$8,5,FALSE),3)) ->  | O36: =IF(J36="","",ROUND(HLOOKUP($J36,'Data-Gross'!$C$2:$AAI$8,6,FALSE),3)) ->  | P36: =IF(J36="","",ROUND(HLOOKUP($J36,'Data-Gross'!$C$2:$DW$8,7,FALSE),3)) -> 
C37: =IF($A37="","",VLOOKUP($J37,ModelList!$B:$AB,26,FALSE)) ->  | F37: =IF($A37="","",VLOOKUP($J37,ModelList!$B:$AB,27,FALSE)) ->  | J37: =IF(S2="","",S2) ->  | K37: =T2 ->  | L37: =IF(J37="","",ROUND(HLOOKUP($J37,'Data-Gross'!$C$2:$AAI$8,3,FALSE),3)) ->  | M37: =IF(J37="","",ROUND(HLOOKUP($J37,'Data-Gross'!$C$2:$AAI$8,4,FALSE),3)) ->  | N37: =IF(J37="","",ROUND(HLOOKUP($J37,'Data-Gross'!$C$2:$AAI$8,5,FALSE),3)) ->  | O37: =IF(J37="","",ROUND(HLOOKUP($J37,'Data-Gross'!$C$2:$AAI$8,6,FALSE),3)) ->  | P37: =IF(J37="","",ROUND(HLOOKUP($J37,'Data-Gross'!$C$2:$DW$8,7,FALSE),3)) -> 
A38: ILLUSTRATIVE PURPOSES ONLY | Past performance is not a guarantee of future results. Above allocations show a standardized blend of SEM's models used in client accounts during the indicated period. Unless otherwise stated "Return" refers to the 5 year annualized return. The next page includes a more detailed disclaimer of the limitations & risks of this data.

Sheet Fee Details-5 Year (hidden)
B1: =DataEntry!D1 -> v18 2024Q2 | C1: =IF(DataEntry!B4="","",CONCATENATE(DataEntry!C4," ",DataEntry!B4," ",DataEntry!D4)) -> Joe & Jessica Demo IRAs | G1: Investment Amount: | H1: =IF(DataEntry!E4="","",DataEntry!E4) -> 100000 | J1: Please print the disclaimer tab to accompany this report.
C2: Account#(s): | D2: =IF(DataEntry!A4="","",DataEntry!A4) ->  | G2: Total Family Assets w/SEM: | H2: =IF(DataEntry!E5="",DataEntry!E4,DataEntry!E5) -> 100000 | I2: =CONCATENATE(C1," SEM Portfolio") -> Joe & Jessica Demo IRAs SEM Portfolio | J2: This sheet can be used to set the Financial Advisor's Fee & complete a Program Change with SEM
A4: Client Info | B4: Investment Experience: | C4: =IF(DataEntry!C9="","",DataEntry!C9) ->  | D4: Emergency Assets: | E4: =IF(DataEntry!C10="","",DataEntry!C10) ->  | G4: Riskalyze Score | T4: =VLOOKUP(#REF!,Suitability!D:F,3,TRUE) -> 
B5: Annual Income: | C5: =IF(DataEntry!C12="","",DataEntry!C12) ->  | D5: Liquid Net Worth: | E5: =IF(DataEntry!C13="","",DataEntry!C13) ->  | G5: Risk Tolerance | H5: =IF(DataEntry!E11="","",DataEntry!E11) ->  | U5: =IF(H5="","",VLOOKUP(H5,Suitability!$A$59:$B$66,2,FALSE)) -> 
B6: Tax Bracket: | C6: =IF(DataEntry!C11="","",DataEntry!C11) ->  | D6: Investor Type: | E6: =IF(DataEntry!E9="","",DataEntry!E9) ->  | G6: % of Net Worth | U6: =IF(E6="","",VLOOKUP(E6,Suitability!$A$33:$B$37,2,FALSE)) -> 
B7: Investment Time Horizon: | C7: =IF(DataEntry!E10="","",DataEntry!E10) ->  | D7: Objective: | E7: =IF(DataEntry!E12="","",DataEntry!E12) ->  | U7: =IF(C7="","",VLOOKUP(C7,Suitability!$A$50:$B$56,2,FALSE)) ->  | V7: =IF(E7="","",VLOOKUP(E7,Suitability!$A$69:$B$73,2,FALSE)) -> 
B8: * = If an * choice is selected, clients should discuss the suitability of holding any risky investments. | D8: If given a choice, I would prefer: | E8: =IF(DataEntry!E13="","",DataEntry!E13) ->  | G8: Preferred Portfolio Type: | H8: =DataEntry!E14 ->  | U8: =SUM(U5:U7,V7:V8) -> 0 | V8: =IF(E8="","",VLOOKUP(E8,Suitability!$A$76:$B$78,2,FALSE)) -> 
B9: =_xlfn.CONCAT(DataEntry!I1," Allocation Portfolio Components:") -> Moderate [50/50] Allocation Portfolio Components: | C9: % Alloc: | D9: $ Invested | E9: SEM Fee Amt* | F9: Advisor Fee: | G9: Axos Fees | H9: Total Fees* | I9: ='Fee Schedules'!J2 -> 0.0012
A10: Model | F10: =IF(DataEntry!F4="","Default",IF(OR(DataEntry!F4="Default",DataEntry!F4="Standard"),"Default",IF(DataEntry!F4="SVW","SVW",IF(DataEntry!F4="SAGE","SAGE",DataEntry!F4/100)))) -> 0.01 | P10: Max | Q10: Tactical | R10: Dynamic | S10: AmeriGuard
A11: =IF(DataEntry!G4="","",DataEntry!G4) -> DIA | B11: =IF(A11="","",VLOOKUP(A11,ModelList!$B:$Z,25,FALSE)) -> Dyn. Inc. Alloc. | C11: =IF(DataEntry!H4="","",DataEntry!H4/100) -> 0.5 | D11: =IF(C11="","",C11*$H$1) -> 50000 | E11: =IF(D11="","",D11*L11) -> 375 | F11: =IF(D11="","",IF($F$10="Default",E11,IF($F$10="SVW",'Fee Schedules'!$G$1*D11,IF($F$10="SAGE",'Fee Schedules'!$H$1*D11,IF(E11=0,0,D11*$F$10))))) -> 500 | G11: =IF(D11="","",D11*I11) -> 60 | H11: =IF(D11="","",SUM(E11:G11)) -> 935 | I11: =IF(A11="","",VLOOKUP(A11,ModelList!$B:$C,2,FALSE)) -> 0.0012 | K11: =IF(C11="","",C11) -> 0.5 | L11: =IF(C11="","",VLOOKUP($B11,ModelList!$A$3:$D$126,4,FALSE)) -> 0.0075 | M11: =IF($C11="","",VLOOKUP($B11,ModelList!$A$3:$V$126,21,FALSE)) -> 0 | N11: =IF($C11="","",VLOOKUP($B11,ModelList!$A$3:$V$126,22,FALSE)) -> 0.4 | O11: =IF($M11="","",M11*$C11) -> 0 | P11: 0.2 | Q11: =IF(A11="","",VLOOKUP($A11,ModelList!$B:$Y,22,FALSE)*C11) -> 0 | R11: =IF(A11="","",VLOOKUP($A11,ModelList!$B:$Y,23,FALSE)*C11) -> 0.5 | S11: =IF(A11="","",VLOOKUP($A11,ModelList!$B:$Y,24,FALSE)*C11) -> 0
A12: =IF(DataEntry!I4="","",DataEntry!I4) -> TB | B12: =IF(A12="","",VLOOKUP(A12,ModelList!$B:$Z,25,FALSE)) -> Tactical Bond | C12: =IF(DataEntry!J4="","",DataEntry!J4/100) -> 0.3 | D12: 30000 | E12: 336 | F12: =IF(D12="","",IF($F$10="Default",E12,IF($F$10="SVW",'Fee Schedules'!$G$1*D12,IF($F$10="SAGE",'Fee Schedules'!$H$1*D12,IF(E12=0,0,D12*$F$10))))) -> 300 | G12: =IF(D12="","",D12*I12) -> 36 | H12: 672 | I12: =IF(A12="","",VLOOKUP(A12,ModelList!$B:$C,2,FALSE)) -> 0.0012 | K12: 0.3 | L12: =IF(C12="","",VLOOKUP($B12,ModelList!$A$3:$D$126,4,FALSE)) -> 0.0112 | M12: =IF($C12="","",VLOOKUP($B12,ModelList!$A$3:$V$126,21,FALSE)) -> 0 | N12: =IF($C12="","",VLOOKUP($B12,ModelList!$A$3:$V$126,22,FALSE)) -> 0 | O12: 0 | P12: 0 | Q12: =IF(A12="","",VLOOKUP($A12,ModelList!$B:$Y,22,FALSE)*C12) -> 0.3 | R12: =IF(A12="","",VLOOKUP($A12,ModelList!$B:$Y,23,FALSE)*C12) -> 0 | S12: =IF(A12="","",VLOOKUP($A12,ModelList!$B:$Y,24,FALSE)*C12) -> 0
A13: =IF(DataEntry!K4="","",DataEntry!K4) -> INA | B13: =IF(A13="","",VLOOKUP(A13,ModelList!$B:$Z,25,FALSE)) -> Income Allocator | C13: =IF(DataEntry!L4="","",DataEntry!L4/100) -> 0.2 | D13: 20000 | E13: 224 | F13: =IF(D13="","",IF($F$10="Default",E13,IF($F$10="SVW",'Fee Schedules'!$G$1*D13,IF($F$10="SAGE",'Fee Schedules'!$H$1*D13,IF(E13=0,0,D13*$F$10))))) -> 200 | G13: =IF(D13="","",D13*I13) -> 24 | H13: 448 | I13: =IF(A13="","",VLOOKUP(A13,ModelList!$B:$C,2,FALSE)) -> 0.0012 | K13: 0.2 | L13: =IF(C13="","",VLOOKUP($B13,ModelList!$A$3:$D$126,4,FALSE)) -> 0.0112 | M13: =IF($C13="","",VLOOKUP($B13,ModelList!$A$3:$V$126,21,FALSE)) -> 0 | N13: =IF($C13="","",VLOOKUP($B13,ModelList!$A$3:$V$126,22,FALSE)) -> 0.15 | O13: 0 | P13: 0.03 | Q13: =IF(A13="","",VLOOKUP($A13,ModelList!$B:$Y,22,FALSE)*C13) -> 0.2 | R13: =IF(A13="","",VLOOKUP($A13,ModelList!$B:$Y,23,FALSE)*C13) -> 0 | S13: =IF(A13="","",VLOOKUP($A13,ModelList!$B:$Y,24,FALSE)*C13) -> 0
A14: =IF(DataEntry!M4="","",DataEntry!M4) ->  | B14: =IF(A14="","",VLOOKUP(A14,ModelList!$B:$Z,25,FALSE)) ->  | C14: =IF(DataEntry!N4="","",DataEntry!N4/100) ->  | F14: =IF(D14="","",IF($F$10="Default",E14,IF($F$10="SVW",'Fee Schedules'!$G$1*D14,IF($F$10="SAGE",'Fee Schedules'!$H$1*D14,IF(E14=0,0,D14*$F$10))))) ->  | G14: =IF(D14="","",D14*I14) ->  | I14: =IF(A14="","",VLOOKUP(A14,ModelList!$B:$C,2,FALSE)) ->  | L14: =IF(C14="","",VLOOKUP($B14,ModelList!$A$3:$D$126,4,FALSE)) ->  | M14: =IF($C14="","",VLOOKUP($B14,ModelList!$A$3:$V$126,21,FALSE)) ->  | N14: =IF($C14="","",VLOOKUP($B14,ModelList!$A$3:$V$126,22,FALSE)) ->  | Q14: =IF(A14="","",VLOOKUP($A14,ModelList!$B:$Y,22,FALSE)*C14) ->  | R14: =IF(A14="","",VLOOKUP($A14,ModelList!$B:$Y,23,FALSE)*C14) ->  | S14: =IF(A14="","",VLOOKUP($A14,ModelList!$B:$Y,24,FALSE)*C14) -> 
A15: =IF(DataEntry!O4="","",DataEntry!O4) ->  | B15: =IF(A15="","",VLOOKUP(A15,ModelList!$B:$Z,25,FALSE)) ->  | C15: =IF(DataEntry!P4="","",DataEntry!P4/100) ->  | F15: =IF(D15="","",IF($F$10="Default",E15,IF($F$10="SVW",'Fee Schedules'!$G$1*D15,IF($F$10="SAGE",'Fee Schedules'!$H$1*D15,IF(E15=0,0,D15*$F$10))))) ->  | G15: =IF(D15="","",D15*I15) ->  | I15: =IF(A15="","",VLOOKUP(A15,ModelList!$B:$C,2,FALSE)) -> 
A16: 6 | F16: =IF(D16="","",IF($F$10="Default",E16,D16*$F$10)) ->  | G16: =IF(D16="","",D16*$I$9) ->  | I16: =IF(A16="","",VLOOKUP(A16,ModelList!$B:$C,2,FALSE)) -> 
A17: 7 | G17: =IF(D17="","",D17*$I$9) ->  | I17: =IF(A17="","",VLOOKUP(A17,ModelList!$B:$C,2,FALSE)) -> 
A18: 8 | G18: =IF(D18="","",D18*$I$9) ->  | I18: =IF(A18="","",VLOOKUP(A18,ModelList!$B:$C,2,FALSE)) -> 
A19: 9 | G19: =IF(D19="","",D19*$I$9) ->  | I19: =IF(A19="","",VLOOKUP(A19,ModelList!$B:$C,2,FALSE)) -> 
A20: 10 | G20: =IF(D20="","",D20*$I$9) ->  | I20: =IF(A20="","",VLOOKUP(A20,ModelList!$B:$C,2,FALSE)) -> 
B21: * Fees will vary based on the actual account value | C21: =SUM(C11:C20) -> 1 | D21: 100000 | E21: 935 | F21: 1000 | G21: 120 | H21: 2055 | I21: =IF(A21="","",VLOOKUP(A21,ModelList!$B:$C,2,FALSE)) ->  | V21: Max
D22: Annual Fee Percentage*: | E22: =E21/$D$21 -> 0.00935 | F22: =F21/$D$21 -> 0.01 | G22: =G21/$D$21 -> 0.0012 | H22: =H21/$D$21 -> 0.02055 | V22: ='Performance Details-5 Year'!L6 -> 0.23
A23: =PortfolioSummary!G23 -> Benchmark = 30% Stocks / 70 % Bonds (w/no fees). For more info please see the DISCLAIMER
G24: Portfolio End Value:
G25: ='Performance Details-5 Year'!Q23 -> 112881.7586
G26: Annual Ret: | H26: ='Performance Details-5 Year'!$L$29 -> 0.02010446356
G27: Downside Risk: | H27: ='Fee Details'!H27 -> -0.09090800214
G28: Tolerisk Score: | H28: ='Fee Details'!H28 -> 24
G29: Riskalyze #: | H29: ='Fee Details'!H29 -> 31
G31: Benchmark End Value:
G32: ='Performance Details-5 Year'!R23 -> 114354.5858
G33: Annual Ret: | H33: ='Performance Details-5 Year'!$M$29 -> 0.01800176356
G34: Downside Risk: | H34: ='Fee Details'!H34 -> -0.1765776693
G35: Tolerisk Score: | H35: ='Fee Details'!H35 -> 30
G36: Riskalyze #: | H36: ='Fee Details'!H36 -> 38
G38: SEM Difference:
G39: =G25-G32 -> -1472.827172
G41: Other Statistics:
G42: 1 Year Annualized Ret
G43: ='Performance Details-5 Year'!$L$27 -> -0.02668196231 | H43: ='Performance Details-5 Year'!$M$27 -> -0.0363467235
G44: 3 Year Annualized Ret
G45: ='Performance Details-5 Year'!$L$28 -> 0.01270012711 | H45: ='Performance Details-5 Year'!$M$28 -> 0.03035713593
G46: 5 Year Annualized Ret
G47: ='Performance Details-5 Year'!$L$29 -> 0.02010446356 | H47: ='Performance Details-5 Year'!$M$29 -> 0.01800176356
G48: Beta
G49: ='Performance Details-5 Year'!$L$33 -> 0.1180278651 | H49: ='Performance Details-5 Year'!$M$33 -> 0.2876912855
G50: Sharpe Ratio
G51: ='Performance Details-5 Year'!$L$44 -> -0.02022084016 | H51: ='Performance Details-5 Year'!$M$44 -> -0.1124515452
A52: ILLUSTRATIVE PURPOSES ONLY | Past performance is not a guarantee of future results. Above allocations show a standardized blend of SEM's investment models used in client accounts during the indicated period. The next page includes a more detailed disclaimer of the limitations & risk of this data. | G52: Up Capture
G53: ='Performance Details-5 Year'!$L$46 -> 0.1381903779 | H53: ='Performance Details-5 Year'!$M$46 -> 0.238444665
G54: Down Capture
G55: ='Performance Details-5 Year'!$L$47 -> 0.1271613384 | H55: ='Performance Details-5 Year'!$M$47 -> 0.2838117733
A56: ACKNOWLEDGEMENT & INSTRUCTIONS TO SEM: Please set the portfolio allocation & management fee to match the above choices. SEM's portion of the fees are based on the fee schedule included in our ADV. Clients are encouraged to review the overall level of assets to ensure they are paying the lowest possible fees. This addendum does not change any other portion of the original Management Fee agreement other than the Financial Advisor's fee. I understand the change in my portfolio allocation may result in my funds being invested in the market a larger or smaller percentage of the time. This change will effect both my participation in the market upside and downside from my current portfolio. This portfolio adjustment is a reflection of a change in my personal risk assessment and/or goals and objectives for the investments being moved. The above illustration reflects the difference between an actively managed investment supervised by SEM and my financial advisor and a passive, no fee blend of similarly invested index funds. While not an exact representation of the investments available elsewhere, it does reflect the potential differences in both returns and risks by hiring SEM and the financial advisor to manage my account.
A58: Client(s) Signature | Date | F58: Advisor Signature | Date

Sheet Performance Details-5 Year (hidden)
N1: ='Fee Details-TotalFees'!J2 -> Joe & Jessica Demo IRAs SEM Portfolio | R1: Buy & Hold Alloc:
D2: =_xlfn.CONCAT("SEM ",DataEntry!I1," Portfolio Report") -> SEM Moderate [50/50] Portfolio Report | R2: S&P 500 | S2: 0
A3: =DataEntry!D1 -> v18 2024Q2 | N3: 45016 | R3: MS Bonds | S3: 0
A5: Portfolio Combination Results | G5: Tactical: | H5: =SUM('FeeDetails-Expanded'!Q11:Q20) -> 0.5 | J5: Dynamic: | K5: =SUM('FeeDetails-Expanded'!R11:R20) -> 0.5 | M5: Strategic: | N5: =SUM('FeeDetails-Expanded'!S11:S20) -> 0 | P5: This page contains detailed portfolio performance data. All information is populated from the portfolio summary page
H6: Stock Exposure*: | I6: Min = | J6: =SUM('FeeDetails-Expanded'!O11:O20) -> 0 | K6: Max = | L6: =SUM('FeeDetails-Expanded'!P11:P20) -> 0.23 | M6: Total Fee: | N6: ='FeeDetails-Expanded'!H22 -> 0.02055 | R6: Years | S6: Month | T6: Day | U6: Year
Q7: Current: | R7: 0 | S7: =MONTH(N3) -> 3 | T7: =DAY(N3) -> 31 | U7: =YEAR(N3) -> 2023 | V7: =DATE(U7,S7,T7) -> 45016
Q8: Past Date | R8: 15 | S8: =S7 -> 3 | T8: =T7 -> 31 | U8: =U7-R8 -> 2008 | V8: =DATE(U8,S8,T8) -> 39538
R9: SEM | S9: Benchmark | T9: S&P 500
Q10: Value: | R10: =VLOOKUP($V8,'Custom Data-5 Year'!$A$7:$BZ$482,38) ->  | S10: =VLOOKUP($V8,'Custom Data-5 Year'!$A$7:$BZ$482,75) ->  | T10: =VLOOKUP($V8,'Custom Data-5 Year'!$A$7:$EW$482,112) -> 
Q11: Total Return | R11: =(Q23/R10)-1 ->  | S11: =(R23/S10)-1 ->  | T11: =(S23/T10)-1 -> 
Q12: Anlzd Return | R12: =((R11+1)^(1/$R$8))-1 ->  | S12: =((S11+1)^(1/$R$8))-1 ->  | T12: =((T11+1)^(1/$R$8))-1 -> 
Q13: Slope | R13: Intercept | AJ13: =(AH13/AI13)-1 -> 
P14: Riskalyze | Q14: =RiskAlyzeMatrix!$F$1 -> -353.2906376 | R14: =RiskAlyzeMatrix!$G$1 -> 14.864673 | S14: <<Convert Risk to Riskalyze | AJ14: =(AH14/$AH$13) -> 
P15: Tolerisk (1) | Q15: =SLOPE(ToleriskMatrix!D9:D19,ToleriskMatrix!A9:A19) -> -0.5154301438 | R15: =INTERCEPT(ToleriskMatrix!D9:D19,ToleriskMatrix!A9:A19) -> -0.01361100234 | S15: <<Convert Tolerisk to Risk
P16: Tolerisk (2) | Q16: =ToleriskMatrix!C3 -> 6.193776944 | R16: =ToleriskMatrix!C2 -> -0.005703767738 | S16: <<Convert Standard Dev to Tolerisk
P17: Tolerisk (3) | Q17: =SLOPE(ToleriskMatrix!B9:B19,ToleriskMatrix!A9:A19) -> 49.63636364 | R17: =INTERCEPT(ToleriskMatrix!B9:B19,ToleriskMatrix!A9:A19) -> 27.27272727 | S17: <<Convert Tolerisk to Riskalzye
P18: MVaR | Q18: Riskalyze | R18: Tolerisk Score | S18: Risk Est. | T18: StdDev
P19: =L38 -> -0.07014674776 | Q19: =ROUND((P19/2)*$Q$14+$R$14,0) -> 27 | R19: =ROUND(($R$16+($T19*Q$16))*100,0) -> 21 | S19: =((R19/100)*$R$17)+$Q$17 -> 55.36363636 | T19: =L36 -> 0.03517678537
P20: =M38 -> -0.1632358711 | Q20: =ROUND((P20/2)*$Q$14+$R$14,0) -> 44 | R20: =ROUND(($R$16+($T20*Q$16))*100,0) -> 38 | S20: =((R20/100)*$R$17)+$Q$17 -> 60 | T20: =M36 -> 0.06226408023
P21: =N38 -> -0.3985414293 | Q21: =ROUND((P21/2)*$Q$14+$R$14,0) -> 85 | R21: =ROUND(($R$16+($T21*Q$16))*100,0) -> 105 | S21: =((R21/100)*$R$17)+$Q$17 -> 78.27272727 | T21: =N36 -> 0.1700739969 | AJ21: =(AH21/$AH$13) -> 
Q22: SEM | R22: Benchmark | S22: S&P | AJ22: =(AH22/$AH$13) -> 
P23: Value: | Q23: =VLOOKUP($N$3,'Custom Data-5 Year'!$A$7:$FA$437,38,FALSE) -> 112881.7586 | R23: =VLOOKUP($N$3,'Custom Data-5 Year'!$A$7:$FA$437,75,FALSE) -> 114354.5858 | S23: =VLOOKUP($N$3,'Custom Data-5 Year'!$A$7:$FA$437,112,FALSE) -> 205558.5562 | AJ23: =(AH23/$AH$13) -> 
A24: =PortfolioSummary!G23 -> Benchmark = 30% Stocks / 70 % Bonds (w/no fees). For more info please see the DISCLAIMER
A25: Quarterly Results | G25: Return by Year | J25: Annualized Returns | P25: =DATE((U7-1),12,31) -> 44926 | Q25: =VLOOKUP($P$25,'Custom Data-5 Year'!$A$7:$FB$276,38,FALSE) ->  | R25: =VLOOKUP($P$25,'Custom Data-5 Year'!$A$7:$FB$276,75,FALSE) ->  | S25: =VLOOKUP($P$25,'Custom Data-5 Year'!$A$7:$FB$276,112,FALSE) ->  | AJ25: =(AH25/$AH$13) -> 
A26: Year | B26: Q1 | C26: Q2 | D26: Q3 | E26: Q4 | G26: SEM | H26: Benchmark | I26: S&P 500 | J26: Period | L26: SEM | M26: =H26 -> Benchmark | N26: =I26 -> S&P 500 | P26: YTD Return | Q26: =(Q23/Q25)-1 ->  | R26: =(R23/R25)-1 ->  | S26: =(S23/S25)-1 -> 
A27: 2017 | C27: =VLOOKUP(Q27,'Custom Data-5 Year'!$A$6:$FA$358,39,FALSE)*100 -> 0.9294558466 | D27: =VLOOKUP(R27,'Custom Data-5 Year'!$A$6:$FA$358,39,FALSE)*100 -> 0.9969367853 | E27: =VLOOKUP(S27,'Custom Data-5 Year'!$A$6:$FA$358,39,FALSE)*100 -> 0.1220618964 | G27: =VLOOKUP(S27,'Custom Data-5 Year'!$A$6:$FA$437,40,FALSE) -> 0.03483543351 | H27: =VLOOKUP($S27,'Custom Data-5 Year'!$A$7:$FA$937,77,FALSE) -> 0.05505464188 | I27: =VLOOKUP($S27,'Custom Data-5 Year'!$A$7:$FA$937,114,FALSE) -> 0.2184374431 | J27: 1 Year | L27: =VLOOKUP($N$3,'Custom Data-5 Year'!$A$7:$FA$437,40,FALSE) -> -0.02668196231 | M27: =VLOOKUP($N$3,'Custom Data-5 Year'!$A$7:$FA$437,77,FALSE) -> -0.0363467235 | N27: =VLOOKUP($N$3,'Custom Data-5 Year'!$A$7:$FA$437,114,FALSE) -> -0.07727500028 | P27: 42825 | Q27: 42916 | R27: 43008 | S27: 43100 | U27: =IF(G27>I27,"x","") -> 
A28: 2018 | B28: =VLOOKUP(P28,'Custom Data-5 Year'!$A$6:$FA$358,39,FALSE)*100 -> -1.25178893 | C28: =VLOOKUP(Q28,'Custom Data-5 Year'!$A$6:$FA$358,39,FALSE)*100 -> -0.561578172 | D28: =VLOOKUP(R28,'Custom Data-5 Year'!$A$6:$FA$358,39,FALSE)*100 -> 1.675647482 | E28: =VLOOKUP(S28,'Custom Data-5 Year'!$A$6:$FA$358,39,FALSE)*100 -> -2.465341949 | G28: =VLOOKUP(S28,'Custom Data-5 Year'!$A$6:$FA$437,40,FALSE) -> -0.02622331485 | H28: =VLOOKUP($S28,'Custom Data-5 Year'!$A$7:$FA$937,77,FALSE) -> -0.02138448729 | I28: =VLOOKUP($S28,'Custom Data-5 Year'!$A$7:$FA$937,114,FALSE) -> -0.04383884508 | J28: 3 Year | L28: =VLOOKUP($N$3,'Custom Data-5 Year'!$A$7:$FA$437,42,FALSE) -> 0.01270012711 | M28: =VLOOKUP($N$3,'Custom Data-5 Year'!$A$7:$FA$437,79,FALSE) -> 0.03035713593 | N28: =VLOOKUP($N$3,'Custom Data-5 Year'!$A$7:$FA$437,116,FALSE) -> 0.1861201674 | P28: 43190 | Q28: 43281 | R28: 43373 | S28: 43465 | U28: =IF(G30>I30,"x","") -> 
A29: 2019 | B29: =VLOOKUP(P29,'Custom Data-5 Year'!$A$6:$FA$358,39,FALSE)*100 -> 5.052967249 | C29: =VLOOKUP(Q29,'Custom Data-5 Year'!$A$6:$FA$358,39,FALSE)*100 -> 1.929031494 | D29: =VLOOKUP(R29,'Custom Data-5 Year'!$A$6:$FA$358,39,FALSE)*100 -> 0.9197238235 | E29: =VLOOKUP(S29,'Custom Data-5 Year'!$A$6:$FA$358,39,FALSE)*100 -> 0.3401412473 | G29: =VLOOKUP(S29,'Custom Data-5 Year'!$A$6:$FA$437,40,FALSE) -> 0.08431878771 | H29: =VLOOKUP($S29,'Custom Data-5 Year'!$A$7:$FA$937,77,FALSE) -> 0.09720746516 | I29: =VLOOKUP($S29,'Custom Data-5 Year'!$A$7:$FA$937,114,FALSE) -> 0.3150318022 | J29: 5 Year | L29: =VLOOKUP($N$3,'Custom Data-5 Year'!$A$7:$FA$437,44,FALSE) -> 0.02010446356 | M29: =VLOOKUP($N$3,'Custom Data-5 Year'!$A$7:$FA$437,81,FALSE) -> 0.01800176356 | N29: =VLOOKUP($N$3,'Custom Data-5 Year'!$A$7:$FA$437,118,FALSE) -> 0.1119551228 | P29: 43555 | Q29: 43646 | R29: 43738 | S29: 43830 | U29: =IF(G30>I30,"x","") -> 
A30: 2020 | B30: =VLOOKUP(P30,'Custom Data-5 Year'!$A$6:$FA$358,39,FALSE)*100 -> -0.5296771294 | C30: =VLOOKUP(Q30,'Custom Data-5 Year'!$A$6:$FA$358,39,FALSE)*100 -> 2.866640494 | D30: =VLOOKUP(R30,'Custom Data-5 Year'!$A$6:$FA$358,39,FALSE)*100 -> 1.968986125 | E30: =VLOOKUP(S30,'Custom Data-5 Year'!$A$6:$FA$358,39,FALSE)*100 -> 3.284951746 | G30: =VLOOKUP(S30,'Custom Data-5 Year'!$A$6:$FA$437,40,FALSE) -> 0.07763884122 | H30: =VLOOKUP($S30,'Custom Data-5 Year'!$A$7:$FA$937,77,FALSE) -> 0.05452792841 | I30: =VLOOKUP($S30,'Custom Data-5 Year'!$A$7:$FA$937,114,FALSE) -> 0.1840202769 | J30: Since 2016 | L30: =VLOOKUP($N$3,'Custom Data-5 Year'!$A$7:$FA$437,48,FALSE) -> 0.01957646653 | M30: =VLOOKUP($N$3,'Custom Data-5 Year'!$A$7:$FA$437,85,FALSE) -> 0.02587848315 | N30: =VLOOKUP($N$3,'Custom Data-5 Year'!$A$7:$FA$437,122,FALSE) -> 0.1221985142 | P30: 43921 | Q30: 44012 | R30: 44104 | S30: 44196
A31: 2021 | B31: =VLOOKUP(P31,'Custom Data-5 Year'!$A$6:$FA$358,39,FALSE)*100 -> -0.4626761991 | C31: =VLOOKUP(Q31,'Custom Data-5 Year'!$A$6:$FA$358,39,FALSE)*100 -> 1.686035544 | D31: =VLOOKUP(R31,'Custom Data-5 Year'!$A$6:$FA$358,39,FALSE)*100 -> -0.4206179055 | E31: =VLOOKUP(S31,'Custom Data-5 Year'!$A$6:$FA$358,39,FALSE)*100 -> 0.3167506991 | G31: =VLOOKUP(S31,'Custom Data-5 Year'!$A$6:$FA$437,40,FALSE) -> 0.01109080182 | H31: =VLOOKUP($S31,'Custom Data-5 Year'!$A$7:$FA$937,77,FALSE) -> 0.03395722007 | I31: =VLOOKUP($S31,'Custom Data-5 Year'!$A$7:$FA$937,114,FALSE) -> 0.2872137006 | J31: MPT Statistics | P31: 44286 | Q31: 44377 | R31: 44469 | S31: 44561
A32: 2022 | B32: =VLOOKUP(P32,'Custom Data-5 Year'!$A$6:$FA$358,39,FALSE)*100 -> -2.586767825 | C32: =VLOOKUP(Q32,'Custom Data-5 Year'!$A$6:$FA$358,39,FALSE)*100 -> -3.019675979 | D32: =VLOOKUP(R32,'Custom Data-5 Year'!$A$6:$FA$358,39,FALSE)*100 -> 0.7498485548 | E32: =VLOOKUP(S32,'Custom Data-5 Year'!$A$6:$FA$358,39,FALSE)*100 -> -0.8070553156 | G32: =VLOOKUP(S32,'Custom Data-5 Year'!$A$6:$FA$437,40,FALSE) -> -0.05588093113 | H32: =VLOOKUP($S32,'Custom Data-5 Year'!$A$7:$FA$937,77,FALSE) -> -0.0979031663 | I32: =VLOOKUP($S32,'Custom Data-5 Year'!$A$7:$FA$937,114,FALSE) -> -0.1810097326 | J32: Alpha (Jensen's ) | L32: =VLOOKUP($N$3,'Custom Data-5 Year'!$A$7:$FA$437,53,FALSE) -> -0.01158239796 | M32: =VLOOKUP($N$3,'Custom Data-5 Year'!$A$7:$FA$437,91,FALSE) -> -0.01368509797 | N32: =VLOOKUP($N$3,'Custom Data-5 Year'!$A$7:$FA$437,128,FALSE) -> 0.08026826123 | P32: 44651 | Q32: 44742 | R32: 44834 | S32: 44926
A33: 2023 | B33: =VLOOKUP(P33,'Custom Data-5 Year'!$A$6:$FA$358,39,FALSE)*100 -> 0.4259516753 | G33: ='Custom Data-5 Year'!AL297 -> 0.01906475339 | H33: ='Custom Data-5 Year'!BW297 -> 0.02132692578 | I33: ='Custom Data-5 Year'!DH297 -> 0.1305644582 | J33: Beta | L33: =VLOOKUP($N$3,'Custom Data-5 Year'!$A$7:$FA$437,69,FALSE) -> 0.1180278651 | M33: =VLOOKUP($N$3,'Custom Data-5 Year'!$A$7:$FA$437,107,FALSE) -> 0.2876912855 | N33: =VLOOKUP($N$3,'Custom Data-5 Year'!$A$7:$FA$437,144,FALSE) -> 0 | P33: 45016 | Q33: 45107 | R33: 45199 | S33: 45291
A34: Top 5 Models | B34: =IF('Fee Details-TotalFees'!B11="","",'Fee Details-TotalFees'!B11) -> Dyn. Inc. Alloc. | G34: =IF('Fee Details-TotalFees'!C11="","",'Fee Details-TotalFees'!C11) -> 0.5 | J34: R-Squared | L34: =VLOOKUP($N$3,'Custom Data-5 Year'!$A$7:$FA$437,67,FALSE) -> 0.3910403588 | M34: =VLOOKUP($N$3,'Custom Data-5 Year'!$A$7:$FA$437,105,FALSE) -> 0.7415544351 | N34: =VLOOKUP($N$3,'Custom Data-5 Year'!$A$7:$FA$437,142,FALSE) -> 0
B35: =IF('Fee Details-TotalFees'!B12="","",'Fee Details-TotalFees'!B12) -> Tactical Bond | G35: =IF('Fee Details-TotalFees'!C12="","",'Fee Details-TotalFees'!C12) -> 0.3 | J35: Risk Measures
B36: =IF('Fee Details-TotalFees'!B13="","",'Fee Details-TotalFees'!B13) -> Income Allocator | G36: =IF('Fee Details-TotalFees'!C13="","",'Fee Details-TotalFees'!C13) -> 0.2 | J36: Std.Dev.(Anlzd) | L36: =VLOOKUP($N$3,'Custom Data-5 Year'!$A$7:$FA$437,51,FALSE) -> 0.03517678537 | M36: =VLOOKUP($N$3,'Custom Data-5 Year'!$A$7:$FA$437,89,FALSE) -> 0.06226408023 | N36: =VLOOKUP($N$3,'Custom Data-5 Year'!$A$7:$FA$437,126,FALSE) -> 0.1700739969
B37: =IF('Fee Details-TotalFees'!B14="","",'Fee Details-TotalFees'!B14) ->  | G37: =IF('Fee Details-TotalFees'!C14="","",'Fee Details-TotalFees'!C14) ->  | J37: Max. DrawDwn | L37: =VLOOKUP($N$3,'Custom Data-5 Year'!$A$7:$FA$437,66,FALSE) -> -0.06172412891 | M37: =VLOOKUP($N$3,'Custom Data-5 Year'!$A$7:$FA$437,104,FALSE) -> -0.124359711 | N37: =VLOOKUP($N$3,'Custom Data-5 Year'!$A$7:$FA$437,141,FALSE) -> -0.2386313691
B38: =IF('Fee Details-TotalFees'!B15="","",'Fee Details-TotalFees'!B15) ->  | G38: =IF('Fee Details-TotalFees'!C15="","",'Fee Details-TotalFees'!C15) ->  | J38: Value@Risk(MVaR) | L38: =-VLOOKUP($N$3,'Custom Data-5 Year'!$A$7:$FA$437,64,FALSE) -> -0.07014674776 | M38: =-VLOOKUP($N$3,'Custom Data-5 Year'!$A$7:$FA$437,102,FALSE) -> -0.1632358711 | N38: =-VLOOKUP($N$3,'Custom Data-5 Year'!$A$7:$FA$437,139,FALSE) -> -0.3985414293
A39: *Exposure levels are estimates & may vary in the future. Past performance is not a guarantee of future results. Presentation is not complete without the disclaimer included with this packet. Any fees shown are estimates and may change based on the allocation and custodian. Combined allocation illustrates a standardized blend of SEM models used in client accounts during the indicated period. The purpose of the illustration is to show how the models have interacted in the past relative to a similarly allocated benchmark. The future may not be the same as the past. | J39: Tolerisk Score | L39: =R19 -> 21 | M39: =R20 -> 38 | N39: =R21 -> 105
J40: Riskalyze Score | L40: =Q19 -> 27 | M40: =Q20 -> 44 | N40: =Q21 -> 85
J41: Worst 3 Months | L41: =MIN('Custom Data-5 Year'!AM7:AM434) -> -0.03019675979 | M41: =MIN('Custom Data-5 Year'!BX7:BX434) -> -0.07718545013 | N41: =MIN('Custom Data-5 Year'!DI7:DI434) -> -0.1959576956
J42: Worst 12 Months | L42: =MIN('Custom Data-5 Year'!AN7:AN434) -> -0.06172412891 | M42: =MIN('Custom Data-5 Year'!BY7:BY434) -> -0.1168697213 | N42: =MIN('Custom Data-5 Year'!DJ7:DJ434) -> -0.1810097326
J43: Return/Risk Statistics
J44: Sharpe Ratio | L44: =VLOOKUP($N$3,'Custom Data-5 Year'!$A$7:$FA$437,55,FALSE) -> -0.02022084016 | M44: =VLOOKUP($N$3,'Custom Data-5 Year'!$A$7:$FA$437,93,FALSE) -> -0.1124515452 | N44: =VLOOKUP($N$3,'Custom Data-5 Year'!$A$7:$FA$437,130,FALSE) -> 3.106561622
J45: Return/DD | L45: =VLOOKUP($N$3,'Custom Data-5 Year'!$A$7:$FA$437,68,FALSE) -> 0.3171606773 | M45: =VLOOKUP($N$3,'Custom Data-5 Year'!$A$7:$FA$437,106,FALSE) -> 0.2080937866 | N45: =VLOOKUP($N$3,'Custom Data-5 Year'!$A$7:$FA$437,143,FALSE) -> 0.5120806818
J46: Monthly Up Capt. | L46: =VLOOKUP($N$3,'Custom Data-5 Year'!$A$7:$FA$437,62,FALSE) -> 0.1381903779 | M46: =VLOOKUP($N$3,'Custom Data-5 Year'!$A$7:$FA$437,100,FALSE) -> 0.238444665 | N46: =VLOOKUP($N$3,'Custom Data-5 Year'!$A$7:$FA$437,137,FALSE) -> 0
J47: Monthly Dwn Capt. | L47: =VLOOKUP($N$3,'Custom Data-5 Year'!$A$7:$FA$437,63,FALSE) -> 0.1271613384 | M47: =VLOOKUP($N$3,'Custom Data-5 Year'!$A$7:$FA$437,101,FALSE) -> 0.2838117733 | N47: =VLOOKUP($N$3,'Custom Data-5 Year'!$A$7:$FA$437,138,FALSE) -> 0

Sheet Disclaimer-5 Year (hidden)
C1: 0.3 | J1: Financial Advisor
K2: Dynamic
J3: 0.011 | K3: 0.0075
J4: 0.011 | K4: 0.007
J5: 0.01 | K5: 0.0065
J6: 0.009 | K6: 0.006
J7: 0.009 | K7: 0.0055
J8: 0.008 | K8: 0.005
J9: 0.007 | K9: 0.005
J10: 0.007 | K10: 0.0045
A84: =_xlfn.CONCAT("Custom Benchmark Description: based on the SEM ",DataEntry!I1," Allocation portfolio") -> Custom Benchmark Description: based on the SEM Moderate [50/50] Allocation portfolio
B85: SEM has selected benchmarks for each of our models to match the asset allocation targets of each strategy. The toolkit will by default show the blended benchmarks from the prior page based on the model allocation. However, the financial advisors using this toolkit can also select their own benchmarks. If the advisor chose to use a custom benchmark, the description and allocation of each is listed below. SEM strongly advises users of this report to consider the fit of the benchmark to the actual investment allocations before making decisions on the investment allocation.
B86: Benchmark Name | C86: Abbrev. | D86: Alloc. | E86: Description
B87: =IF(DataEntry!G$22="","Morningstar Stock Allocation",DataEntry!G$22) -> Morningstar Stock Allocation | C87: =IF(DataEntry!G$5="","",DataEntry!G$5) ->  | D87: =IF(DataEntry!H$5="",DataEntry!C19/100,DataEntry!H$5/100) -> 0.24 | E87: =IF(C87="","An unmanaged index created by Morningstar to track the allocations of US based stock funds and ETFs.",VLOOKUP(C87,ModelList!$B:$AA,26,FALSE)) -> An unmanaged index created by Morningstar to track the allocations of US based stock funds and ETFs.
B88: =IF(B87="Morningstar Stock Allocation","Morningstar Multisector Bond Alloc.",IF(DataEntry!I$22="","",DataEntry!I$22)) -> Morningstar Multisector Bond Alloc. | C88: =IF(DataEntry!I$5="","",DataEntry!I$5) ->  | D88: =IF(B87="Morningstar Stock Allocation",1-D87,IF(DataEntry!J$5="","",DataEntry!J$5/100)) -> 0.76 | E88: =IF(B87="Morningstar Stock Allocation","An unmanaged index created by Morningstar to track the allocations of US based fond funds and ETFs.",IF(C88="","",VLOOKUP(C88,ModelList!$B:$AA,26,FALSE))) -> An unmanaged index created by Morningstar to track the allocations of US based fond funds and ETFs.
B89: =IF(DataEntry!K$22="","",DataEntry!K$22) ->  | C89: =IF(DataEntry!K$5="","",DataEntry!K$5) ->  | D89: =IF(DataEntry!L$5="","",DataEntry!L$5/100) ->  | E89: =IF(C89="","",VLOOKUP(C89,ModelList!$B:$AA,26,FALSE)) -> 
B90: =IF(DataEntry!M$22="","",DataEntry!M$22) ->  | C90: =IF(DataEntry!M$5="","",DataEntry!M$5) ->  | D90: =IF(DataEntry!N$5="","",DataEntry!N$5/100) ->  | E90: =IF(C90="","",VLOOKUP(C90,ModelList!$B:$AA,26,FALSE)) -> 
B91: =IF(DataEntry!O$22="","",DataEntry!O$22) ->  | C91: =IF(DataEntry!O$5="","",DataEntry!O$5) ->  | D91: =IF(DataEntry!P$5="","",DataEntry!P$5/100) ->  | E91: =IF(C91="","",VLOOKUP(C91,ModelList!$B:$AA,26,FALSE)) -> 

Sheet Tax Distribution (hidden)
Q1: =PortfolioSummary!C1 -> Joe & Jessica Demo IRAs
A2: Allocation: | B2: =_xlfn.XLOOKUP(B3,'Fee Details-TotalFees'!$A$11:$A$15,'Fee Details-TotalFees'!$C11:$C$15,0,0,1) -> 0.2 | C2: =_xlfn.XLOOKUP(C3,'Fee Details-TotalFees'!$A$11:$A$15,'Fee Details-TotalFees'!$C11:$C$15,0,0,1) -> 0.3 | D2: =_xlfn.XLOOKUP(D3,'Fee Details-TotalFees'!$A$11:$A$15,'Fee Details-TotalFees'!$C11:$C$15,0,0,1) -> 0.5 | E2: =_xlfn.XLOOKUP(E3,'Fee Details-TotalFees'!$A$11:$A$15,'Fee Details-TotalFees'!$C11:$C$15,0,0,1) -> 0 | F2: =_xlfn.XLOOKUP(F3,'Fee Details-TotalFees'!$A$11:$A$15,'Fee Details-TotalFees'!$C11:$C$15,0,0,1) -> 0 | G2: =_xlfn.XLOOKUP(G3,'Fee Details-TotalFees'!$A$11:$A$15,'Fee Details-TotalFees'!$C11:$C$15,0,0,1) -> 0 | H2: =_xlfn.XLOOKUP(H3,'Fee Details-TotalFees'!$A$11:$A$15,'Fee Details-TotalFees'!$C11:$C$15,0,0,1) -> 0 | I2: =_xlfn.XLOOKUP(I3,'Fee Details-TotalFees'!$A$11:$A$15,'Fee Details-TotalFees'!$C11:$C$15,0,0,1) -> 0 | J2: =_xlfn.XLOOKUP(J3,'Fee Details-TotalFees'!$A$11:$A$15,'Fee Details-TotalFees'!$C11:$C$15,0,0,1) -> 0 | K2: =_xlfn.XLOOKUP(K3,'Fee Details-TotalFees'!$A$11:$A$15,'Fee Details-TotalFees'!$C11:$C$15,0,0,1) -> 0 | L2: =_xlfn.XLOOKUP(L3,'Fee Details-TotalFees'!$A$11:$A$15,'Fee Details-TotalFees'!$C11:$C$15,0,0,1) -> 0 | M2: =_xlfn.XLOOKUP(M3,'Fee Details-TotalFees'!$A$11:$A$15,'Fee Details-TotalFees'!$C11:$C$15,0,0,1) -> 0 | Q2: Portfolio Tax Analysis | R2: 2017 | S2: 2018 | T2: 2019 | U2: 2020
A3: 2017 | B3: INA | C3: TB | D3: DIA | E3: TAB | F3: CORE-BND | G3: VA-BND | H3: PPP | I3: DAG | J3: DAA | K3: AG-BAL | L3: AG-GRW | M3: AG-MAX | O3: Portfolio | Q3: Beg. Value | R3: =DataEntry!E4 -> 100000 | S3: =R19 -> 102721.9014 | T3: =S19 -> 100388.1927 | U3: =T19 -> 107794.4824
A4: Interest & Dividends | B4: 1.13 | C4: 2.85 | D4: 0.85 | E4: 0 | F4: 1.2494 | H4: =AVERAGE(C4:D4) -> 1.85 | I4: 0.15 | J4: 0.51 | K4: 0.16 | L4: 0.1 | M4: 0.01 | O4: =SUMPRODUCT($B$2:$M$2,B4:M4) -> 1.506 | Q4: =A4 -> Interest & Dividends | R4: =R$3*R$21*$O4 -> 5246.216286 | S4: =S$3*S$21*$O12 -> -6761.208996 | T4: =T$3*T$21*$O20 -> 4411.41699 | U4: =U$3*U$21*$O30 -> 1897.177383
A5: Realized Capital Gains | B5: -0.01 | C5: -0.64 | D5: 1.02 | E5: 0.27 | F5: 0.0235 | H5: =AVERAGE(C5:D5) -> 0.19 | I5: 0.33 | J5: 0.33 | K5: 0.22 | L5: 0.28 | M5: 0.91 | O5: =SUMPRODUCT($B$2:$M$2,B5:M5) -> 0.316 | Q5: =A5 -> Realized Capital Gains | R5: 1100.799699 | S5: =S$3*S$21*$O13 -> -115.8294768 | T5: =T$3*T$21*$O21 -> 2696.731941 | U5: =U$3*U$21*$O31 -> 3164.417223
A6: Tax Advantaged Dividends | E6: 0.58 | G6: 0.7829 | O6: =SUMPRODUCT($B$2:$M$2,B6:M6) -> 0 | Q6: Tax Advantaged Dividends | R6: 0 | S6: =S$3*S$21*$O14 -> 0 | T6: =T$3*T$21*$O22 -> 0 | U6: =U$3*U$21*$O32 -> 0
A7: Unrealized Gains | B7: 0.21 | C7: 1.16 | D7: -0.31 | E7: 0.47 | F7: 0.0097 | G7: 0.6453 | H7: =AVERAGE(C7:D7) -> 0.425 | I7: 0.68 | J7: 1.02 | K7: 0.85 | L7: 0.64 | M7: 0.1 | O7: =SUMPRODUCT($B$2:$M$2,B7:M7) -> 0.235 | Q7: Unrealized Gains | R7: =R9-SUM(R3:R6,R8) -> 127.735453 | S7: =S9-SUM(S3:S6,S8) -> 7163.756093 | T7: 3751.859022 | U7: =U9-SUM(U3:U6,U8) -> 6599.626745
A8: Fees | B8: -0.33 | C8: -2.37 | D8: -0.56 | E8: -0.32 | F8: -0.28 | G8: -0.43 | H8: =AVERAGE(C8:D8) -> -1.465 | I8: -0.16 | J8: -0.86 | K8: -0.23 | L8: -0.02 | M8: -0.02 | O8: =SUMPRODUCT($B$2:$M$2,B8:M8) -> -1.057 | Q8: Fees | R8: =AVERAGE(R3,(R3*(1+R21)))*-'Fee Details-TotalFees'!$I$22 -> -2991.208087 | S8: =AVERAGE(S3,(S3*(1+S21)))*-'Fee Details-TotalFees'!$I$22 -> -2980.426383 | T8: =AVERAGE(T3,(T3*(1+T21)))*-'Fee Details-TotalFees'!$I$22 -> -3065.985002 | U8: =AVERAGE(U3,(U3*(1+U21)))*-'Fee Details-TotalFees'!$I$22 -> -3292.18265
A9: Total Acct Chg | B9: =SUM(B4:B8) -> 1 | C9: =SUM(C4:C8) -> 1 | D9: 1 | E9: 1 | F9: 1.0026 | G9: 0.9982 | H9: 1 | I9: 1 | J9: 1 | K9: 1 | L9: 1 | M9: 1 | O9: 1 | Q9: Ending Value | R9: =R3*(1+R21) -> 103483.5434 | S9: =S3*(1+S21) -> 100028.1927 | T9: =T3*(1+T21) -> 108182.2156 | U9: =U3*(1+U21) -> 116163.5211
A11: 2018 | B11: INA | C11: TB | D11: DIA | E11: TAB | F11: CORE-BND | G11: =G3 -> VA-BND | H11: PPP | I11: DAG | J11: DAA | K11: AG-BAL | L11: AG-GRW | M11: AG-MAX | O11: Portfolio | Q11: Current Year Income | R11: =R4+R5 -> 6347.015985 | S11: =S4+S5 -> -6877.038473 | T11: =T4+T5 -> 7108.148931 | U11: =U4+U5 -> 5061.594606
A12: Interest & Dividends | B12: -1.94 | C12: 10.76 | D12: -0.66 | F12: -1.5957 | H12: =AVERAGE(C12:D12) -> 5.05 | I12: -0.19 | J12: -0.09 | K12: -0.28 | L12: -0.18 | M12: -1.15 | O12: =SUMPRODUCT($B$2:$M$2,B12:M12) -> 2.51 | Q12: Loss Carried from prior years | S12: =R14 -> 0 | T12: =S14 -> -3877.038473 | U12: =T14 -> 0
A13: Realized Capital Gains | B13: 1.65 | C13: -1.44 | D13: 0.29 | E13: -0.17 | F13: -0.0143 | H13: =AVERAGE(C13:D13) -> -0.575 | I13: -0.31 | J13: 0.13 | K13: -0.3 | L13: -1.32 | M13: -15.54 | O13: =SUMPRODUCT($B$2:$M$2,B13:M13) -> 0.043 | Q13: Current Year Net Income | R13: =R11+R12 -> 6347.015985 | S13: =S11+S12 -> -6877.038473 | T13: =T11+T12 -> 3231.110458 | U13: =U11+U12 -> 5061.594606
A14: Tax Advantaged Dividends | E14: 0.26 | G14: -3.8859 | O14: =SUMPRODUCT($B$2:$M$2,B14:M14) -> 0 | Q14: Loss Carryforward | R14: =R13-R15 -> 0 | S14: =S13-S15 -> -3877.038473 | T14: =T13-T15 -> 0 | U14: =U13-U15 -> 0
A15: Unrealized Gains | B15: 0.41 | C15: -1.24 | D15: 0.96 | E15: 1.08 | F15: 1.6897 | G15: 2.9315 | H15: =AVERAGE(C15:D15) -> -0.14 | I15: 1.29 | J15: 0.78 | K15: 1.32 | L15: 2.32 | M15: 15.05 | O15: =SUMPRODUCT($B$2:$M$2,B15:M15) -> 0.19 | Q15: Taxable Income | R15: =IF(R13<-3000,-3000,R13) -> 6347.015985 | S15: =IF(S13<-3000,-3000,S13) -> -3000 | T15: =IF(T13<-3000,-3000,T13) -> 3231.110458 | U15: =IF(U13<-3000,-3000,U13) -> 5061.594606
A16: Fees | B16: 0.88 | C16: -7.08 | D16: 0.41 | E16: -0.17 | F16: 0.92 | G16: 1.95 | H16: =AVERAGE(C16:D16) -> -3.335 | I16: 0.21 | J16: 0.18 | K16: 0.26 | L16: 0.18 | M16: 2.64 | O16: =SUMPRODUCT($B$2:$M$2,B16:M16) -> -1.743 | Q16: Effective Tax Rate | R16: 0.12 | S16: =R16 -> 0.12 | T16: =R16 -> 0.12 | U16: =S16 -> 0.12
A17: Total Acct Chg | B17: =SUM(B12:B16) -> 1 | C17: =SUM(C12:C16) -> 1 | D17: 1 | E17: 1 | F17: 0.9997 | G17: 0.9956 | H17: 1 | I17: 1 | J17: 1 | K17: 1 | L17: 1 | M17: 1 | O17: =SUM(O12:O16) -> 1 | Q17: Taxes Due | R17: =R15*R16 -> 761.6419182 | S17: =S15*S16 -> -360 | T17: 387.733255 | U17: =U15*U16 -> 607.3913527
A19: 2019 | B19: INA | C19: TB | D19: DIA | E19: TAB | F19: CORE-BND | G19: =G3 -> VA-BND | H19: PPP | I19: DAG | J19: DAA | K19: AG-BAL | L19: AG-GRW | M19: AG-MAX | O19: Portfolio | Q19: Net Ending Value | R19: =R9-R17 -> 102721.9014 | S19: =S9-S17 -> 100388.1927 | T19: 107794.4824 | U19: =U9-U17 -> 115556.1297
A20: Interest & Dividends | B20: 0.87 | C20: 0.79 | D20: 0.31 | F20: 0.3918 | H20: =AVERAGE(C20:D20) -> 0.55 | I20: 0.15 | J20: 0.24 | K20: 0.27 | L20: 0.33 | M20: 0.13 | O20: =SUMPRODUCT($B$2:$M$2,B20:M20) -> 0.566
A21: Realized Capital Gains | B21: 0.19 | C21: 0.76 | D21: 0.16 | E21: 0.39 | F21: 0 | H21: =AVERAGE(C21:D21) -> 0.46 | I21: 0.02 | J21: 0.67 | K21: -0.15 | L21: -1.12 | M21: 0.33 | O21: =SUMPRODUCT($B$2:$M$2,B21:M21) -> 0.346 | Q21: Pre-Tax Performance | R21: ='Performance Details'!G45 -> 0.03483543351 | S21: ='Performance Details'!G46 -> -0.02622331485 | T21: ='Performance Details'!G48 -> 0.07763884122 | U21: ='Performance Details'!G48 -> 0.07763884122
A22: Tax Advantaged Dividends | E22: 0.54 | G22: 0.5225 | O22: =SUMPRODUCT($B$2:$M$2,B22:M22) -> 0 | Q22: After-Tax Performance | R22: =(R19/R3)-1 -> 0.02721901433 | S22: =(S19/S3)-1 -> -0.02271870683 | T22: =(T19/T3)-1 -> 0.07377650199 | U22: =(U19/U3)-1 -> 0.07200412468
A23: Unrealized Gains | B23: 0.33 | C23: -0.17 | D23: 0.73 | E23: 0.4 | F23: 0.8192 | G23: 0.7448 | H23: =AVERAGE(C23:D23) -> 0.28 | I23: 0.94 | J23: 0.37 | K23: 1.07 | L23: 1.98 | M23: 0.74 | O23: =SUMPRODUCT($B$2:$M$2,B23:M23) -> 0.38 | Q23: Tax Drag (Benefit) | R23: =R21-R22 -> 0.007616419182 | S23: =S21-S22 -> -0.003504608024 | T23: =T21-T22 -> 0.003862339232 | U23: =U21-U22 -> 0.00563471654
A24: Fees | B24: -0.39 | C24: -0.38 | D24: -0.2 | E24: -0.33 | F24: -0.21 | G24: -0.27 | H24: =AVERAGE(C24:D24) -> -0.29 | I24: -0.11 | J24: -0.28 | K24: -0.19 | L24: -0.19 | M24: -0.2 | O24: =SUMPRODUCT($B$2:$M$2,B24:M24) -> -0.292
A25: Total Acct Chg | B25: =SUM(B20:B24) -> 1 | C25: =SUM(C20:C24) -> 1 | D25: =SUM(D20:D24) -> 1 | E25: =SUM(E20:E24) -> 1 | F25: 1.001 | G25: 0.9973 | H25: =SUM(H20:H24) -> 1 | I25: =SUM(I20:I24) -> 1 | J25: =SUM(J20:J24) -> 1 | K25: =SUM(K20:K24) -> 1 | L25: =SUM(L20:L24) -> 1 | M25: =SUM(M20:M24) -> 1 | O25: =SUM(O20:O24) -> 1 | Q25: Dividend Yield* | R25: =(R4+R6)/R3 -> 0.05246216286 | S25: =(S4+S6)/S3 -> -0.06582052028 | T25: =(T4+T6)/T3 -> 0.04394358413 | U25: =(U4+U6)/U3 -> 0.01759994892
Q26: * Note - the goal of most of SEM's models is to generate TOTAL income. A large portion of the income will come from capital gains.
Q28: Above numbers are estimates based on the results of a tracking account where no money was added or withdrawn during the year and all dividends and capital gains were reinvested. Each tax situation is unique and may result in higher or lower tax consequences. Please consult a tax advisor for specific recommendations and estimates. Past performance is not a guarantee of future results. All investments involve risk including those managed by SEM. For a full disclaimer please see SEMWealth.com/disclaimer.
A29: 2020 | B29: INA | C29: TB | D29: DIA | E29: TAB | F29: CORE-BND | G29: =G3 -> VA-BND | H29: PPP | I29: DAG | J29: DAA | K29: AG-BAL | L29: AG-GRW | M29: AG-MAX | O29: Portfolio
A30: Interest & Dividends | B30: 0.4 | C30: 0.3723 | D30: 0.07 | F30: 1.58 | H30: =AVERAGE(C30:D30) -> 0.22115 | I30: 0.1 | J30: 0.06 | K30: 0.12 | L30: 0.07 | M30: 0.03 | O30: =SUMPRODUCT($B$2:$M$2,B30:M30) -> 0.22669
A31: Realized Capital Gains | B31: 0.52 | C31: 0.3637 | D31: 0.33 | E31: 0.77 | F31: -0.6 | G31: -0.24 | H31: =AVERAGE(C31:D31) -> 0.34685 | I31: 0.2 | J31: 0.43 | K31: -0.61 | L31: -0.28 | M31: -0.13 | O31: =SUMPRODUCT($B$2:$M$2,B31:M31) -> 0.37811
A32: Tax Advantaged Dividends | E32: 0.33 | G32: 0.39 | O32: =SUMPRODUCT($B$2:$M$2,B32:M32) -> 0
A33: Unrealized Gains | B33: 0.32 | C33: 0.53 | D33: 0.67 | E33: 0.22 | F33: 0.05 | G33: 0.87 | H33: =AVERAGE(C33:D33) -> 0.6 | I33: 0.81 | J33: 0.62 | K33: 1.62 | L33: 1.26 | M33: 1.16 | O33: =SUMPRODUCT($B$2:$M$2,B33:M33) -> 0.558
A34: Fees | B34: -0.24 | C34: -0.27 | D34: -0.07 | E34: -0.32 | F34: -0.03 | G34: -0.02 | H34: =AVERAGE(C34:D34) -> -0.17 | I34: -0.11 | J34: -0.11 | K34: -0.13 | L34: -0.05 | M34: -0.06 | O34: =SUMPRODUCT($B$2:$M$2,B34:M34) -> -0.164
A35: Total Acct Chg | B35: =SUM(B30:B34) -> 1 | C35: =SUM(C30:C34) -> 0.996 | D35: 1 | E35: 1 | F35: 1 | G35: 1 | H35: 0.998 | I35: 1 | J35: 1 | K35: 1 | L35: 1 | M35: 1 | O35: =SUM(O30:O34) -> 0.9988

Sheet Custom Data (hidden)
A1: Custom ENCORE | C1: =COLUMN() -> 3 | D1: =COLUMN() -> 4 | E1: =COLUMN() -> 5 | H1: =COLUMN() -> 8 | J1: =COLUMN() -> 10 | K1: =COLUMN() -> 11 | L1: =COLUMN() -> 12 | M1: =COLUMN() -> 13 | N1: =COLUMN() -> 14 | O1: =COLUMN() -> 15 | P1: =COLUMN() -> 16 | Q1: =COLUMN() -> 17 | R1: =COLUMN() -> 18 | S1: =COLUMN() -> 19 | T1: =COLUMN() -> 20 | U1: =COLUMN() -> 21 | V1: =COLUMN() -> 22 | W1: =COLUMN() -> 23 | X1: =COLUMN() -> 24 | Y1: =COLUMN() -> 25 | Z1: =COLUMN() -> 26 | AA1: =COLUMN() -> 27 | AB1: =COLUMN() -> 28 | AC1: =COLUMN() -> 29 | AD1: =COLUMN() -> 30 | AE1: =COLUMN() -> 31 | AF1: =COLUMN() -> 32 | AG1: =COLUMN() -> 33 | AH1: =COLUMN() -> 34 | AI1: =COLUMN() -> 35 | AJ1: =COLUMN() -> 36 | AK1: =COLUMN() -> 37 | AL1: =COLUMN() -> 38 | AM1: =COLUMN() -> 39 | AN1: =COLUMN() -> 40 | AO1: =COLUMN() -> 41 | AP1: =COLUMN() -> 42 | AQ1: =COLUMN() -> 43 | AR1: =COLUMN() -> 44 | AS1: =COLUMN() -> 45 | AT1: =COLUMN() -> 46 | AU1: =COLUMN() -> 47 | AV1: =COLUMN() -> 48 | AW1: =COLUMN() -> 49 | AX1: =COLUMN() -> 50 | AY1: =COLUMN() -> 51 | AZ1: =COLUMN() -> 52 | BA1: =COLUMN() -> 53 | BB1: =COLUMN() -> 54 | BC1: =COLUMN() -> 55 | BD1: =COLUMN() -> 56 | BE1: =COLUMN() -> 57 | BF1: =COLUMN() -> 58 | BG1: =COLUMN() -> 59 | BH1: =COLUMN() -> 60 | BI1: =COLUMN() -> 61 | BJ1: =COLUMN() -> 62 | BK1: =COLUMN() -> 63 | BL1: =COLUMN() -> 64 | BM1: =COLUMN() -> 65 | BN1: =COLUMN() -> 66 | BO1: =COLUMN() -> 67 | BP1: =COLUMN() -> 68 | BQ1: =COLUMN() -> 69 | BR1: =COLUMN() -> 70 | BS1: =COLUMN() -> 71 | BT1: =COLUMN() -> 72 | BU1: =COLUMN() -> 73 | BV1: =COLUMN() -> 74 | BW1: =COLUMN() -> 75 | BX1: =COLUMN() -> 76 | BY1: =COLUMN() -> 77 | BZ1: =COLUMN() -> 78 | CA1: =COLUMN() -> 79 | CB1: =COLUMN() -> 80 | CC1: =COLUMN() -> 81 | CD1: =COLUMN() -> 82 | CE1: =COLUMN() -> 83 | CF1: =COLUMN() -> 84 | CG1: =COLUMN() -> 85 | CH1: =COLUMN() -> 86 | CI1: =COLUMN() -> 87 | CJ1: =COLUMN() -> 88 | CK1: =COLUMN() -> 89 | CL1: =COLUMN() -> 90 | CM1: =COLUMN() -> 91 | CN1: =COLUMN() -> 92 | CO1: =COLUMN() -> 93 | CP1: =COLUMN() -> 94 | CQ1: =COLUMN() -> 95 | CR1: =COLUMN() -> 96 | CS1: =COLUMN() -> 97 | CT1: =COLUMN() -> 98 | CU1: =COLUMN() -> 99 | CV1: =COLUMN() -> 100 | CW1: =COLUMN() -> 101 | CX1: =COLUMN() -> 102 | CY1: =COLUMN() -> 103 | CZ1: =COLUMN() -> 104 | DA1: =COLUMN() -> 105 | DB1: =COLUMN() -> 106 | DC1: =COLUMN() -> 107 | DD1: =COLUMN() -> 108 | DE1: =COLUMN() -> 109 | DF1: =COLUMN() -> 110 | DG1: =COLUMN() -> 111 | DH1: =COLUMN() -> 112 | DI1: =COLUMN() -> 113 | DJ1: =COLUMN() -> 114 | DK1: =COLUMN() -> 115 | DL1: =COLUMN() -> 116 | DM1: =COLUMN() -> 117 | DN1: =COLUMN() -> 118 | DO1: =COLUMN() -> 119 | DP1: =COLUMN() -> 120 | DQ1: =COLUMN() -> 121 | DR1: =COLUMN() -> 122 | DS1: =COLUMN() -> 123 | DT1: =COLUMN() -> 124 | DU1: =COLUMN() -> 125 | DV1: =COLUMN() -> 126 | DW1: =COLUMN() -> 127 | DX1: =COLUMN() -> 128 | DY1: =COLUMN() -> 129 | DZ1: =COLUMN() -> 130 | EA1: =COLUMN() -> 131 | EB1: =COLUMN() -> 132 | EC1: =COLUMN() -> 133 | ED1: =COLUMN() -> 134 | EE1: =COLUMN() -> 135 | EF1: =COLUMN() -> 136 | EG1: =COLUMN() -> 137 | EH1: =COLUMN() -> 138 | EI1: =COLUMN() -> 139 | EJ1: =COLUMN() -> 140 | EK1: =COLUMN() -> 141 | EL1: =COLUMN() -> 142 | EM1: =COLUMN() -> 143 | EN1: =COLUMN() -> 144 | EO1: =COLUMN() -> 145 | EP1: =COLUMN() -> 146 | EQ1: =COLUMN() -> 147 | ER1: =COLUMN() -> 148 | ES1: =COLUMN() -> 149 | ET1: =COLUMN() -> 150 | EU1: =COLUMN() -> 151 | EV1: =COLUMN() -> 152 | EW1: =COLUMN() -> 153 | EX1: =COLUMN() -> 154 | EY1: =COLUMN() -> 155 | EZ1: =COLUMN() -> 156 | FA1: =COLUMN() -> 157 | FB1: =COLUMN() -> 158
B2: After Fees (ADJ Ret. Column) | L2: Weight % | V2: Benchmark Return | AK2: =CORREL(AK8:AK256,BV8:BV256) -> 0.6899058071 | BT2: (Change % on 'Proposed Allocation')
B3: 1 | C3: 2 | D3: 3 | E3: 4 | F3: 5 | G3: 6 | H3: 7 | I3: 8 | J3: 9 | K3: 10 | V3: =DataEntry!P2 -> 0 | AH3: Adv Fee% | AI3: =('Fee Details-TotalFees'!F22+'Fee Details-TotalFees'!G22)/12 -> 0.0009333333333 | AJ3: Fee%/Yr | AK3: ='Fee Details'!H22 -> 0.02055 | AM3: =COUNTIF(AK8:AK259,"<0") -> 88 | BV3: =COUNTIF(BV8:BV259,"<0") -> 72 | BX3: =COUNTIF(BX8:BX259,"<0") -> 67
A4: Name | L4: =IF(DataEntry!H4="",0,DataEntry!H4)/100 -> 0.5 | M4: =IF(DataEntry!J4="",0,DataEntry!J4)/100 -> 0.3 | N4: =IF(DataEntry!L4="",0,DataEntry!L4)/100 -> 0.2 | O4: =IF(DataEntry!N4="",0,DataEntry!N4)/100 -> 0 | P4: =IF(DataEntry!P4="",0,DataEntry!P4)/100 -> 0 | Q4: =IF(DataEntry!R4="",0,DataEntry!R4)/100 -> 0 | R4: =IF(DataEntry!T4="",0,DataEntry!T4)/100 -> 0 | S4: =IF(DataEntry!V4="",0,DataEntry!V4)/100 -> 0 | T4: =IF(DataEntry!X4="",0,DataEntry!X4)/100 -> 0 | U4: =IF(DataEntry!Z4="",0,DataEntry!Z4)/100 -> 0 | V4: =IF($V$3=1,DataEntry!H5/100,'Custom Data'!L4) -> 0.5 | W4: =IF($V$3=1,DataEntry!J5/100,'Custom Data'!M4) -> 0.3 | X4: =IF($V$3=1,DataEntry!L5/100,'Custom Data'!N4) -> 0.2 | Y4: =IF($V$3=1,DataEntry!N5/100,'Custom Data'!O4) -> 0 | Z4: =IF($V$3=1,DataEntry!P5/100,'Custom Data'!P4) -> 0 | AJ4: Fee%/Mo. | AK4: =AK3/12 -> 0.0017125 | AM4: =COUNTIF(AM8:AM259,"<0") -> 70 | AX4: 180 | AY4: <--Number of Months to calculate statistics on | BL4: 0.97 | BT4: Benchmark | BU4: Benchmark | BV4: =AJ4 -> Fee%/Mo. | BW4: =IF(V3=1,AK4,0) -> 0 | CJ4: 180 | CK4: <--Number of Months to calculate statistics on | CX4: =$BL$4 -> 0.97 | DU4: 180 | DV4: <--Number of Months to calculate statistics on | EI4: =$BL$4 -> 0.97
A5: Inv.Style | B5: =IF(DataEntry!G4="","",DataEntry!G4) -> DIA | C5: =IF(DataEntry!I4="","",DataEntry!I4) -> TB | D5: =IF(DataEntry!K4="","",DataEntry!K4) -> INA | E5: =IF(DataEntry!M4="","",DataEntry!M4) ->  | F5: =IF(DataEntry!O4="","",DataEntry!O4) ->  | G5: =IF(DataEntry!Q4="","",DataEntry!Q4) ->  | H5: =IF(DataEntry!S4="","",DataEntry!S4) ->  | I5: =IF(DataEntry!U4="","",DataEntry!U4) ->  | J5: =IF(DataEntry!W4="","",DataEntry!W4) ->  | K5: =IF(DataEntry!Y4="","",DataEntry!Y4) ->  | L5: =B5 -> DIA | M5: =C5 -> TB | N5: INA | Q5: =G5 ->  | V5: =IF($V$3=1,DataEntry!G5,B5) -> DIA | W5: =IF($V$3=1,DataEntry!I5,C5) -> TB | X5: =IF($V$3=1,DataEntry!K5,D5) -> INA | Y5: =IF($V$3=1,DataEntry!M5,E5) ->  | Z5: =IF($V$3=1,DataEntry!O5,F5) ->  | AK5: F | AL5: G | AM5: I | AN5: J | AO5: K | AP5: L | AQ5: M | AR5: N | AS5: O | AT5: P | AU5: Q | AV5: R | AW5: S | AY5: <--Total Number of Months in Data | BL5: =-_xlfn.T.INV(BL4,AX4) -> -1.892720445 | BT5: MS Bond | BU5: S&P 500 | BV5: T | BW5: I | BX5: J | BY5: K | BZ5: L | CA5: M | CB5: N | CC5: O | CD5: P | CE5: Q | CF5: R | CG5: S | CH5: T | CJ5: =COUNTA(CJ7:CJ67) -> 0 | CK5: <--Total Number of Months in Data | CX5: =$BL$5 -> -1.892720445 | DU5: =COUNTA(DU7:DU275) -> 148 | DV5: <--Total Number of Months in Data | EI5: =$BL$5 -> -1.892720445 | EP5: =AJ4 -> Fee%/Mo.
AI6: CD | AK6: Blended Return | AL6: ENCORE Value | AM6: 3-Month Return | AN6: 1-Year Return | AO6: 3-Year Total Ret. | AP6: 3-Year Anlzd Ret | AQ6: 5-Year Total Ret. | AR6: 5-Year Anlzd Ret. | AS6: 10-Year Total Ret. | AT6: 10-Year Anlzd Ret | AU6: 15-Year Anlzd Return | AV6: Since 2000 (Anlzd) | AW6: Years | AX6: Avg Annual Return | AY6: Anlzd Std Dev. | AZ6: Excess Returns | BA6: Jensen's Alpha | BB6: Treynor Ratio | BC6: Sharpe Ratio | BD6: Skew | BE6: Excess Kurtosis | BF6: WM / LM | BG6: Max Mo Gain | BH6: Max Mo Loss | BI6: Info. Ratio | BJ6: Up Capture | BK6: Down Capture | BL6: Mod. Value at Risk (MVaR) | BM6: Current DD | BN6: Max DD | BO6: R-Squared | BP6: Return / DD | BQ6: Beta | BR6: Alpha | BS6: Avg Monthly Return | BT6: 89-04 | BU6: 89-04 | BV6: Benchmark | BX6: 3-Month Return | BY6: 1-Year Return | BZ6: 3-Year Total Ret. | CA6: 3-Year Anlzd Ret | CB6: 5-Year Total Ret. | CC6: 5-Year Anlzd Ret. | CD6: 10-Year Total Ret. | CE6: 10-Year Anlzd Ret | CF6: 15-Year Anlzd Return | CG6: Since Incept. (Anlzd) | CH6: Years | CJ6: Avg Annual Return | CK6: Anlzd Std Dev. | CL6: Excess Returns | CM6: Jensen's Alpha | CN6: Treynor Ratio | CO6: Sharpe Ratio | CP6: Skew | CQ6: Excess Kurtosis | CR6: WM / LM | CS6: Max Mo Gain | CT6: Max Mo Loss | CU6: Info. Ratio | CV6: Up Capture | CW6: Down Capture | CX6: Mod. Value at Risk (MVaR) | CY6: Current DD | CZ6: Max DD | DA6: R-Squared | DB6: Return / DD | DC6: Beta | DD6: 3 Month T-Bill | DE6: S&P Monthly Std Dev. | DF6: S&P Anlzd Std Dev. | DG6: S&P 500 Index | DI6: 3-Month Return | DJ6: 1-Year Return | DK6: 3-Year Total Ret. | DL6: 3-Year Anlzd Ret | DM6: 5-Year Total Ret. | DN6: 5-Year Anlzd Ret. | DO6: 10-Year Total Ret. | DP6: 10-Year Anlzd Ret | DQ6: 15-Year Anlzd Return | DR6: Since Incept. (Anlzd) | DS6: Years | DU6: Avg Annual Return | DV6: Anlzd Std Dev. | DW6: Excess Returns | DX6: Jensen's Alpha | DY6: Treynor Ratio | DZ6: Sharp Ratio | EA6: Skew | EB6: Excess Kurtosis | EC6: WM / LM | ED6: Max Mo Gain | EE6: Max Mo Loss | EF6: M-Squared | EG6: Up Capture | EH6: Down Capture | EI6: Mod. Value at Risk (MVaR) | EJ6: Current DD | EK6: Max DD | EL6: R-Squared | EM6: Return / DD | EN6: Beta | EO6: 3 Month T-Bill | EQ6: 3-Month Return | ER6: 1-Year Return | ES6: 3-Year Total Ret. | ET6: 3-Year Anlzd Ret | EU6: 5-Year Total Ret. | EV6: 5-Year Anlzd Ret. | EW6: 10-Year Total Ret. | EX6: 10-Year Anlzd Ret | EY6: 15-Year Anlzd Return | EZ6: Since Incept. (Anlzd) | FA6: Years
A7: 1999-12-31 | L7: =L$4 -> 0.5 | M7: 0.3 | N7: 0.2 | O7: 0 | P7: 0 | Q7: 0 | R7: 0 | S7: 0 | T7: 0 | U7: 0 | AK7: 0 | AL7: ='Fee Details-TotalFees'!H1 -> 100000 | AV7: =((AL7/$AL$7)^(1/AW7))-1 ->  | BT7: =V7 -> 0 | BV7: =SUMPRODUCT(L7:U7,V7:AE7)-($BW$4) -> 0 | BW7: =$AL$7 -> 100000 | DD7: =#REF! ->  | DH7: =$AL$7 -> 100000 | EP7: =$AL$7 -> 100000
A8: 2000-01-31 | B8: =IF(B$5="","",HLOOKUP(B$5,'Data-Gross'!$C$2:$DZW$1008,ROW(),FALSE)) -> 0.01664 | C8: =IF(C$5="","",HLOOKUP(C$5,'Data-Gross'!$C$2:$DZW$1008,ROW(),FALSE)) -> 0.0038 | D8: =IF(D$5="","",HLOOKUP(D$5,'Data-Gross'!$C$2:$DZW$1008,ROW(),FALSE)) -> 0.0038 | E8: =IF(E$5="","",HLOOKUP(E$5,'Data-Gross'!$C$2:$DZW$1008,ROW(),FALSE)) ->  | F8: =IF(F$5="","",HLOOKUP(F$5,'Data-Gross'!$C$2:$DZW$1008,ROW(),FALSE)) ->  | G8: =IF(G$5="","",HLOOKUP(G$5,'Data-Gross'!$C$2:$DZW$1008,ROW(),FALSE)) ->  | H8: =IF(H$5="","",HLOOKUP(H$5,'Data-Gross'!$C$2:$DZW$1008,ROW(),FALSE)) ->  | I8: =IF(I$5="","",HLOOKUP(I$5,'Data-Gross'!$C$2:$DZW$1008,ROW(),FALSE)) ->  | J8: =IF(J$5="","",HLOOKUP(J$5,'Data-Gross'!$C$2:$DZW$1008,ROW(),FALSE)) ->  | K8: =IF(K$5="","",HLOOKUP(K$5,'Data-Gross'!$C$2:$DZW$1008,ROW(),FALSE)) ->  | L8: 0.5 | M8: 0.3 | N8: 0.2 | O8: 0 | P8: 0 | Q8: 0 | R8: 0 | S8: 0 | T8: 0 | U8: 0 | V8: =IF(OR(V$5="",V$5=0),"",IF($V$3=0,HLOOKUP(V$5,'Data-Gross'!$AU$2:$ES$1008,ROW(),FALSE),HLOOKUP(V$5,'Data-Gross'!$C$2:$ES$1008,ROW(),FALSE))) -> -0.0137 | W8: =IF(OR(W$5="",W$5=0),"",IF($V$3=0,HLOOKUP(W$5,'Data-Gross'!$AU$2:$ES$1008,ROW(),FALSE),HLOOKUP(W$5,'Data-Gross'!$C$2:$ES$1008,ROW(),FALSE))) -> -0.0037 | X8: =IF(OR(X$5="",X$5=0),"",IF($V$3=0,HLOOKUP(X$5,'Data-Gross'!$AU$2:$ES$1008,ROW(),FALSE),HLOOKUP(X$5,'Data-Gross'!$C$2:$ES$1008,ROW(),FALSE))) -> -0.0074 | Y8: =IF(OR(Y$5="",Y$5=0),"",IF($V$3=0,HLOOKUP(Y$5,'Data-Gross'!$AU$2:$ES$1008,ROW(),FALSE),HLOOKUP(Y$5,'Data-Gross'!$C$2:$ES$1008,ROW(),FALSE))) ->  | Z8: =IF(OR(Z$5="",Z$5=0),"",IF($V$3=0,HLOOKUP(Z$5,'Data-Gross'!$AU$2:$ES$1008,ROW(),FALSE),HLOOKUP(Z$5,'Data-Gross'!$C$2:$ES$1008,ROW(),FALSE))) ->  | AA8: =IF(OR(AA$5="",AA$5=0),"",IF($V$3=0,HLOOKUP(AA$5,'Data-Gross'!$AU$2:$ES$1008,ROW(),FALSE),HLOOKUP(AA$5,'Data-Gross'!$C$2:$ES$1008,ROW(),FALSE))) ->  | AB8: =IF(OR(AB$5="",AB$5=0),"",IF($V$3=0,HLOOKUP(AB$5,'Data-Gross'!$AU$2:$ES$1008,ROW(),FALSE),HLOOKUP(AB$5,'Data-Gross'!$C$2:$ES$1008,ROW(),FALSE))) ->  | AC8: =IF(OR(AC$5="",AC$5=0),"",IF($V$3=0,HLOOKUP(AC$5,'Data-Gross'!$AU$2:$ES$1008,ROW(),FALSE),HLOOKUP(AC$5,'Data-Gross'!$C$2:$ES$1008,ROW(),FALSE))) ->  | AD8: =IF(OR(AD$5="",AD$5=0),"",IF($V$3=0,HLOOKUP(AD$5,'Data-Gross'!$AU$2:$ES$1008,ROW(),FALSE),HLOOKUP(AD$5,'Data-Gross'!$C$2:$ES$1008,ROW(),FALSE))) ->  | AE8: =IF(OR(AE$5="",AE$5=0),"",IF($V$3=0,HLOOKUP(AE$5,'Data-Gross'!$AU$2:$ES$1008,ROW(),FALSE),HLOOKUP(AE$5,'Data-Gross'!$C$2:$ES$1008,ROW(),FALSE))) ->  | AF8: =IF(OR(AF$5="",AF$5=0),"",IF($V$3=0,HLOOKUP(AF$5,'Data-Gross'!$AU$2:$ES$1008,ROW(),FALSE),HLOOKUP(AF$5,'Data-Gross'!$C$2:$ES$1008,ROW(),FALSE))) ->  | AG8: =IF(OR(AG$5="",AG$5=0),"",IF($V$3=0,HLOOKUP(AG$5,'Data-Gross'!$AU$2:$ES$1008,ROW(),FALSE),HLOOKUP(AG$5,'Data-Gross'!$C$2:$ES$1008,ROW(),FALSE))) ->  | AI8: ='Data-Gross'!CD9 -> -0.0137 | AK8: =SUMPRODUCT(B8:K8,L8:U8)-$AK$4 -> 0.0085075 | AL8: =AL7*(1+AK8) -> 100850.75 | AV8: =((AL8/$AL$7)^(1/AW8))-1 -> 0.1070050129 | AW8: =AW7+(1/12) -> 0.08333333333 | BM8: =IF(AL8/MAX(AL$8:AL8)-1<0,AL8/MAX((AL$8:AL8))-1,0) -> 0 | BN8: =MIN(BM$8:BM8) -> 0 | BT8: -0.0137 | BU8: ='Data-Gross'!CG9 -> -0.0502 | BV8: =SUMPRODUCT($V$4:$AE$4,V8:AE8)-($BW$4) -> -0.00944 | BW8: =BW7*(1+BV8) -> 99056 | CG8: =((BW8/$AL$7)^(1/CH8))-1 -> -0.1075797013 | CH8: =CH7+(1/12) -> 0.08333333333 | CI8: =BW8*($BV$4/12) ->  | CY8: =IF(BW8/MAX(BW$8:BW8)-1<0,BW8/MAX((BW$8:BW8))-1,0) -> 0 | CZ8: =MIN(CY$8:CY8) -> 0 | DD8: =AI8 -> -0.0137 | DG8: =BU8 -> -0.0502 | DH8: =DH7*(1+DG8) -> 94980 | DR8: =((DH8/$AL$7)^(1/DS8))-1 -> -0.461003453 | DS8: =DS7+(1/12) -> 0.08333333333 | EJ8: =IF(DH8/MAX(DH$8:DH8)-1<0,DH8/MAX((DH$8:DH8))-1,0) -> 0 | EK8: =MIN(EJ$8:EJ8) -> 0 | EO8: =AI8 -> -0.0137 | EP8: =EP7*(1+EO8) -> 98630 | EZ8: =((EP8/$AL$7)^(1/FA8))-1 -> -0.1525610962 | FA8: =FA7+(1/12) -> 0.08333333333 | FB8: =EP8*($EP$5/12) -> 
A9: 2000-02-29 | B9: =IF(B$5="","",HLOOKUP(B$5,'Data-Gross'!$C$2:$DZW$1008,ROW(),FALSE)) -> -0.0053 | C9: =IF(C$5="","",HLOOKUP(C$5,'Data-Gross'!$C$2:$DZW$1008,ROW(),FALSE)) -> 0.0077 | D9: =IF(D$5="","",HLOOKUP(D$5,'Data-Gross'!$C$2:$DZW$1008,ROW(),FALSE)) -> 0.0077 | E9: =IF(E$5="","",HLOOKUP(E$5,'Data-Gross'!$C$2:$DZW$1008,ROW(),FALSE)) ->  | F9: =IF(F$5="","",HLOOKUP(F$5,'Data-Gross'!$C$2:$DZW$1008,ROW(),FALSE)) ->  | G9: =IF(G$5="","",HLOOKUP(G$5,'Data-Gross'!$C$2:$DZW$1008,ROW(),FALSE)) ->  | H9: =IF(H$5="","",HLOOKUP(H$5,'Data-Gross'!$C$2:$DZW$1008,ROW(),FALSE)) ->  | I9: =IF(I$5="","",HLOOKUP(I$5,'Data-Gross'!$C$2:$DZW$1008,ROW(),FALSE)) ->  | J9: =IF(J$5="","",HLOOKUP(J$5,'Data-Gross'!$C$2:$DZW$1008,ROW(),FALSE)) ->  | K9: =IF(K$5="","",HLOOKUP(K$5,'Data-Gross'!$C$2:$DZW$1008,ROW(),FALSE)) ->  | L9: 0.5 | M9: 0.3 | N9: 0.2 | O9: 0 | P9: 0 | Q9: 0 | R9: 0 | S9: 0 | T9: 0 | U9: 0 | V9: =IF(OR(V$5="",V$5=0),"",IF($V$3=0,HLOOKUP(V$5,'Data-Gross'!$AU$2:$ES$1008,ROW(),FALSE),HLOOKUP(V$5,'Data-Gross'!$C$2:$ES$1008,ROW(),FALSE))) -> 0.0096 | W9: =IF(OR(W$5="",W$5=0),"",IF($V$3=0,HLOOKUP(W$5,'Data-Gross'!$AU$2:$ES$1008,ROW(),FALSE),HLOOKUP(W$5,'Data-Gross'!$C$2:$ES$1008,ROW(),FALSE))) -> 0.0082 | X9: =IF(OR(X$5="",X$5=0),"",IF($V$3=0,HLOOKUP(X$5,'Data-Gross'!$AU$2:$ES$1008,ROW(),FALSE),HLOOKUP(X$5,'Data-Gross'!$C$2:$ES$1008,ROW(),FALSE))) -> 0.0136 | Y9: =IF(OR(Y$5="",Y$5=0),"",IF($V$3=0,HLOOKUP(Y$5,'Data-Gross'!$AU$2:$ES$1008,ROW(),FALSE),HLOOKUP(Y$5,'Data-Gross'!$C$2:$ES$1008,ROW(),FALSE))) ->  | Z9: =IF(OR(Z$5="",Z$5=0),"",IF($V$3=0,HLOOKUP(Z$5,'Data-Gross'!$AU$2:$ES$1008,ROW(),FALSE),HLOOKUP(Z$5,'Data-Gross'!$C$2:$ES$1008,ROW(),FALSE))) ->  | AA9: =IF(OR(AA$5="",AA$5=0),"",IF($V$3=0,HLOOKUP(AA$5,'Data-Gross'!$AU$2:$ES$1008,ROW(),FALSE),HLOOKUP(AA$5,'Data-Gross'!$C$2:$ES$1008,ROW(),FALSE))) ->  | AB9: =IF(OR(AB$5="",AB$5=0),"",IF($V$3=0,HLOOKUP(AB$5,'Data-Gross'!$AU$2:$ES$1008,ROW(),FALSE),HLOOKUP(AB$5,'Data-Gross'!$C$2:$ES$1008,ROW(),FALSE))) ->  | AC9: =IF(OR(AC$5="",AC$5=0),"",IF($V$3=0,HLOOKUP(AC$5,'Data-Gross'!$AU$2:$ES$1008,ROW(),FALSE),HLOOKUP(AC$5,'Data-Gross'!$C$2:$ES$1008,ROW(),FALSE))) ->  | AD9: =IF(OR(AD$5="",AD$5=0),"",IF($V$3=0,HLOOKUP(AD$5,'Data-Gross'!$AU$2:$ES$1008,ROW(),FALSE),HLOOKUP(AD$5,'Data-Gross'!$C$2:$ES$1008,ROW(),FALSE))) ->  | AE9: =IF(OR(AE$5="",AE$5=0),"",IF($V$3=0,HLOOKUP(AE$5,'Data-Gross'!$AU$2:$ES$1008,ROW(),FALSE),HLOOKUP(AE$5,'Data-Gross'!$C$2:$ES$1008,ROW(),FALSE))) ->  | AF9: =IF(OR(AF$5="",AF$5=0),"",IF($V$3=0,HLOOKUP(AF$5,'Data-Gross'!$AU$2:$ES$1008,ROW(),FALSE),HLOOKUP(AF$5,'Data-Gross'!$C$2:$ES$1008,ROW(),FALSE))) ->  | AG9: =IF(OR(AG$5="",AG$5=0),"",IF($V$3=0,HLOOKUP(AG$5,'Data-Gross'!$AU$2:$ES$1008,ROW(),FALSE),HLOOKUP(AG$5,'Data-Gross'!$C$2:$ES$1008,ROW(),FALSE))) ->  | AI9: ='Data-Gross'!CD10 -> 0.0096 | AK9: =SUMPRODUCT(B9:K9,L9:U9)-$AK$4 -> -0.0005125 | AL9: 100799.064 | AV9: 0.04891185978 | AW9: 0.1666666667 | BM9: =IF(AL9/MAX(AL$8:AL9)-1<0,AL9/MAX((AL$8:AL9))-1,0) -> -0.0005125 | BN9: =MIN(BM$8:BM9) -> -0.0005125 | BT9: 0.0096 | BU9: ='Data-Gross'!CG10 -> -0.0189 | BV9: =SUMPRODUCT($V$4:$AE$4,V9:AE9)-($BW$4) -> 0.00998 | BW9: 100044.5789 | CG9: 0.002677715487 | CH9: 0.1666666667 | CY9: =IF(BW9/MAX(BW$8:BW9)-1<0,BW9/MAX((BW$8:BW9))-1,0) -> 0 | CZ9: =MIN(CY$8:CY9) -> 0 | DD9: =AI9 -> 0.0096 | DG9: =BU9 -> -0.0189 | DH9: 93184.878 | DR9: -0.3452543138 | DS9: 0.1666666667 | EJ9: =IF(DH9/MAX(DH$8:DH9)-1<0,DH9/MAX((DH$8:DH9))-1,0) -> -0.0189 | EK9: =MIN(EJ$8:EJ9) -> -0.0189 | EO9: =AI9 -> 0.0096 | EP9: 99576.848 | EZ9: -0.02512204415 | FA9: 0.1666666667
A10: 2000-03-31 | B10: =IF(B$5="","",HLOOKUP(B$5,'Data-Gross'!$C$2:$DZW$1008,ROW(),FALSE)) -> 0.02199 | C10: =IF(C$5="","",HLOOKUP(C$5,'Data-Gross'!$C$2:$DZW$1008,ROW(),FALSE)) -> 0.0052 | D10: =IF(D$5="","",HLOOKUP(D$5,'Data-Gross'!$C$2:$DZW$1008,ROW(),FALSE)) -> 0.0052 | E10: =IF(E$5="","",HLOOKUP(E$5,'Data-Gross'!$C$2:$DZW$1008,ROW(),FALSE)) ->  | F10: =IF(F$5="","",HLOOKUP(F$5,'Data-Gross'!$C$2:$DZW$1008,ROW(),FALSE)) ->  | G10: =IF(G$5="","",HLOOKUP(G$5,'Data-Gross'!$C$2:$DZW$1008,ROW(),FALSE)) ->  | H10: =IF(H$5="","",HLOOKUP(H$5,'Data-Gross'!$C$2:$DZW$1008,ROW(),FALSE)) ->  | I10: =IF(I$5="","",HLOOKUP(I$5,'Data-Gross'!$C$2:$DZW$1008,ROW(),FALSE)) ->  | J10: =IF(J$5="","",HLOOKUP(J$5,'Data-Gross'!$C$2:$DZW$1008,ROW(),FALSE)) ->  | K10: =IF(K$5="","",HLOOKUP(K$5,'Data-Gross'!$C$2:$DZW$1008,ROW(),FALSE)) ->  | L10: 0.5 | M10: 0.3 | N10: 0.2 | O10: 0 | P10: 0 | Q10: 0 | R10: 0 | S10: 0 | T10: 0 | U10: 0 | V10: =IF(OR(V$5="",V$5=0),"",IF($V$3=0,HLOOKUP(V$5,'Data-Gross'!$AU$2:$ES$1008,ROW(),FALSE),HLOOKUP(V$5,'Data-Gross'!$C$2:$ES$1008,ROW(),FALSE))) -> 0.0163 | W10: =IF(OR(W$5="",W$5=0),"",IF($V$3=0,HLOOKUP(W$5,'Data-Gross'!$AU$2:$ES$1008,ROW(),FALSE),HLOOKUP(W$5,'Data-Gross'!$C$2:$ES$1008,ROW(),FALSE))) -> -0.0042 | X10: =IF(OR(X$5="",X$5=0),"",IF($V$3=0,HLOOKUP(X$5,'Data-Gross'!$AU$2:$ES$1008,ROW(),FALSE),HLOOKUP(X$5,'Data-Gross'!$C$2:$ES$1008,ROW(),FALSE))) -> 0.0019 | Y10: =IF(OR(Y$5="",Y$5=0),"",IF($V$3=0,HLOOKUP(Y$5,'Data-Gross'!$AU$2:$ES$1008,ROW(),FALSE),HLOOKUP(Y$5,'Data-Gross'!$C$2:$ES$1008,ROW(),FALSE))) ->  | Z10: =IF(OR(Z$5="",Z$5=0),"",IF($V$3=0,HLOOKUP(Z$5,'Data-Gross'!$AU$2:$ES$1008,ROW(),FALSE),HLOOKUP(Z$5,'Data-Gross'!$C$2:$ES$1008,ROW(),FALSE))) ->  | AA10: =IF(OR(AA$5="",AA$5=0),"",IF($V$3=0,HLOOKUP(AA$5,'Data-Gross'!$AU$2:$ES$1008,ROW(),FALSE),HLOOKUP(AA$5,'Data-Gross'!$C$2:$ES$1008,ROW(),FALSE))) ->  | AB10: =IF(OR(AB$5="",AB$5=0),"",IF($V$3=0,HLOOKUP(AB$5,'Data-Gross'!$AU$2:$ES$1008,ROW(),FALSE),HLOOKUP(AB$5,'Data-Gross'!$C$2:$ES$1008,ROW(),FALSE))) ->  | AC10: =IF(OR(AC$5="",AC$5=0),"",IF($V$3=0,HLOOKUP(AC$5,'Data-Gross'!$AU$2:$ES$1008,ROW(),FALSE),HLOOKUP(AC$5,'Data-Gross'!$C$2:$ES$1008,ROW(),FALSE))) ->  | AD10: =IF(OR(AD$5="",AD$5=0),"",IF($V$3=0,HLOOKUP(AD$5,'Data-Gross'!$AU$2:$ES$1008,ROW(),FALSE),HLOOKUP(AD$5,'Data-Gross'!$C$2:$ES$1008,ROW(),FALSE))) ->  | AE10: =IF(OR(AE$5="",AE$5=0),"",IF($V$3=0,HLOOKUP(AE$5,'Data-Gross'!$AU$2:$ES$1008,ROW(),FALSE),HLOOKUP(AE$5,'Data-Gross'!$C$2:$ES$1008,ROW(),FALSE))) ->  | AF10: =IF(OR(AF$5="",AF$5=0),"",IF($V$3=0,HLOOKUP(AF$5,'Data-Gross'!$AU$2:$ES$1008,ROW(),FALSE),HLOOKUP(AF$5,'Data-Gross'!$C$2:$ES$1008,ROW(),FALSE))) ->  | AG10: =IF(OR(AG$5="",AG$5=0),"",IF($V$3=0,HLOOKUP(AG$5,'Data-Gross'!$AU$2:$ES$1008,ROW(),FALSE),HLOOKUP(AG$5,'Data-Gross'!$C$2:$ES$1008,ROW(),FALSE))) ->  | AI10: ='Data-Gross'!CD11 -> 0.0163 | AK10: 0.0118825 | AL10: 101996.8089 | AM10: =(AL10/AL7)-1 -> 0.01996808868 | AV10: 0.08229670819 | AW10: 0.25 | BM10: =IF(AL10/MAX(AL$8:AL10)-1<0,AL10/MAX((AL$8:AL10))-1,0) -> 0 | BN10: =MIN(BM$8:BM10) -> -0.0005125 | BT10: 0.0163 | BU10: ='Data-Gross'!CG11 -> 0.0978 | BV10: 0.00727 | BW10: 100771.903 | BX10: =(BW10/BW7)-1 -> 0.007719029685 | CG10: 0.03123546251 | CH10: 0.25 | CY10: =IF(BW10/MAX(BW$8:BW10)-1<0,BW10/MAX((BW$8:BW10))-1,0) -> 0 | CZ10: =MIN(CY$8:CY10) -> 0 | DD10: 0.0163 | DG10: 0.0978 | DH10: 102298.3591 | DI10: =(DH10/DH7)-1 -> 0.02298359068 | DR10: 0.09515267833 | DS10: 0.25 | EJ10: =IF(DH10/MAX(DH$8:DH10)-1<0,DH10/MAX((DH$8:DH10))-1,0) -> 0 | EK10: =MIN(EJ$8:EJ10) -> -0.0189 | EO10: 0.0163 | EP10: 101199.9506 | EQ10: =(EP10/EP7)-1 -> 0.01199950622 | EZ10: 0.04886888567 | FA10: 0.25
A11: 2000-04-30 | B11: =IF(B$5="","",HLOOKUP(B$5,'Data-Gross'!$C$2:$DZW$1008,ROW(),FALSE)) -> -0.00392 | C11: =IF(C$5="","",HLOOKUP(C$5,'Data-Gross'!$C$2:$DZW$1008,ROW(),FALSE)) -> 0 | D11: =IF(D$5="","",HLOOKUP(D$5,'Data-Gross'!$C$2:$DZW$1008,ROW(),FALSE)) -> 0 | E11: =IF(E$5="","",HLOOKUP(E$5,'Data-Gross'!$C$2:$DZW$1008,ROW(),FALSE)) ->  | F11: =IF(F$5="","",HLOOKUP(F$5,'Data-Gross'!$C$2:$DZW$1008,ROW(),FALSE)) ->  | G11: =IF(G$5="","",HLOOKUP(G$5,'Data-Gross'!$C$2:$DZW$1008,ROW(),FALSE)) ->  | H11: =IF(H$5="","",HLOOKUP(H$5,'Data-Gross'!$C$2:$DZW$1008,ROW(),FALSE)) ->  | I11: =IF(I$5="","",HLOOKUP(I$5,'Data-Gross'!$C$2:$DZW$1008,ROW(),FALSE)) ->  | J11: =IF(J$5="","",HLOOKUP(J$5,'Data-Gross'!$C$2:$DZW$1008,ROW(),FALSE)) ->  | K11: =IF(K$5="","",HLOOKUP(K$5,'Data-Gross'!$C$2:$DZW$1008,ROW(),FALSE)) ->  | L11: 0.5 | M11: 0.3 | N11: 0.2 | O11: 0 | P11: 0 | Q11: 0 | R11: 0 | S11: 0 | T11: 0 | U11: 0 | V11: =IF(OR(V$5="",V$5=0),"",IF($V$3=0,HLOOKUP(V$5,'Data-Gross'!$AU$2:$ES$1008,ROW(),FALSE),HLOOKUP(V$5,'Data-Gross'!$C$2:$ES$1008,ROW(),FALSE))) -> -0.0098 | W11: =IF(OR(W$5="",W$5=0),"",IF($V$3=0,HLOOKUP(W$5,'Data-Gross'!$AU$2:$ES$1008,ROW(),FALSE),HLOOKUP(W$5,'Data-Gross'!$C$2:$ES$1008,ROW(),FALSE))) -> -0.0011 | X11: =IF(OR(X$5="",X$5=0),"",IF($V$3=0,HLOOKUP(X$5,'Data-Gross'!$AU$2:$ES$1008,ROW(),FALSE),HLOOKUP(X$5,'Data-Gross'!$C$2:$ES$1008,ROW(),FALSE))) -> -0.0109 | Y11: =IF(OR(Y$5="",Y$5=0),"",IF($V$3=0,HLOOKUP(Y$5,'Data-Gross'!$AU$2:$ES$1008,ROW(),FALSE),HLOOKUP(Y$5,'Data-Gross'!$C$2:$ES$1008,ROW(),FALSE))) ->  | Z11: =IF(OR(Z$5="",Z$5=0),"",IF($V$3=0,HLOOKUP(Z$5,'Data-Gross'!$AU$2:$ES$1008,ROW(),FALSE),HLOOKUP(Z$5,'Data-Gross'!$C$2:$ES$1008,ROW(),FALSE))) ->  | AA11: =IF(OR(AA$5="",AA$5=0),"",IF($V$3=0,HLOOKUP(AA$5,'Data-Gross'!$AU$2:$ES$1008,ROW(),FALSE),HLOOKUP(AA$5,'Data-Gross'!$C$2:$ES$1008,ROW(),FALSE))) ->  | AB11: =IF(OR(AB$5="",AB$5=0),"",IF($V$3=0,HLOOKUP(AB$5,'Data-Gross'!$AU$2:$ES$1008,ROW(),FALSE),HLOOKUP(AB$5,'Data-Gross'!$C$2:$ES$1008,ROW(),FALSE))) ->  | AC11: =IF(OR(AC$5="",AC$5=0),"",IF($V$3=0,HLOOKUP(AC$5,'Data-Gross'!$AU$2:$ES$1008,ROW(),FALSE),HLOOKUP(AC$5,'Data-Gross'!$C$2:$ES$1008,ROW(),FALSE))) ->  | AD11: =IF(OR(AD$5="",AD$5=0),"",IF($V$3=0,HLOOKUP(AD$5,'Data-Gross'!$AU$2:$ES$1008,ROW(),FALSE),HLOOKUP(AD$5,'Data-Gross'!$C$2:$ES$1008,ROW(),FALSE))) ->  | AE11: =IF(OR(AE$5="",AE$5=0),"",IF($V$3=0,HLOOKUP(AE$5,'Data-Gross'!$AU$2:$ES$1008,ROW(),FALSE),HLOOKUP(AE$5,'Data-Gross'!$C$2:$ES$1008,ROW(),FALSE))) ->  | AF11: =IF(OR(AF$5="",AF$5=0),"",IF($V$3=0,HLOOKUP(AF$5,'Data-Gross'!$AU$2:$ES$1008,ROW(),FALSE),HLOOKUP(AF$5,'Data-Gross'!$C$2:$ES$1008,ROW(),FALSE))) ->  | AG11: =IF(OR(AG$5="",AG$5=0),"",IF($V$3=0,HLOOKUP(AG$5,'Data-Gross'!$AU$2:$ES$1008,ROW(),FALSE),HLOOKUP(AG$5,'Data-Gross'!$C$2:$ES$1008,ROW(),FALSE))) ->  | AI11: ='Data-Gross'!CD12 -> -0.0098 | AK11: -0.0036725 | AL11: 101622.2256 | AM11: 0.007649676258 | AV11: 0.04946052147 | AW11: 0.3333333333 | BM11: =IF(AL11/MAX(AL$8:AL11)-1<0,AL11/MAX((AL$8:AL11))-1,0) -> -0.0036725 | BN11: =MIN(BM$8:BM11) -> -0.0036725 | BT11: -0.0098 | BU11: ='Data-Gross'!CG12 -> -0.0301 | BV11: -0.00741 | BW11: 100025.1832 | BX11: 0.00978419447 | CG11: 0.0007556852974 | CH11: 0.3333333333 | CY11: =IF(BW11/MAX(BW$8:BW11)-1<0,BW11/MAX((BW$8:BW11))-1,0) -> -0.00741 | CZ11: =MIN(CY$8:CY11) -> -0.00741 | DD11: -0.0098 | DG11: -0.0301 | DH11: 99219.17846 | DI11: 0.04463232744 | DR11: -0.02324221756 | DS11: 0.3333333333 | EJ11: =IF(DH11/MAX(DH$8:DH11)-1<0,DH11/MAX((DH$8:DH11))-1,0) -> -0.0301 | EK11: =MIN(EJ$8:EJ11) -> -0.0301 | EO11: -0.0098 | EP11: 100208.1911 | EQ11: 0.0160011265 | EZ11: 0.006258745274 | FA11: 0.3333333333
A12: 2000-05-31 | B12: =IF(B$5="","",HLOOKUP(B$5,'Data-Gross'!$C$2:$DZW$1008,ROW(),FALSE)) -> 0.01399 | C12: =IF(C$5="","",HLOOKUP(C$5,'Data-Gross'!$C$2:$DZW$1008,ROW(),FALSE)) -> 0.0102 | D12: =IF(D$5="","",HLOOKUP(D$5,'Data-Gross'!$C$2:$DZW$1008,ROW(),FALSE)) -> 0.0102 | E12: =IF(E$5="","",HLOOKUP(E$5,'Data-Gross'!$C$2:$DZW$1008,ROW(),FALSE)) ->  | F12: =IF(F$5="","",HLOOKUP(F$5,'Data-Gross'!$C$2:$DZW$1008,ROW(),FALSE)) ->  | G12: =IF(G$5="","",HLOOKUP(G$5,'Data-Gross'!$C$2:$DZW$1008,ROW(),FALSE)) ->  | H12: =IF(H$5="","",HLOOKUP(H$5,'Data-Gross'!$C$2:$DZW$1008,ROW(),FALSE)) ->  | I12: =IF(I$5="","",HLOOKUP(I$5,'Data-Gross'!$C$2:$DZW$1008,ROW(),FALSE)) ->  | J12: =IF(J$5="","",HLOOKUP(J$5,'Data-Gross'!$C$2:$DZW$1008,ROW(),FALSE)) ->  | K12: =IF(K$5="","",HLOOKUP(K$5,'Data-Gross'!$C$2:$DZW$1008,ROW(),FALSE)) ->  | L12: 0.5 | M12: 0.3 | N12: 0.2 | O12: 0 | P12: 0 | Q12: 0 | R12: 0 | S12: 0 | T12: 0 | U12: 0 | V12: =IF(OR(V$5="",V$5=0),"",IF($V$3=0,HLOOKUP(V$5,'Data-Gross'!$AU$2:$ES$1008,ROW(),FALSE),HLOOKUP(V$5,'Data-Gross'!$C$2:$ES$1008,ROW(),FALSE))) -> -0.0086 | W12: =IF(OR(W$5="",W$5=0),"",IF($V$3=0,HLOOKUP(W$5,'Data-Gross'!$AU$2:$ES$1008,ROW(),FALSE),HLOOKUP(W$5,'Data-Gross'!$C$2:$ES$1008,ROW(),FALSE))) -> -0.0073 | X12: =IF(OR(X$5="",X$5=0),"",IF($V$3=0,HLOOKUP(X$5,'Data-Gross'!$AU$2:$ES$1008,ROW(),FALSE),HLOOKUP(X$5,'Data-Gross'!$C$2:$ES$1008,ROW(),FALSE))) -> -0.0112 | Y12: =IF(OR(Y$5="",Y$5=0),"",IF($V$3=0,HLOOKUP(Y$5,'Data-Gross'!$AU$2:$ES$1008,ROW(),FALSE),HLOOKUP(Y$5,'Data-Gross'!$C$2:$ES$1008,ROW(),FALSE))) ->  | Z12: =IF(OR(Z$5="",Z$5=0),"",IF($V$3=0,HLOOKUP(Z$5,'Data-Gross'!$AU$2:$ES$1008,ROW(),FALSE),HLOOKUP(Z$5,'Data-Gross'!$C$2:$ES$1008,ROW(),FALSE))) ->  | AA12: =IF(OR(AA$5="",AA$5=0),"",IF($V$3=0,HLOOKUP(AA$5,'Data-Gross'!$AU$2:$ES$1008,ROW(),FALSE),HLOOKUP(AA$5,'Data-Gross'!$C$2:$ES$1008,ROW(),FALSE))) ->  | AB12: =IF(OR(AB$5="",AB$5=0),"",IF($V$3=0,HLOOKUP(AB$5,'Data-Gross'!$AU$2:$ES$1008,ROW(),FALSE),HLOOKUP(AB$5,'Data-Gross'!$C$2:$ES$1008,ROW(),FALSE))) ->  | AC12: =IF(OR(AC$5="",AC$5=0),"",IF($V$3=0,HLOOKUP(AC$5,'Data-Gross'!$AU$2:$ES$1008,ROW(),FALSE),HLOOKUP(AC$5,'Data-Gross'!$C$2:$ES$1008,ROW(),FALSE))) ->  | AD12: =IF(OR(AD$5="",AD$5=0),"",IF($V$3=0,HLOOKUP(AD$5,'Data-Gross'!$AU$2:$ES$1008,ROW(),FALSE),HLOOKUP(AD$5,'Data-Gross'!$C$2:$ES$1008,ROW(),FALSE))) ->  | AE12: =IF(OR(AE$5="",AE$5=0),"",IF($V$3=0,HLOOKUP(AE$5,'Data-Gross'!$AU$2:$ES$1008,ROW(),FALSE),HLOOKUP(AE$5,'Data-Gross'!$C$2:$ES$1008,ROW(),FALSE))) ->  | AF12: =IF(OR(AF$5="",AF$5=0),"",IF($V$3=0,HLOOKUP(AF$5,'Data-Gross'!$AU$2:$ES$1008,ROW(),FALSE),HLOOKUP(AF$5,'Data-Gross'!$C$2:$ES$1008,ROW(),FALSE))) ->  | AG12: =IF(OR(AG$5="",AG$5=0),"",IF($V$3=0,HLOOKUP(AG$5,'Data-Gross'!$AU$2:$ES$1008,ROW(),FALSE),HLOOKUP(AG$5,'Data-Gross'!$C$2:$ES$1008,ROW(),FALSE))) ->  | AI12: ='Data-Gross'!CD13 -> -0.0086 | AK12: 0.0103825 | AL12: 102677.3183 | AM12: 0.01863364877 | AV12: 0.0654641516 | AW12: 0.4166666667 | BM12: =IF(AL12/MAX(AL$8:AL12)-1<0,AL12/MAX((AL$8:AL12))-1,0) -> 0 | BN12: =MIN(BM$8:BM12) -> -0.0036725 | BT12: -0.0086 | BU12: ='Data-Gross'!CG13 -> -0.0205 | BV12: -0.00873 | BW12: 99151.96332 | BX12: -0.008922178209 | CG12: -0.02023219722 | CH12: 0.4166666667 | CY12: =IF(BW12/MAX(BW$8:BW12)-1<0,BW12/MAX((BW$8:BW12))-1,0) -> -0.0160753107 | CZ12: =MIN(CY$8:CY12) -> -0.0160753107 | DD12: -0.0086 | DG12: -0.0205 | DH12: 97185.1853 | DI12: 0.04292871749 | DR12: -0.06622947521 | DS12: 0.4166666667 | EJ12: =IF(DH12/MAX(DH$8:DH12)-1<0,DH12/MAX((DH$8:DH12))-1,0) -> -0.04998295 | EK12: =MIN(EJ$8:EJ12) -> -0.04998295 | EO12: -0.0086 | EP12: 99346.40066 | EQ12: -0.002314266236 | EZ12: -0.01561467843 | FA12: 0.4166666667
A13: 2000-06-30 | B13: =IF(B$5="","",HLOOKUP(B$5,'Data-Gross'!$C$2:$DZW$1008,ROW(),FALSE)) -> -0.01396 | C13: =IF(C$5="","",HLOOKUP(C$5,'Data-Gross'!$C$2:$DZW$1008,ROW(),FALSE)) -> 0.0135 | D13: =IF(D$5="","",HLOOKUP(D$5,'Data-Gross'!$C$2:$DZW$1008,ROW(),FALSE)) -> 0.0135 | E13: =IF(E$5="","",HLOOKUP(E$5,'Data-Gross'!$C$2:$DZW$1008,ROW(),FALSE)) ->  | F13: =IF(F$5="","",HLOOKUP(F$5,'Data-Gross'!$C$2:$DZW$1008,ROW(),FALSE)) ->  | G13: =IF(G$5="","",HLOOKUP(G$5,'Data-Gross'!$C$2:$DZW$1008,ROW(),FALSE)) ->  | H13: =IF(H$5="","",HLOOKUP(H$5,'Data-Gross'!$C$2:$DZW$1008,ROW(),FALSE)) ->  | I13: =IF(I$5="","",HLOOKUP(I$5,'Data-Gross'!$C$2:$DZW$1008,ROW(),FALSE)) ->  | J13: =IF(J$5="","",HLOOKUP(J$5,'Data-Gross'!$C$2:$DZW$1008,ROW(),FALSE)) ->  | K13: =IF(K$5="","",HLOOKUP(K$5,'Data-Gross'!$C$2:$DZW$1008,ROW(),FALSE)) ->  | L13: 0.5 | M13: 0.3 | N13: 0.2 | O13: 0 | P13: 0 | Q13: 0 | R13: 0 | S13: 0 | T13: 0 | U13: 0 | V13: =IF(OR(V$5="",V$5=0),"",IF($V$3=0,HLOOKUP(V$5,'Data-Gross'!$AU$2:$ES$1008,ROW(),FALSE),HLOOKUP(V$5,'Data-Gross'!$C$2:$ES$1008,ROW(),FALSE))) -> 0.0177 | W13: =IF(OR(W$5="",W$5=0),"",IF($V$3=0,HLOOKUP(W$5,'Data-Gross'!$AU$2:$ES$1008,ROW(),FALSE),HLOOKUP(W$5,'Data-Gross'!$C$2:$ES$1008,ROW(),FALSE))) -> 0.0161 | X13: =IF(OR(X$5="",X$5=0),"",IF($V$3=0,HLOOKUP(X$5,'Data-Gross'!$AU$2:$ES$1008,ROW(),FALSE),HLOOKUP(X$5,'Data-Gross'!$C$2:$ES$1008,ROW(),FALSE))) -> 0.0238 | Y13: =IF(OR(Y$5="",Y$5=0),"",IF($V$3=0,HLOOKUP(Y$5,'Data-Gross'!$AU$2:$ES$1008,ROW(),FALSE),HLOOKUP(Y$5,'Data-Gross'!$C$2:$ES$1008,ROW(),FALSE))) ->  | Z13: =IF(OR(Z$5="",Z$5=0),"",IF($V$3=0,HLOOKUP(Z$5,'Data-Gross'!$AU$2:$ES$1008,ROW(),FALSE),HLOOKUP(Z$5,'Data-Gross'!$C$2:$ES$1008,ROW(),FALSE))) ->  | AA13: =IF(OR(AA$5="",AA$5=0),"",IF($V$3=0,HLOOKUP(AA$5,'Data-Gross'!$AU$2:$ES$1008,ROW(),FALSE),HLOOKUP(AA$5,'Data-Gross'!$C$2:$ES$1008,ROW(),FALSE))) ->  | AB13: =IF(OR(AB$5="",AB$5=0),"",IF($V$3=0,HLOOKUP(AB$5,'Data-Gross'!$AU$2:$ES$1008,ROW(),FALSE),HLOOKUP(AB$5,'Data-Gross'!$C$2:$ES$1008,ROW(),FALSE))) ->  | AC13: =IF(OR(AC$5="",AC$5=0),"",IF($V$3=0,HLOOKUP(AC$5,'Data-Gross'!$AU$2:$ES$1008,ROW(),FALSE),HLOOKUP(AC$5,'Data-Gross'!$C$2:$ES$1008,ROW(),FALSE))) ->  | AD13: =IF(OR(AD$5="",AD$5=0),"",IF($V$3=0,HLOOKUP(AD$5,'Data-Gross'!$AU$2:$ES$1008,ROW(),FALSE),HLOOKUP(AD$5,'Data-Gross'!$C$2:$ES$1008,ROW(),FALSE))) ->  | AE13: =IF(OR(AE$5="",AE$5=0),"",IF($V$3=0,HLOOKUP(AE$5,'Data-Gross'!$AU$2:$ES$1008,ROW(),FALSE),HLOOKUP(AE$5,'Data-Gross'!$C$2:$ES$1008,ROW(),FALSE))) ->  | AF13: =IF(OR(AF$5="",AF$5=0),"",IF($V$3=0,HLOOKUP(AF$5,'Data-Gross'!$AU$2:$ES$1008,ROW(),FALSE),HLOOKUP(AF$5,'Data-Gross'!$C$2:$ES$1008,ROW(),FALSE))) ->  | AG13: =IF(OR(AG$5="",AG$5=0),"",IF($V$3=0,HLOOKUP(AG$5,'Data-Gross'!$AU$2:$ES$1008,ROW(),FALSE),HLOOKUP(AG$5,'Data-Gross'!$C$2:$ES$1008,ROW(),FALSE))) ->  | AI13: ='Data-Gross'!CD14 -> 0.0177 | AK13: -0.0019425 | AL13: 102477.8677 | AM13: 0.004716410161 | AV13: 0.0501713359 | AW13: 0.5 | BM13: =IF(AL13/MAX(AL$8:AL13)-1<0,AL13/MAX((AL$8:AL13))-1,0) -> -0.0019425 | BN13: =MIN(BM$8:BM13) -> -0.0036725 | BT13: 0.0177 | BU13: ='Data-Gross'!CG14 -> 0.0247 | BV13: 0.01844 | BW13: 100980.3255 | BX13: 0.002068260571 | CG13: 0.01970261425 | CH13: 0.5 | CY13: =IF(BW13/MAX(BW$8:BW13)-1<0,BW13/MAX((BW$8:BW13))-1,0) -> 0 | CZ13: =MIN(CY$8:CY13) -> -0.0160753107 | DD13: 0.0177 | DG13: 0.0247 | DH13: 99585.65938 | DI13: -0.02651752887 | DR13: -0.008269644606 | DS13: 0.5 | EJ13: =IF(DH13/MAX(DH$8:DH13)-1<0,DH13/MAX((DH$8:DH13))-1,0) -> -0.02651752887 | EK13: =MIN(EJ$8:EJ13) -> -0.04998295 | EO13: 0.0177 | EP13: 101104.832 | EQ13: -0.000939908244 | EZ13: 0.02221870446 | FA13: 0.5
A14: 2000-07-31 | B14: =IF(B$5="","",HLOOKUP(B$5,'Data-Gross'!$C$2:$DZW$1008,ROW(),FALSE)) -> -0.00276 | C14: =IF(C$5="","",HLOOKUP(C$5,'Data-Gross'!$C$2:$DZW$1008,ROW(),FALSE)) -> 0.0081 | D14: =IF(D$5="","",HLOOKUP(D$5,'Data-Gross'!$C$2:$DZW$1008,ROW(),FALSE)) -> 0.0081 | E14: =IF(E$5="","",HLOOKUP(E$5,'Data-Gross'!$C$2:$DZW$1008,ROW(),FALSE)) ->  | F14: =IF(F$5="","",HLOOKUP(F$5,'Data-Gross'!$C$2:$DZW$1008,ROW(),FALSE)) ->  | G14: =IF(G$5="","",HLOOKUP(G$5,'Data-Gross'!$C$2:$DZW$1008,ROW(),FALSE)) ->  | H14: =IF(H$5="","",HLOOKUP(H$5,'Data-Gross'!$C$2:$DZW$1008,ROW(),FALSE)) ->  | I14: =IF(I$5="","",HLOOKUP(I$5,'Data-Gross'!$C$2:$DZW$1008,ROW(),FALSE)) ->  | J14: =IF(J$5="","",HLOOKUP(J$5,'Data-Gross'!$C$2:$DZW$1008,ROW(),FALSE)) ->  | K14: =IF(K$5="","",HLOOKUP(K$5,'Data-Gross'!$C$2:$DZW$1008,ROW(),FALSE)) ->  | L14: 0.5 | M14: 0.3 | N14: 0.2 | O14: 0 | P14: 0 | Q14: 0 | R14: 0 | S14: 0 | T14: 0 | U14: 0 | V14: =IF(OR(V$5="",V$5=0),"",IF($V$3=0,HLOOKUP(V$5,'Data-Gross'!$AU$2:$ES$1008,ROW(),FALSE),HLOOKUP(V$5,'Data-Gross'!$C$2:$ES$1008,ROW(),FALSE))) -> 0.0029 | W14: =IF(OR(W$5="",W$5=0),"",IF($V$3=0,HLOOKUP(W$5,'Data-Gross'!$AU$2:$ES$1008,ROW(),FALSE),HLOOKUP(W$5,'Data-Gross'!$C$2:$ES$1008,ROW(),FALSE))) -> 0.0045 | X14: =IF(OR(X$5="",X$5=0),"",IF($V$3=0,HLOOKUP(X$5,'Data-Gross'!$AU$2:$ES$1008,ROW(),FALSE),HLOOKUP(X$5,'Data-Gross'!$C$2:$ES$1008,ROW(),FALSE))) -> 0.0055 | Y14: =IF(OR(Y$5="",Y$5=0),"",IF($V$3=0,HLOOKUP(Y$5,'Data-Gross'!$AU$2:$ES$1008,ROW(),FALSE),HLOOKUP(Y$5,'Data-Gross'!$C$2:$ES$1008,ROW(),FALSE))) ->  | Z14: =IF(OR(Z$5="",Z$5=0),"",IF($V$3=0,HLOOKUP(Z$5,'Data-Gross'!$AU$2:$ES$1008,ROW(),FALSE),HLOOKUP(Z$5,'Data-Gross'!$C$2:$ES$1008,ROW(),FALSE))) ->  | AA14: =IF(OR(AA$5="",AA$5=0),"",IF($V$3=0,HLOOKUP(AA$5,'Data-Gross'!$AU$2:$ES$1008,ROW(),FALSE),HLOOKUP(AA$5,'Data-Gross'!$C$2:$ES$1008,ROW(),FALSE))) ->  | AB14: =IF(OR(AB$5="",AB$5=0),"",IF($V$3=0,HLOOKUP(AB$5,'Data-Gross'!$AU$2:$ES$1008,ROW(),FALSE),HLOOKUP(AB$5,'Data-Gross'!$C$2:$ES$1008,ROW(),FALSE))) ->  | AC14: =IF(OR(AC$5="",AC$5=0),"",IF($V$3=0,HLOOKUP(AC$5,'Data-Gross'!$AU$2:$ES$1008,ROW(),FALSE),HLOOKUP(AC$5,'Data-Gross'!$C$2:$ES$1008,ROW(),FALSE))) ->  | AD14: =IF(OR(AD$5="",AD$5=0),"",IF($V$3=0,HLOOKUP(AD$5,'Data-Gross'!$AU$2:$ES$1008,ROW(),FALSE),HLOOKUP(AD$5,'Data-Gross'!$C$2:$ES$1008,ROW(),FALSE))) ->  | AE14: =IF(OR(AE$5="",AE$5=0),"",IF($V$3=0,HLOOKUP(AE$5,'Data-Gross'!$AU$2:$ES$1008,ROW(),FALSE),HLOOKUP(AE$5,'Data-Gross'!$C$2:$ES$1008,ROW(),FALSE))) ->  | AF14: =IF(OR(AF$5="",AF$5=0),"",IF($V$3=0,HLOOKUP(AF$5,'Data-Gross'!$AU$2:$ES$1008,ROW(),FALSE),HLOOKUP(AF$5,'Data-Gross'!$C$2:$ES$1008,ROW(),FALSE))) ->  | AG14: =IF(OR(AG$5="",AG$5=0),"",IF($V$3=0,HLOOKUP(AG$5,'Data-Gross'!$AU$2:$ES$1008,ROW(),FALSE),HLOOKUP(AG$5,'Data-Gross'!$C$2:$ES$1008,ROW(),FALSE))) ->  | AI14: ='Data-Gross'!CD15 -> 0.0029 | AK14: 0.0009575 | AL14: 102575.9902 | AM14: 0.009385393983 | AV14: 0.04456511257 | AW14: 0.5833333333 | BM14: =IF(AL14/MAX(AL$8:AL14)-1<0,AL14/MAX((AL$8:AL14))-1,0) -> -0.0009868599438 | BN14: =MIN(BM$8:BM14) -> -0.0036725 | BT14: 0.0029 | BU14: ='Data-Gross'!CG15 -> -0.0156 | BV14: 0.0039 | BW14: 101374.1488 | BX14: 0.01348625997 | CG14: 0.02367229507 | CH14: 0.5833333333 | CY14: =IF(BW14/MAX(BW$8:BW14)-1<0,BW14/MAX((BW$8:BW14))-1,0) -> 0 | CZ14: =MIN(CY$8:CY14) -> -0.0160753107 | DD14: 0.0029 | DG14: -0.0156 | DH14: 98032.12309 | DI14: -0.01196397094 | DR14: -0.03349749125 | DS14: 0.5833333333 | EJ14: =IF(DH14/MAX(DH$8:DH14)-1<0,DH14/MAX((DH$8:DH14))-1,0) -> -0.04170385541 | EK14: =MIN(EJ$8:EJ14) -> -0.04998295 | EO14: 0.0029 | EP14: 101398.036 | EQ14: 0.01187372856 | EZ14: 0.02408583579 | FA14: 0.5833333333
A15: 2000-08-31 | B15: =IF(B$5="","",HLOOKUP(B$5,'Data-Gross'!$C$2:$DZW$1008,ROW(),FALSE)) -> 0.0219583 | C15: =IF(C$5="","",HLOOKUP(C$5,'Data-Gross'!$C$2:$DZW$1008,ROW(),FALSE)) -> 0.0058 | D15: =IF(D$5="","",HLOOKUP(D$5,'Data-Gross'!$C$2:$DZW$1008,ROW(),FALSE)) -> 0.0058 | E15: =IF(E$5="","",HLOOKUP(E$5,'Data-Gross'!$C$2:$DZW$1008,ROW(),FALSE)) ->  | F15: =IF(F$5="","",HLOOKUP(F$5,'Data-Gross'!$C$2:$DZW$1008,ROW(),FALSE)) ->  | G15: =IF(G$5="","",HLOOKUP(G$5,'Data-Gross'!$C$2:$DZW$1008,ROW(),FALSE)) ->  | H15: =IF(H$5="","",HLOOKUP(H$5,'Data-Gross'!$C$2:$DZW$1008,ROW(),FALSE)) ->  | I15: =IF(I$5="","",HLOOKUP(I$5,'Data-Gross'!$C$2:$DZW$1008,ROW(),FALSE)) ->  | J15: =IF(J$5="","",HLOOKUP(J$5,'Data-Gross'!$C$2:$DZW$1008,ROW(),FALSE)) ->  | K15: =IF(K$5="","",HLOOKUP(K$5,'Data-Gross'!$C$2:$DZW$1008,ROW(),FALSE)) ->  | L15: 0.5 | M15: 0.3 | N15: 0.2 | O15: 0 | P15: 0 | Q15: 0 | R15: 0 | S15: 0 | T15: 0 | U15: 0 | V15: =IF(OR(V$5="",V$5=0),"",IF($V$3=0,HLOOKUP(V$5,'Data-Gross'!$AU$2:$ES$1008,ROW(),FALSE),HLOOKUP(V$5,'Data-Gross'!$C$2:$ES$1008,ROW(),FALSE))) -> 0.0163 | W15: =IF(OR(W$5="",W$5=0),"",IF($V$3=0,HLOOKUP(W$5,'Data-Gross'!$AU$2:$ES$1008,ROW(),FALSE),HLOOKUP(W$5,'Data-Gross'!$C$2:$ES$1008,ROW(),FALSE))) -> 0.0074 | X15: =IF(OR(X$5="",X$5=0),"",IF($V$3=0,HLOOKUP(X$5,'Data-Gross'!$AU$2:$ES$1008,ROW(),FALSE),HLOOKUP(X$5,'Data-Gross'!$C$2:$ES$1008,ROW(),FALSE))) -> 0.0084 | Y15: =IF(OR(Y$5="",Y$5=0),"",IF($V$3=0,HLOOKUP(Y$5,'Data-Gross'!$AU$2:$ES$1008,ROW(),FALSE),HLOOKUP(Y$5,'Data-Gross'!$C$2:$ES$1008,ROW(),FALSE))) ->  | Z15: =IF(OR(Z$5="",Z$5=0),"",IF($V$3=0,HLOOKUP(Z$5,'Data-Gross'!$AU$2:$ES$1008,ROW(),FALSE),HLOOKUP(Z$5,'Data-Gross'!$C$2:$ES$1008,ROW(),FALSE))) ->  | AA15: =IF(OR(AA$5="",AA$5=0),"",IF($V$3=0,HLOOKUP(AA$5,'Data-Gross'!$AU$2:$ES$1008,ROW(),FALSE),HLOOKUP(AA$5,'Data-Gross'!$C$2:$ES$1008,ROW(),FALSE))) ->  | AB15: =IF(OR(AB$5="",AB$5=0),"",IF($V$3=0,HLOOKUP(AB$5,'Data-Gross'!$AU$2:$ES$1008,ROW(),FALSE),HLOOKUP(AB$5,'Data-Gross'!$C$2:$ES$1008,ROW(),FALSE))) ->  | AC15: =IF(OR(AC$5="",AC$5=0),"",IF($V$3=0,HLOOKUP(AC$5,'Data-Gross'!$AU$2:$ES$1008,ROW(),FALSE),HLOOKUP(AC$5,'Data-Gross'!$C$2:$ES$1008,ROW(),FALSE))) ->  | AD15: =IF(OR(AD$5="",AD$5=0),"",IF($V$3=0,HLOOKUP(AD$5,'Data-Gross'!$AU$2:$ES$1008,ROW(),FALSE),HLOOKUP(AD$5,'Data-Gross'!$C$2:$ES$1008,ROW(),FALSE))) ->  | AE15: =IF(OR(AE$5="",AE$5=0),"",IF($V$3=0,HLOOKUP(AE$5,'Data-Gross'!$AU$2:$ES$1008,ROW(),FALSE),HLOOKUP(AE$5,'Data-Gross'!$C$2:$ES$1008,ROW(),FALSE))) ->  | AF15: =IF(OR(AF$5="",AF$5=0),"",IF($V$3=0,HLOOKUP(AF$5,'Data-Gross'!$AU$2:$ES$1008,ROW(),FALSE),HLOOKUP(AF$5,'Data-Gross'!$C$2:$ES$1008,ROW(),FALSE))) ->  | AG15: =IF(OR(AG$5="",AG$5=0),"",IF($V$3=0,HLOOKUP(AG$5,'Data-Gross'!$AU$2:$ES$1008,ROW(),FALSE),HLOOKUP(AG$5,'Data-Gross'!$C$2:$ES$1008,ROW(),FALSE))) ->  | AI15: ='Data-Gross'!CD16 -> 0.0163 | AK15: 0.01216665 | AL15: 103823.9964 | AM15: 0.01116778328 | AV15: 0.05790486062 | AW15: 0.6666666667 | BM15: =IF(AL15/MAX(AL$8:AL15)-1<0,AL15/MAX((AL$8:AL15))-1,0) -> 0 | BN15: =MIN(BM$8:BM15) -> -0.0036725 | BT15: 0.0163 | BU15: ='Data-Gross'!CG16 -> 0.0621 | BV15: 0.01205 | BW15: 102595.7073 | BX15: 0.03473197959 | CG15: 0.03918719031 | CH15: 0.6666666667 | CY15: =IF(BW15/MAX(BW$8:BW15)-1<0,BW15/MAX((BW$8:BW15))-1,0) -> 0 | CZ15: =MIN(CY$8:CY15) -> -0.0160753107 | DD15: 0.0163 | DG15: 0.0621 | DH15: 104119.9179 | DI15: 0.07135586163 | DR15: 0.06243097921 | DS15: 0.6666666667 | EJ15: =IF(DH15/MAX(DH$8:DH15)-1<0,DH15/MAX((DH$8:DH15))-1,0) -> 0 | EK15: =MIN(EJ$8:EJ15) -> -0.04998295 | EO15: 0.0163 | EP15: 103050.824 | EQ15: 0.03728794668 | EZ15: 0.04610963683 | FA15: 0.6666666667
A16: 2000-09-30 | B16: =IF(B$5="","",HLOOKUP(B$5,'Data-Gross'!$C$2:$DZW$1008,ROW(),FALSE)) -> 0.0151603 | C16: =IF(C$5="","",HLOOKUP(C$5,'Data-Gross'!$C$2:$DZW$1008,ROW(),FALSE)) -> 0.0074 | D16: =IF(D$5="","",HLOOKUP(D$5,'Data-Gross'!$C$2:$DZW$1008,ROW(),FALSE)) -> 0.0074 | E16: =IF(E$5="","",HLOOKUP(E$5,'Data-Gross'!$C$2:$DZW$1008,ROW(),FALSE)) ->  | F16: =IF(F$5="","",HLOOKUP(F$5,'Data-Gross'!$C$2:$DZW$1008,ROW(),FALSE)) ->  | G16: =IF(G$5="","",HLOOKUP(G$5,'Data-Gross'!$C$2:$DZW$1008,ROW(),FALSE)) ->  | H16: =IF(H$5="","",HLOOKUP(H$5,'Data-Gross'!$C$2:$DZW$1008,ROW(),FALSE)) ->  | I16: =IF(I$5="","",HLOOKUP(I$5,'Data-Gross'!$C$2:$DZW$1008,ROW(),FALSE)) ->  | J16: =IF(J$5="","",HLOOKUP(J$5,'Data-Gross'!$C$2:$DZW$1008,ROW(),FALSE)) ->  | K16: =IF(K$5="","",HLOOKUP(K$5,'Data-Gross'!$C$2:$DZW$1008,ROW(),FALSE)) ->  | L16: 0.5 | M16: 0.3 | N16: 0.2 | O16: 0 | P16: 0 | Q16: 0 | R16: 0 | S16: 0 | T16: 0 | U16: 0 | V16: =IF(OR(V$5="",V$5=0),"",IF($V$3=0,HLOOKUP(V$5,'Data-Gross'!$AU$2:$ES$1008,ROW(),FALSE),HLOOKUP(V$5,'Data-Gross'!$C$2:$ES$1008,ROW(),FALSE))) -> -0.0068 | W16: =IF(OR(W$5="",W$5=0),"",IF($V$3=0,HLOOKUP(W$5,'Data-Gross'!$AU$2:$ES$1008,ROW(),FALSE),HLOOKUP(W$5,'Data-Gross'!$C$2:$ES$1008,ROW(),FALSE))) -> -0.003 | X16: =IF(OR(X$5="",X$5=0),"",IF($V$3=0,HLOOKUP(X$5,'Data-Gross'!$AU$2:$ES$1008,ROW(),FALSE),HLOOKUP(X$5,'Data-Gross'!$C$2:$ES$1008,ROW(),FALSE))) -> -0.0075 | Y16: =IF(OR(Y$5="",Y$5=0),"",IF($V$3=0,HLOOKUP(Y$5,'Data-Gross'!$AU$2:$ES$1008,ROW(),FALSE),HLOOKUP(Y$5,'Data-Gross'!$C$2:$ES$1008,ROW(),FALSE))) ->  | Z16: =IF(OR(Z$5="",Z$5=0),"",IF($V$3=0,HLOOKUP(Z$5,'Data-Gross'!$AU$2:$ES$1008,ROW(),FALSE),HLOOKUP(Z$5,'Data-Gross'!$C$2:$ES$1008,ROW(),FALSE))) ->  | AA16: =IF(OR(AA$5="",AA$5=0),"",IF($V$3=0,HLOOKUP(AA$5,'Data-Gross'!$AU$2:$ES$1008,ROW(),FALSE),HLOOKUP(AA$5,'Data-Gross'!$C$2:$ES$1008,ROW(),FALSE))) ->  | AB16: =IF(OR(AB$5="",AB$5=0),"",IF($V$3=0,HLOOKUP(AB$5,'Data-Gross'!$AU$2:$ES$1008,ROW(),FALSE),HLOOKUP(AB$5,'Data-Gross'!$C$2:$ES$1008,ROW(),FALSE))) ->  | AC16: =IF(OR(AC$5="",AC$5=0),"",IF($V$3=0,HLOOKUP(AC$5,'Data-Gross'!$AU$2:$ES$1008,ROW(),FALSE),HLOOKUP(AC$5,'Data-Gross'!$C$2:$ES$1008,ROW(),FALSE))) ->  | AD16: =IF(OR(AD$5="",AD$5=0),"",IF($V$3=0,HLOOKUP(AD$5,'Data-Gross'!$AU$2:$ES$1008,ROW(),FALSE),HLOOKUP(AD$5,'Data-Gross'!$C$2:$ES$1008,ROW(),FALSE))) ->  | AE16: =IF(OR(AE$5="",AE$5=0),"",IF($V$3=0,HLOOKUP(AE$5,'Data-Gross'!$AU$2:$ES$1008,ROW(),FALSE),HLOOKUP(AE$5,'Data-Gross'!$C$2:$ES$1008,ROW(),FALSE))) ->  | AF16: =IF(OR(AF$5="",AF$5=0),"",IF($V$3=0,HLOOKUP(AF$5,'Data-Gross'!$AU$2:$ES$1008,ROW(),FALSE),HLOOKUP(AF$5,'Data-Gross'!$C$2:$ES$1008,ROW(),FALSE))) ->  | AG16: =IF(OR(AG$5="",AG$5=0),"",IF($V$3=0,HLOOKUP(AG$5,'Data-Gross'!$AU$2:$ES$1008,ROW(),FALSE),HLOOKUP(AG$5,'Data-Gross'!$C$2:$ES$1008,ROW(),FALSE))) ->  | AI16: ='Data-Gross'!CD17 -> -0.0068 | AK16: 0.00956765 | AL16: 104817.348 | AM16: 0.0228291283 | AV16: 0.06474160213 | AW16: 0.75 | BM16: =IF(AL16/MAX(AL$8:AL16)-1<0,AL16/MAX((AL$8:AL16))-1,0) -> 0 | BN16: =MIN(BM$8:BM16) -> -0.0036725 | BT16: -0.0068 | BU16: ='Data-Gross'!CG17 -> -0.0528 | BV16: -0.0058 | BW16: 102000.6522 | BX16: 0.01010421243 | CG16: 0.02676391711 | CH16: 0.75 | CY16: =IF(BW16/MAX(BW$8:BW16)-1<0,BW16/MAX((BW$8:BW16))-1,0) -> -0.0058 | CZ16: =MIN(CY$8:CY16) -> -0.0160753107 | DD16: -0.0068 | DG16: -0.0528 | DH16: 98622.38627 | DI16: -0.009672809472 | DR16: -0.01832587945 | DS16: 0.75 | EJ16: =IF(DH16/MAX(DH$8:DH16)-1<0,DH16/MAX((DH$8:DH16))-1,0) -> -0.0528 | EK16: =MIN(EJ$8:EJ16) -> -0.0528 | EO16: -0.0068 | EP16: 102350.0784 | EQ16: 0.01231638856 | EZ16: 0.03145647366 | FA16: 0.75
A17: 2000-10-31 | B17: =IF(B$5="","",HLOOKUP(B$5,'Data-Gross'!$C$2:$DZW$1008,ROW(),FALSE)) -> -0.0020633 | C17: =IF(C$5="","",HLOOKUP(C$5,'Data-Gross'!$C$2:$DZW$1008,ROW(),FALSE)) -> -0.0007 | D17: =IF(D$5="","",HLOOKUP(D$5,'Data-Gross'!$C$2:$DZW$1008,ROW(),FALSE)) -> -0.0007 | E17: =IF(E$5="","",HLOOKUP(E$5,'Data-Gross'!$C$2:$DZW$1008,ROW(),FALSE)) ->  | F17: =IF(F$5="","",HLOOKUP(F$5,'Data-Gross'!$C$2:$DZW$1008,ROW(),FALSE)) ->  | G17: =IF(G$5="","",HLOOKUP(G$5,'Data-Gross'!$C$2:$DZW$1008,ROW(),FALSE)) ->  | H17: =IF(H$5="","",HLOOKUP(H$5,'Data-Gross'!$C$2:$DZW$1008,ROW(),FALSE)) ->  | I17: =IF(I$5="","",HLOOKUP(I$5,'Data-Gross'!$C$2:$DZW$1008,ROW(),FALSE)) ->  | J17: =IF(J$5="","",HLOOKUP(J$5,'Data-Gross'!$C$2:$DZW$1008,ROW(),FALSE)) ->  | K17: =IF(K$5="","",HLOOKUP(K$5,'Data-Gross'!$C$2:$DZW$1008,ROW(),FALSE)) ->  | L17: =L$4 -> 0.5 | M17: 0.3 | N17: 0.2 | O17: 0 | P17: 0 | Q17: 0 | R17: 0 | S17: 0 | T17: 0 | U17: 0 | V17: =IF(OR(V$5="",V$5=0),"",IF($V$3=0,HLOOKUP(V$5,'Data-Gross'!$AU$2:$ES$1008,ROW(),FALSE),HLOOKUP(V$5,'Data-Gross'!$C$2:$ES$1008,ROW(),FALSE))) -> -0.0054 | W17: =IF(OR(W$5="",W$5=0),"",IF($V$3=0,HLOOKUP(W$5,'Data-Gross'!$AU$2:$ES$1008,ROW(),FALSE),HLOOKUP(W$5,'Data-Gross'!$C$2:$ES$1008,ROW(),FALSE))) -> -0.0132 | X17: =IF(OR(X$5="",X$5=0),"",IF($V$3=0,HLOOKUP(X$5,'Data-Gross'!$AU$2:$ES$1008,ROW(),FALSE),HLOOKUP(X$5,'Data-Gross'!$C$2:$ES$1008,ROW(),FALSE))) -> -0.0158 | Y17: =IF(OR(Y$5="",Y$5=0),"",IF($V$3=0,HLOOKUP(Y$5,'Data-Gross'!$AU$2:$ES$1008,ROW(),FALSE),HLOOKUP(Y$5,'Data-Gross'!$C$2:$ES$1008,ROW(),FALSE))) ->  | Z17: =IF(OR(Z$5="",Z$5=0),"",IF($V$3=0,HLOOKUP(Z$5,'Data-Gross'!$AU$2:$ES$1008,ROW(),FALSE),HLOOKUP(Z$5,'Data-Gross'!$C$2:$ES$1008,ROW(),FALSE))) ->  | AA17: =IF(OR(AA$5="",AA$5=0),"",IF($V$3=0,HLOOKUP(AA$5,'Data-Gross'!$AU$2:$ES$1008,ROW(),FALSE),HLOOKUP(AA$5,'Data-Gross'!$C$2:$ES$1008,ROW(),FALSE))) ->  | AB17: =IF(OR(AB$5="",AB$5=0),"",IF($V$3=0,HLOOKUP(AB$5,'Data-Gross'!$AU$2:$ES$1008,ROW(),FALSE),HLOOKUP(AB$5,'Data-Gross'!$C$2:$ES$1008,ROW(),FALSE))) ->  | AC17: =IF(OR(AC$5="",AC$5=0),"",IF($V$3=0,HLOOKUP(AC$5,'Data-Gross'!$AU$2:$ES$1008,ROW(),FALSE),HLOOKUP(AC$5,'Data-Gross'!$C$2:$ES$1008,ROW(),FALSE))) ->  | AD17: =IF(OR(AD$5="",AD$5=0),"",IF($V$3=0,HLOOKUP(AD$5,'Data-Gross'!$AU$2:$ES$1008,ROW(),FALSE),HLOOKUP(AD$5,'Data-Gross'!$C$2:$ES$1008,ROW(),FALSE))) ->  | AE17: =IF(OR(AE$5="",AE$5=0),"",IF($V$3=0,HLOOKUP(AE$5,'Data-Gross'!$AU$2:$ES$1008,ROW(),FALSE),HLOOKUP(AE$5,'Data-Gross'!$C$2:$ES$1008,ROW(),FALSE))) ->  | AF17: =IF(OR(AF$5="",AF$5=0),"",IF($V$3=0,HLOOKUP(AF$5,'Data-Gross'!$AU$2:$ES$1008,ROW(),FALSE),HLOOKUP(AF$5,'Data-Gross'!$C$2:$ES$1008,ROW(),FALSE))) ->  | AG17: =IF(OR(AG$5="",AG$5=0),"",IF($V$3=0,HLOOKUP(AG$5,'Data-Gross'!$AU$2:$ES$1008,ROW(),FALSE),HLOOKUP(AG$5,'Data-Gross'!$C$2:$ES$1008,ROW(),FALSE))) ->  | AI17: ='Data-Gross'!CD18 -> -0.0054 | AK17: -0.00309415 | AL17: 104493.0274 | AM17: 0.01868894689 | AV17: 0.05415573167 | AW17: 0.8333333333 | BM17: =IF(AL17/MAX(AL$8:AL17)-1<0,AL17/MAX((AL$8:AL17))-1,0) -> -0.00309415 | BN17: =MIN(BM$8:BM17) -> -0.0036725 | BT17: -0.0054 | BU17: ='Data-Gross'!CG18 -> -0.0042 | BV17: -0.00982 | BW17: 100999.0058 | BX17: -0.00370057868 | CG17: 0.01200001372 | CH17: 0.8333333333 | CY17: =IF(BW17/MAX(BW$8:BW17)-1<0,BW17/MAX((BW$8:BW17))-1,0) -> -0.015563044 | CZ17: =MIN(CY$8:CY17) -> -0.0160753107 | DD17: -0.0054 | DG17: -0.0042 | DH17: 98208.17225 | DI17: 0.001795831296 | DR17: -0.02146321968 | DS17: 0.8333333333 | EJ17: =IF(DH17/MAX(DH$8:DH17)-1<0,DH17/MAX((DH$8:DH17))-1,0) -> -0.05677824 | EK17: =MIN(EJ$8:EJ17) -> -0.05677824 | EO17: -0.0054 | EP17: 101797.3879 | EQ17: 0.003938458536 | EZ17: 0.02160723805 | FA17: 0.8333333333
A18: 2000-11-30 | B18: =IF(B$5="","",HLOOKUP(B$5,'Data-Gross'!$C$2:$DZW$1008,ROW(),FALSE)) -> 0.0065621 | C18: =IF(C$5="","",HLOOKUP(C$5,'Data-Gross'!$C$2:$DZW$1008,ROW(),FALSE)) -> -0.0009 | D18: =IF(D$5="","",HLOOKUP(D$5,'Data-Gross'!$C$2:$DZW$1008,ROW(),FALSE)) -> -0.0009 | E18: =IF(E$5="","",HLOOKUP(E$5,'Data-Gross'!$C$2:$DZW$1008,ROW(),FALSE)) ->  | F18: =IF(F$5="","",HLOOKUP(F$5,'Data-Gross'!$C$2:$DZW$1008,ROW(),FALSE)) ->  | G18: =IF(G$5="","",HLOOKUP(G$5,'Data-Gross'!$C$2:$DZW$1008,ROW(),FALSE)) ->  | H18: =IF(H$5="","",HLOOKUP(H$5,'Data-Gross'!$C$2:$DZW$1008,ROW(),FALSE)) ->  | I18: =IF(I$5="","",HLOOKUP(I$5,'Data-Gross'!$C$2:$DZW$1008,ROW(),FALSE)) ->  | J18: =IF(J$5="","",HLOOKUP(J$5,'Data-Gross'!$C$2:$DZW$1008,ROW(),FALSE)) ->  | K18: =IF(K$5="","",HLOOKUP(K$5,'Data-Gross'!$C$2:$DZW$1008,ROW(),FALSE)) ->  | L18: 0.5 | M18: 0.3 | N18: 0.2 | O18: 0 | P18: 0 | Q18: 0 | R18: 0 | S18: 0 | T18: 0 | U18: 0 | V18: =IF(OR(V$5="",V$5=0),"",IF($V$3=0,HLOOKUP(V$5,'Data-Gross'!$AU$2:$ES$1008,ROW(),FALSE),HLOOKUP(V$5,'Data-Gross'!$C$2:$ES$1008,ROW(),FALSE))) -> -0.0063 | W18: =IF(OR(W$5="",W$5=0),"",IF($V$3=0,HLOOKUP(W$5,'Data-Gross'!$AU$2:$ES$1008,ROW(),FALSE),HLOOKUP(W$5,'Data-Gross'!$C$2:$ES$1008,ROW(),FALSE))) -> -0.0175 | X18: =IF(OR(X$5="",X$5=0),"",IF($V$3=0,HLOOKUP(X$5,'Data-Gross'!$AU$2:$ES$1008,ROW(),FALSE),HLOOKUP(X$5,'Data-Gross'!$C$2:$ES$1008,ROW(),FALSE))) -> -0.0095 | Y18: =IF(OR(Y$5="",Y$5=0),"",IF($V$3=0,HLOOKUP(Y$5,'Data-Gross'!$AU$2:$ES$1008,ROW(),FALSE),HLOOKUP(Y$5,'Data-Gross'!$C$2:$ES$1008,ROW(),FALSE))) ->  | Z18: =IF(OR(Z$5="",Z$5=0),"",IF($V$3=0,HLOOKUP(Z$5,'Data-Gross'!$AU$2:$ES$1008,ROW(),FALSE),HLOOKUP(Z$5,'Data-Gross'!$C$2:$ES$1008,ROW(),FALSE))) ->  | AA18: =IF(OR(AA$5="",AA$5=0),"",IF($V$3=0,HLOOKUP(AA$5,'Data-Gross'!$AU$2:$ES$1008,ROW(),FALSE),HLOOKUP(AA$5,'Data-Gross'!$C$2:$ES$1008,ROW(),FALSE))) ->  | AB18: =IF(OR(AB$5="",AB$5=0),"",IF($V$3=0,HLOOKUP(AB$5,'Data-Gross'!$AU$2:$ES$1008,ROW(),FALSE),HLOOKUP(AB$5,'Data-Gross'!$C$2:$ES$1008,ROW(),FALSE))) ->  | AC18: =IF(OR(AC$5="",AC$5=0),"",IF($V$3=0,HLOOKUP(AC$5,'Data-Gross'!$AU$2:$ES$1008,ROW(),FALSE),HLOOKUP(AC$5,'Data-Gross'!$C$2:$ES$1008,ROW(),FALSE))) ->  | AD18: =IF(OR(AD$5="",AD$5=0),"",IF($V$3=0,HLOOKUP(AD$5,'Data-Gross'!$AU$2:$ES$1008,ROW(),FALSE),HLOOKUP(AD$5,'Data-Gross'!$C$2:$ES$1008,ROW(),FALSE))) ->  | AE18: =IF(OR(AE$5="",AE$5=0),"",IF($V$3=0,HLOOKUP(AE$5,'Data-Gross'!$AU$2:$ES$1008,ROW(),FALSE),HLOOKUP(AE$5,'Data-Gross'!$C$2:$ES$1008,ROW(),FALSE))) ->  | AF18: =IF(OR(AF$5="",AF$5=0),"",IF($V$3=0,HLOOKUP(AF$5,'Data-Gross'!$AU$2:$ES$1008,ROW(),FALSE),HLOOKUP(AF$5,'Data-Gross'!$C$2:$ES$1008,ROW(),FALSE))) ->  | AG18: =IF(OR(AG$5="",AG$5=0),"",IF($V$3=0,HLOOKUP(AG$5,'Data-Gross'!$AU$2:$ES$1008,ROW(),FALSE),HLOOKUP(AG$5,'Data-Gross'!$C$2:$ES$1008,ROW(),FALSE))) ->  | AI18: ='Data-Gross'!CD19 -> -0.0063 | AK18: 0.00111855 | AL18: 104609.9081 | AM18: 0.007569654076 | AV18: 0.05039384436 | AW18: 0.9166666667 | BM18: =IF(AL18/MAX(AL$8:AL18)-1<0,AL18/MAX((AL$8:AL18))-1,0) -> -0.001979060961 | BN18: =MIN(BM$8:BM18) -> -0.0036725 | BT18: -0.0063 | BU18: ='Data-Gross'!CG19 -> -0.0788 | BV18: -0.0103 | BW18: 99958.71602 | BX18: -0.02570274465 | CG18: -0.0004503622572 | CH18: 0.9166666667 | CY18: =IF(BW18/MAX(BW$8:BW18)-1<0,BW18/MAX((BW$8:BW18))-1,0) -> -0.02570274465 | CZ18: =MIN(CY$8:CY18) -> -0.02570274465 | DD18: -0.0063 | DG18: -0.0788 | DH18: 90469.36827 | DI18: -0.1311041147 | DR18: -0.1035064817 | DS18: 0.9166666667 | EJ18: =IF(DH18/MAX(DH$8:DH18)-1<0,DH18/MAX((DH$8:DH18))-1,0) -> -0.1311041147 | EK18: =MIN(EJ$8:EJ18) -> -0.1311041147 | EO18: -0.0063 | EP18: 101156.0644 | EQ18: -0.01838665134 | EZ18: 0.01261821557 | FA18: 0.9166666667
A19: 2000-12-31 | B19: =IF(B$5="","",HLOOKUP(B$5,'Data-Gross'!$C$2:$DZW$1008,ROW(),FALSE)) -> 0.0186512 | C19: =IF(C$5="","",HLOOKUP(C$5,'Data-Gross'!$C$2:$DZW$1008,ROW(),FALSE)) -> 0.0096 | D19: =IF(D$5="","",HLOOKUP(D$5,'Data-Gross'!$C$2:$DZW$1008,ROW(),FALSE)) -> 0.0096 | E19: =IF(E$5="","",HLOOKUP(E$5,'Data-Gross'!$C$2:$DZW$1008,ROW(),FALSE)) ->  | F19: =IF(F$5="","",HLOOKUP(F$5,'Data-Gross'!$C$2:$DZW$1008,ROW(),FALSE)) ->  | G19: =IF(G$5="","",HLOOKUP(G$5,'Data-Gross'!$C$2:$DZW$1008,ROW(),FALSE)) ->  | H19: =IF(H$5="","",HLOOKUP(H$5,'Data-Gross'!$C$2:$DZW$1008,ROW(),FALSE)) ->  | I19: =IF(I$5="","",HLOOKUP(I$5,'Data-Gross'!$C$2:$DZW$1008,ROW(),FALSE)) ->  | J19: =IF(J$5="","",HLOOKUP(J$5,'Data-Gross'!$C$2:$DZW$1008,ROW(),FALSE)) ->  | K19: =IF(K$5="","",HLOOKUP(K$5,'Data-Gross'!$C$2:$DZW$1008,ROW(),FALSE)) ->  | L19: 0.5 | M19: 0.3 | N19: 0.2 | O19: 0 | P19: 0 | Q19: 0 | R19: 0 | S19: 0 | T19: 0 | U19: 0 | V19: =IF(OR(V$5="",V$5=0),"",IF($V$3=0,HLOOKUP(V$5,'Data-Gross'!$AU$2:$ES$1008,ROW(),FALSE),HLOOKUP(V$5,'Data-Gross'!$C$2:$ES$1008,ROW(),FALSE))) -> 0.0217 | W19: =IF(OR(W$5="",W$5=0),"",IF($V$3=0,HLOOKUP(W$5,'Data-Gross'!$AU$2:$ES$1008,ROW(),FALSE),HLOOKUP(W$5,'Data-Gross'!$C$2:$ES$1008,ROW(),FALSE))) -> 0.0175 | X19: =IF(OR(X$5="",X$5=0),"",IF($V$3=0,HLOOKUP(X$5,'Data-Gross'!$AU$2:$ES$1008,ROW(),FALSE),HLOOKUP(X$5,'Data-Gross'!$C$2:$ES$1008,ROW(),FALSE))) -> 0.0262 | Y19: =IF(OR(Y$5="",Y$5=0),"",IF($V$3=0,HLOOKUP(Y$5,'Data-Gross'!$AU$2:$ES$1008,ROW(),FALSE),HLOOKUP(Y$5,'Data-Gross'!$C$2:$ES$1008,ROW(),FALSE))) ->  | Z19: =IF(OR(Z$5="",Z$5=0),"",IF($V$3=0,HLOOKUP(Z$5,'Data-Gross'!$AU$2:$ES$1008,ROW(),FALSE),HLOOKUP(Z$5,'Data-Gross'!$C$2:$ES$1008,ROW(),FALSE))) ->  | AA19: =IF(OR(AA$5="",AA$5=0),"",IF($V$3=0,HLOOKUP(AA$5,'Data-Gross'!$AU$2:$ES$1008,ROW(),FALSE),HLOOKUP(AA$5,'Data-Gross'!$C$2:$ES$1008,ROW(),FALSE))) ->  | AB19: =IF(OR(AB$5="",AB$5=0),"",IF($V$3=0,HLOOKUP(AB$5,'Data-Gross'!$AU$2:$ES$1008,ROW(),FALSE),HLOOKUP(AB$5,'Data-Gross'!$C$2:$ES$1008,ROW(),FALSE))) ->  | AC19: =IF(OR(AC$5="",AC$5=0),"",IF($V$3=0,HLOOKUP(AC$5,'Data-Gross'!$AU$2:$ES$1008,ROW(),FALSE),HLOOKUP(AC$5,'Data-Gross'!$C$2:$ES$1008,ROW(),FALSE))) ->  | AD19: =IF(OR(AD$5="",AD$5=0),"",IF($V$3=0,HLOOKUP(AD$5,'Data-Gross'!$AU$2:$ES$1008,ROW(),FALSE),HLOOKUP(AD$5,'Data-Gross'!$C$2:$ES$1008,ROW(),FALSE))) ->  | AE19: =IF(OR(AE$5="",AE$5=0),"",IF($V$3=0,HLOOKUP(AE$5,'Data-Gross'!$AU$2:$ES$1008,ROW(),FALSE),HLOOKUP(AE$5,'Data-Gross'!$C$2:$ES$1008,ROW(),FALSE))) ->  | AF19: =IF(OR(AF$5="",AF$5=0),"",IF($V$3=0,HLOOKUP(AF$5,'Data-Gross'!$AU$2:$ES$1008,ROW(),FALSE),HLOOKUP(AF$5,'Data-Gross'!$C$2:$ES$1008,ROW(),FALSE))) ->  | AG19: =IF(OR(AG$5="",AG$5=0),"",IF($V$3=0,HLOOKUP(AG$5,'Data-Gross'!$AU$2:$ES$1008,ROW(),FALSE),HLOOKUP(AG$5,'Data-Gross'!$C$2:$ES$1008,ROW(),FALSE))) ->  | AI19: ='Data-Gross'!CD20 -> 0.0217 | AK19: 0.0124131 | AL19: 105908.4414 | AM19: 0.01040947276 | AN19: =(AL19/AL7)-1 -> 0.05908441372 | AV19: 0.05908441372 | AW19: 1 | BM19: =IF(AL19/MAX(AL$8:AL19)-1<0,AL19/MAX((AL$8:AL19))-1,0) -> 0 | BN19: =MIN(BM$8:BM19) -> -0.0036725 | BT19: 0.0217 | BU19: ='Data-Gross'!CG20 -> 0.0049 | BV19: 0.02134 | BW19: 102091.835 | BX19: 0.0008939436556 | BY19: =(BW19/BW7)-1 -> 0.02091835018 | CG19: 0.02091835018 | CH19: 1 | CY19: =IF(BW19/MAX(BW$8:BW19)-1<0,BW19/MAX((BW$8:BW19))-1,0) -> -0.004911241218 | CZ19: =MIN(CY$8:CY19) -> -0.02570274465 | DD19: 0.0217 | DG19: 0.0049 | DH19: 90912.66818 | DI19: -0.0781741183 | DJ19: =(DH19/DH7)-1 -> -0.09087331821 | DR19: -0.09087331821 | DS19: 1 | EJ19: =IF(DH19/MAX(DH$8:DH19)-1<0,DH19/MAX((DH$8:DH19))-1,0) -> -0.1268465248 | EK19: =MIN(EJ$8:EJ19) -> -0.1311041147 | EO19: 0.0217 | EP19: 103351.151 | EQ19: 0.009780868234 | ER19: =(EP19/EP7)-1 -> 0.03351150981 | EZ19: 0.03351150981 | FA19: 1
